Workbook

Sheet StandAnalysis
A1: Trial area | B1: 13 | C1: ha | D1: Area of trial is 9.05 ha, but need to use a larger area due to over estimate of volume by taper equation | G1: Year | H1: Stocking (sph) | I1: Value ($/ha) | L1: Log Volume | N1: Log Value
G2: 0 | H2: 1130 | I2: =-H2*estabCost-landRental-annualCost -> -2264 | L2: m3/ha | M2: % | N2: $/ha | O2: %
A3: Land rental | B3: 150 | C3: /ha/yr | D3: (includes opportunity cost of land) | G3: 1 | H3: 1128.746215 | I3: =-landRental-annualCost -> -230 | K3: Waste logs | L3: =SUM(VolumeData!W$3:W$3493)/trialArea -> 0.9593855894 | M3: =L3/L$6 -> 0.002784601457 | N3: 0 | O3: =N3/N$6 -> 0
A4: Estab cost | B4: 1.8 | C4: /tree | G4: 2 | H4: 1115.839987 | I4: =-landRental-annualCost -> -230 | K4: Pulp logs | L4: =SUM(VolumeData!X$3:Y$3493)/trialArea -> 135.0997024 | M4: =L4/L$6 -> 0.3921247435 | N4: =L4*(B13-cartageCost-harvestCost) -> 2797.914837 | O4: 0.04698321451
A5: Annual cost | B5: 80 | C5: /ha/yr | G5: 3 | H5: 1103.08133 | I5: =-landRental-annualCost -> -230 | K5: Saw logs | L5: =SUM(VolumeData!Z$3:Z$3493)/trialArea -> 208.4733717 | M5: 0.605090655 | N5: =SUM(ValueData!T3:T3493)/trialArea -> 56753.45613 | O5: 0.9530167855
A6: Thinning cost | B6: 0.7 | C6: /tree | G6: 4 | H6: 1090.468557 | I6: =-landRental-annualCost -> -230 | K6: Total | L6: =SUM(L3:L5) -> 344.5324597 | N6: =SUM(N3:N5) -> 59551.37097
G7: 5 | H7: 1078 | I7: =-landRental-annualCost -> -230
A8: Harvesting cost (pulp logs) | B8: =28*conversion -> 30.52 | C8: /m3 | G8: 6 | H8: 1065.67401 | I8: =-landRental-annualCost -> -230
A9: Harvesting cost (sawlog) | B9: =5.8138+28.565/(L6/H20)+18 -> 57.08754376 | C9: /m3 | G9: 7 | H9: 1053.488958 | I9: =-landRental-annualCost -> -230
A10: Cartage cost (pulp logs) | B10: =15*conversion -> 16.35 | C10: /m3 | G10: 8 | H10: 1041.44323 | I10: =-landRental-annualCost -> -230
A11: Cartage cost (saw logs) | B11: 37 | C11: /m3 | G11: 9 | H11: 1029.535235 | I11: =-landRental-annualCost -> -230
G12: 10 | H12: 440 | I12: =-(H11-H12)*thinCost-landRental-annualCost -> -642.6746647
A13: Pulp price | B13: =pulpPrice*conversion -> 67.58 | C13: /m3 | G13: 11 | H13: 434.9689838 | I13: =-landRental-annualCost -> -230
A14: Pulp price | B14: 62 | C14: /t | G14: 12 | H14: 429.9954929 | I14: =-landRental-annualCost -> -230
A15: t to m3 conversion | B15: 1.09 | C15: t/m3 | G15: 13 | H15: 425.0788695 | I15: =-landRental-annualCost -> -230
G16: 14 | H16: 420.2184634 | I16: =-landRental-annualCost -> -230
A17: Discount rate | B17: 0.08 | C17: /yr | G17: 15 | H17: 415.4136318 | I17: =-landRental-annualCost -> -230
G18: 16 | H18: 410.6637392 | I18: =-landRental-annualCost -> -230
A19: max SED | B19: 0.43 | C19: m | D19: (maximum SED of logs used in sawlog value regression) | G19: 17 | H19: 405.9681576 | I19: =-landRental-annualCost -> -230
A20: Pulp SED | B20: 0.25 | C20: m | D20: ="(anything with an SED less than "&pulpCutoff*100&" cm is pulp)" -> (anything with an SED less than 25 cm is pulp) | G20: 18 | H20: 401.3262658 | I20: =N6-landRental-annualCost -> 59321.37097
A21: Waste SED | B21: 0.05 | C21: m | D21: ="(anything with an SED less than "&wasteCutoff*100&" cm is waste)" -> (anything with an SED less than 5 cm is waste) | H21: NPV | I21: =NPV(discRate,I3:I20)+I2 -> 10291.99051
H22: IRR | I22: =IRR(I2:I20,0.11) -> 0.1680357659
A23: Malformation cutoff | B23: 2 | C23: score 1-9 | D23: ="(tree with malf score below "&B23&" goes to pulp" -> (tree with malf score below 2 goes to pulp
A24: Sweep cutoff | B24: 3 | C24: score 1-9 | D24: ="(tree with swep score below "&B24&" goes to pulp" -> (tree with swep score below 3 goes to pulp
A26: Regression parameters
A27: Intercept | B27: -49.5497089
A28: SED (m) | B28: 833.6962303
A30: 24.5 to 43.3 cm is the range of SEDs in the sawing study
A31: here I have used a flat price beyond 43.3 cm SED
B33: =int+SED*regCutoff -> 308.9396701

Sheet BaseData (hidden)
A1: ROW | B1: COL | C1: TREE | D1: DBH16 (mm) | E1: DBH16 (cm) | F1: HT16 (m) | G1: VOL16 (m3) | H1: BA (m2/tree) | I1: STR16 (1-9) | J1: MAL16 (1-9) | L1: Age | M1: 16 | N1: 18 | O1: yr
A2: 7 | B2: 10 | C2: 15 | D2: 622 | E2: =D2/10 -> 62.2 | F2: =(Peterson_a+Peterson_b*LN(E2*10))/10 -> 43.32614937 | G2: =Vol_a*E2^2*F2/10000 -> 5.001838682 | H2: =(PI()*((E2/100)/2)^2) -> 0.303857983 | I2: 3 | J2: 2 | L2: DBH | M2: =AVERAGE(E2:E3492) -> 28.74451447 | N2: =2*SQRT((N3/N4)/PI())*100 -> 31.27076588 | O2: cm | P2: =N2/M2-1 -> 0.08788638337
A3: 45 | B3: 38 | C3: 13 | D3: 600 | E3: =D3/10 -> 60 | F3: 42.73849504 | G3: 4.591140092 | H3: =(PI()*((E3/100)/2)^2) -> 0.2827433388 | I3: 4 | J3: 1 | L3: Basal Area | M3: =AVERAGE(H2:H3492)*stocking -> 28.25959207 | N3: 30.49 | O3: m2/ha
A4: 34 | B4: 124 | C4: 26 | D4: 600 | E4: 60 | F4: 42.73849504 | G4: 4.591140092 | H4: 0.2827433388 | I4: 4 | J4: 2 | L4: Stocking | M4: 406 | N4: 397 | O4: stems/ ha
A5: 12 | B5: 10 | C5: 12 | D5: 580 | E5: 58 | F5: 42.18525562 | G5: 4.234630205 | H5: 0.2642079422 | I5: 8 | J5: 2 | L5: Volume | M5: =AVERAGE(G2:G3492)*stocking -> 348.0517593 | N5: =AVERAGE(SEDData!F3:F3493)*N4 -> 419.8805262 | O5: m3/ha
A6: 24 | B6: 91 | C6: 17 | D6: 571 | E6: 57.1 | F6: 41.93004451 | G6: 4.079400631 | H6: 0.2560720026 | I6: 3 | J6: 2 | L6: Volume | M6: =AVERAGE(G2:G3492) -> 0.8572703431 | N6: =AVERAGE(VolumeData!F3:F3493) -> 1.014655902 | O6: m3/tree
A7: 85 | B7: 38 | C7: 13 | D7: 570 | E7: 57 | F7: 41.90143977 | G7: 4.06235129 | H7: 0.2551758633 | I7: 4 | J7: 2
A8: 47 | B8: 97 | C8: 2 | D8: 561 | E8: 56.1 | F8: 41.64171546 | G8: 3.910687863 | H8: 0.2471812954 | I8: 7 | J8: 9 | L8: SI | M8: 31.63 | N8: m MTH at age 15 yrs
A9: 61 | B9: 106 | C9: 13 | D9: 556 | E9: 55.6 | F9: 41.49561779 | G9: 3.827812328 | H9: 0.2427948466 | I9: 4 | J9: 4
A10: 78 | B10: 27 | C10: 19 | D10: 555 | E10: 55.5 | F10: 41.46624065 | G10: 3.811355411 | H10: 0.2419222693 | I10: 4 | J10: 1
A11: 4 | B11: 86 | C11: 12 | D11: 550 | E11: 55 | F11: 41.31855638 | G11: 3.72966081 | H11: 0.2375829444 | I11: 4 | J11: 2
A12: 11 | B12: 14 | C12: 11 | D12: 545 | E12: 54.5 | F12: 41.16952338 | G12: 3.648947901 | H12: 0.2332828895 | I12: 7 | J12: 2
A13: 29 | B13: 107 | C13: 20 | D13: 541 | E13: 54.1 | F13: 41.04930921 | G13: 3.585082896 | H13: 0.2298711199 | I13: 4 | J13: 2
A14: 56 | B14: 120 | C14: 32 | D14: 535 | E14: 53.5 | F14: 40.86731104 | G14: 3.490458237 | H14: 0.2248005893 | I14: 6 | J14: 2
A15: 16 | B15: 47 | C15: 17 | D15: 515 | E15: 51.5 | F15: 40.24555965 | G15: 3.185159962 | H15: 0.2083072279 | I15: 3 | J15: 2
A16: 20 | B16: 88 | C16: 28 | D16: 515 | E16: 51.5 | F16: 40.24555965 | G16: 3.185159962 | H16: 0.2083072279 | I16: 6 | J16: 9
A17: 18 | B17: 114 | C17: 10 | D17: 514 | E17: 51.4 | F17: 40.21384147 | G17: 3.170301881 | H17: 0.2074990532 | I17: 4 | J17: 2
A18: 17 | B18: 87 | C18: 24 | D18: 512 | E18: 51.2 | F18: 40.15021956 | G18: 3.140701524 | H18: 0.2058874161 | I18: 6 | J18: 2
A19: 13 | B19: 58 | C19: 13 | D19: 510 | E19: 51 | F19: 40.08634863 | G19: 3.111255449 | H19: 0.2042820623 | I19: 4 | J19: 2
A20: 27 | B20: 105 | C20: 6 | D20: 510 | E20: 51 | F20: 40.08634863 | G20: 3.111255449 | H20: 0.2042820623 | I20: 4 | J20: 2
A21: 12 | B21: 45 | C21: 5 | D21: 508 | E21: 50.8 | F21: 40.02222674 | G21: 3.081963503 | H21: 0.2026829916 | I21: 9 | J21: 9
A22: 33 | B22: 63 | C22: 24 | D22: 507 | E22: 50.7 | F22: 39.99007107 | G22: 3.067375281 | H22: 0.2018858125 | I22: 7 | J22: 4
A23: 36 | B23: 76 | C23: 28 | D23: 503 | E23: 50.3 | F23: 39.86081099 | G23: 3.009406948 | H23: 0.1987128039 | I23: 4 | J23: 1
A24: 87 | B24: 121 | C24: 2 | D24: 503 | E24: 50.3 | F24: 39.86081099 | G24: 3.009406948 | H24: 0.1987128039 | I24: 4 | J24: 2
A25: 5 | B25: 62 | C25: 13 | D25: 500 | E25: 50 | F25: 39.76318956 | G25: 2.966333941 | H25: 0.1963495408 | I25: 7 | J25: 9
A26: 85 | B26: 105 | C26: 4 | D26: 498 | E26: 49.8 | F26: 39.69778266 | G26: 2.937810333 | H26: 0.1947818861 | I26: 3 | J26: 2
A27: 25 | B27: 68 | C27: 25 | D27: 495 | E27: 49.5 | F27: 39.59917813 | G27: 2.895312124 | H27: 0.192442185 | I27: 7 | J27: 9
A28: 87 | B28: 85 | C28: 2 | D28: 495 | E28: 49.5 | F28: 39.59917813 | G28: 2.895312124 | H28: 0.192442185 | I28: 7 | J28: 8
A29: 77 | B29: 52 | C29: 29 | D29: 492 | E29: 49.2 | F29: 39.49997417 | G29: 2.85315809 | H29: 0.190116621 | I29: 6 | J29: 3
A30: 51 | B30: 108 | C30: 27 | D30: 491 | E30: 49.1 | F30: 39.46677172 | G30: 2.839183136 | H30: 0.1893445746 | I30: 3 | J30: 2
A31: 49 | B31: 31 | C31: 24 | D31: 490 | E31: 49 | F31: 39.43350158 | G31: 2.825246345 | H31: 0.188574099 | I31: 6 | J31: 2
A32: 28 | B32: 34 | C32: 12 | D32: 488 | E32: 48.8 | F32: 39.36675711 | G32: 2.79748717 | H32: 0.1870378602 | I32: 6 | J32: 9
A33: 14 | B33: 108 | C33: 30 | D33: 488 | E33: 48.8 | F33: 39.36675711 | G33: 2.79748717 | H33: 0.1870378602 | I33: 6 | J33: 9
A34: 8 | B34: 89 | C34: 1 | D34: 482 | E34: 48.2 | F34: 39.16487 | G34: 2.715123474 | H34: 0.1824668429 | I34: 4 | J34: 4
A35: 54 | B35: 99 | C35: 19 | D35: 482 | E35: 48.2 | F35: 39.16487 | G35: 2.715123474 | H35: 0.1824668429 | I35: 6 | J35: 2
A36: 14 | B36: 13 | C36: 3 | D36: 481 | E36: 48.1 | F36: 39.13097798 | G36: 2.701529247 | H36: 0.1817105045 | I36: 7 | J36: 4
A37: 20 | B37: 106 | C37: 12 | D37: 481 | E37: 48.1 | F37: 39.13097798 | G37: 2.701529247 | H37: 0.1817105045 | I37: 4 | J37: 1
A38: 1 | B38: 22 | C38: 9 | D38: 480 | E38: 48 | F38: 39.09701543 | G38: 2.687972983 | H38: 0.1809557368 | I38: 6 | J38: 4
A39: 15 | B39: 81 | C39: 2 | D39: 480 | E39: 48 | F39: 39.09701543 | G39: 2.687972983 | H39: 0.1809557368 | I39: 8 | J39: 9
A40: 15 | B40: 77 | C40: 2 | D40: 480 | E40: 48 | F40: 39.09701543 | G40: 2.687972983 | H40: 0.1809557368 | I40: 8 | J40: 9
A41: 78 | B41: 32 | C41: 30 | D41: 479 | E41: 47.9 | F41: 39.06298205 | G41: 2.67445466 | H41: 0.18020254 | I41: 4 | J41: 2
A42: 1 | B42: 76 | C42: 25 | D42: 479 | E42: 47.9 | F42: 39.06298205 | G42: 2.67445466 | H42: 0.18020254 | I42: 3 | J42: 2
A43: 60 | B43: 121 | C43: 5 | D43: 479 | E43: 47.9 | F43: 39.06298205 | G43: 2.67445466 | H43: 0.18020254 | I43: 4 | J43: 2
A44: 53 | B44: 106 | C44: 13 | D44: 478 | E44: 47.8 | F44: 39.02887754 | G44: 2.660974259 | H44: 0.179450914 | I44: 8 | J44: 7
A45: 13 | B45: 16 | C45: 29 | D45: 476 | E45: 47.6 | F45: 38.96045396 | G45: 2.634127139 | H45: 0.1779523743 | I45: 7 | J45: 2
A46: 69 | B46: 69 | C46: 4 | D46: 470 | E46: 47 | F46: 38.75344484 | G46: 2.554493772 | H46: 0.1734944543 | I46: 3 | J46: 1
A47: 39 | B47: 100 | C47: 31 | D47: 470 | E47: 47 | F47: 38.75344484 | G47: 2.554493772 | H47: 0.1734944543 | I47: 8 | J47: 7
A48: 31 | B48: 110 | C48: 15 | D48: 470 | E48: 47 | F48: 38.75344484 | G48: 2.554493772 | H48: 0.1734944543 | I48: 6 | J48: 2
A49: 56 | B49: 103 | C49: 17 | D49: 469 | E49: 46.9 | F49: 38.71868658 | G49: 2.541353744 | H49: 0.1727569654 | I49: 6 | J49: 2
A50: 70 | B50: 89 | C50: 3 | D50: 469 | E50: 46.9 | F50: 38.71868658 | G50: 2.541353744 | H50: 0.1727569654 | I50: 7 | J50: 4
A51: 25 | B51: 59 | C51: 24 | D51: 468 | E51: 46.8 | F51: 38.68385412 | G51: 2.528251432 | H51: 0.1720210473 | I51: 6 | J51: 9
A52: 7 | B52: 124 | C52: 31 | D52: 468 | E52: 46.8 | F52: 38.68385412 | G52: 2.528251432 | H52: 0.1720210473 | I52: 8 | J52: 9
A53: 56 | B53: 86 | C53: 16 | D53: 466 | E53: 46.6 | F53: 38.61396536 | G53: 2.502159872 | H53: 0.1705539236 | I53: 9 | J53: 9
A54: 87 | B54: 87 | C54: 18 | D54: 466 | E54: 46.6 | F54: 38.61396536 | G54: 2.502159872 | H54: 0.1705539236 | I54: 2 | J54: 1
A55: 41 | B55: 75 | C55: 24 | D55: 465 | E55: 46.5 | F55: 38.57890842 | G55: 2.489170583 | H55: 0.1698227179 | I55: 8 | J55: 9
A56: 15 | B56: 109 | C56: 2 | D56: 465 | E56: 46.5 | F56: 38.57890842 | G56: 2.489170583 | H56: 0.1698227179 | I56: 8 | J56: 9
A57: 15 | B57: 122 | C57: 15 | D57: 465 | E57: 46.5 | F57: 38.57890842 | G57: 2.489170583 | H57: 0.1698227179 | I57: 8 | J57: 9
A58: 64 | B58: 70 | C58: 16 | D58: 463 | E58: 46.3 | F58: 38.5085678 | G58: 2.463304882 | H58: 0.1683650189 | I58: 6 | J58: 9
A59: 69 | B59: 71 | C59: 20 | D59: 463 | E59: 46.3 | F59: 38.5085678 | G59: 2.463304882 | H59: 0.1683650189 | I59: 7 | J59: 9
A60: 16 | B60: 93 | C60: 1 | D60: 463 | E60: 46.3 | F60: 38.5085678 | G60: 2.463304882 | H60: 0.1683650189 | I60: 6 | J60: 2
A61: 52 | B61: 88 | C61: 28 | D61: 463 | E61: 46.3 | F61: 38.5085678 | G61: 2.463304882 | H61: 0.1683650189 | I61: 4 | J61: 2
A62: 30 | B62: 45 | C62: 3 | D62: 462 | E62: 46.2 | F62: 38.47328346 | G62: 2.450428428 | H62: 0.1676385256 | I62: 4 | J62: 2
A63: 48 | B63: 60 | C63: 32 | D63: 462 | E63: 46.2 | F63: 38.47328346 | G63: 2.450428428 | H63: 0.1676385256 | I63: 6 | J63: 9
A64: 78 | B64: 70 | C64: 14 | D64: 461 | E64: 46.1 | F64: 38.43792266 | G64: 2.437589544 | H64: 0.1669136031 | I64: 7 | J64: 9
A65: 54 | B65: 95 | C65: 19 | D65: 461 | E65: 46.1 | F65: 38.43792266 | G65: 2.437589544 | H65: 0.1669136031 | I65: 6 | J65: 4
A66: 58 | B66: 100 | C66: 26 | D66: 461 | E66: 46.1 | F66: =(Peterson_a+Peterson_b*LN(E66*10))/10 -> 38.43792266 | G66: =Vol_a*E66^2*F66/10000 -> 2.437589544 | H66: 0.1669136031 | I66: 3 | J66: 2
A67: 56 | B67: 50 | C67: 16 | D67: 460 | E67: =D67/10 -> 46 | F67: 38.40248508 | G67: 2.424788208 | H67: =(PI()*((E67/100)/2)^2) -> 0.1661902514 | I67: 7 | J67: 2
A68: 13 | B68: 66 | C68: 13 | D68: 459 | E68: 45.9 | F68: 38.36697038 | G68: 2.412024399 | H68: 0.1654684705 | I68: 7 | J68: 7
A69: 1 | B69: 63 | C69: 24 | D69: 457 | E69: 45.7 | F69: 38.29570826 | G69: 2.386609279 | H69: 0.164029621 | I69: 6 | J69: 2
A70: 45 | B70: 14 | C70: 13 | D70: 456 | E70: 45.6 | F70: 38.25996016 | G70: 2.373957926 | H70: 0.1633125525 | I70: 7 | J70: 9
A71: 75 | B71: 27 | C71: 22 | D71: 456 | E71: 45.6 | F71: 38.25996016 | G71: 2.373957926 | H71: 0.1633125525 | I71: 4 | J71: 4
A72: 11 | B72: 23 | C72: 22 | D72: 455 | E72: 45.5 | F72: 38.22413358 | G72: 2.361344014 | H72: 0.1625970548 | I72: 3 | J72: 2
A73: 96 | B73: 44 | C73: 32 | D73: 455 | E73: 45.5 | F73: 38.22413358 | G73: 2.361344014 | H73: 0.1625970548 | I73: 7 | J73: 2
A74: 38 | B74: 54 | C74: 14 | D74: 455 | E74: 45.5 | F74: 38.22413358 | G74: 2.361344014 | H74: 0.1625970548 | I74: 8 | J74: 9
A75: 25 | B75: 77 | C75: 8 | D75: 455 | E75: 45.5 | F75: 38.22413358 | G75: 2.361344014 | H75: 0.1625970548 | I75: 8 | J75: 9
A76: 25 | B76: 81 | C76: 8 | D76: 455 | E76: 45.5 | F76: 38.22413358 | G76: 2.361344014 | H76: 0.1625970548 | I76: 8 | J76: 9
A77: 52 | B77: 74 | C77: 12 | D77: 455 | E77: 45.5 | F77: 38.22413358 | G77: 2.361344014 | H77: 0.1625970548 | I77: 9 | J77: 9
A78: 85 | B78: 118 | C78: 13 | D78: 455 | E78: 45.5 | F78: 38.22413358 | G78: 2.361344014 | H78: 0.1625970548 | I78: 3 | J78: 1
A79: 41 | B79: 27 | C79: 24 | D79: 454 | E79: 45.4 | F79: 38.18822817 | G79: 2.348767524 | H79: 0.1618831278 | I79: 7 | J79: 9
A80: 76 | B80: 73 | C80: 5 | D80: 454 | E80: 45.4 | F80: 38.18822817 | G80: 2.348767524 | H80: 0.1618831278 | I80: 7 | J80: 1
A81: 40 | B81: 41 | C81: 1 | D81: 453 | E81: 45.3 | F81: 38.1522436 | G81: 2.336228433 | H81: 0.1611707717 | I81: 8 | J81: 9
A82: 4 | B82: 49 | C82: 5 | D82: 453 | E82: 45.3 | F82: 38.1522436 | G82: 2.336228433 | H82: 0.1611707717 | I82: 7 | J82: 9
A83: 33 | B83: 10 | C83: 9 | D83: 451 | E83: 45.1 | F83: 38.08003551 | G83: 2.311262363 | H83: 0.1597507718 | I83: 4 | J83: 9
A84: 78 | B84: 51 | C84: 19 | D84: 450 | E84: 45 | F84: 38.0438113 | G84: 2.298835342 | H84: 0.1590431281 | I84: 6 | J84: 4
A85: 36 | B85: 92 | C85: 28 | D85: 450 | E85: 45 | F85: 38.0438113 | G85: 2.298835342 | H85: 0.1590431281 | I85: 7 | J85: 9
A86: 80 | B86: 50 | C86: 16 | D86: 449 | E86: 44.9 | F86: 38.00750651 | G86: 2.286445634 | H86: 0.1583370551 | I86: 7 | J86: 9
A87: 3 | B87: 120 | C87: 27 | D87: 449 | E87: 44.9 | F87: 38.00750651 | G87: 2.286445634 | H87: 0.1583370551 | I87: 4 | J87: 2
A88: 18 | B88: 42 | C88: 10 | D88: 448 | E88: 44.8 | F88: 37.97112076 | G88: 2.274093217 | H88: 0.157632553 | I88: 6 | J88: 9
A89: 52 | B89: 37 | C89: 5 | D89: 448 | E89: 44.8 | F89: 37.97112076 | G89: 2.274093217 | H89: 0.157632553 | I89: 6 | J89: 2
A90: 12 | B90: 54 | C90: 12 | D90: 448 | E90: 44.8 | F90: 37.97112076 | G90: 2.274093217 | H90: 0.157632553 | I90: 7 | J90: 9
A91: 13 | B91: 107 | C91: 20 | D91: 448 | E91: 44.8 | F91: 37.97112076 | G91: 2.274093217 | H91: 0.157632553 | I91: 8 | J91: 4
A92: 11 | B92: 108 | C92: 27 | D92: 448 | E92: 44.8 | F92: 37.97112076 | G92: 2.274093217 | H92: 0.157632553 | I92: 6 | J92: 4
A93: 9 | B93: 95 | C93: 24 | D93: 447 | E93: 44.7 | F93: 37.93465371 | G93: 2.26177807 | H93: 0.1569296216 | I93: 7 | J93: 2
A94: 59 | B94: 80 | C94: 27 | D94: 446 | E94: 44.6 | F94: 37.89810498 | G94: 2.249500172 | H94: 0.1562282611 | I94: 8 | J94: 9
A95: 59 | B95: 84 | C95: 27 | D95: 446 | E95: 44.6 | F95: 37.89810498 | G95: 2.249500172 | H95: 0.1562282611 | I95: 8 | J95: 9
A96: 71 | B96: 108 | C96: 31 | D96: 446 | E96: 44.6 | F96: 37.89810498 | G96: 2.249500172 | H96: 0.1562282611 | I96: 9 | J96: 9
A97: 17 | B97: 122 | C97: 9 | D97: 446 | E97: 44.6 | F97: 37.89810498 | G97: 2.249500172 | H97: 0.1562282611 | I97: 2 | J97: 1
A98: 44 | B98: 11 | C98: 21 | D98: 445 | E98: 44.5 | F98: 37.86147421 | G98: 2.2372595 | H98: 0.1555284713 | I98: 9 | J98: 9
A99: 48 | B99: 37 | C99: 1 | D99: 445 | E99: 44.5 | F99: 37.86147421 | G99: 2.2372595 | H99: 0.1555284713 | I99: 8 | J99: 9
A100: 80 | B100: 41 | C100: 1 | D100: 445 | E100: 44.5 | F100: 37.86147421 | G100: 2.2372595 | H100: 0.1555284713 | I100: 6 | J100: 2
A101: 23 | B101: 48 | C101: 31 | D101: 445 | E101: 44.5 | F101: 37.86147421 | G101: 2.2372595 | H101: 0.1555284713 | I101: 7 | J101: 2
A102: 6 | B102: 93 | C102: 3 | D102: 445 | E102: 44.5 | F102: 37.86147421 | G102: 2.2372595 | H102: 0.1555284713 | I102: 6 | J102: 4
A103: 78 | B103: 93 | C103: 3 | D103: 445 | E103: 44.5 | F103: 37.86147421 | G103: 2.2372595 | H103: 0.1555284713 | I103: 7 | J103: 9
A104: 70 | B104: 105 | C104: 3 | D104: 445 | E104: 44.5 | F104: 37.86147421 | G104: 2.2372595 | H104: 0.1555284713 | I104: 6 | J104: 2
A105: 19 | B105: 21 | C105: 6 | D105: 444 | E105: 44.4 | F105: 37.82476103 | G105: 2.225056032 | H105: 0.1548302523 | I105: 8 | J105: 9
A106: 29 | B106: 23 | C106: 20 | D106: 444 | E106: 44.4 | F106: 37.82476103 | G106: 2.225056032 | H106: 0.1548302523 | I106: 8 | J106: 4
A107: 2 | B107: 37 | C107: 7 | D107: 444 | E107: 44.4 | F107: 37.82476103 | G107: 2.225056032 | H107: 0.1548302523 | I107: 7 | J107: 9
A108: 69 | B108: 25 | C108: 4 | D108: 444 | E108: 44.4 | F108: 37.82476103 | G108: 2.225056032 | H108: 0.1548302523 | I108: 6 | J108: 2
A109: 65 | B109: 72 | C109: 25 | D109: 444 | E109: 44.4 | F109: 37.82476103 | G109: 2.225056032 | H109: 0.1548302523 | I109: 9 | J109: 9
A110: 39 | B110: 105 | C110: 2 | D110: 444 | E110: 44.4 | F110: 37.82476103 | G110: 2.225056032 | H110: 0.1548302523 | I110: 6 | J110: 9
A111: 73 | B111: 53 | C111: 8 | D111: 443 | E111: 44.3 | F111: 37.78796508 | G111: 2.212889747 | H111: 0.1541336042 | I111: 7 | J111: 2
A112: 42 | B112: 69 | C112: 7 | D112: 443 | E112: 44.3 | F112: 37.78796508 | G112: 2.212889747 | H112: 0.1541336042 | I112: 7 | J112: 4
A113: 8 | B113: 101 | C113: 1 | D113: 442 | E113: 44.2 | F113: 37.75108597 | G113: 2.200760623 | H113: 0.1534385268 | I113: 4 | J113: 2
A114: 1 | B114: 103 | C114: 24 | D114: 442 | E114: 44.2 | F114: 37.75108597 | G114: 2.200760623 | H114: 0.1534385268 | I114: 6 | J114: 9
A115: 18 | B115: 102 | C115: 10 | D115: 442 | E115: 44.2 | F115: 37.75108597 | G115: 2.200760623 | H115: 0.1534385268 | I115: 2 | J115: 7
A116: 42 | B116: 91 | C116: 23 | D116: 442 | E116: 44.2 | F116: 37.75108597 | G116: 2.200760623 | H116: 0.1534385268 | I116: 6 | J116: 9
A117: 10 | B117: 11 | C117: 23 | D117: 441 | E117: 44.1 | F117: 37.71412332 | G117: 2.188668637 | H117: 0.1527450202 | I117: 7 | J117: 9
A118: 13 | B118: 62 | C118: 13 | D118: 440 | E118: 44 | F118: 37.67707677 | G118: 2.176613767 | H118: 0.1520530844 | I118: 6 | J118: 2
A119: 46 | B119: 49 | C119: 3 | D119: 440 | E119: 44 | F119: 37.67707677 | G119: 2.176613767 | H119: 0.1520530844 | I119: 6 | J119: 2
A120: 9 | B120: 116 | C120: 25 | D120: 440 | E120: 44 | F120: 37.67707677 | G120: 2.176613767 | H120: 0.1520530844 | I120: 4 | J120: 3
A121: 72 | B121: 72 | C121: 32 | D121: 439 | E121: 43.9 | F121: 37.63994592 | G121: 2.164595993 | H121: 0.1513627194 | I121: 6 | J121: 9
A122: 10 | B122: 85 | C122: 7 | D122: 439 | E122: 43.9 | F122: 37.63994592 | G122: 2.164595993 | H122: 0.1513627194 | I122: 7 | J122: 2
A123: 63 | B123: 91 | C123: 18 | D123: 439 | E123: 43.9 | F123: 37.63994592 | G123: 2.164595993 | H123: 0.1513627194 | I123: 7 | J123: 2
A124: 71 | B124: 99 | C124: 18 | D124: 439 | E124: 43.9 | F124: 37.63994592 | G124: 2.164595993 | H124: 0.1513627194 | I124: 7 | J124: 7
A125: 48 | B125: 105 | C125: 1 | D125: 438 | E125: 43.8 | F125: 37.6027304 | G125: 2.15261529 | H125: 0.1506739253 | I125: 8 | J125: 9
A126: 48 | B126: 44 | C126: 32 | D126: 437 | E126: 43.7 | F126: 37.56542981 | G126: 2.140671638 | H126: 0.1499867019 | I126: 6 | J126: 2
A127: 32 | B127: 16 | C127: 32 | D127: 436 | E127: 43.6 | F127: 37.52804377 | G127: 2.128765013 | H127: 0.1493010493 | I127: 4 | J127: 9
A128: 62 | B128: 80 | C128: 30 | D128: 436 | E128: 43.6 | F128: 37.52804377 | G128: 2.128765013 | H128: 0.1493010493 | I128: 6 | J128: 9
A129: 62 | B129: 84 | C129: 30 | D129: 436 | E129: 43.6 | F129: 37.52804377 | G129: 2.128765013 | H129: 0.1493010493 | I129: 6 | J129: 9
A130: 58 | B130: 91 | C130: 23 | D130: 436 | E130: 43.6 | F130: =(Peterson_a+Peterson_b*LN(E130*10))/10 -> 37.52804377 | G130: =Vol_a*E130^2*F130/10000 -> 2.128765013 | H130: 0.1493010493 | I130: 4 | J130: 4
A131: 62 | B131: 69 | C131: 3 | D131: 435 | E131: =D131/10 -> 43.5 | F131: 37.49057188 | G131: 2.116895394 | H131: =(PI()*((E131/100)/2)^2) -> 0.1486169675 | I131: 4 | J131: 9
A132: 82 | B132: 90 | C132: 10 | D132: 435 | E132: 43.5 | F132: 37.49057188 | G132: 2.116895394 | H132: 0.1486169675 | I132: 7 | J132: 2
A133: 5 | B133: 109 | C133: 4 | D133: 435 | E133: 43.5 | F133: 37.49057188 | G133: 2.116895394 | H133: 0.1486169675 | I133: 8 | J133: 9
A134: 88 | B134: 111 | C134: 17 | D134: 435 | E134: 43.5 | F134: 37.49057188 | G134: 2.116895394 | H134: 0.1486169675 | I134: 2 | J134: 2
A135: 69 | B135: 124 | C135: 29 | D135: 435 | E135: 43.5 | F135: 37.49057188 | G135: 2.116895394 | H135: 0.1486169675 | I135: 9 | J135: 9
A136: 57 | B136: 30 | C136: 9 | D136: 434 | E136: 43.4 | F136: 37.45301375 | G136: 2.105062758 | H136: 0.1479344565 | I136: 4 | J136: 9
A137: 66 | B137: 34 | C137: 10 | D137: 434 | E137: 43.4 | F137: 37.45301375 | G137: 2.105062758 | H137: 0.1479344565 | I137: 7 | J137: 4
A138: 43 | B138: 46 | C138: 11 | D138: 434 | E138: 43.4 | F138: 37.45301375 | G138: 2.105062758 | H138: 0.1479344565 | I138: 3 | J138: 2
A139: 49 | B139: 53 | C139: 8 | D139: 434 | E139: 43.4 | F139: 37.45301375 | G139: 2.105062758 | H139: 0.1479344565 | I139: 7 | J139: 4
A140: 57 | B140: 93 | C140: 8 | D140: 434 | E140: 43.4 | F140: 37.45301375 | G140: 2.105062758 | H140: 0.1479344565 | I140: 4 | J140: 2
A141: 11 | B141: 16 | C141: 27 | D141: 433 | E141: 43.3 | F141: 37.41536898 | G141: 2.093267082 | H141: 0.1472535163 | I141: 8 | J141: 9
A142: 7 | B142: 21 | C142: 2 | D142: 433 | E142: 43.3 | F142: 37.41536898 | G142: 2.093267082 | H142: 0.1472535163 | I142: 8 | J142: 9
A143: 57 | B143: 42 | C143: 9 | D143: 431 | E143: 43.1 | F143: 37.33981792 | G143: 2.069786524 | H143: 0.1458963482 | I143: 6 | J143: 1
A144: 12 | B144: 102 | C144: 12 | D144: 431 | E144: 43.1 | F144: 37.33981792 | G144: 2.069786524 | H144: 0.1458963482 | I144: 3 | J144: 2
A145: 46 | B145: 111 | C145: 19 | D145: 431 | E145: 43.1 | F145: 37.33981792 | G145: 2.069786524 | H145: 0.1458963482 | I145: 9 | J145: 9
A146: 80 | B146: 39 | C146: 17 | D146: 430 | E146: 43 | F146: 37.30191082 | G146: 2.058101596 | H146: 0.1452201204 | I146: 6 | J146: 2
A147: 85 | B147: 37 | C147: 4 | D147: 430 | E147: 43 | F147: 37.30191082 | G147: 2.058101596 | H147: 0.1452201204 | I147: 4 | J147: 3
A148: 40 | B148: 76 | C148: 32 | D148: 430 | E148: 43 | F148: 37.30191082 | G148: 2.058101596 | H148: 0.1452201204 | I148: 7 | J148: 9
A149: 15 | B149: 100 | C149: 31 | D149: 430 | E149: 43 | F149: 37.30191082 | G149: 2.058101596 | H149: 0.1452201204 | I149: 2 | J149: 2
A150: 4 | B150: 99 | C150: 21 | D150: 430 | E150: 43 | F150: 37.30191082 | G150: 2.058101596 | H150: 0.1452201204 | I150: 6 | J150: 4
A151: 39 | B151: 90 | C151: 15 | D151: 430 | E151: 43 | F151: 37.30191082 | G151: 2.058101596 | H151: 0.1452201204 | I151: 8 | J151: 9
A152: 16 | B152: 40 | C152: 32 | D152: 429 | E152: 42.9 | F152: 37.26391546 | G152: 2.046453538 | H152: 0.1445454634 | I152: 6 | J152: 1
A153: 84 | B153: 45 | C153: 5 | D153: 429 | E153: 42.9 | F153: 37.26391546 | G153: 2.046453538 | H153: 0.1445454634 | I153: 4 | J153: 2
A154: 2 | B154: 72 | C154: 26 | D154: 429 | E154: 42.9 | F154: 37.26391546 | G154: 2.046453538 | H154: 0.1445454634 | I154: 7 | J154: 9
A155: 88 | B155: 117 | C155: 1 | D155: 429 | E155: 42.9 | F155: 37.26391546 | G155: 2.046453538 | H155: 0.1445454634 | I155: 4 | J155: 9
A156: 16 | B156: 15 | C156: 17 | D156: 428 | E156: 42.8 | F156: 37.22583143 | G156: 2.034842329 | H156: 0.1438723772 | I156: 3 | J156: 9
A157: 44 | B157: 32 | C157: 28 | D157: 428 | E157: 42.8 | F157: 37.22583143 | G157: 2.034842329 | H157: 0.1438723772 | I157: 6 | J157: 1
A158: 69 | B158: 32 | C158: 29 | D158: 428 | E158: 42.8 | F158: 37.22583143 | G158: 2.034842329 | H158: 0.1438723772 | I158: 4 | J158: 9
A159: 18 | B159: 115 | C159: 23 | D159: 428 | E159: 42.8 | F159: 37.22583143 | G159: 2.034842329 | H159: 0.1438723772 | I159: 7 | J159: 9
A160: 43 | B160: 15 | C160: 22 | D160: 427 | E160: 42.7 | F160: 37.18765831 | G160: 2.023267944 | H160: 0.1432008617 | I160: 4 | J160: 4
A161: 61 | B161: 30 | C161: 13 | D161: 427 | E161: 42.7 | F161: 37.18765831 | G161: 2.023267944 | H161: 0.1432008617 | I161: 4 | J161: 2
A162: 43 | B162: 58 | C162: 11 | D162: 427 | E162: 42.7 | F162: 37.18765831 | G162: 2.023267944 | H162: 0.1432008617 | I162: 7 | J162: 9
A163: 4 | B163: 91 | C163: 21 | D163: 427 | E163: 42.7 | F163: 37.18765831 | G163: 2.023267944 | H163: 0.1432008617 | I163: 6 | J163: 4
A164: 1 | B164: 10 | C164: 9 | D164: 426 | E164: 42.6 | F164: 37.14939569 | G164: 2.011730362 | H164: 0.1425309171 | I164: 7 | J164: 9
A165: 23 | B165: 36 | C165: 31 | D165: 426 | E165: 42.6 | F165: 37.14939569 | G165: 2.011730362 | H165: 0.1425309171 | I165: 3 | J165: 9
A166: 25 | B166: 74 | C166: 9 | D166: 426 | E166: 42.6 | F166: 37.14939569 | G166: 2.011730362 | H166: 0.1425309171 | I166: 7 | J166: 2
A167: 27 | B167: 121 | C167: 6 | D167: 426 | E167: 42.6 | F167: 37.14939569 | G167: 2.011730362 | H167: 0.1425309171 | I167: 6 | J167: 4
A168: 22 | B168: 114 | C168: 14 | D168: 426 | E168: 42.6 | F168: 37.14939569 | G168: 2.011730362 | H168: 0.1425309171 | I168: 6 | J168: 2
A169: 47 | B169: 20 | C169: 31 | D169: 425 | E169: 42.5 | F169: 37.11104315 | G169: 2.000229559 | H169: 0.1418625433 | I169: 4 | J169: 9
A170: 4 | B170: 29 | C170: 5 | D170: 425 | E170: 42.5 | F170: 37.11104315 | G170: 2.000229559 | H170: 0.1418625433 | I170: 8 | J170: 9
A171: 24 | B171: 31 | C171: 17 | D171: 425 | E171: 42.5 | F171: 37.11104315 | G171: 2.000229559 | H171: 0.1418625433 | I171: 8 | J171: 9
A172: 77 | B172: 32 | C172: 29 | D172: 425 | E172: 42.5 | F172: 37.11104315 | G172: 2.000229559 | H172: 0.1418625433 | I172: 6 | J172: 7
A173: 87 | B173: 43 | C173: 18 | D173: 425 | E173: 42.5 | F173: 37.11104315 | G173: 2.000229559 | H173: 0.1418625433 | I173: 6 | J173: 9
A174: 8 | B174: 74 | C174: 16 | D174: 425 | E174: 42.5 | F174: 37.11104315 | G174: 2.000229559 | H174: 0.1418625433 | I174: 7 | J174: 9
A175: 37 | B175: 68 | C175: 29 | D175: 425 | E175: 42.5 | F175: 37.11104315 | G175: 2.000229559 | H175: 0.1418625433 | I175: 8 | J175: 9
A176: 67 | B176: 90 | C176: 11 | D176: 425 | E176: 42.5 | F176: 37.11104315 | G176: 2.000229559 | H176: 0.1418625433 | I176: 7 | J176: 9
A177: 65 | B177: 40 | C177: 25 | D177: 424 | E177: 42.4 | F177: 37.07260026 | G177: 1.988765513 | H177: 0.1411957402 | I177: 8 | J177: 9
A178: 49 | B178: 51 | C178: 24 | D178: 424 | E178: 42.4 | F178: 37.07260026 | G178: 1.988765513 | H178: 0.1411957402 | I178: 6 | J178: 2
A179: 39 | B179: 47 | C179: 18 | D179: 423 | E179: 42.3 | F179: 37.03406659 | G179: 1.977338201 | H179: 0.140530508 | I179: 8 | J179: 9
A180: 72 | B180: 57 | C180: 1 | D180: 423 | E180: 42.3 | F180: 37.03406659 | G180: 1.977338201 | H180: 0.140530508 | I180: 8 | J180: 9
A181: 79 | B181: 46 | C181: 15 | D181: 423 | E181: 42.3 | F181: 37.03406659 | G181: 1.977338201 | H181: 0.140530508 | I181: 7 | J181: 9
A182: 80 | B182: 35 | C182: 17 | D182: 422 | E182: 42.2 | F182: 36.99544172 | G182: 1.965947599 | H182: 0.1398668465 | I182: 6 | J182: 2
A183: 25 | B183: 94 | C183: 9 | D183: 422 | E183: 42.2 | F183: 36.99544172 | G183: 1.965947599 | H183: 0.1398668465 | I183: 8 | J183: 9
A184: 50 | B184: 85 | C184: 7 | D184: 422 | E184: 42.2 | F184: 36.99544172 | G184: 1.965947599 | H184: 0.1398668465 | I184: 7 | J184: 9
A185: 34 | B185: 32 | C185: 26 | D185: 421 | E185: 42.1 | F185: 36.95672521 | G185: 1.954593685 | H185: 0.1392047559 | I185: 7 | J185: 9
A186: 37 | B186: 51 | C186: 20 | D186: 421 | E186: 42.1 | F186: 36.95672521 | G186: 1.954593685 | H186: 0.1392047559 | I186: 4 | J186: 3
A187: 25 | B187: 67 | C187: 24 | D187: 421 | E187: 42.1 | F187: 36.95672521 | G187: 1.954593685 | H187: 0.1392047559 | I187: 8 | J187: 9
A188: 4 | B188: 12 | C188: 28 | D188: 420 | E188: 42 | F188: 36.91791663 | G188: 1.943276435 | H188: 0.138544236 | I188: 3 | J188: 2
A189: 33 | B189: 15 | C189: 24 | D189: 420 | E189: 42 | F189: 36.91791663 | G189: 1.943276435 | H189: 0.138544236 | I189: 8 | J189: 2
A190: 93 | B190: 33 | C190: 4 | D190: 420 | E190: 42 | F190: 36.91791663 | G190: 1.943276435 | H190: 0.138544236 | I190: 6 | J190: 9
A191: 57 | B191: 45 | C191: 8 | D191: 420 | E191: 42 | F191: 36.91791663 | G191: 1.943276435 | H191: 0.138544236 | I191: 6 | J191: 4
A192: 50 | B192: 113 | C192: 7 | D192: 420 | E192: 42 | F192: 36.91791663 | G192: 1.943276435 | H192: 0.138544236 | I192: 7 | J192: 4
A193: 4 | B193: 14 | C193: 12 | D193: 419 | E193: 41.9 | F193: 36.87901554 | G193: 1.931995827 | H193: 0.137885287 | I193: 8 | J193: 9
A194: 23 | B194: 79 | C194: 18 | D194: 419 | E194: 41.9 | F194: =(Peterson_a+Peterson_b*LN(E194*10))/10 -> 36.87901554 | G194: =Vol_a*E194^2*F194/10000 -> 1.931995827 | H194: 0.137885287 | I194: 7 | J194: 9
A195: 23 | B195: 83 | C195: 18 | D195: 419 | E195: =D195/10 -> 41.9 | F195: 36.87901554 | G195: 1.931995827 | H195: =(PI()*((E195/100)/2)^2) -> 0.137885287 | I195: 7 | J195: 9
A196: 10 | B196: 15 | C196: 23 | D196: 418 | E196: 41.8 | F196: 36.8400215 | G196: 1.920751837 | H196: 0.1372279087 | I196: 7 | J196: 9
A197: 47 | B197: 42 | C197: 15 | D197: 418 | E197: 41.8 | F197: 36.8400215 | G197: 1.920751837 | H197: 0.1372279087 | I197: 7 | J197: 2
A198: 81 | B198: 88 | C198: 25 | D198: 418 | E198: 41.8 | F198: 36.8400215 | G198: 1.920751837 | H198: 0.1372279087 | I198: 8 | J198: 9
A199: 19 | B199: 118 | C199: 11 | D199: 418 | E199: 41.8 | F199: 36.8400215 | G199: 1.920751837 | H199: 0.1372279087 | I199: 7 | J199: 4
A200: 81 | B200: 123 | C200: 24 | D200: 418 | E200: 41.8 | F200: 36.8400215 | G200: 1.920751837 | H200: 0.1372279087 | I200: 9 | J200: 9
... 9401 more rows

Sheet Parameters (hidden)
B1: Parameters
B2: HT-DBH curve | C2: Vol | E2: 0.0879 | F2: growth in DBH 16 yrs to 18 yrs
A3: a | B3: -616.53 | C3: 0.2984
A4: b | B4: 163.19

Sheet SEDData (hidden)
G1: SED (cm) at x height (m) on the tree
A2: ROW | B2: COL | C2: DBH16 (cm) | D2: DBH18 (cm) | E2: HT18 (m) | F2: VOL18(m3) | G2: 0.3 | H2: 3.6 | I2: 6.9 | J2: 10.2 | K2: 13.5 | L2: 16.8 | M2: 20.1 | N2: 23.4 | O2: 26.7 | P2: 30 | Q2: 33.3 | R2: 36.9 | S2: Tip
A3: 7 | B3: 10 | C3: 62.2 | D3: =C3*(1+growthRate) -> 67.66738 | E3: =(Peterson_a+Peterson_b*LN(D3*10))/10 -> 44.7010126 | F3: =Vol_a*D3^2*E3/10000 -> 6.107660704 | G3: 74.01096065 | H3: 68.18303198 | I3: 63.38965163 | J3: 59.36115852 | K3: 55.80875325 | L3: 52.44861106 | M3: 49.02084581 | N3: 45.30012523 | O3: 41.09835861 | P3: 36.2615393 | Q3: 30.66219371 | R3: 23.54837412 | S3: 0
A4: 45 | B4: 38 | C4: 60 | D4: 65.274 | E4: 44.11335827 | F4: 5.60853448 | G4: 71.38570414 | H4: 65.69766222 | I4: 61.03061613 | J4: 57.11332565 | K4: 53.65578962 | L4: 50.37397442 | M4: 47.00897057 | N4: 43.33739625 | O4: 39.17365236 | P4: 34.36624691 | Q4: 28.7895218 | R4: 21.69139547 | S4: 0
A5: 34 | B5: 124 | C5: 60 | D5: 65.274 | E5: 44.11335827 | F5: 5.60853448 | G5: 71.38570414 | H5: 65.69766222 | I5: 61.03061613 | J5: 57.11332565 | K5: 53.65578962 | L5: 50.37397442 | M5: 47.00897057 | N5: 43.33739625 | O5: 39.17365236 | P5: 34.36624691 | Q5: 28.7895218 | R5: 21.69139547 | S5: 0
A6: 12 | B6: 10 | C6: 58 | D6: 63.0982 | E6: 43.56011885 | F6: 5.175136573 | G6: 68.999173 | H6: 63.43905796 | I6: 58.88755766 | J6: 55.07180246 | K6: 51.70053879 | L6: 48.48946065 | M6: 45.18054318 | N6: 41.55222529 | O6: 37.42123254 | P6: 32.63838308 | Q6: 27.07954905 | R6: 19.99121668 | S6: 0
A7: 24 | B7: 91 | C7: 57.1 | D7: 62.11909 | E7: 43.30490774 | F7: 4.986388433 | G7: 67.92525481 | H7: 62.42294927 | I7: 57.92366862 | J7: 54.15374343 | K7: 50.82130194 | L7: 47.64188764 | M7: 44.35787279 | N7: 40.74853156 | O7: 36.63165495 | P7: 31.85910642 | Q7: 26.30739677 | R7: 19.22184734 | S7: 0
A8: 85 | B8: 38 | C8: 57 | D8: 62.0103 | E8: 43.276303 | F8: 4.965656072 | G8: 67.80593138 | H8: 62.31005856 | I8: 57.81658886 | J8: 54.05176126 | K8: 50.7236331 | L8: 47.54773002 | M8: 44.26646837 | N8: 40.65921577 | O8: 36.54388236 | P8: 31.7724479 | Q8: 26.22149191 | R8: 19.13618308 | S8: 0
A9: 47 | B9: 97 | C9: 56.1 | D9: 61.03119 | E9: 43.01657868 | F9: 4.781215962 | G9: 66.73202778 | H9: 61.29413559 | I9: 56.85304435 | J9: 53.13414356 | K9: 49.84483169 | L9: 46.70046334 | M9: 43.44385132 | N9: 39.8552102 | O9: 35.75352932 | P9: 30.99183638 | Q9: 25.4473065 | R9: 18.363503 | S9: 0
A10: 61 | B10: 106 | C10: 55.6 | D10: 60.48724 | E10: 42.87048102 | F10: 4.680418765 | G10: 66.13542039 | H10: 60.72980719 | I10: 56.31787795 | J10: 52.62452985 | K10: 49.3567788 | L10: 46.22987598 | M10: 42.98685425 | N10: 39.40840345 | O10: 35.31411787 | P10: 30.55760808 | Q10: 25.01636077 | R10: 17.93285138 | S10: 0
A11: 78 | B11: 27 | C11: 55.5 | D11: 60.37845 | E11: 42.84110387 | F11: 4.66040212 | G11: 66.01609941 | H11: 60.61694785 | I11: 56.21085645 | J11: 52.52262214 | K11: 49.25918284 | L11: 46.13576832 | M11: 42.89545544 | N11: 39.31902948 | O11: 35.22620622 | P11: 30.47071283 | Q11: 24.9300965 | R11: 17.84659681 | S11: 0
A12: 4 | B12: 86 | C12: 55 | D12: 59.8345 | E12: 42.69341961 | F12: 4.561031725 | G12: 65.41949696 | H12: 60.05268301 | I12: 55.67580826 | J12: 52.01315915 | K12: 48.77127624 | L12: 45.66527845 | M12: 42.43846253 | N12: 38.87209317 | O12: 34.78649588 | P12: 30.03598092 | Q12: 24.49838838 | R12: 17.41468095 | S12: 0
A13: 11 | B13: 14 | C13: 54.5 | D13: 59.29055 | E13: 42.54438661 | F13: 4.462847465 | G13: 64.82289866 | H13: 59.48847163 | I13: 55.14085963 | J13: 51.50382287 | K13: 48.2834918 | L13: 45.19486817 | M13: 41.98146844 | N13: 38.42504028 | O13: 34.34652293 | P13: 29.60080969 | Q13: 24.0660164 | R13: 16.98165511 | S13: 0
A14: 29 | B14: 107 | C14: 54.1 | D14: 58.85539 | E14: 42.42417244 | F14: 4.385152305 | G14: 64.34562302 | H14: 59.03714135 | I14: 54.71297307 | J14: 51.09644577 | K14: 47.89335237 | L14: 44.81859616 | M14: 41.6158693 | N14: 38.06730849 | O14: 33.99434682 | P14: 29.25234383 | Q14: 23.71962257 | R14: 16.6343982 | S14: 0
A15: 56 | B15: 120 | C15: 53.5 | D15: 58.20265 | E15: 42.24217427 | F15: 4.270026794 | G15: 63.62971457 | H15: 58.3602112 | I15: 54.071265 | J15: 50.48553454 | K15: 47.30829026 | L15: 44.25427974 | M15: 41.06745851 | N15: 37.53055129 | O15: 33.46573686 | P15: 28.72907343 | Q15: 23.19917041 | R15: 16.11204781 | S15: 0
A16: 16 | B16: 47 | C16: 51.5 | D16: 56.02685 | E16: 41.62042288 | F16: 3.898501618 | G16: 61.24339703 | H16: 56.10435314 | I16: 51.93331445 | J16: 48.45052348 | K16: 45.3593595 | L16: 42.37397741 | M16: 39.23920974 | N16: 35.73978219 | O16: 31.7004019 | P16: 26.97944342 | Q16: 21.45621509 | R16: 14.35676036 | S16: 0
A17: 20 | B17: 88 | C17: 51.5 | D17: 56.02685 | E17: 41.62042288 | F17: 3.898501618 | G17: 61.24339703 | H17: 56.10435314 | I17: 51.93331445 | J17: 48.45052348 | K17: 45.3593595 | L17: 42.37397741 | M17: 39.23920974 | N17: 35.73978219 | O17: 31.7004019 | P17: 26.97944342 | Q17: 21.45621509 | R17: 14.35676036 | S17: 0
A18: 18 | B18: 114 | C18: 51.4 | D18: 55.91806 | E18: 41.58870469 | F18: 3.880417053 | G18: 61.12408294 | H18: 55.99158386 | I18: 51.82646117 | J18: 48.34882861 | K18: 45.26196451 | L18: 42.279991 | M18: 39.14778444 | N18: 35.65017229 | O18: 31.61198988 | P18: 26.89172677 | Q18: 21.36871405 | R18: 14.26836687 | S18: 0
A19: 17 | B19: 87 | C19: 51.2 | D19: 55.70048 | E19: 41.52508278 | F19: 3.844387895 | G19: 60.88545527 | H19: 55.76605215 | I19: 51.61276746 | J19: 48.14545499 | K19: 45.06718924 | L19: 42.09202592 | M19: 38.96492903 | N19: 35.47093009 | O19: 31.43512125 | P19: 26.7162218 | Q19: 21.19360435 | R19: 14.09138386 | S19: 0
A20: 13 | B20: 58 | C20: 51 | D20: 55.4829 | E20: 41.46121186 | F20: 3.808545219 | G20: 60.6468283 | H20: 55.54052958 | I20: 51.39909092 | J20: 47.94210289 | K20: 44.87243359 | L20: 41.90407103 | M20: 38.78206687 | N20: 35.29165737 | O20: 31.25819217 | P20: 26.54061987 | Q20: 21.01834905 | R20: 13.91413418 | S20: 0
A21: 27 | B21: 105 | C21: 51 | D21: 55.4829 | E21: 41.46121186 | F21: 3.808545219 | G21: 60.6468283 | H21: 55.54052958 | I21: 51.39909092 | J21: 47.94210289 | K21: 44.87243359 | L21: 41.90407103 | M21: 38.78206687 | N21: 35.29165737 | O21: 31.25819217 | P21: 26.54061987 | Q21: 21.01834905 | R21: 13.91413418 | S21: 0
A22: 12 | B22: 45 | C22: 50.8 | D22: 55.26532 | E22: 41.39708997 | F22: 3.772888842 | G22: 60.40820201 | H22: 55.3150162 | I22: 51.18543163 | J22: 47.73877237 | K22: 44.67769754 | L22: 41.71612615 | M22: 38.59919753 | N22: 35.11235337 | O22: 31.08120149 | P22: 26.36491929 | Q22: 20.84294562 | R22: 13.73661126 | S22: 0
A23: 33 | B23: 63 | C23: 50.7 | D23: 55.15653 | E23: 41.36493429 | F23: 3.75513046 | G23: 60.28888912 | H23: 55.20226297 | I23: 51.07860847 | J23: 47.63711523 | K23: 44.58033685 | L23: 41.62215741 | M23: 38.50776004 | N23: 35.02268941 | O23: 30.99268268 | P23: 26.27703147 | Q23: 20.75518754 | R23: 13.6477452 | S23: 0
A24: 36 | B24: 76 | C24: 50.3 | D24: 54.72137 | E24: 41.23567421 | F24: 3.684561774 | G24: 59.81163931 | H24: 54.75127314 | I24: 50.6513593 | J24: 47.23054097 | K24: 44.19094306 | L24: 41.24630656 | M24: 38.14198989 | N24: 34.66395145 | O24: 30.63844741 | P24: 25.92522488 | Q24: 20.40377176 | R24: 13.29156287 | S24: 0
A25: 87 | B25: 121 | C25: 50.3 | D25: 54.72137 | E25: 41.23567421 | F25: 3.684561774 | G25: 59.81163931 | H25: 54.75127314 | I25: 50.6513593 | J25: 47.23054097 | K25: 44.19094306 | L25: 41.24630656 | M25: 38.14198989 | N25: 34.66395145 | O25: 30.63844741 | P25: 25.92522488 | Q25: 20.40377176 | R25: 13.29156287 | S25: 0
A26: 5 | B26: 62 | C26: 50 | D26: 54.395 | E26: 41.13805278 | F26: 3.632122706 | G26: 59.45370376 | H26: 54.41305516 | I26: 50.33096829 | J26: 46.92566751 | K26: 43.89894902 | L26: 40.96444306 | M26: 37.86763952 | N26: 34.39480895 | O26: 30.37259858 | P26: 25.66109556 | Q26: 20.13979773 | R26: 13.02364578 | S26: 0
A27: 85 | B27: 105 | C27: 49.8 | D27: 54.17742 | E27: 41.07264588 | F27: 3.597395099 | G27: 59.21508093 | H27: 54.18758818 | I27: 50.11739627 | J27: 46.72244592 | K27: 43.70431073 | L27: 40.77654541 | M27: 37.68472753 | N27: 34.21533667 | O27: 30.19528155 | P27: 25.48487522 | Q27: 19.96361348 | R27: 12.84464792 | S27: 0
A28: 25 | B28: 68 | C28: 49.5 | D28: 53.85105 | E28: 40.97404135 | F28: 3.545650886 | G28: 58.85714798 | H28: 53.84940531 | I28: 49.79707138 | J28: 46.41765477 | K28: 43.41238983 | L28: 40.49471547 | M28: 37.41034075 | N28: 33.94606017 | O28: 29.929176 | P28: 25.22033878 | Q28: 19.69902752 | R28: 12.57555019 | S28: 0
A29: 87 | B29: 85 | C29: 49.5 | D29: 53.85105 | E29: 40.97404135 | F29: 3.545650886 | G29: 58.85714798 | H29: 53.84940531 | I29: 49.79707138 | J29: 46.41765477 | K29: 43.41238983 | L29: 40.49471547 | M29: 37.41034075 | N29: 33.94606017 | O29: 29.929176 | P29: 25.22033878 | Q29: 19.69902752 | R29: 12.57555019 | S29: 0
A30: 77 | B30: 52 | C30: 49.2 | D30: 53.52468 | E30: 40.8748374 | F30: 3.494322751 | G30: 58.4992166 | H30: 53.51124365 | I30: 49.47678648 | J30: 46.1129133 | K30: 43.12051269 | L30: 40.21290469 | M30: 37.13592987 | N30: 33.67669935 | O30: 29.66291042 | P30: 24.95554936 | Q30: 19.43406103 | R30: 12.30570423 | S30: 0
A31: 51 | B31: 108 | C31: 49.1 | D31: 53.41589 | E31: 40.84163495 | F31: 3.477305726 | G31: 58.37990649 | H31: 53.39852783 | I31: 49.37003378 | J31: 46.01134388 | K31: 43.02323002 | L31: 40.11897189 | M31: 37.04445392 | N31: 33.58689314 | O31: 29.57411885 | P31: 24.86722883 | Q31: 19.34565251 | R31: 12.21558374 | S31: 0
A32: 49 | B32: 31 | C32: 49 | D32: 53.3071 | E32: 40.8083648 | F32: 3.460334839 | G32: 58.26059655 | H32: 53.28581439 | I32: 49.26328556 | J32: 45.90978002 | K32: 42.9259522 | L32: 40.02504112 | M32: 36.95297503 | N32: 33.49707711 | O32: 29.4853088 | P32: 24.77887918 | Q32: 19.25720016 | R32: 12.12537525 | S32: 0
A33: 28 | B33: 34 | C33: 48.8 | D33: 53.08952 | E33: 40.74162033 | F33: 3.426531382 | G33: 58.02197719 | H33: 53.06039464 | I33: 49.04980259 | J33: 45.70666898 | K33: 42.73141109 | L33: 39.83718549 | M33: 36.77000817 | N33: 33.31741509 | O33: 29.30763255 | P33: 24.6020915 | Q33: 19.08016233 | R33: 11.94468904 | S33: 0
A34: 14 | B34: 108 | C34: 48.8 | D34: 53.08952 | E34: 40.74162033 | F34: 3.426531382 | G34: 58.02197719 | H34: 53.06039464 | I34: 49.04980259 | J34: 45.70666898 | K34: 42.73141109 | L34: 39.83718549 | M34: 36.77000817 | N34: 33.31741509 | O34: 29.30763255 | P34: 24.6020915 | Q34: 19.08016233 | R34: 11.94468904 | S34: 0
A35: 8 | B35: 89 | C35: 48.2 | D35: 52.43678 | E35: 40.53973322 | F35: 3.326225856 | G35: 57.30612333 | H35: 52.38419281 | I35: 48.40946214 | J35: 45.09746993 | K35: 42.14790365 | L35: 39.2736639 | M35: 36.22102994 | N35: 32.77818083 | O35: 28.77414133 | P35: 24.07100209 | Q35: 18.54795398 | R35: 11.40037639 | S35: 0
A36: 54 | B36: 99 | C36: 48.2 | D36: 52.43678 | E36: 40.53973322 | F36: 3.326225856 | G36: 57.30612333 | H36: 52.38419281 | I36: 48.40946214 | J36: 45.09746993 | K36: 42.14790365 | L36: 39.2736639 | M36: 36.22102994 | N36: 32.77818083 | O36: 28.77414133 | P36: 24.07100209 | Q36: 18.54795398 | R36: 11.40037639 | S36: 0
A37: 14 | B37: 13 | C37: 48.1 | D37: 52.32799 | E37: 40.50584121 | F37: 3.309669143 | G37: 57.18681496 | H37: 52.27150092 | I37: 48.30275464 | J37: 44.99595639 | K37: 42.05066926 | L37: 39.17974991 | M37: 36.1295215 | N37: 32.68827095 | O37: 28.68515671 | P37: 23.98237839 | Q37: 18.45908843 | R37: 11.30931329 | S37: 0
A38: 20 | B38: 106 | C38: 48.1 | D38: 52.32799 | E38: 40.50584121 | F38: 3.309669143 | G38: 57.18681496 | H38: 52.27150092 | I38: 48.30275464 | J38: 44.99595639 | K38: 42.05066926 | L38: 39.17974991 | M38: 36.1295215 | N38: 32.68827095 | O38: 28.68515671 | P38: 23.98237839 | Q38: 18.45908843 | R38: 11.30931329 | S38: 0
A39: 1 | B39: 22 | C39: 48 | D39: 52.2192 | E39: 40.47187865 | F39: 3.293158329 | G39: 57.06750677 | H39: 52.15881145 | I39: 48.19605172 | J39: 44.89444848 | K39: 41.95343967 | L39: 39.08583762 | M39: 36.0380094 | N39: 32.59835002 | O39: 28.59615172 | P39: 23.89372286 | Q39: 18.37017479 | R39: 11.21814757 | S39: 0
A40: 15 | B40: 81 | C40: 48 | D40: 52.2192 | E40: 40.47187865 | F40: 3.293158329 | G40: 57.06750677 | H40: 52.15881145 | I40: 48.19605172 | J40: 44.89444848 | K40: 41.95343967 | L40: 39.08583762 | M40: 36.0380094 | N40: 32.59835002 | O40: 28.59615172 | P40: 23.89372286 | Q40: 18.37017479 | R40: 11.21814757 | S40: 0
A41: 15 | B41: 77 | C41: 48 | D41: 52.2192 | E41: 40.47187865 | F41: 3.293158329 | G41: 57.06750677 | H41: 52.15881145 | I41: 48.19605172 | J41: 44.89444848 | K41: 41.95343967 | L41: 39.08583762 | M41: 36.0380094 | N41: 32.59835002 | O41: 28.59615172 | P41: 23.89372286 | Q41: 18.37017479 | R41: 11.21814757 | S41: 0
A42: 78 | B42: 32 | C42: 47.9 | D42: 52.11041 | E42: 40.43784527 | F42: 3.276693392 | G42: 56.94819876 | H42: 52.0461244 | I42: 48.08935338 | J42: 44.79294621 | K42: 41.85621487 | L42: 38.991927 | M42: 35.94649359 | N42: 32.50841791 | O42: 28.50712619 | P42: 23.8050352 | Q42: 18.28121263 | R42: 11.12687755 | S42: 0
A43: 1 | B43: 76 | C43: 47.9 | D43: 52.11041 | E43: 40.43784527 | F43: 3.276693392 | G43: 56.94819876 | H43: 52.0461244 | I43: 48.08935338 | J43: 44.79294621 | K43: 41.85621487 | L43: 38.991927 | M43: 35.94649359 | N43: 32.50841791 | O43: 28.50712619 | P43: 23.8050352 | Q43: 18.28121263 | R43: 11.12687755 | S43: 0
A44: 60 | B44: 121 | C44: 47.9 | D44: 52.11041 | E44: 40.43784527 | F44: 3.276693392 | G44: 56.94819876 | H44: 52.0461244 | I44: 48.08935338 | J44: 44.79294621 | K44: 41.85621487 | L44: 38.991927 | M44: 35.94649359 | N44: 32.50841791 | O44: 28.50712619 | P44: 23.8050352 | Q44: 18.28121263 | R44: 11.12687755 | S44: 0
A45: 53 | B45: 106 | C45: 47.8 | D45: 52.00162 | E45: 40.40374077 | F45: 3.260274307 | G45: 56.82889092 | H45: 51.93343977 | I45: 47.98265963 | J45: 44.69144958 | K45: 41.75899486 | L45: 38.89801802 | M45: 35.85497398 | N45: 32.41847448 | O45: 28.41807991 | P45: 23.71631513 | Q45: 18.19220146 | R45: 11.03550147 | S45: 0
A46: 13 | B46: 16 | C46: 47.6 | D46: 51.78404 | E46: 40.33531719 | F46: 3.227573598 | G46: 56.59027577 | H46: 51.70807781 | I46: 47.76928594 | J46: 44.48847331 | K46: 41.56456918 | L46: 38.71020484 | M46: 35.67192305 | N46: 32.23855315 | O46: 28.23992428 | P46: 23.53877657 | Q46: 18.01403028 | R46: 10.85242396 | S46: 0
A47: 69 | B47: 69 | C47: 47 | D47: 51.1313 | E47: 40.12830807 | F47: 3.130569409 | G47: 55.87443452 | H47: 51.03205056 | I47: 47.12927602 | J47: 43.87968079 | K47: 40.98140637 | L47: 38.14680089 | M47: 35.12267089 | N47: 31.6985035 | O47: 27.70493791 | P47: 23.00535179 | Q47: 17.47829114 | R47: 10.30044865 | S47: 0
A48: 39 | B48: 100 | C48: 47 | D48: 51.1313 | E48: 40.12830807 | F48: 3.130569409 | G48: 55.87443452 | H48: 51.03205056 | I48: 47.12927602 | J48: 43.87968079 | K48: 40.98140637 | L48: 38.14680089 | M48: 35.12267089 | N48: 31.6985035 | O48: 27.70493791 | P48: 23.00535179 | Q48: 17.47829114 | R48: 10.30044865 | S48: 0
A49: 31 | B49: 110 | C49: 47 | D49: 51.1313 | E49: 40.12830807 | F49: 3.130569409 | G49: 55.87443452 | H49: 51.03205056 | I49: 47.12927602 | J49: 43.87968079 | K49: 40.98140637 | L49: 38.14680089 | M49: 35.12267089 | N49: 31.6985035 | O49: 27.70493791 | P49: 23.00535179 | Q49: 17.47829114 | R49: 10.30044865 | S49: 0
A50: 56 | B50: 103 | C50: 46.9 | D50: 51.02251 | E50: 40.0935498 | F50: 3.114561904 | G50: 55.75512827 | H50: 50.91938794 | I50: 47.02262401 | J50: 43.77823533 | K50: 40.88422915 | L50: 38.05290503 | M50: 35.03111351 | N50: 31.60845208 | O50: 27.61569551 | P50: 22.91632641 | Q50: 17.38881731 | R50: 10.20803074 | S50: 0
A51: 70 | B51: 89 | C51: 46.9 | D51: 51.02251 | E51: 40.0935498 | F51: 3.114561904 | G51: 55.75512827 | H51: 50.91938794 | I51: 47.02262401 | J51: 43.77823533 | K51: 40.88422915 | L51: 38.05290503 | M51: 35.03111351 | N51: 31.60845208 | O51: 27.61569551 | P51: 22.91632641 | Q51: 17.38881731 | R51: 10.20803074 | S51: 0
A52: 25 | B52: 59 | C52: 46.8 | D52: 50.91372 | E52: 40.05871735 | F52: 3.098600009 | G52: 55.63582218 | H52: 50.8067278 | I52: 46.91597668 | J52: 43.67679559 | K52: 40.78705665 | L52: 37.95901044 | M52: 34.93955152 | N52: 31.51838796 | O52: 27.52643023 | P52: 22.82726552 | Q52: 17.29928955 | R52: 10.1154862 | S52: 0
A53: 7 | B53: 124 | C53: 46.8 | D53: 50.91372 | E53: 40.05871735 | F53: 3.098600009 | G53: 55.63582218 | H53: 50.8067278 | I53: 46.91597668 | J53: 43.67679559 | K53: 40.78705665 | L53: 37.95901044 | M53: 34.93955152 | N53: 31.51838796 | O53: 27.52643023 | P53: 22.82726552 | Q53: 17.29928955 | R53: 10.1154862 | S53: 0
A54: 56 | B54: 86 | C54: 46.6 | D54: 50.69614 | E54: 39.98882859 | F54: 3.066812947 | G54: 55.39721055 | H54: 50.58141492 | I54: 46.70269613 | J54: 43.47393332 | K54: 40.59272576 | L54: 37.77122491 | M54: 34.75641336 | N54: 31.33822099 | O54: 27.34783017 | P54: 22.64903595 | Q54: 17.12007007 | R54: 9.930007391 | S54: 0
A55: 87 | B55: 87 | C55: 46.6 | D55: 50.69614 | E55: 39.98882859 | F55: 3.066812947 | G55: 55.39721055 | H55: 50.58141492 | I55: 46.70269613 | J55: 43.47393332 | K55: 40.59272576 | L55: 37.77122491 | M55: 34.75641336 | N55: 31.33822099 | O55: 27.34783017 | P55: 22.64903595 | Q55: 17.12007007 | R55: 9.930007391 | S55: 0
A56: 41 | B56: 75 | C56: 46.5 | D56: 50.58735 | E56: 39.95377165 | F56: 3.050987731 | G56: 55.277905 | H56: 50.4687622 | I56: 46.59606291 | J56: 43.37251079 | K56: 40.49556736 | L56: 37.67733389 | M56: 34.66483701 | N56: 31.24811784 | O56: 27.25849493 | P56: 22.5598666 | Q56: 17.03037727 | R56: 9.837067993 | S56: 0
A57: 15 | B57: 109 | C57: 46.5 | D57: 50.58735 | E57: 39.95377165 | F57: 3.050987731 | G57: 55.277905 | H57: 50.4687622 | I57: 46.59606291 | J57: 43.37251079 | K57: 40.49556736 | L57: 37.67733389 | M57: 34.66483701 | N57: 31.24811784 | O57: 27.25849493 | P57: 22.5598666 | Q57: 17.03037727 | R57: 9.837067993 | S57: 0
A58: 15 | B58: 122 | C58: 46.5 | D58: 50.58735 | E58: 39.95377165 | F58: 3.050987731 | G58: 55.277905 | H58: 50.4687622 | I58: 46.59606291 | J58: 43.37251079 | K58: 40.49556736 | L58: 37.67733389 | M58: 34.66483701 | N58: 31.24811784 | O58: 27.25849493 | P58: 22.5598666 | Q58: 17.03037727 | R58: 9.837067993 | S58: 0
A59: 64 | B59: 70 | C59: 46.3 | D59: 50.36977 | E59: 39.88343102 | F59: 3.019473805 | G59: 55.03929442 | H59: 50.24346422 | I59: 46.38281067 | J59: 43.16968301 | K59: 40.30126461 | L59: 37.48955512 | M59: 34.48166933 | N59: 31.06787145 | O59: 27.07975284 | P59: 22.38141708 | Q59: 16.85082279 | R59: 9.650775713 | S59: 0
A60: 69 | B60: 71 | C60: 46.3 | D60: 50.36977 | E60: 39.88343102 | F60: 3.019473805 | G60: 55.03929442 | H60: 50.24346422 | I60: 46.38281067 | J60: 43.16968301 | K60: 40.30126461 | L60: 37.48955512 | M60: 34.48166933 | N60: 31.06787145 | O60: 27.07975284 | P60: 22.38141708 | Q60: 16.85082279 | R60: 9.650775713 | S60: 0
A61: 16 | B61: 93 | C61: 46.3 | D61: 50.36977 | E61: 39.88343102 | F61: 3.019473805 | G61: 55.03929442 | H61: 50.24346422 | I61: 46.38281067 | J61: 43.16968301 | K61: 40.30126461 | L61: 37.48955512 | M61: 34.48166933 | N61: 31.06787145 | O61: 27.07975284 | P61: 22.38141708 | Q61: 16.85082279 | R61: 9.650775713 | S61: 0
A62: 52 | B62: 88 | C62: 46.3 | D62: 50.36977 | E62: 39.88343102 | F62: 3.019473805 | G62: 55.03929442 | H62: 50.24346422 | I62: 46.38281067 | J62: 43.16968301 | K62: 40.30126461 | L62: 37.48955512 | M62: 34.48166933 | N62: 31.06787145 | O62: 27.07975284 | P62: 22.38141708 | Q62: 16.85082279 | R62: 9.650775713 | S62: 0
A63: 30 | B63: 45 | C63: 46.2 | D63: 50.26098 | E63: 39.84814668 | F63: 3.003785045 | G63: 54.91998939 | H63: 50.13081897 | I63: 46.27619166 | J63: 43.06827777 | K63: 40.20412023 | L63: 37.3956673 | M63: 34.39007781 | N63: 30.97772789 | O63: 26.99034554 | P63: 22.29213622 | Q63: 16.76095998 | R63: 9.55741714 | S63: 0
A64: 48 | B64: 60 | C64: 46.2 | D64: 50.26098 | E64: 39.84814668 | F64: 3.003785045 | G64: 54.91998939 | H64: 50.13081897 | I64: 46.27619166 | J64: 43.06827777 | K64: 40.20412023 | L64: 37.3956673 | M64: 34.39007781 | N64: 30.97772789 | O64: 26.99034554 | P64: 22.29213622 | Q64: 16.76095998 | R64: 9.55741714 | S64: 0
A65: 78 | B65: 70 | C65: 46.1 | D65: 50.15219 | E65: 39.81278589 | F65: 2.988141722 | G65: 54.80068454 | H65: 50.01817622 | I65: 46.1695774 | J65: 42.9668783 | K65: 40.10698051 | L65: 37.30178045 | M65: 34.29848106 | N65: 30.88757056 | O65: 26.90091373 | P65: 22.2028175 | Q65: 16.67103935 | R65: 9.46391298 | S65: 0
A66: 54 | B66: 95 | C66: 46.1 | D66: 50.15219 | E66: 39.81278589 | F66: 2.988141722 | G66: 54.80068454 | H66: 50.01817622 | I66: 46.1695774 | J66: 42.9668783 | K66: 40.10698051 | L66: 37.30178045 | M66: 34.29848106 | N66: 30.88757056 | O66: 26.90091373 | P66: 22.2028175 | Q66: 16.67103935 | R66: 9.46391298 | S66: 0
A67: 58 | B67: 100 | C67: 46.1 | D67: =C67*(1+growthRate) -> 50.15219 | E67: =(Peterson_a+Peterson_b*LN(D67*10))/10 -> 39.81278589 | F67: =Vol_a*D67^2*E67/10000 -> 2.988141722 | G67: 54.80068454 | H67: 50.01817622 | I67: 46.1695774 | J67: 42.9668783 | K67: 40.10698051 | L67: 37.30178045 | M67: 34.29848106 | N67: 30.88757056 | O67: 26.90091373 | P67: 22.2028175 | Q67: 16.67103935 | R67: 9.46391298 | S67: 0
A68: 56 | B68: 50 | C68: 46 | D68: 50.0434 | E68: 39.77734831 | F68: 2.972543809 | G68: 54.68137987 | H68: 49.90553596 | I68: 46.0629679 | J68: 42.86548461 | K68: 40.00984544 | L68: 37.20789454 | M68: 34.20687896 | N68: 30.79739928 | O68: 26.81145719 | P68: 22.11346056 | Q68: 16.58106032 | R68: 9.370260121 | S68: 0
A69: 13 | B69: 66 | C69: 45.9 | D69: 49.93461 | E69: 39.7418336 | F69: 2.956991281 | G69: 54.56207537 | H69: 49.79289822 | I69: 45.95636317 | J69: 42.76409671 | K69: 39.912715 | L69: 37.11400952 | M69: 34.11527144 | N69: 30.70721389 | O69: 26.72197566 | P69: 22.02406505 | Q69: 16.4910223 | R69: 9.276455335 | S69: 0
A70: 1 | B70: 63 | C70: 45.7 | D70: 49.71703 | E70: 39.67057148 | F70: 2.926022284 | G70: 54.32346691 | H70: 49.56763026 | I70: 45.74316808 | J70: 42.5613383 | K70: 39.71846799 | L70: 36.92624197 | M70: 33.93203972 | N70: 30.52680016 | O70: 26.54293666 | P70: 21.84515685 | Q70: 16.31076685 | R70: 9.088376443 | S70: 0
A71: 45 | B71: 14 | C71: 45.6 | D71: 49.60824 | E71: 39.63482338 | F71: 2.910605763 | G71: 54.20416294 | H71: 49.45500005 | I71: 45.63657773 | J71: 42.45996781 | K71: 39.62135139 | L71: 36.83235935 | M71: 33.84041532 | N71: 30.43657148 | O71: 26.45337868 | P71: 21.75564343 | Q71: 16.22054819 | R71: 8.994095236 | S71: 0
A72: 75 | B72: 27 | C72: 45.6 | D72: 49.60824 | E72: 39.63482338 | F72: 2.910605763 | G72: 54.20416294 | H72: 49.45500005 | I72: 45.63657773 | J72: 42.45996781 | K72: 39.62135139 | L72: 36.83235935 | M72: 33.84041532 | N72: 30.43657148 | O72: 26.45337868 | P72: 21.75564343 | Q72: 16.22054819 | R72: 8.994095236 | S72: 0
A73: 11 | B73: 23 | C73: 45.5 | D73: 49.49945 | E73: 39.5989968 | F73: 2.895234527 | G73: 54.08485915 | H73: 49.34237237 | I73: 45.52999219 | J73: 42.35860314 | K73: 39.52423939 | L73: 36.73847744 | M73: 33.74878511 | N73: 30.34632803 | O73: 26.36379472 | P73: 21.66608997 | Q73: 16.13026808 | R73: 8.899647886 | S73: 0
A74: 96 | B74: 44 | C74: 45.5 | D74: 49.49945 | E74: 39.5989968 | F74: 2.895234527 | G74: 54.08485915 | H74: 49.34237237 | I74: 45.52999219 | J74: 42.35860314 | K74: 39.52423939 | L74: 36.73847744 | M74: 33.74878511 | N74: 30.34632803 | O74: 26.36379472 | P74: 21.66608997 | Q74: 16.13026808 | R74: 8.899647886 | S74: 0
A75: 38 | B75: 54 | C75: 45.5 | D75: 49.49945 | E75: 39.5989968 | F75: 2.895234527 | G75: 54.08485915 | H75: 49.34237237 | I75: 45.52999219 | J75: 42.35860314 | K75: 39.52423939 | L75: 36.73847744 | M75: 33.74878511 | N75: 30.34632803 | O75: 26.36379472 | P75: 21.66608997 | Q75: 16.13026808 | R75: 8.899647886 | S75: 0
A76: 25 | B76: 77 | C76: 45.5 | D76: 49.49945 | E76: 39.5989968 | F76: 2.895234527 | G76: 54.08485915 | H76: 49.34237237 | I76: 45.52999219 | J76: 42.35860314 | K76: 39.52423939 | L76: 36.73847744 | M76: 33.74878511 | N76: 30.34632803 | O76: 26.36379472 | P76: 21.66608997 | Q76: 16.13026808 | R76: 8.899647886 | S76: 0
A77: 25 | B77: 81 | C77: 45.5 | D77: 49.49945 | E77: 39.5989968 | F77: 2.895234527 | G77: 54.08485915 | H77: 49.34237237 | I77: 45.52999219 | J77: 42.35860314 | K77: 39.52423939 | L77: 36.73847744 | M77: 33.74878511 | N77: 30.34632803 | O77: 26.36379472 | P77: 21.66608997 | Q77: 16.13026808 | R77: 8.899647886 | S77: 0
A78: 52 | B78: 74 | C78: 45.5 | D78: 49.49945 | E78: 39.5989968 | F78: 2.895234527 | G78: 54.08485915 | H78: 49.34237237 | I78: 45.52999219 | J78: 42.35860314 | K78: 39.52423939 | L78: 36.73847744 | M78: 33.74878511 | N78: 30.34632803 | O78: 26.36379472 | P78: 21.66608997 | Q78: 16.13026808 | R78: 8.899647886 | S78: 0
A79: 85 | B79: 118 | C79: 45.5 | D79: 49.49945 | E79: 39.5989968 | F79: 2.895234527 | G79: 54.08485915 | H79: 49.34237237 | I79: 45.52999219 | J79: 42.35860314 | K79: 39.52423939 | L79: 36.73847744 | M79: 33.74878511 | N79: 30.34632803 | O79: 26.36379472 | P79: 21.66608997 | Q79: 16.13026808 | R79: 8.899647886 | S79: 0
A80: 41 | B80: 27 | C80: 45.4 | D80: 49.39066 | E80: 39.5630914 | F80: 2.879908551 | G80: 53.96555554 | H80: 49.22974722 | I80: 45.42341147 | J80: 42.25724429 | K80: 39.42713197 | L80: 36.64459619 | M80: 33.65714896 | N80: 30.25606963 | O80: 26.2741845 | P80: 21.57649608 | Q80: 16.03992587 | R80: 8.805030477 | S80: 0
A81: 76 | B81: 73 | C81: 45.4 | D81: 49.39066 | E81: 39.5630914 | F81: 2.879908551 | G81: 53.96555554 | H81: 49.22974722 | I81: 45.42341147 | J81: 42.25724429 | K81: 39.42713197 | L81: 36.64459619 | M81: 33.65714896 | N81: 30.25606963 | O81: 26.2741845 | P81: 21.57649608 | Q81: 16.03992587 | R81: 8.805030477 | S81: 0
A82: 40 | B82: 41 | C82: 45.3 | D82: 49.28187 | E82: 39.52710682 | F82: 2.86462781 | G82: 53.8462521 | H82: 49.1171246 | I82: 45.31683559 | J82: 42.15589127 | K82: 39.33002912 | L82: 36.55071555 | M82: 33.56550679 | N82: 30.16579613 | O82: 26.18454777 | P82: 21.48686139 | Q82: 15.94952091 | R82: 8.710238929 | S82: 0
A83: 4 | B83: 49 | C83: 45.3 | D83: 49.28187 | E83: 39.52710682 | F83: 2.86462781 | G83: 53.8462521 | H83: 49.1171246 | I83: 45.31683559 | J83: 42.15589127 | K83: 39.33002912 | L83: 36.55071555 | M83: 33.56550679 | N83: 30.16579613 | O83: 26.18454777 | P83: 21.48686139 | Q83: 15.94952091 | R83: 8.710238929 | S83: 0
A84: 33 | B84: 10 | C84: 45.1 | D84: 49.06429 | E84: 39.45489874 | F84: 2.834201928 | G84: 53.60764575 | H84: 48.89188696 | I84: 45.10369835 | J84: 41.95320275 | K84: 39.13583708 | L84: 36.3629559 | M84: 33.38220396 | N84: 29.98520307 | O84: 26.00519373 | P84: 21.30746805 | Q84: 15.76852012 | R84: 8.520116241 | S84: 0
A85: 78 | B85: 51 | C85: 45 | D85: 48.9555 | E85: 39.41867453 | F85: 2.819056737 | G85: 53.48834285 | H85: 48.77927196 | I85: 44.99713701 | J85: 41.85186726 | K85: 39.03874787 | L85: 36.2690768 | M85: 33.29054308 | N85: 29.89488317 | O85: 25.91547588 | P85: 21.21770861 | Q85: 15.67792294 | R85: 8.424776048 | S85: 0
A86: 36 | B86: 92 | C86: 45 | D86: 48.9555 | E86: 39.41867453 | F86: 2.819056737 | G86: 53.48834285 | H86: 48.77927196 | I86: 44.99713701 | J86: 41.85186726 | K86: 39.03874787 | L86: 36.2690768 | M86: 33.29054308 | N86: 29.89488317 | O86: 25.91547588 | P86: 21.21770861 | Q86: 15.67792294 | R86: 8.424776048 | S86: 0
A87: 80 | B87: 50 | C87: 44.9 | D87: 48.84671 | E87: 39.38236973 | F87: 2.803956678 | G87: 53.36904011 | H87: 48.66665951 | I87: 44.89058055 | J87: 41.75053763 | K87: 38.94166318 | L87: 36.17519812 | M87: 33.19887576 | N87: 29.80454744 | O87: 25.82573044 | P87: 21.12790679 | Q87: 15.58726033 | R87: 8.329243587 | S87: 0
A88: 3 | B88: 120 | C88: 44.9 | D88: 48.84671 | E88: 39.38236973 | F88: 2.803956678 | G88: 53.36904011 | H88: 48.66665951 | I88: 44.89058055 | J88: 41.75053763 | K88: 38.94166318 | L88: 36.17519812 | M88: 33.19887576 | N88: 29.80454744 | O88: 25.82573044 | P88: 21.12790679 | Q88: 15.58726033 | R88: 8.329243587 | S88: 0
A89: 18 | B89: 42 | C89: 44.8 | D89: 48.73792 | E89: 39.34598398 | F89: 2.788901726 | G89: 53.24973756 | H89: 48.55404961 | I89: 44.78402897 | J89: 41.64921386 | K89: 38.84458299 | L89: 36.08131979 | M89: 33.10720188 | N89: 29.7141957 | O89: 25.73595713 | P89: 21.03806218 | Q89: 15.49653158 | R89: 8.233513816 | S89: 0
A90: 52 | B90: 37 | C90: 44.8 | D90: 48.73792 | E90: 39.34598398 | F90: 2.788901726 | G90: 53.24973756 | H90: 48.55404961 | I90: 44.78402897 | J90: 41.64921386 | K90: 38.84458299 | L90: 36.08131979 | M90: 33.10720188 | N90: 29.7141957 | O90: 25.73595713 | P90: 21.03806218 | Q90: 15.49653158 | R90: 8.233513816 | S90: 0
A91: 12 | B91: 54 | C91: 44.8 | D91: 48.73792 | E91: 39.34598398 | F91: 2.788901726 | G91: 53.24973756 | H91: 48.55404961 | I91: 44.78402897 | J91: 41.64921386 | K91: 38.84458299 | L91: 36.08131979 | M91: 33.10720188 | N91: 29.7141957 | O91: 25.73595713 | P91: 21.03806218 | Q91: 15.49653158 | R91: 8.233513816 | S91: 0
A92: 13 | B92: 107 | C92: 44.8 | D92: 48.73792 | E92: 39.34598398 | F92: 2.788901726 | G92: 53.24973756 | H92: 48.55404961 | I92: 44.78402897 | J92: 41.64921386 | K92: 38.84458299 | L92: 36.08131979 | M92: 33.10720188 | N92: 29.7141957 | O92: 25.73595713 | P92: 21.03806218 | Q92: 15.49653158 | R92: 8.233513816 | S92: 0
A93: 11 | B93: 108 | C93: 44.8 | D93: 48.73792 | E93: 39.34598398 | F93: 2.788901726 | G93: 53.24973756 | H93: 48.55404961 | I93: 44.78402897 | J93: 41.64921386 | K93: 38.84458299 | L93: 36.08131979 | M93: 33.10720188 | N93: 29.7141957 | O93: 25.73595713 | P93: 21.03806218 | Q93: 15.49653158 | R93: 8.233513816 | S93: 0
A94: 9 | B94: 95 | C94: 44.7 | D94: 48.62913 | E94: 39.30951693 | F94: 2.773891856 | G94: 53.13043518 | H94: 48.44144227 | I94: 44.67748227 | J94: 41.54789597 | K94: 38.7475073 | L94: 35.98744177 | M94: 33.01552133 | N94: 29.62382776 | O94: 25.64615569 | P94: 20.94817439 | Q94: 15.40573598 | R94: 8.13758146 | S94: 0
A95: 59 | B95: 80 | C95: 44.6 | D95: 48.52034 | E95: 39.2729682 | F95: 2.75892704 | G95: 53.01113297 | H95: 48.3288375 | I95: 44.57094048 | J95: 41.44658395 | K95: 38.65043609 | L95: 35.893564 | M95: 32.923834 | N95: 29.53344345 | O95: 25.55632582 | P95: 20.85824298 | Q95: 15.31487281 | R95: 8.041441003 | S95: 0
A96: 59 | B96: 84 | C96: 44.6 | D96: 48.52034 | E96: 39.2729682 | F96: 2.75892704 | G96: 53.01113297 | H96: 48.3288375 | I96: 44.57094048 | J96: 41.44658395 | K96: 38.65043609 | L96: 35.893564 | M96: 32.923834 | N96: 29.53344345 | O96: 25.55632582 | P96: 20.85824298 | Q96: 15.31487281 | R96: 8.041441003 | S96: 0
A97: 71 | B97: 108 | C97: 44.6 | D97: 48.52034 | E97: 39.2729682 | F97: 2.75892704 | G97: 53.01113297 | H97: 48.3288375 | I97: 44.57094048 | J97: 41.44658395 | K97: 38.65043609 | L97: 35.893564 | M97: 32.923834 | N97: 29.53344345 | O97: 25.55632582 | P97: 20.85824298 | Q97: 15.31487281 | R97: 8.041441003 | S97: 0
A98: 17 | B98: 122 | C98: 44.6 | D98: 48.52034 | E98: 39.2729682 | F98: 2.75892704 | G98: 53.01113297 | H98: 48.3288375 | I98: 44.57094048 | J98: 41.44658395 | K98: 38.65043609 | L98: 35.893564 | M98: 32.923834 | N98: 29.53344345 | O98: 25.55632582 | P98: 20.85824298 | Q98: 15.31487281 | R98: 8.041441003 | S98: 0
A99: 44 | B99: 11 | C99: 44.5 | D99: 48.41155 | E99: 39.23633743 | F99: 2.744007254 | G99: 52.89183095 | H99: 48.21623528 | I99: 44.4644036 | J99: 41.34527782 | K99: 38.55336935 | L99: 35.79968644 | M99: 32.83213978 | N99: 29.44304257 | O99: 25.46646725 | P99: 20.76826755 | Q99: 15.22394135 | R99: 7.945086665 | S99: 0
A100: 48 | B100: 37 | C100: 44.5 | D100: 48.41155 | E100: 39.23633743 | F100: 2.744007254 | G100: 52.89183095 | H100: 48.21623528 | I100: 44.4644036 | J100: 41.34527782 | K100: 38.55336935 | L100: 35.79968644 | M100: 32.83213978 | N100: 29.44304257 | O100: 25.46646725 | P100: 20.76826755 | Q100: 15.22394135 | R100: 7.945086665 | S100: 0
A101: 80 | B101: 41 | C101: 44.5 | D101: 48.41155 | E101: 39.23633743 | F101: 2.744007254 | G101: 52.89183095 | H101: 48.21623528 | I101: 44.4644036 | J101: 41.34527782 | K101: 38.55336935 | L101: 35.79968644 | M101: 32.83213978 | N101: 29.44304257 | O101: 25.46646725 | P101: 20.76826755 | Q101: 15.22394135 | R101: 7.945086665 | S101: 0
A102: 23 | B102: 48 | C102: 44.5 | D102: 48.41155 | E102: 39.23633743 | F102: 2.744007254 | G102: 52.89183095 | H102: 48.21623528 | I102: 44.4644036 | J102: 41.34527782 | K102: 38.55336935 | L102: 35.79968644 | M102: 32.83213978 | N102: 29.44304257 | O102: 25.46646725 | P102: 20.76826755 | Q102: 15.22394135 | R102: 7.945086665 | S102: 0
A103: 6 | B103: 93 | C103: 44.5 | D103: 48.41155 | E103: 39.23633743 | F103: 2.744007254 | G103: 52.89183095 | H103: 48.21623528 | I103: 44.4644036 | J103: 41.34527782 | K103: 38.55336935 | L103: 35.79968644 | M103: 32.83213978 | N103: 29.44304257 | O103: 25.46646725 | P103: 20.76826755 | Q103: 15.22394135 | R103: 7.945086665 | S103: 0
A104: 78 | B104: 93 | C104: 44.5 | D104: 48.41155 | E104: 39.23633743 | F104: 2.744007254 | G104: 52.89183095 | H104: 48.21623528 | I104: 44.4644036 | J104: 41.34527782 | K104: 38.55336935 | L104: 35.79968644 | M104: 32.83213978 | N104: 29.44304257 | O104: 25.46646725 | P104: 20.76826755 | Q104: 15.22394135 | R104: 7.945086665 | S104: 0
A105: 70 | B105: 105 | C105: 44.5 | D105: 48.41155 | E105: 39.23633743 | F105: 2.744007254 | G105: 52.89183095 | H105: 48.21623528 | I105: 44.4644036 | J105: 41.34527782 | K105: 38.55336935 | L105: 35.79968644 | M105: 32.83213978 | N105: 29.44304257 | O105: 25.46646725 | P105: 20.76826755 | Q105: 15.22394135 | R105: 7.945086665 | S105: 0
A106: 19 | B106: 21 | C106: 44.4 | D106: 48.30276 | E106: 39.19962426 | F106: 2.729132471 | G106: 52.7725291 | H106: 48.10363564 | I106: 44.35787164 | J106: 41.24397757 | K106: 38.45630706 | L106: 35.70580902 | M106: 32.74043856 | N106: 29.35262492 | O106: 25.37657967 | P106: 20.67824767 | Q106: 15.13294084 | R106: 7.848512389 | S106: 0
A107: 29 | B107: 23 | C107: 44.4 | D107: 48.30276 | E107: 39.19962426 | F107: 2.729132471 | G107: 52.7725291 | H107: 48.10363564 | I107: 44.35787164 | J107: 41.24397757 | K107: 38.45630706 | L107: 35.70580902 | M107: 32.74043856 | N107: 29.35262492 | O107: 25.37657967 | P107: 20.67824767 | Q107: 15.13294084 | R107: 7.848512389 | S107: 0
A108: 2 | B108: 37 | C108: 44.4 | D108: 48.30276 | E108: 39.19962426 | F108: 2.729132471 | G108: 52.7725291 | H108: 48.10363564 | I108: 44.35787164 | J108: 41.24397757 | K108: 38.45630706 | L108: 35.70580902 | M108: 32.74043856 | N108: 29.35262492 | O108: 25.37657967 | P108: 20.67824767 | Q108: 15.13294084 | R108: 7.848512389 | S108: 0
A109: 69 | B109: 25 | C109: 44.4 | D109: 48.30276 | E109: 39.19962426 | F109: 2.729132471 | G109: 52.7725291 | H109: 48.10363564 | I109: 44.35787164 | J109: 41.24397757 | K109: 38.45630706 | L109: 35.70580902 | M109: 32.74043856 | N109: 29.35262492 | O109: 25.37657967 | P109: 20.67824767 | Q109: 15.13294084 | R109: 7.848512389 | S109: 0
A110: 65 | B110: 72 | C110: 44.4 | D110: 48.30276 | E110: 39.19962426 | F110: 2.729132471 | G110: 52.7725291 | H110: 48.10363564 | I110: 44.35787164 | J110: 41.24397757 | K110: 38.45630706 | L110: 35.70580902 | M110: 32.74043856 | N110: 29.35262492 | O110: 25.37657967 | P110: 20.67824767 | Q110: 15.13294084 | R110: 7.848512389 | S110: 0
A111: 39 | B111: 105 | C111: 44.4 | D111: 48.30276 | E111: 39.19962426 | F111: 2.729132471 | G111: 52.7725291 | H111: 48.10363564 | I111: 44.35787164 | J111: 41.24397757 | K111: 38.45630706 | L111: 35.70580902 | M111: 32.74043856 | N111: 29.35262492 | O111: 25.37657967 | P111: 20.67824767 | Q111: 15.13294084 | R111: 7.848512389 | S111: 0
A112: 73 | B112: 53 | C112: 44.3 | D112: 48.19397 | E112: 39.1628283 | F112: 2.714302667 | G112: 52.65322742 | H112: 47.99103857 | I112: 44.25134461 | J112: 41.14268322 | K112: 38.35924921 | L112: 35.6119317 | M112: 32.64873021 | N112: 29.26219032 | O112: 25.2866628 | P112: 20.5881829 | Q112: 15.04187052 | R112: 7.751711822 | S112: 0
A113: 42 | B113: 69 | C113: 44.3 | D113: 48.19397 | E113: 39.1628283 | F113: 2.714302667 | G113: 52.65322742 | H113: 47.99103857 | I113: 44.25134461 | J113: 41.14268322 | K113: 38.35924921 | L113: 35.6119317 | M113: 32.64873021 | N113: 29.26219032 | O113: 25.2866628 | P113: 20.5881829 | Q113: 15.04187052 | R113: 7.751711822 | S113: 0
A114: 8 | B114: 101 | C114: 44.2 | D114: 48.08518 | E114: 39.12594919 | F114: 2.699517813 | G114: 52.53392592 | H114: 47.87844409 | I114: 44.14482252 | J114: 41.04139478 | K114: 38.26219577 | L114: 35.51805441 | M114: 32.55701463 | N114: 29.17173856 | O114: 25.19671635 | P114: 20.49807282 | Q114: 14.95072964 | R114: 7.654678295 | S114: 0
A115: 1 | B115: 103 | C115: 44.2 | D115: 48.08518 | E115: 39.12594919 | F115: 2.699517813 | G115: 52.53392592 | H115: 47.87844409 | I115: 44.14482252 | J115: 41.04139478 | K115: 38.26219577 | L115: 35.51805441 | M115: 32.55701463 | N115: 29.17173856 | O115: 25.19671635 | P115: 20.49807282 | Q115: 14.95072964 | R115: 7.654678295 | S115: 0
A116: 18 | B116: 102 | C116: 44.2 | D116: 48.08518 | E116: 39.12594919 | F116: 2.699517813 | G116: 52.53392592 | H116: 47.87844409 | I116: 44.14482252 | J116: 41.04139478 | K116: 38.26219577 | L116: 35.51805441 | M116: 32.55701463 | N116: 29.17173856 | O116: 25.19671635 | P116: 20.49807282 | Q116: 14.95072964 | R116: 7.654678295 | S116: 0
A117: 42 | B117: 91 | C117: 44.2 | D117: 48.08518 | E117: 39.12594919 | F117: 2.699517813 | G117: 52.53392592 | H117: 47.87844409 | I117: 44.14482252 | J117: 41.04139478 | K117: 38.26219577 | L117: 35.51805441 | M117: 32.55701463 | N117: 29.17173856 | O117: 25.19671635 | P117: 20.49807282 | Q117: 14.95072964 | R117: 7.654678295 | S117: 0
A118: 10 | B118: 11 | C118: 44.1 | D118: 47.97639 | E118: 39.08898655 | F118: 2.684777886 | G118: 52.4146246 | H118: 47.76585218 | I118: 44.03830538 | J118: 40.94011224 | K118: 38.16514675 | L118: 35.42417709 | M118: 32.46529169 | N118: 29.08126946 | O118: 25.10674002 | P118: 20.40791699 | Q118: 14.85951741 | R118: 7.557404797 | S118: 0
A119: 13 | B119: 62 | C119: 44 | D119: 47.8676 | E119: 39.05193999 | F119: 2.670082858 | G119: 52.29532345 | H119: 47.65326287 | I119: 43.9317932 | J119: 40.83883562 | K119: 38.06810212 | L119: 35.3302997 | M119: 32.37356127 | N119: 28.99078281 | O119: 25.01673349 | P119: 20.31771496 | Q119: 14.76823302 | R119: 7.459883959 | S119: 0
A120: 46 | B120: 49 | C120: 44 | D120: 47.8676 | E120: 39.05193999 | F120: 2.670082858 | G120: 52.29532345 | H120: 47.65326287 | I120: 43.9317932 | J120: 40.83883562 | K120: 38.06810212 | L120: 35.3302997 | M120: 32.37356127 | N120: 28.99078281 | O120: 25.01673349 | P120: 20.31771496 | Q120: 14.76823302 | R120: 7.459883959 | S120: 0
A121: 9 | B121: 116 | C121: 44 | D121: 47.8676 | E121: 39.05193999 | F121: 2.670082858 | G121: 52.29532345 | H121: 47.65326287 | I121: 43.9317932 | J121: 40.83883562 | K121: 38.06810212 | L121: 35.3302997 | M121: 32.37356127 | N121: 28.99078281 | O121: 25.01673349 | P121: 20.31771496 | Q121: 14.76823302 | R121: 7.459883959 | S121: 0
A122: 72 | B122: 72 | C122: 43.9 | D122: 47.75881 | E122: 39.01480915 | F122: 2.655432703 | G122: 52.17602248 | H122: 47.54067614 | I122: 43.825286 | J122: 40.73756491 | K122: 37.97106187 | L122: 35.23642217 | M122: 32.28182325 | N122: 28.9002784 | O122: 24.92669647 | P122: 20.22746627 | Q122: 14.67687569 | R122: 7.362108019 | S122: 0
A123: 10 | B123: 85 | C123: 43.9 | D123: 47.75881 | E123: 39.01480915 | F123: 2.655432703 | G123: 52.17602248 | H123: 47.54067614 | I123: 43.825286 | J123: 40.73756491 | K123: 37.97106187 | L123: 35.23642217 | M123: 32.28182325 | N123: 28.9002784 | O123: 24.92669647 | P123: 20.22746627 | Q123: 14.67687569 | R123: 7.362108019 | S123: 0
A124: 63 | B124: 91 | C124: 43.9 | D124: 47.75881 | E124: 39.01480915 | F124: 2.655432703 | G124: 52.17602248 | H124: 47.54067614 | I124: 43.825286 | J124: 40.73756491 | K124: 37.97106187 | L124: 35.23642217 | M124: 32.28182325 | N124: 28.9002784 | O124: 24.92669647 | P124: 20.22746627 | Q124: 14.67687569 | R124: 7.362108019 | S124: 0
A125: 71 | B125: 99 | C125: 43.9 | D125: 47.75881 | E125: 39.01480915 | F125: 2.655432703 | G125: 52.17602248 | H125: 47.54067614 | I125: 43.825286 | J125: 40.73756491 | K125: 37.97106187 | L125: 35.23642217 | M125: 32.28182325 | N125: 28.9002784 | O125: 24.92669647 | P125: 20.22746627 | Q125: 14.67687569 | R125: 7.362108019 | S125: 0
A126: 48 | B126: 105 | C126: 43.8 | D126: 47.65002 | E126: 38.97759362 | F126: 2.640827396 | G126: 52.05672169 | H126: 47.42809201 | I126: 43.71878377 | J126: 40.63630014 | K126: 37.87402597 | L126: 35.14254444 | M126: 32.19007752 | N126: 28.80975603 | O126: 24.83662865 | P126: 20.13717048 | Q126: 14.58544458 | R126: 7.264068802 | S126: 0
A127: 48 | B127: 44 | C127: 43.7 | D127: 47.54123 | E127: 38.94029304 | F127: 2.626266909 | G127: 51.93742107 | H127: 47.31551048 | I127: 43.61228653 | J127: 40.53504129 | K127: 37.77699442 | L127: 35.04866645 | M127: 32.09832394 | N127: 28.71921549 | O127: 24.74652972 | P127: 20.04682713 | Q127: 14.49393885 | R127: 7.165757682 | S127: 0
A128: 32 | B128: 16 | C128: 43.6 | D128: 47.43244 | E128: 38.90290699 | F128: 2.611751217 | G128: 51.81812063 | H128: 47.20293156 | I128: 43.5057943 | J128: 40.43378839 | K128: 37.67996719 | L128: 34.95478815 | M128: 32.00656238 | N128: 28.62865658 | O128: 24.65639935 | P128: 19.95643574 | Q128: 14.40235767 | R128: 7.067165553 | S128: 0
A129: 62 | B129: 80 | C129: 43.6 | D129: 47.43244 | E129: 38.90290699 | F129: 2.611751217 | G129: 51.81812063 | H129: 47.20293156 | I129: 43.5057943 | J129: 40.43378839 | K129: 37.67996719 | L129: 34.95478815 | M129: 32.00656238 | N129: 28.62865658 | O129: 24.65639935 | P129: 19.95643574 | Q129: 14.40235767 | R129: 7.067165553 | S129: 0
A130: 62 | B130: 84 | C130: 43.6 | D130: 47.43244 | E130: 38.90290699 | F130: 2.611751217 | G130: 51.81812063 | H130: 47.20293156 | I130: 43.5057943 | J130: 40.43378839 | K130: 37.67996719 | L130: 34.95478815 | M130: 32.00656238 | N130: 28.62865658 | O130: 24.65639935 | P130: 19.95643574 | Q130: 14.40235767 | R130: 7.067165553 | S130: 0
A131: 58 | B131: 91 | C131: 43.6 | D131: =C131*(1+growthRate) -> 47.43244 | E131: =(Peterson_a+Peterson_b*LN(D131*10))/10 -> 38.90290699 | F131: =Vol_a*D131^2*E131/10000 -> 2.611751217 | G131: 51.81812063 | H131: 47.20293156 | I131: 43.5057943 | J131: 40.43378839 | K131: 37.67996719 | L131: 34.95478815 | M131: 32.00656238 | N131: 28.62865658 | O131: 24.65639935 | P131: 19.95643574 | Q131: 14.40235767 | R131: 7.067165553 | S131: 0
A132: 62 | B132: 69 | C132: 43.5 | D132: 47.32365 | E132: 38.86543511 | F132: 2.597280293 | G132: 51.69882036 | H132: 47.09035525 | I132: 43.39930708 | J132: 40.33254142 | K132: 37.58294428 | L132: 34.86090946 | M132: 31.91479273 | N132: 28.53807908 | O132: 24.56623723 | P132: 19.86599584 | Q132: 14.31070016 | R132: 6.968282788 | S132: 0
A133: 82 | B133: 90 | C133: 43.5 | D133: 47.32365 | E133: 38.86543511 | F133: 2.597280293 | G133: 51.69882036 | H133: 47.09035525 | I133: 43.39930708 | J133: 40.33254142 | K133: 37.58294428 | L133: 34.86090946 | M133: 31.91479273 | N133: 28.53807908 | O133: 24.56623723 | P133: 19.86599584 | Q133: 14.31070016 | R133: 6.968282788 | S133: 0
A134: 5 | B134: 109 | C134: 43.5 | D134: 47.32365 | E134: 38.86543511 | F134: 2.597280293 | G134: 51.69882036 | H134: 47.09035525 | I134: 43.39930708 | J134: 40.33254142 | K134: 37.58294428 | L134: 34.86090946 | M134: 31.91479273 | N134: 28.53807908 | O134: 24.56623723 | P134: 19.86599584 | Q134: 14.31070016 | R134: 6.968282788 | S134: 0
A135: 88 | B135: 111 | C135: 43.5 | D135: 47.32365 | E135: 38.86543511 | F135: 2.597280293 | G135: 51.69882036 | H135: 47.09035525 | I135: 43.39930708 | J135: 40.33254142 | K135: 37.58294428 | L135: 34.86090946 | M135: 31.91479273 | N135: 28.53807908 | O135: 24.56623723 | P135: 19.86599584 | Q135: 14.31070016 | R135: 6.968282788 | S135: 0
A136: 69 | B136: 124 | C136: 43.5 | D136: 47.32365 | E136: 38.86543511 | F136: 2.597280293 | G136: 51.69882036 | H136: 47.09035525 | I136: 43.39930708 | J136: 40.33254142 | K136: 37.58294428 | L136: 34.86090946 | M136: 31.91479273 | N136: 28.53807908 | O136: 24.56623723 | P136: 19.86599584 | Q136: 14.31070016 | R136: 6.968282788 | S136: 0
A137: 57 | B137: 30 | C137: 43.4 | D137: 47.21486 | E137: 38.82787698 | F137: 2.582854111 | G137: 51.57952027 | H137: 46.97778155 | I137: 43.29282488 | J137: 40.23130041 | K137: 37.48592565 | L137: 34.76703033 | M137: 31.82301485 | N137: 28.44748277 | O137: 24.47604304 | P137: 19.77550696 | Q137: 14.21896545 | R137: 6.869099204 | S137: 0
A138: 66 | B138: 34 | C138: 43.4 | D138: 47.21486 | E138: 38.82787698 | F138: 2.582854111 | G138: 51.57952027 | H138: 46.97778155 | I138: 43.29282488 | J138: 40.23130041 | K138: 37.48592565 | L138: 34.76703033 | M138: 31.82301485 | N138: 28.44748277 | O138: 24.47604304 | P138: 19.77550696 | Q138: 14.21896545 | R138: 6.869099204 | S138: 0
A139: 43 | B139: 46 | C139: 43.4 | D139: 47.21486 | E139: 38.82787698 | F139: 2.582854111 | G139: 51.57952027 | H139: 46.97778155 | I139: 43.29282488 | J139: 40.23130041 | K139: 37.48592565 | L139: 34.76703033 | M139: 31.82301485 | N139: 28.44748277 | O139: 24.47604304 | P139: 19.77550696 | Q139: 14.21896545 | R139: 6.869099204 | S139: 0
A140: 49 | B140: 53 | C140: 43.4 | D140: 47.21486 | E140: 38.82787698 | F140: 2.582854111 | G140: 51.57952027 | H140: 46.97778155 | I140: 43.29282488 | J140: 40.23130041 | K140: 37.48592565 | L140: 34.76703033 | M140: 31.82301485 | N140: 28.44748277 | O140: 24.47604304 | P140: 19.77550696 | Q140: 14.21896545 | R140: 6.869099204 | S140: 0
A141: 57 | B141: 93 | C141: 43.4 | D141: 47.21486 | E141: 38.82787698 | F141: 2.582854111 | G141: 51.57952027 | H141: 46.97778155 | I141: 43.29282488 | J141: 40.23130041 | K141: 37.48592565 | L141: 34.76703033 | M141: 31.82301485 | N141: 28.44748277 | O141: 24.47604304 | P141: 19.77550696 | Q141: 14.21896545 | R141: 6.869099204 | S141: 0
A142: 11 | B142: 16 | C142: 43.3 | D142: 47.10607 | E142: 38.79023221 | F142: 2.568472643 | G142: 51.46022035 | H142: 46.86521046 | I142: 43.18634771 | J142: 40.13006535 | K142: 37.3889113 | L142: 34.67315069 | M142: 31.73122862 | N142: 28.35686744 | O142: 24.38581644 | P142: 19.68496861 | Q142: 14.12715263 | R142: 6.769604008 | S142: 0
A143: 7 | B143: 21 | C143: 43.3 | D143: 47.10607 | E143: 38.79023221 | F143: 2.568472643 | G143: 51.46022035 | H143: 46.86521046 | I143: 43.18634771 | J143: 40.13006535 | K143: 37.3889113 | L143: 34.67315069 | M143: 31.73122862 | N143: 28.35686744 | O143: 24.38581644 | P143: 19.68496861 | Q143: 14.12715263 | R143: 6.769604008 | S143: 0
A144: 57 | B144: 42 | C144: 43.1 | D144: 46.88849 | E144: 38.71468115 | F144: 2.539843747 | G144: 51.22162105 | H144: 46.64007617 | I144: 42.9734085 | J144: 39.92761312 | K144: 37.19489533 | L144: 34.48538963 | M144: 31.54763054 | N144: 28.17557882 | O144: 24.20526471 | P144: 19.50374154 | Q144: 13.94328905 | R144: 6.569632297 | S144: 0
A145: 12 | B145: 102 | C145: 43.1 | D145: 46.88849 | E145: 38.71468115 | F145: 2.539843747 | G145: 51.22162105 | H145: 46.64007617 | I145: 42.9734085 | J145: 39.92761312 | K145: 37.19489533 | L145: 34.48538963 | M145: 31.54763054 | N145: 28.17557882 | O145: 24.20526471 | P145: 19.50374154 | Q145: 13.94328905 | R145: 6.569632297 | S145: 0
A146: 46 | B146: 111 | C146: 43.1 | D146: 46.88849 | E146: 38.71468115 | F146: 2.539843747 | G146: 51.22162105 | H146: 46.64007617 | I146: 42.9734085 | J146: 39.92761312 | K146: 37.19489533 | L146: 34.48538963 | M146: 31.54763054 | N146: 28.17557882 | O146: 24.20526471 | P146: 19.50374154 | Q146: 13.94328905 | R146: 6.569632297 | S146: 0
A147: 80 | B147: 39 | C147: 43 | D147: 46.7797 | E147: 38.67677404 | F147: 2.525596266 | G147: 51.10232166 | H147: 46.52751297 | I147: 42.86694649 | J147: 39.82639596 | K147: 37.09789368 | L147: 34.39150808 | M147: 31.45581843 | N147: 28.08490509 | O147: 24.1149389 | P147: 19.41305182 | Q147: 13.8512364 | R147: 6.469130706 | S147: 0
A148: 85 | B148: 37 | C148: 43 | D148: 46.7797 | E148: 38.67677404 | F148: 2.525596266 | G148: 51.10232166 | H148: 46.52751297 | I148: 42.86694649 | J148: 39.82639596 | K148: 37.09789368 | L148: 34.39150808 | M148: 31.45581843 | N148: 28.08490509 | O148: 24.1149389 | P148: 19.41305182 | Q148: 13.8512364 | R148: 6.469130706 | S148: 0
A149: 40 | B149: 76 | C149: 43 | D149: 46.7797 | E149: 38.67677404 | F149: 2.525596266 | G149: 51.10232166 | H149: 46.52751297 | I149: 42.86694649 | J149: 39.82639596 | K149: 37.09789368 | L149: 34.39150808 | M149: 31.45581843 | N149: 28.08490509 | O149: 24.1149389 | P149: 19.41305182 | Q149: 13.8512364 | R149: 6.469130706 | S149: 0
A150: 15 | B150: 100 | C150: 43 | D150: 46.7797 | E150: 38.67677404 | F150: 2.525596266 | G150: 51.10232166 | H150: 46.52751297 | I150: 42.86694649 | J150: 39.82639596 | K150: 37.09789368 | L150: 34.39150808 | M150: 31.45581843 | N150: 28.08490509 | O150: 24.1149389 | P150: 19.41305182 | Q150: 13.8512364 | R150: 6.469130706 | S150: 0
A151: 4 | B151: 99 | C151: 43 | D151: 46.7797 | E151: 38.67677404 | F151: 2.525596266 | G151: 51.10232166 | H151: 46.52751297 | I151: 42.86694649 | J151: 39.82639596 | K151: 37.09789368 | L151: 34.39150808 | M151: 31.45581843 | N151: 28.08490509 | O151: 24.1149389 | P151: 19.41305182 | Q151: 13.8512364 | R151: 6.469130706 | S151: 0
A152: 39 | B152: 90 | C152: 43 | D152: 46.7797 | E152: 38.67677404 | F152: 2.525596266 | G152: 51.10232166 | H152: 46.52751297 | I152: 42.86694649 | J152: 39.82639596 | K152: 37.09789368 | L152: 34.39150808 | M152: 31.45581843 | N152: 28.08490509 | O152: 24.1149389 | P152: 19.41305182 | Q152: 13.8512364 | R152: 6.469130706 | S152: 0
A153: 16 | B153: 40 | C153: 42.9 | D153: 46.67091 | E153: 38.63877868 | F153: 2.511393392 | G153: 50.98302244 | H153: 46.4149524 | I153: 42.76048955 | J153: 39.72518477 | K153: 37.00089623 | L153: 34.29762575 | M153: 31.36399742 | N153: 27.99421144 | O153: 24.02457934 | P153: 19.32231064 | Q153: 13.75910191 | R153: 6.368267226 | S153: 0
A154: 84 | B154: 45 | C154: 42.9 | D154: 46.67091 | E154: 38.63877868 | F154: 2.511393392 | G154: 50.98302244 | H154: 46.4149524 | I154: 42.76048955 | J154: 39.72518477 | K154: 37.00089623 | L154: 34.29762575 | M154: 31.36399742 | N154: 27.99421144 | O154: 24.02457934 | P154: 19.32231064 | Q154: 13.75910191 | R154: 6.368267226 | S154: 0
A155: 2 | B155: 72 | C155: 42.9 | D155: 46.67091 | E155: 38.63877868 | F155: 2.511393392 | G155: 50.98302244 | H155: 46.4149524 | I155: 42.76048955 | J155: 39.72518477 | K155: 37.00089623 | L155: 34.29762575 | M155: 31.36399742 | N155: 27.99421144 | O155: 24.02457934 | P155: 19.32231064 | Q155: 13.75910191 | R155: 6.368267226 | S155: 0
A156: 88 | B156: 117 | C156: 42.9 | D156: 46.67091 | E156: 38.63877868 | F156: 2.511393392 | G156: 50.98302244 | H156: 46.4149524 | I156: 42.76048955 | J156: 39.72518477 | K156: 37.00089623 | L156: 34.29762575 | M156: 31.36399742 | N156: 27.99421144 | O156: 24.02457934 | P156: 19.32231064 | Q156: 13.75910191 | R156: 6.368267226 | S156: 0
A157: 16 | B157: 15 | C157: 42.8 | D157: 46.56212 | E157: 38.60069465 | F157: 2.4972351 | G157: 50.8637234 | H157: 46.30239447 | I157: 42.65403769 | J157: 39.62397957 | K157: 36.90390296 | L157: 34.20374259 | M157: 31.27216737 | N157: 27.90349764 | O157: 23.93418568 | P157: 19.23151747 | Q157: 13.6668846 | R157: 6.267027187 | S157: 0
A158: 44 | B158: 32 | C158: 42.8 | D158: 46.56212 | E158: 38.60069465 | F158: 2.4972351 | G158: 50.8637234 | H158: 46.30239447 | I158: 42.65403769 | J158: 39.62397957 | K158: 36.90390296 | L158: 34.20374259 | M158: 31.27216737 | N158: 27.90349764 | O158: 23.93418568 | P158: 19.23151747 | Q158: 13.6668846 | R158: 6.267027187 | S158: 0
A159: 69 | B159: 32 | C159: 42.8 | D159: 46.56212 | E159: 38.60069465 | F159: 2.4972351 | G159: 50.8637234 | H159: 46.30239447 | I159: 42.65403769 | J159: 39.62397957 | K159: 36.90390296 | L159: 34.20374259 | M159: 31.27216737 | N159: 27.90349764 | O159: 23.93418568 | P159: 19.23151747 | Q159: 13.6668846 | R159: 6.267027187 | S159: 0
A160: 18 | B160: 115 | C160: 42.8 | D160: 46.56212 | E160: 38.60069465 | F160: 2.4972351 | G160: 50.8637234 | H160: 46.30239447 | I160: 42.65403769 | J160: 39.62397957 | K160: 36.90390296 | L160: 34.20374259 | M160: 31.27216737 | N160: 27.90349764 | O160: 23.93418568 | P160: 19.23151747 | Q160: 13.6668846 | R160: 6.267027187 | S160: 0
A161: 43 | B161: 15 | C161: 42.7 | D161: 46.45333 | E161: 38.56252154 | F161: 2.483121363 | G161: 50.74442454 | H161: 46.18983918 | I161: 42.54759092 | J161: 39.52278035 | K161: 36.80691384 | L161: 34.10985851 | M161: 31.18032815 | N161: 27.81276345 | O161: 23.84375758 | P161: 19.1406718 | Q161: 13.57458346 | R161: 6.165394929 | S161: 0
A162: 61 | B162: 30 | C162: 42.7 | D162: 46.45333 | E162: 38.56252154 | F162: 2.483121363 | G162: 50.74442454 | H162: 46.18983918 | I162: 42.54759092 | J162: 39.52278035 | K162: 36.80691384 | L162: 34.10985851 | M162: 31.18032815 | N162: 27.81276345 | O162: 23.84375758 | P162: 19.1406718 | Q162: 13.57458346 | R162: 6.165394929 | S162: 0
A163: 43 | B163: 58 | C163: 42.7 | D163: 46.45333 | E163: 38.56252154 | F163: 2.483121363 | G163: 50.74442454 | H163: 46.18983918 | I163: 42.54759092 | J163: 39.52278035 | K163: 36.80691384 | L163: 34.10985851 | M163: 31.18032815 | N163: 27.81276345 | O163: 23.84375758 | P163: 19.1406718 | Q163: 13.57458346 | R163: 6.165394929 | S163: 0
A164: 4 | B164: 91 | C164: 42.7 | D164: 46.45333 | E164: 38.56252154 | F164: 2.483121363 | G164: 50.74442454 | H164: 46.18983918 | I164: 42.54759092 | J164: 39.52278035 | K164: 36.80691384 | L164: 34.10985851 | M164: 31.18032815 | N164: 27.81276345 | O164: 23.84375758 | P164: 19.1406718 | Q164: 13.57458346 | R164: 6.165394929 | S164: 0
A165: 1 | B165: 10 | C165: 42.6 | D165: 46.34454 | E165: 38.52425892 | F165: 2.469052153 | G165: 50.62512585 | H165: 46.07728654 | I165: 42.44114926 | J165: 39.42158712 | K165: 36.70992886 | L165: 34.01597345 | M165: 31.0884796 | N165: 27.72200864 | O165: 23.75329466 | P165: 19.04977311 | Q165: 13.48219749 | R165: 6.063353703 | S165: 0
A166: 23 | B166: 36 | C166: 42.6 | D166: 46.34454 | E166: 38.52425892 | F166: 2.469052153 | G166: 50.62512585 | H166: 46.07728654 | I166: 42.44114926 | J166: 39.42158712 | K166: 36.70992886 | L166: 34.01597345 | M166: 31.0884796 | N166: 27.72200864 | O166: 23.75329466 | P166: 19.04977311 | Q166: 13.48219749 | R166: 6.063353703 | S166: 0
A167: 25 | B167: 74 | C167: 42.6 | D167: 46.34454 | E167: 38.52425892 | F167: 2.469052153 | G167: 50.62512585 | H167: 46.07728654 | I167: 42.44114926 | J167: 39.42158712 | K167: 36.70992886 | L167: 34.01597345 | M167: 31.0884796 | N167: 27.72200864 | O167: 23.75329466 | P167: 19.04977311 | Q167: 13.48219749 | R167: 6.063353703 | S167: 0
A168: 27 | B168: 121 | C168: 42.6 | D168: 46.34454 | E168: 38.52425892 | F168: 2.469052153 | G168: 50.62512585 | H168: 46.07728654 | I168: 42.44114926 | J168: 39.42158712 | K168: 36.70992886 | L168: 34.01597345 | M168: 31.0884796 | N168: 27.72200864 | O168: 23.75329466 | P168: 19.04977311 | Q168: 13.48219749 | R168: 6.063353703 | S168: 0
A169: 22 | B169: 114 | C169: 42.6 | D169: 46.34454 | E169: 38.52425892 | F169: 2.469052153 | G169: 50.62512585 | H169: 46.07728654 | I169: 42.44114926 | J169: 39.42158712 | K169: 36.70992886 | L169: 34.01597345 | M169: 31.0884796 | N169: 27.72200864 | O169: 23.75329466 | P169: 19.04977311 | Q169: 13.48219749 | R169: 6.063353703 | S169: 0
A170: 47 | B170: 20 | C170: 42.5 | D170: 46.23575 | E170: 38.48590637 | F170: 2.455027444 | G170: 50.50582733 | H170: 45.96473655 | I170: 42.33471271 | J170: 39.32039989 | K170: 36.61294799 | L170: 33.92208735 | M170: 30.9966216 | N170: 27.63123298 | O170: 23.66279658 | P170: 18.95882084 | Q170: 13.38972565 | R170: 5.960885576 | S170: 0
A171: 4 | B171: 29 | C171: 42.5 | D171: 46.23575 | E171: 38.48590637 | F171: 2.455027444 | G171: 50.50582733 | H171: 45.96473655 | I171: 42.33471271 | J171: 39.32039989 | K171: 36.61294799 | L171: 33.92208735 | M171: 30.9966216 | N171: 27.63123298 | O171: 23.66279658 | P171: 18.95882084 | Q171: 13.38972565 | R171: 5.960885576 | S171: 0
A172: 24 | B172: 31 | C172: 42.5 | D172: 46.23575 | E172: 38.48590637 | F172: 2.455027444 | G172: 50.50582733 | H172: 45.96473655 | I172: 42.33471271 | J172: 39.32039989 | K172: 36.61294799 | L172: 33.92208735 | M172: 30.9966216 | N172: 27.63123298 | O172: 23.66279658 | P172: 18.95882084 | Q172: 13.38972565 | R172: 5.960885576 | S172: 0
A173: 77 | B173: 32 | C173: 42.5 | D173: 46.23575 | E173: 38.48590637 | F173: 2.455027444 | G173: 50.50582733 | H173: 45.96473655 | I173: 42.33471271 | J173: 39.32039989 | K173: 36.61294799 | L173: 33.92208735 | M173: 30.9966216 | N173: 27.63123298 | O173: 23.66279658 | P173: 18.95882084 | Q173: 13.38972565 | R173: 5.960885576 | S173: 0
A174: 87 | B174: 43 | C174: 42.5 | D174: 46.23575 | E174: 38.48590637 | F174: 2.455027444 | G174: 50.50582733 | H174: 45.96473655 | I174: 42.33471271 | J174: 39.32039989 | K174: 36.61294799 | L174: 33.92208735 | M174: 30.9966216 | N174: 27.63123298 | O174: 23.66279658 | P174: 18.95882084 | Q174: 13.38972565 | R174: 5.960885576 | S174: 0
A175: 8 | B175: 74 | C175: 42.5 | D175: 46.23575 | E175: 38.48590637 | F175: 2.455027444 | G175: 50.50582733 | H175: 45.96473655 | I175: 42.33471271 | J175: 39.32039989 | K175: 36.61294799 | L175: 33.92208735 | M175: 30.9966216 | N175: 27.63123298 | O175: 23.66279658 | P175: 18.95882084 | Q175: 13.38972565 | R175: 5.960885576 | S175: 0
A176: 37 | B176: 68 | C176: 42.5 | D176: 46.23575 | E176: 38.48590637 | F176: 2.455027444 | G176: 50.50582733 | H176: 45.96473655 | I176: 42.33471271 | J176: 39.32039989 | K176: 36.61294799 | L176: 33.92208735 | M176: 30.9966216 | N176: 27.63123298 | O176: 23.66279658 | P176: 18.95882084 | Q176: 13.38972565 | R176: 5.960885576 | S176: 0
A177: 67 | B177: 90 | C177: 42.5 | D177: 46.23575 | E177: 38.48590637 | F177: 2.455027444 | G177: 50.50582733 | H177: 45.96473655 | I177: 42.33471271 | J177: 39.32039989 | K177: 36.61294799 | L177: 33.92208735 | M177: 30.9966216 | N177: 27.63123298 | O177: 23.66279658 | P177: 18.95882084 | Q177: 13.38972565 | R177: 5.960885576 | S177: 0
A178: 65 | B178: 40 | C178: 42.4 | D178: 46.12696 | E178: 38.44746348 | F178: 2.441047209 | G178: 50.38652899 | H178: 45.85218922 | I178: 42.22828129 | J178: 39.21921866 | K178: 36.51597121 | L178: 33.82820012 | M178: 30.90475398 | N178: 27.5404362 | O178: 23.57226298 | P178: 18.86781448 | Q178: 13.29716687 | R178: 5.857971307 | S178: 0
A179: 49 | B179: 51 | C179: 42.4 | D179: 46.12696 | E179: 38.44746348 | F179: 2.441047209 | G179: 50.38652899 | H179: 45.85218922 | I179: 42.22828129 | J179: 39.21921866 | K179: 36.51597121 | L179: 33.82820012 | M179: 30.90475398 | N179: 27.5404362 | O179: 23.57226298 | P179: 18.86781448 | Q179: 13.29716687 | R179: 5.857971307 | S179: 0
A180: 39 | B180: 47 | C180: 42.3 | D180: 46.01817 | E180: 38.40892981 | F180: 2.42711142 | G180: 50.26723082 | H180: 45.73964455 | I180: 42.12185499 | J180: 39.11804343 | K180: 36.4189985 | L180: 33.73431169 | M180: 30.8128766 | N180: 27.44961809 | O180: 23.48169348 | P180: 18.77675345 | Q180: 13.20452009 | R180: 5.754590223 | S180: 0
A181: 72 | B181: 57 | C181: 42.3 | D181: 46.01817 | E181: 38.40892981 | F181: 2.42711142 | G181: 50.26723082 | H181: 45.73964455 | I181: 42.12185499 | J181: 39.11804343 | K181: 36.4189985 | L181: 33.73431169 | M181: 30.8128766 | N181: 27.44961809 | O181: 23.48169348 | P181: 18.77675345 | Q181: 13.20452009 | R181: 5.754590223 | S181: 0
A182: 79 | B182: 46 | C182: 42.3 | D182: 46.01817 | E182: 38.40892981 | F182: 2.42711142 | G182: 50.26723082 | H182: 45.73964455 | I182: 42.12185499 | J182: 39.11804343 | K182: 36.4189985 | L182: 33.73431169 | M182: 30.8128766 | N182: 27.44961809 | O182: 23.48169348 | P182: 18.77675345 | Q182: 13.20452009 | R182: 5.754590223 | S182: 0
A183: 80 | B183: 35 | C183: 42.2 | D183: 45.90938 | E183: 38.37030494 | F183: 2.41322005 | G183: 50.14793283 | H183: 45.62710254 | I183: 42.01543385 | J183: 39.01687422 | K183: 36.32202983 | L183: 33.64042199 | M183: 30.72098931 | N183: 27.35877837 | O183: 23.3910877 | P183: 18.68563722 | Q183: 13.11178421 | R183: 5.650720069 | S183: 0
A184: 25 | B184: 94 | C184: 42.2 | D184: 45.90938 | E184: 38.37030494 | F184: 2.41322005 | G184: 50.14793283 | H184: 45.62710254 | I184: 42.01543385 | J184: 39.01687422 | K184: 36.32202983 | L184: 33.64042199 | M184: 30.72098931 | N184: 27.35877837 | O184: 23.3910877 | P184: 18.68563722 | Q184: 13.11178421 | R184: 5.650720069 | S184: 0
A185: 50 | B185: 85 | C185: 42.2 | D185: 45.90938 | E185: 38.37030494 | F185: 2.41322005 | G185: 50.14793283 | H185: 45.62710254 | I185: 42.01543385 | J185: 39.01687422 | K185: 36.32202983 | L185: 33.64042199 | M185: 30.72098931 | N185: 27.35877837 | O185: 23.3910877 | P185: 18.68563722 | Q185: 13.11178421 | R185: 5.650720069 | S185: 0
A186: 34 | B186: 32 | C186: 42.1 | D186: 45.80059 | E186: 38.33158844 | F186: 2.399373072 | G186: 50.02863501 | H186: 45.5145632 | I186: 41.90901785 | J186: 38.91571101 | K186: 36.2250652 | L186: 33.54653094 | M186: 30.62909196 | N186: 27.26791681 | O186: 23.30044529 | P186: 18.59446521 | Q186: 13.0189581 | R186: 5.546336843 | S186: 0
A187: 37 | B187: 51 | C187: 42.1 | D187: 45.80059 | E187: 38.33158844 | F187: 2.399373072 | G187: 50.02863501 | H187: 45.5145632 | I187: 41.90901785 | J187: 38.91571101 | K187: 36.2250652 | L187: 33.54653094 | M187: 30.62909196 | N187: 27.26791681 | O187: 23.30044529 | P187: 18.59446521 | Q187: 13.0189581 | R187: 5.546336843 | S187: 0
A188: 25 | B188: 67 | C188: 42.1 | D188: 45.80059 | E188: 38.33158844 | F188: 2.399373072 | G188: 50.02863501 | H188: 45.5145632 | I188: 41.90901785 | J188: 38.91571101 | K188: 36.2250652 | L188: 33.54653094 | M188: 30.62909196 | N188: 27.26791681 | O188: 23.30044529 | P188: 18.59446521 | Q188: 13.0189581 | R188: 5.546336843 | S188: 0
A189: 4 | B189: 12 | C189: 42 | D189: 45.6918 | E189: 38.29277986 | F189: 2.385570459 | G189: 49.90933737 | H189: 45.40202654 | I189: 41.80260703 | J189: 38.81455383 | K189: 36.12810456 | L189: 33.45263847 | M189: 30.5371844 | N189: 27.17703315 | O189: 23.20976584 | P189: 18.50323686 | Q189: 12.92604062 | R189: 5.441414611 | S189: 0
A190: 33 | B190: 15 | C190: 42 | D190: 45.6918 | E190: 38.29277986 | F190: 2.385570459 | G190: 49.90933737 | H190: 45.40202654 | I190: 41.80260703 | J190: 38.81455383 | K190: 36.12810456 | L190: 33.45263847 | M190: 30.5371844 | N190: 27.17703315 | O190: 23.20976584 | P190: 18.50323686 | Q190: 12.92604062 | R190: 5.441414611 | S190: 0
A191: 93 | B191: 33 | C191: 42 | D191: 45.6918 | E191: 38.29277986 | F191: 2.385570459 | G191: 49.90933737 | H191: 45.40202654 | I191: 41.80260703 | J191: 38.81455383 | K191: 36.12810456 | L191: 33.45263847 | M191: 30.5371844 | N191: 27.17703315 | O191: 23.20976584 | P191: 18.50323686 | Q191: 12.92604062 | R191: 5.441414611 | S191: 0
A192: 57 | B192: 45 | C192: 42 | D192: 45.6918 | E192: 38.29277986 | F192: 2.385570459 | G192: 49.90933737 | H192: 45.40202654 | I192: 41.80260703 | J192: 38.81455383 | K192: 36.12810456 | L192: 33.45263847 | M192: 30.5371844 | N192: 27.17703315 | O192: 23.20976584 | P192: 18.50323686 | Q192: 12.92604062 | R192: 5.441414611 | S192: 0
A193: 50 | B193: 113 | C193: 42 | D193: 45.6918 | E193: 38.29277986 | F193: 2.385570459 | G193: 49.90933737 | H193: 45.40202654 | I193: 41.80260703 | J193: 38.81455383 | K193: 36.12810456 | L193: 33.45263847 | M193: 30.5371844 | N193: 27.17703315 | O193: 23.20976584 | P193: 18.50323686 | Q193: 12.92604062 | R193: 5.441414611 | S193: 0
A194: 4 | B194: 14 | C194: 41.9 | D194: 45.58301 | E194: 38.25387877 | F194: 2.371812182 | G194: 49.7900399 | H194: 45.28949255 | I194: 41.69620137 | J194: 38.71340266 | K194: 36.03114789 | L194: 33.3587445 | M194: 30.44526646 | N194: 27.08612713 | O194: 23.11904898 | P194: 18.41195159 | Q194: 12.83303062 | R194: 5.335925286 | S194: 0
A195: 23 | B195: 79 | C195: 41.9 | D195: =C195*(1+growthRate) -> 45.58301 | E195: =(Peterson_a+Peterson_b*LN(D195*10))/10 -> 38.25387877 | F195: =Vol_a*D195^2*E195/10000 -> 2.371812182 | G195: 49.7900399 | H195: 45.28949255 | I195: 41.69620137 | J195: 38.71340266 | K195: 36.03114789 | L195: 33.3587445 | M195: 30.44526646 | N195: 27.08612713 | O195: 23.11904898 | P195: 18.41195159 | Q195: 12.83303062 | R195: 5.335925286 | S195: 0
A196: 23 | B196: 83 | C196: 41.9 | D196: 45.58301 | E196: 38.25387877 | F196: 2.371812182 | G196: 49.7900399 | H196: 45.28949255 | I196: 41.69620137 | J196: 38.71340266 | K196: 36.03114789 | L196: 33.3587445 | M196: 30.44526646 | N196: 27.08612713 | O196: 23.11904898 | P196: 18.41195159 | Q196: 12.83303062 | R196: 5.335925286 | S196: 0
A197: 10 | B197: 15 | C197: 41.8 | D197: 45.47422 | E197: 38.21488472 | F197: 2.358098216 | G197: 49.6707426 | H197: 45.17696124 | I197: 41.58980091 | J197: 38.61225753 | K197: 35.93419518 | L197: 33.26484895 | M197: 30.353338 | N197: 26.99519849 | O197: 23.02829431 | P197: 18.32060882 | Q197: 12.73992689 | R197: 5.229838391 | S197: 0
A198: 47 | B198: 42 | C198: 41.8 | D198: 45.47422 | E198: 38.21488472 | F198: 2.358098216 | G198: 49.6707426 | H198: 45.17696124 | I198: 41.58980091 | J198: 38.61225753 | K198: 35.93419518 | L198: 33.26484895 | M198: 30.353338 | N198: 26.99519849 | O198: 23.02829431 | P198: 18.32060882 | Q198: 12.73992689 | R198: 5.229838391 | S198: 0
A199: 81 | B199: 88 | C199: 41.8 | D199: 45.47422 | E199: 38.21488472 | F199: 2.358098216 | G199: 49.6707426 | H199: 45.17696124 | I199: 41.58980091 | J199: 38.61225753 | K199: 35.93419518 | L199: 33.26484895 | M199: 30.353338 | N199: 26.99519849 | O199: 23.02829431 | P199: 18.32060882 | Q199: 12.73992689 | R199: 5.229838391 | S199: 0
A200: 19 | B200: 118 | C200: 41.8 | D200: 45.47422 | E200: 38.21488472 | F200: 2.358098216 | G200: 49.6707426 | H200: 45.17696124 | I200: 41.58980091 | J200: 38.61225753 | K200: 35.93419518 | L200: 33.26484895 | M200: 30.353338 | N200: 26.99519849 | O200: 23.02829431 | P200: 18.32060882 | Q200: 12.73992689 | R200: 5.229838391 | S200: 0
... 9402 more rows

Sheet VolumeData (hidden)
I1: Log volume under bark (m3) at x height (m) on the tree | W1: Volume (m3/tree)
A2: ROW | B2: COL | C2: DBH16 (cm) | D2: DBH18 (cm) | E2: HT18 (m) | F2: VOL18 (m3) | G2: STR16 (1-9) | H2: MAL16 (1-9) | I2: 0.0-0.3 | J2: 3.6 | K2: 6.9 | L2: 10.2 | M2: 13.5 | N2: 16.8 | O2: 20.1 | P2: 23.4 | Q2: 26.7 | R2: 30 | S2: 33.3 | T2: 36.9 | U2: 40.2 | V2: Total | W2: Waste | X2: Pulp (SED) | Y2: Pulp (form) | Z2: Sawlog
A3: 7 | B3: 10 | C3: =BaseData!D2/10 -> 62.2 | D3: =C3*(1+growthRate) -> 67.66738 | E3: =(Peterson_a+Peterson_b*LN(D3*10))/10 -> 44.7010126 | F3: =Vol_a*D3^2*E3/10000 -> 6.107660704 | G3: =BaseData!I2 -> 3 | H3: =BaseData!J2 -> 2 | I3: 0.1300908726 | J3: 1.307284802 | K3: 1.119620051 | L3: 0.9750230774 | M3: 0.8589007144 | N3: 0.7594901686 | O3: 0.6677996981 | P3: 0.5775492922 | Q3: 0.4851113509 | R3: 0.389451365 | S3: 0.2920685952 | T3: 0.2103596934 | U3: 0.1415265204 | V3: =SUMIF(J$2:U$2,"<"&E3,VolumeData!$J3:$U3) -> 7.784185329 | W3: =SUMIF(SEDData!$H3:$S3,"<"&wasteCutoff*100,VolumeData!$J3:$U3) -> 0.1415265204 | X3: =IF(AND(G3>=sweepCutoff,H3>=malfCutoff),SUMIF(SEDData!$H3:$R3,"<"&pulpCutoff*100,VolumeData!$J3:$U3)-W3,0) -> 0.06883317295 | Y3: =IF(OR(G3<sweepCutoff,H3<malfCutoff),V3-W3,0) -> 0 | Z3: =V3-W3-X3-Y3 -> 7.573825635
A4: 45 | B4: 38 | C4: =BaseData!D3/10 -> 60 | D4: 65.274 | E4: =(Peterson_a+Peterson_b*LN(C4*10))/10 -> 42.73849504 | F4: 5.43373555 | G4: =BaseData!I3 -> 4 | H4: =BaseData!J3 -> 1 | I4: 0.1210071642 | J4: 1.211258776 | K4: 1.030964775 | L4: 0.8933612006 | M4: 0.7832021848 | N4: 0.688385796 | O4: 0.599884947 | P4: 0.5116783049 | Q4: 0.4206812013 | R4: 0.3266765419 | S4: 0.2322457161 | T4: 0.1516008826 | U4: 0.07005986678 | V4: =SUMIF(J$2:U$2,"<"&E4,VolumeData!$J4:$U4) -> 6.920000193 | W4: =SUMIF(SEDData!$H4:$S4,"<"&wasteCutoff*100,VolumeData!$J4:$U4) -> 0.07005986678 | X4: =IF(AND(G4>=sweepCutoff,H4>=malfCutoff),SUMIF(SEDData!$H4:$R4,"<"&pulpCutoff*100,VolumeData!$J4:$U4)-W4,0) -> 0 | Y4: 6.849940326 | Z4: =V4-W4-X4-Y4 -> 0
A5: 34 | B5: 124 | C5: =BaseData!D4/10 -> 60 | D5: 65.274 | E5: 42.73849504 | F5: 5.43373555 | G5: =BaseData!I4 -> 4 | H5: =BaseData!J4 -> 2 | I5: 0.1210071642 | J5: 1.211258776 | K5: 1.030964775 | L5: 0.8933612006 | M5: 0.7832021848 | N5: 0.688385796 | O5: 0.599884947 | P5: 0.5116783049 | Q5: 0.4206812013 | R5: 0.3266765419 | S5: 0.2322457161 | T5: 0.1516008826 | U5: 0.07005986678 | V5: =SUMIF(J$2:U$2,"<"&E5,VolumeData!$J5:$U5) -> 6.920000193 | W5: =SUMIF(SEDData!$H5:$S5,"<"&wasteCutoff*100,VolumeData!$J5:$U5) -> 0.07005986678 | X5: =IF(AND(G5>=sweepCutoff,H5>=malfCutoff),SUMIF(SEDData!$H5:$R5,"<"&pulpCutoff*100,VolumeData!$J5:$U5)-W5,0) -> 0.08154101581 | Y5: 0 | Z5: 6.768399311
A6: 12 | B6: 10 | C6: =BaseData!D5/10 -> 58 | D6: 63.0982 | E6: 42.18525562 | F6: 5.011796685 | G6: =BaseData!I5 -> 8 | H6: =BaseData!J5 -> 2 | I6: 0.1130622289 | J6: 1.130415345 | K6: 0.9603869125 | L6: 0.8309773302 | M6: 0.7274566653 | N6: 0.6381876776 | O6: 0.5545569127 | P6: 0.4709057952 | Q6: 0.3844617218 | R6: 0.2952691545 | S6: 0.2061207137 | T6: 0.1298705365 | U6: 0.05259009106 | V6: =SUMIF(J$2:U$2,"<"&E6,VolumeData!$J6:$U6) -> 6.381198856 | W6: =SUMIF(SEDData!$H6:$S6,"<"&wasteCutoff*100,VolumeData!$J6:$U6) -> 0.05259009106 | X6: =IF(AND(G6>=sweepCutoff,H6>=malfCutoff),SUMIF(SEDData!$H6:$R6,"<"&pulpCutoff*100,VolumeData!$J6:$U6)-W6,0) -> 0.07728044549 | Y6: 0 | Z6: 6.25132832
A7: 24 | B7: 91 | C7: =BaseData!D6/10 -> 57.1 | D7: 62.11909 | E7: 41.93004451 | F7: 4.828078384 | G7: =BaseData!I6 -> 3 | H7: =BaseData!J6 -> 2 | I7: 0.1095750461 | J7: 1.094951347 | K7: 0.929455048 | L7: 0.8036575294 | M7: 0.7030593113 | N7: 0.6162309384 | O7: 0.5347441374 | P7: 0.4531029748 | Q7: 0.3686750145 | R7: 0.2816224754 | S7: 0.1948333893 | T7: 0.1205930467 | U7: 0.04569957092 | V7: =SUMIF(J$2:U$2,"<"&E7,VolumeData!$J7:$U7) -> 6.146624783 | W7: =SUMIF(SEDData!$H7:$S7,"<"&wasteCutoff*100,VolumeData!$J7:$U7) -> 0.04569957092 | X7: =IF(AND(G7>=sweepCutoff,H7>=malfCutoff),SUMIF(SEDData!$H7:$R7,"<"&pulpCutoff*100,VolumeData!$J7:$U7)-W7,0) -> 0.07489347577 | Y7: 0 | Z7: 6.026031736
A8: 85 | B8: 38 | C8: =BaseData!D7/10 -> 57 | D8: 62.0103 | E8: 41.90143977 | F8: 4.807900039 | G8: =BaseData!I7 -> 4 | H8: =BaseData!J7 -> 2 | I8: 0.1091909545 | J8: 1.091045974 | K8: 0.9260498882 | L8: 0.8006508196 | M8: 0.7003748284 | N8: 0.6138154958 | O8: 0.5325650888 | P8: 0.4511457238 | Q8: 0.3669405312 | R8: 0.2801248191 | S8: 0.1935972378 | T8: 0.1195815062 | U8: 0.04496996313 | V8: =SUMIF(J$2:U$2,"<"&E8,VolumeData!$J8:$U8) -> 6.120861876 | W8: =SUMIF(SEDData!$H8:$S8,"<"&wasteCutoff*100,VolumeData!$J8:$U8) -> 0.04496996313 | X8: =IF(AND(G8>=sweepCutoff,H8>=malfCutoff),SUMIF(SEDData!$H8:$R8,"<"&pulpCutoff*100,VolumeData!$J8:$U8)-W8,0) -> 0.07461154306 | Y8: 0 | Z8: 6.00128037
A9: 47 | B9: 97 | C9: =BaseData!D8/10 -> 56.1 | D9: 61.03119 | E9: 41.64171546 | F9: 4.628402368 | G9: =BaseData!I8 -> 7 | H9: =BaseData!J8 -> 9 | I9: 0.1057644864 | J9: 1.056213219 | K9: 0.8956887767 | L9: 0.7738497013 | M9: 0.6764513105 | N9: 0.592294063 | O9: 0.513154774 | P9: 0.4337178302 | Q9: 0.3515064049 | R9: 0.2668136737 | S9: 0.182634029 | T9: 0.1106518405 | U9: 0.03872053656 | V9: =SUMIF(J$2:U$2,"<"&E9,VolumeData!$J9:$U9) -> 5.89169616 | W9: =SUMIF(SEDData!$H9:$S9,"<"&wasteCutoff*100,VolumeData!$J9:$U9) -> 0.03872053656 | X9: =IF(AND(G9>=sweepCutoff,H9>=malfCutoff),SUMIF(SEDData!$H9:$R9,"<"&pulpCutoff*100,VolumeData!$J9:$U9)-W9,0) -> 0.07193130391 | Y9: 0 | Z9: 5.781044319
A10: 61 | B10: 106 | C10: =BaseData!D9/10 -> 55.6 | D10: 60.48724 | E10: 41.49561779 | F10: 4.530316982 | G10: =BaseData!I9 -> 4 | H10: =BaseData!J9 -> 4 | I10: 0.103884504 | J10: 1.03710713 | K10: 0.8790433526 | L10: 0.7591617556 | M10: 0.6633445543 | N10: 0.5805067886 | O10: 0.5025275611 | P10: 0.4241812751 | Q10: 0.3430688729 | R10: 0.2595490733 | S10: 0.1766696102 | T10: 0.1058267804 | U10: 0.03549083605 | V10: =SUMIF(J$2:U$2,"<"&E10,VolumeData!$J10:$U10) -> 5.76647759 | W10: =SUMIF(SEDData!$H10:$S10,"<"&wasteCutoff*100,VolumeData!$J10:$U10) -> 0.03549083605 | X10: =IF(AND(G10>=sweepCutoff,H10>=malfCutoff),SUMIF(SEDData!$H10:$R10,"<"&pulpCutoff*100,VolumeData!$J10:$U10)-W10,0) -> 0.07033594435 | Y10: 0 | Z10: 5.66065081
A11: 78 | B11: 27 | C11: =BaseData!D10/10 -> 55.5 | D11: 60.37845 | E11: 41.46624065 | F11: 4.510839786 | G11: =BaseData!I10 -> 4 | H11: =BaseData!J10 -> 1 | I11: 0.1035105313 | J11: 1.033306948 | K11: 0.8757332791 | L11: 0.7562414357 | M11: 0.6607389722 | N11: 0.5781638149 | O11: 0.5004155036 | P11: 0.4222864344 | Q11: 0.341393101 | R11: 0.2581073375 | S11: 0.1754875602 | T11: 0.1048734479 | U11: 0.03486527526 | V11: =SUMIF(J$2:U$2,"<"&E11,VolumeData!$J11:$U11) -> 5.74161311 | W11: =SUMIF(SEDData!$H11:$S11,"<"&wasteCutoff*100,VolumeData!$J11:$U11) -> 0.03486527526 | X11: =IF(AND(G11>=sweepCutoff,H11>=malfCutoff),SUMIF(SEDData!$H11:$R11,"<"&pulpCutoff*100,VolumeData!$J11:$U11)-W11,0) -> 0 | Y11: 5.706747835 | Z11: 0
A12: 4 | B12: 86 | C12: =BaseData!D11/10 -> 55 | D12: 59.8345 | E12: 41.31855638 | F12: 4.414152069 | G12: =BaseData!I11 -> 4 | H12: =BaseData!J11 -> 2 | I12: 0.1016507866 | J12: 1.014411207 | K12: 0.8592779483 | L12: 0.7417261533 | M12: 0.6477898713 | N12: 0.5665213109 | O12: 0.4899220994 | P12: 0.4128745437 | Q12: 0.3330728897 | R12: 0.2509545824 | S12: 0.1696315263 | T12: 0.1001653142 | U12: 0.03183794733 | V12: =SUMIF(J$2:U$2,"<"&E12,VolumeData!$J12:$U12) -> 5.618185394 | W12: =SUMIF(SEDData!$H12:$S12,"<"&wasteCutoff*100,VolumeData!$J12:$U12) -> 0.03183794733 | X12: =IF(AND(G12>=sweepCutoff,H12>=malfCutoff),SUMIF(SEDData!$H12:$R12,"<"&pulpCutoff*100,VolumeData!$J12:$U12)-W12,0) -> 0.2379588931 | Y12: 0 | Z12: 5.348388554
A13: 11 | B13: 14 | C13: =BaseData!D12/10 -> 54.5 | D13: 59.29055 | E13: 41.16952338 | F13: 4.318626209 | G13: =BaseData!I12 -> 7 | H13: =BaseData!J12 -> 2 | I13: 0.09980790647 | J13: 0.9956907365 | K13: 0.8429809792 | L13: 0.7273546845 | M13: 0.6349720588 | N13: 0.5549993447 | O13: 0.4795400944 | P13: 0.4035664436 | Q13: 0.3248503847 | R13: 0.2438950404 | S13: 0.1638659377 | T13: 0.09555495851 | U13: 0.02897567894 | V13: =SUMIF(J$2:U$2,"<"&E13,VolumeData!$J13:$U13) -> 5.496246342 | W13: =SUMIF(SEDData!$H13:$S13,"<"&wasteCutoff*100,VolumeData!$J13:$U13) -> 0.02897567894 | X13: =IF(AND(G13>=sweepCutoff,H13>=malfCutoff),SUMIF(SEDData!$H13:$R13,"<"&pulpCutoff*100,VolumeData!$J13:$U13)-W13,0) -> 0.2304452173 | Y13: 0 | Z13: 5.236825446
A14: 29 | B14: 107 | C14: =BaseData!D13/10 -> 54.1 | D14: 58.85539 | E14: 41.04930921 | F14: 4.24304029 | G14: =BaseData!I13 -> 4 | H14: =BaseData!J13 -> 2 | I14: 0.0983457448 | J14: 0.980840541 | K14: 0.8300573938 | L14: 0.7159610106 | M14: 0.62481228 | N14: 0.5458684944 | O14: 0.4713146311 | P14: 0.3961946336 | Q14: 0.3183426928 | R14: 0.2383145283 | S14: 0.1593186697 | T14: 0.09193729404 | U14: 0.02680247806 | V14: =SUMIF(J$2:U$2,"<"&E14,VolumeData!$J14:$U14) -> 5.399764647 | W14: =SUMIF(SEDData!$H14:$S14,"<"&wasteCutoff*100,VolumeData!$J14:$U14) -> 0.02680247806 | X14: =IF(AND(G14>=sweepCutoff,H14>=malfCutoff),SUMIF(SEDData!$H14:$R14,"<"&pulpCutoff*100,VolumeData!$J14:$U14)-W14,0) -> 0.2244534857 | Y14: 0 | Z14: 5.148508684
A15: 56 | B15: 120 | C15: =BaseData!D14/10 -> 53.5 | D15: 58.20265 | E15: 40.86731104 | F15: 4.131049507 | G15: =BaseData!I14 -> 6 | H15: =BaseData!J14 -> 2 | I15: 0.09617273947 | J15: 0.9587755267 | K15: 0.8108619435 | L15: 0.6990429204 | M15: 0.6097299617 | N15: 0.5323166399 | O15: 0.4591098832 | P15: 0.3852612623 | Q15: 0.3086982781 | R15: 0.230055649 | S15: 0.1526065976 | T15: 0.08662891351 | U15: 0.02373298036 | V15: =SUMIF(J$2:U$2,"<"&E15,VolumeData!$J15:$U15) -> 5.256820556 | W15: =SUMIF(SEDData!$H15:$S15,"<"&wasteCutoff*100,VolumeData!$J15:$U15) -> 0.02373298036 | X15: =IF(AND(G15>=sweepCutoff,H15>=malfCutoff),SUMIF(SEDData!$H15:$R15,"<"&pulpCutoff*100,VolumeData!$J15:$U15)-W15,0) -> 0.2155025308 | Y15: 0 | Z15: 5.017585045
A16: 16 | B16: 47 | C16: =BaseData!D15/10 -> 51.5 | D16: 56.02685 | E16: 40.24555965 | F16: 3.769720935 | G16: =BaseData!I15 -> 3 | H16: =BaseData!J15 -> 2 | I16: 0.08910477405 | J16: 0.8870474869 | K16: 0.748522172 | L16: 0.6441421623 | M16: 0.5608174528 | N16: 0.4883933626 | O16: 0.4195817916 | P16: 0.349892476 | Q16: 0.2775642445 | R16: 0.2034962746 | S16: 0.1311793481 | T16: 0.06996598126 | U16: 0.01507801221 | V16: =SUMIF(J$2:U$2,"<"&E16,VolumeData!$J16:$U16) -> 4.795680765 | W16: =SUMIF(SEDData!$H16:$S16,"<"&wasteCutoff*100,VolumeData!$J16:$U16) -> 0.01507801221 | X16: =IF(AND(G16>=sweepCutoff,H16>=malfCutoff),SUMIF(SEDData!$H16:$R16,"<"&pulpCutoff*100,VolumeData!$J16:$U16)-W16,0) -> 0.1860673172 | Y16: 0 | Z16: 4.594535436
A17: 20 | B17: 88 | C17: =BaseData!D16/10 -> 51.5 | D17: 56.02685 | E17: 40.24555965 | F17: 3.769720935 | G17: =BaseData!I16 -> 6 | H17: =BaseData!J16 -> 9 | I17: 0.08910477405 | J17: 0.8870474869 | K17: 0.748522172 | L17: 0.6441421623 | M17: 0.5608174528 | N17: 0.4883933626 | O17: 0.4195817916 | P17: 0.349892476 | Q17: 0.2775642445 | R17: 0.2034962746 | S17: 0.1311793481 | T17: 0.06996598126 | U17: 0.01507801221 | V17: =SUMIF(J$2:U$2,"<"&E17,VolumeData!$J17:$U17) -> 4.795680765 | W17: =SUMIF(SEDData!$H17:$S17,"<"&wasteCutoff*100,VolumeData!$J17:$U17) -> 0.01507801221 | X17: =IF(AND(G17>=sweepCutoff,H17>=malfCutoff),SUMIF(SEDData!$H17:$R17,"<"&pulpCutoff*100,VolumeData!$J17:$U17)-W17,0) -> 0.1860673172 | Y17: 0 | Z17: 4.594535436
A18: 18 | B18: 114 | C18: =BaseData!D17/10 -> 51.4 | D18: 55.91806 | E18: 40.21384147 | F18: 3.752136003 | G18: =BaseData!I17 -> 4 | H18: =BaseData!J17 -> 2 | I18: 0.08875845855 | J18: 0.8835346508 | K18: 0.7454715824 | L18: 0.6414573603 | M18: 0.5584267592 | N18: 0.486247585 | O18: 0.4176519278 | P18: 0.3481674137 | Q18: 0.2760484571 | R18: 0.2022075132 | S18: 0.1301463301 | T18: 0.0691748164 | U18: 0.0147062177 | V18: =SUMIF(J$2:U$2,"<"&E18,VolumeData!$J18:$U18) -> 4.773240614 | W18: =SUMIF(SEDData!$H18:$S18,"<"&wasteCutoff*100,VolumeData!$J18:$U18) -> 0.0147062177 | X18: =IF(AND(G18>=sweepCutoff,H18>=malfCutoff),SUMIF(SEDData!$H18:$R18,"<"&pulpCutoff*100,VolumeData!$J18:$U18)-W18,0) -> 0.1846149288 | Y18: 0 | Z18: 4.573919467
A19: 17 | B19: 87 | C19: =BaseData!D18/10 -> 51.2 | D19: 55.70048 | E19: 40.15021956 | F19: 3.7171032 | G19: =BaseData!I18 -> 6 | H19: =BaseData!J18 -> 2 | I19: 0.08806785115 | J19: 0.8765299937 | K19: 0.7393893653 | L19: 0.6361049534 | M19: 0.55366105 | N19: 0.4819704067 | O19: 0.413805478 | P19: 0.3447296659 | Q19: 0.2730285638 | R19: 0.1996412004 | S19: 0.128091284 | T19: 0.06760456569 | U19: 0.01397936238 | V19: =SUMIF(J$2:U$2,"<"&E19,VolumeData!$J19:$U19) -> 4.714556527 | W19: =SUMIF(SEDData!$H19:$S19,"<"&wasteCutoff*100,VolumeData!$J19:$U19) -> 0.01397936238 | X19: =IF(AND(G19>=sweepCutoff,H19>=malfCutoff),SUMIF(SEDData!$H19:$R19,"<"&pulpCutoff*100,VolumeData!$J19:$U19)-W19,0) -> 0.1817164873 | Y19: 0 | Z19: 4.518860677
A20: 13 | B20: 58 | C20: =BaseData!D19/10 -> 51 | D20: 55.4829 | E20: 40.08634863 | F20: 3.682252992 | G20: =BaseData!I19 -> 4 | H20: =BaseData!J19 -> 2 | I20: 0.0873799419 | J20: 0.8695533555 | K20: 0.7333324285 | L20: 0.6307754719 | M20: 0.5489162401 | N20: 0.4777123919 | O20: 0.409976726 | P20: 0.3413084156 | Q20: 0.2700242434 | R20: 0.1970898367 | S20: 0.126050902 | T20: 0.06605044661 | U20: 0.01327461585 | V20: =SUMIF(J$2:U$2,"<"&E20,VolumeData!$J20:$U20) -> 4.670790458 | W20: =SUMIF(SEDData!$H20:$S20,"<"&wasteCutoff*100,VolumeData!$J20:$U20) -> 0.01327461585 | X20: =IF(AND(G20>=sweepCutoff,H20>=malfCutoff),SUMIF(SEDData!$H20:$R20,"<"&pulpCutoff*100,VolumeData!$J20:$U20)-W20,0) -> 0.1788267328 | Y20: 0 | Z20: 4.47868911
A21: 27 | B21: 105 | C21: =BaseData!D20/10 -> 51 | D21: 55.4829 | E21: 40.08634863 | F21: 3.682252992 | G21: =BaseData!I20 -> 4 | H21: =BaseData!J20 -> 2 | I21: 0.0873799419 | J21: 0.8695533555 | K21: 0.7333324285 | L21: 0.6307754719 | M21: 0.5489162401 | N21: 0.4777123919 | O21: 0.409976726 | P21: 0.3413084156 | Q21: 0.2700242434 | R21: 0.1970898367 | S21: 0.126050902 | T21: 0.06605044661 | U21: 0.01327461585 | V21: =SUMIF(J$2:U$2,"<"&E21,VolumeData!$J21:$U21) -> 4.670790458 | W21: =SUMIF(SEDData!$H21:$S21,"<"&wasteCutoff*100,VolumeData!$J21:$U21) -> 0.01327461585 | X21: =IF(AND(G21>=sweepCutoff,H21>=malfCutoff),SUMIF(SEDData!$H21:$R21,"<"&pulpCutoff*100,VolumeData!$J21:$U21)-W21,0) -> 0.1788267328 | Y21: 0 | Z21: 4.47868911
A22: 12 | B22: 45 | C22: =BaseData!D21/10 -> 50.8 | D22: 55.26532 | E22: 40.02222674 | F22: 3.647585201 | G22: =BaseData!I21 -> 9 | H22: =BaseData!J21 -> 9 | I22: 0.08669473079 | J22: 0.8626047349 | K22: 0.7273007686 | L22: 0.6254689112 | M22: 0.5441923233 | N22: 0.4734735338 | O22: 0.4061656649 | P22: 0.337903657 | Q22: 0.2670354934 | R22: 0.1945534255 | S22: 0.1240251976 | T22: 0.0645124913 | U22: 0.01259173287 | V22: =SUMIF(J$2:U$2,"<"&E22,VolumeData!$J22:$U22) -> 4.627236201 | W22: =SUMIF(SEDData!$H22:$S22,"<"&wasteCutoff*100,VolumeData!$J22:$U22) -> 0.01259173287 | X22: =IF(AND(G22>=sweepCutoff,H22>=malfCutoff),SUMIF(SEDData!$H22:$R22,"<"&pulpCutoff*100,VolumeData!$J22:$U22)-W22,0) -> 0.1759459561 | Y22: 0 | Z22: 4.438698513
A23: 33 | B23: 63 | C23: =BaseData!D22/10 -> 50.7 | D23: 55.15653 | E23: 39.99007107 | F23: 3.630319654 | G23: =BaseData!I22 -> 7 | H23: =BaseData!J22 -> 4 | I23: 0.08635313704 | J23: 0.8591409308 | K23: 0.7242944166 | L23: 0.6228242247 | M23: 0.541838198 | N23: 0.4713612863 | O23: 0.4042667662 | P23: 0.3362074602 | Q23: 0.2655469564 | R23: 0.1932908282 | S23: 0.1230178538 | T23: 0.06374958533 | U23: 0.01225841301 | V23: =SUMIF(J$2:U$2,"<"&E23,VolumeData!$J23:$U23) -> 4.605538506 | W23: =SUMIF(SEDData!$H23:$S23,"<"&wasteCutoff*100,VolumeData!$J23:$U23) -> 0.01225841301 | X23: =IF(AND(G23>=sweepCutoff,H23>=malfCutoff),SUMIF(SEDData!$H23:$R23,"<"&pulpCutoff*100,VolumeData!$J23:$U23)-W23,0) -> 0.1745090261 | Y23: 0 | Z23: 4.418771067
A24: 36 | B24: 76 | C24: =BaseData!D23/10 -> 50.3 | D24: 54.72137 | E24: 39.86081099 | F24: 3.561712601 | G24: =BaseData!I23 -> 4 | H24: =BaseData!J23 -> 1 | I24: 0.0849935073 | J24: 0.8453557517 | K24: 0.7123321849 | L24: 0.6123027567 | M24: 0.5324738996 | N24: 0.4629601537 | O24: 0.3967153636 | P24: 0.3294638729 | Q24: 0.2596317211 | R24: 0.1882778385 | S24: 0.1190252424 | T24: 0.06073853763 | U24: 0.01097854979 | V24: =SUMIF(J$2:U$2,"<"&E24,VolumeData!$J24:$U24) -> 4.519277323 | W24: =SUMIF(SEDData!$H24:$S24,"<"&wasteCutoff*100,VolumeData!$J24:$U24) -> 0.01097854979 | X24: =IF(AND(G24>=sweepCutoff,H24>=malfCutoff),SUMIF(SEDData!$H24:$R24,"<"&pulpCutoff*100,VolumeData!$J24:$U24)-W24,0) -> 0 | Y24: 4.508298773 | Z24: 0
A25: 87 | B25: 121 | C25: =BaseData!D24/10 -> 50.3 | D25: 54.72137 | E25: 39.86081099 | F25: 3.561712601 | G25: =BaseData!I24 -> 4 | H25: =BaseData!J24 -> 2 | I25: 0.0849935073 | J25: 0.8453557517 | K25: 0.7123321849 | L25: 0.6123027567 | M25: 0.5324738996 | N25: 0.4629601537 | O25: 0.3967153636 | P25: 0.3294638729 | Q25: 0.2596317211 | R25: 0.1882778385 | S25: 0.1190252424 | T25: 0.06073853763 | U25: 0.01097854979 | V25: =SUMIF(J$2:U$2,"<"&E25,VolumeData!$J25:$U25) -> 4.519277323 | W25: =SUMIF(SEDData!$H25:$S25,"<"&wasteCutoff*100,VolumeData!$J25:$U25) -> 0.01097854979 | X25: =IF(AND(G25>=sweepCutoff,H25>=malfCutoff),SUMIF(SEDData!$H25:$R25,"<"&pulpCutoff*100,VolumeData!$J25:$U25)-W25,0) -> 0.1687852303 | Y25: 0 | Z25: 4.339513543
A26: 5 | B26: 62 | C26: =BaseData!D25/10 -> 50 | D26: 54.395 | E26: 39.76318956 | F26: 3.51073456 | G26: =BaseData!I25 -> 7 | H26: =BaseData!J25 -> 9 | I26: 0.08398086752 | J26: 0.8350904017 | K26: 0.703426835 | L26: 0.6044717812 | M26: 0.5255054675 | N26: 0.45670953 | O26: 0.3910981884 | P26: 0.3244494219 | Q26: 0.2552361444 | R26: 0.1845573798 | S26: 0.1160694373 | T26: 0.05852297846 | U26: 0.01007385616 | V26: =SUMIF(J$2:U$2,"<"&E26,VolumeData!$J26:$U26) -> 4.455137566 | W26: =SUMIF(SEDData!$H26:$S26,"<"&wasteCutoff*100,VolumeData!$J26:$U26) -> 0.01007385616 | X26: =IF(AND(G26>=sweepCutoff,H26>=malfCutoff),SUMIF(SEDData!$H26:$R26,"<"&pulpCutoff*100,VolumeData!$J26:$U26)-W26,0) -> 0.1645185596 | Y26: 0 | Z26: 4.28054515
A27: 85 | B27: 105 | C27: =BaseData!D26/10 -> 49.8 | D27: 54.17742 | E27: 39.69778266 | F27: 3.476976116 | G27: =BaseData!I26 -> 3 | H27: =BaseData!J26 -> 2 | I27: 0.08330914694 | J27: 0.8282818489 | K27: 0.6975215117 | L27: 0.5992797528 | M27: 0.520885926 | N27: 0.4525663513 | O27: 0.3873754758 | P27: 0.3211270338 | Q27: 0.2523252076 | R27: 0.1820957883 | S27: 0.1141173356 | T27: 0.05706635212 | U27: 0.009496536007 | V27: =SUMIF(J$2:U$2,"<"&E27,VolumeData!$J27:$U27) -> 4.412642584 | W27: =SUMIF(SEDData!$H27:$S27,"<"&wasteCutoff*100,VolumeData!$J27:$U27) -> 0.009496536007 | X27: =IF(AND(G27>=sweepCutoff,H27>=malfCutoff),SUMIF(SEDData!$H27:$R27,"<"&pulpCutoff*100,VolumeData!$J27:$U27)-W27,0) -> 0.1616871517 | Y27: 0 | Z27: 4.241458896
A28: 25 | B28: 68 | C28: =BaseData!D27/10 -> 49.5 | D28: 53.85105 | E28: 39.59917813 | F28: 3.426678364 | G28: =BaseData!I27 -> 7 | H28: =BaseData!J27 -> 9 | I28: 0.08230662495 | J28: 0.8181215368 | K28: 0.6887108837 | L28: 0.5915346313 | M28: 0.513995718 | N28: 0.4463874213 | O28: 0.381824495 | P28: 0.3161743056 | Q28: 0.2479879684 | R28: 0.178431484 | S28: 0.111216875 | T28: 0.05491212503 | U28: 0.008668622184 | V28: =SUMIF(J$2:U$2,"<"&E28,VolumeData!$J28:$U28) -> 4.349297444 | W28: =SUMIF(SEDData!$H28:$S28,"<"&wasteCutoff*100,VolumeData!$J28:$U28) -> 0.008668622184 | X28: =IF(AND(G28>=sweepCutoff,H28>=malfCutoff),SUMIF(SEDData!$H28:$R28,"<"&pulpCutoff*100,VolumeData!$J28:$U28)-W28,0) -> 0.1574603779 | Y28: 0 | Z28: 4.183168444
A29: 87 | B29: 85 | C29: =BaseData!D28/10 -> 49.5 | D29: 53.85105 | E29: 39.59917813 | F29: 3.426678364 | G29: =BaseData!I28 -> 7 | H29: =BaseData!J28 -> 8 | I29: 0.08230662495 | J29: 0.8181215368 | K29: 0.6887108837 | L29: 0.5915346313 | M29: 0.513995718 | N29: 0.4463874213 | O29: 0.381824495 | P29: 0.3161743056 | Q29: 0.2479879684 | R29: 0.178431484 | S29: 0.111216875 | T29: 0.05491212503 | U29: 0.008668622184 | V29: =SUMIF(J$2:U$2,"<"&E29,VolumeData!$J29:$U29) -> 4.349297444 | W29: =SUMIF(SEDData!$H29:$S29,"<"&wasteCutoff*100,VolumeData!$J29:$U29) -> 0.008668622184 | X29: =IF(AND(G29>=sweepCutoff,H29>=malfCutoff),SUMIF(SEDData!$H29:$R29,"<"&pulpCutoff*100,VolumeData!$J29:$U29)-W29,0) -> 0.1574603779 | Y29: 0 | Z29: 4.183168444
A30: 77 | B30: 52 | C30: =BaseData!D29/10 -> 49.2 | D30: 53.52468 | E30: 39.49997417 | F30: 3.376787951 | G30: =BaseData!I29 -> 6 | H30: =BaseData!J29 -> 3 | I30: 0.08131017359 | J30: 0.8080242413 | K30: 0.6799570737 | L30: 0.5838410003 | M30: 0.5071524164 | N30: 0.4402514753 | O30: 0.3763131984 | P30: 0.3112585848 | Q30: 0.2436857216 | R30: 0.1748008938 | S30: 0.1083496944 | T30: 0.05279486785 | U30: 0.007885601602 | V30: =SUMIF(J$2:U$2,"<"&E30,VolumeData!$J30:$U30) -> 4.286429168 | W30: =SUMIF(SEDData!$H30:$S30,"<"&wasteCutoff*100,VolumeData!$J30:$U30) -> 0.007885601602 | X30: =IF(AND(G30>=sweepCutoff,H30>=malfCutoff),SUMIF(SEDData!$H30:$R30,"<"&pulpCutoff*100,VolumeData!$J30:$U30)-W30,0) -> 0.3280598545 | Y30: 0 | Z30: 3.950483712
A31: 51 | B31: 108 | C31: =BaseData!D30/10 -> 49.1 | D31: 53.41589 | E31: 39.46677172 | F31: 3.360248224 | G31: =BaseData!I30 -> 3 | H31: =BaseData!J30 -> 2 | I31: 0.08097937216 | J31: 0.804672479 | K31: 0.6770517614 | L31: 0.581287896 | M31: 0.5048817358 | N31: 0.4382157078 | O31: 0.374484914 | P31: 0.3096282316 | Q31: 0.2422594142 | R31: 0.1735981921 | S31: 0.1074013731 | T31: 0.05209735397 | U31: 0.007634416454 | V31: =SUMIF(J$2:U$2,"<"&E31,VolumeData!$J31:$U31) -> 4.265579059 | W31: =SUMIF(SEDData!$H31:$S31,"<"&wasteCutoff*100,VolumeData!$J31:$U31) -> 0.007634416454 | X31: =IF(AND(G31>=sweepCutoff,H31>=malfCutoff),SUMIF(SEDData!$H31:$R31,"<"&pulpCutoff*100,VolumeData!$J31:$U31)-W31,0) -> 0.3254625027 | Y31: 0 | Z31: 3.93248214
A32: 49 | B32: 31 | C32: =BaseData!D31/10 -> 49 | D32: 53.3071 | E32: 39.43350158 | F32: 3.343753664 | G32: =BaseData!I31 -> 6 | H32: =BaseData!J31 -> 2 | I32: 0.08064924524 | J32: 0.8013277178 | K32: 0.6741527605 | L32: 0.5787405105 | M32: 0.5026162639 | N32: 0.4361847128 | O32: 0.3726610353 | P32: 0.3080019875 | Q32: 0.2408369939 | R32: 0.172399239 | S32: 0.1064567581 | T32: 0.05140396775 | U32: 0.007388086426 | V32: =SUMIF(J$2:U$2,"<"&E32,VolumeData!$J32:$U32) -> 4.244781947 | W32: =SUMIF(SEDData!$H32:$S32,"<"&wasteCutoff*100,VolumeData!$J32:$U32) -> 0.007388086426 | X32: =IF(AND(G32>=sweepCutoff,H32>=malfCutoff),SUMIF(SEDData!$H32:$R32,"<"&pulpCutoff*100,VolumeData!$J32:$U32)-W32,0) -> 0.3228718784 | Y32: 0 | Z32: 3.914521982
A33: 28 | B33: 34 | C33: =BaseData!D32/10 -> 48.8 | D33: 53.08952 | E33: 39.36675711 | F33: 3.310899948 | G33: =BaseData!I32 -> 6 | H33: =BaseData!J32 -> 9 | I33: 0.07999101491 | J33: 0.7946591981 | K33: 0.6683736915 | L33: 0.5736628929 | M33: 0.498100943 | N33: 0.4321370362 | O33: 0.3690264913 | P33: 0.3047618231 | Q33: 0.2380038132 | R33: 0.1700125814 | S33: 0.1045786563 | T33: 0.05002959891 | U33: 0.006909856828 | V33: =SUMIF(J$2:U$2,"<"&E33,VolumeData!$J33:$U33) -> 4.203346726 | W33: =SUMIF(SEDData!$H33:$S33,"<"&wasteCutoff*100,VolumeData!$J33:$U33) -> 0.006909856828 | X33: =IF(AND(G33>=sweepCutoff,H33>=malfCutoff),SUMIF(SEDData!$H33:$R33,"<"&pulpCutoff*100,VolumeData!$J33:$U33)-W33,0) -> 0.3177109798 | Y33: 0 | Z33: 3.878725889
A34: 14 | B34: 108 | C34: =BaseData!D33/10 -> 48.8 | D34: 53.08952 | E34: 39.36675711 | F34: 3.310899948 | G34: =BaseData!I33 -> 6 | H34: =BaseData!J33 -> 9 | I34: 0.07999101491 | J34: 0.7946591981 | K34: 0.6683736915 | L34: 0.5736628929 | M34: 0.498100943 | N34: 0.4321370362 | O34: 0.3690264913 | P34: 0.3047618231 | Q34: 0.2380038132 | R34: 0.1700125814 | S34: 0.1045786563 | T34: 0.05002959891 | U34: 0.006909856828 | V34: =SUMIF(J$2:U$2,"<"&E34,VolumeData!$J34:$U34) -> 4.203346726 | W34: =SUMIF(SEDData!$H34:$S34,"<"&wasteCutoff*100,VolumeData!$J34:$U34) -> 0.006909856828 | X34: =IF(AND(G34>=sweepCutoff,H34>=malfCutoff),SUMIF(SEDData!$H34:$R34,"<"&pulpCutoff*100,VolumeData!$J34:$U34)-W34,0) -> 0.3177109798 | Y34: 0 | Z34: 3.878725889
A35: 8 | B35: 89 | C35: =BaseData!D34/10 -> 48.2 | D35: 52.43678 | E35: 39.16487 | F35: 3.213420338 | G35: =BaseData!I34 -> 4 | H35: =BaseData!J34 -> 4 | I35: 0.07803251201 | J35: 0.7748216475 | K35: 0.6511879151 | L35: 0.5585672235 | M35: 0.4846799055 | N35: 0.4201084487 | O35: 0.3582284997 | P35: 0.2951398691 | Q35: 0.2295975356 | R35: 0.1629426507 | S35: 0.09903354331 | T35: 0.04600610341 | U35: 0.005588153116 | V35: =SUMIF(J$2:U$2,"<"&E35,VolumeData!$J35:$U35) -> 4.080313342 | W35: =SUMIF(SEDData!$H35:$S35,"<"&wasteCutoff*100,VolumeData!$J35:$U35) -> 0.005588153116 | X35: =IF(AND(G35>=sweepCutoff,H35>=malfCutoff),SUMIF(SEDData!$H35:$R35,"<"&pulpCutoff*100,VolumeData!$J35:$U35)-W35,0) -> 0.3023941443 | Y35: 0 | Z35: 3.772331045
A36: 54 | B36: 99 | C36: =BaseData!D35/10 -> 48.2 | D36: 52.43678 | E36: 39.16487 | F36: 3.213420338 | G36: =BaseData!I35 -> 6 | H36: =BaseData!J35 -> 2 | I36: 0.07803251201 | J36: 0.7748216475 | K36: 0.6511879151 | L36: 0.5585672235 | M36: 0.4846799055 | N36: 0.4201084487 | O36: 0.3582284997 | P36: 0.2951398691 | Q36: 0.2295975356 | R36: 0.1629426507 | S36: 0.09903354331 | T36: 0.04600610341 | U36: 0.005588153116 | V36: =SUMIF(J$2:U$2,"<"&E36,VolumeData!$J36:$U36) -> 4.080313342 | W36: =SUMIF(SEDData!$H36:$S36,"<"&wasteCutoff*100,VolumeData!$J36:$U36) -> 0.005588153116 | X36: =IF(AND(G36>=sweepCutoff,H36>=malfCutoff),SUMIF(SEDData!$H36:$R36,"<"&pulpCutoff*100,VolumeData!$J36:$U36)-W36,0) -> 0.3023941443 | Y36: 0 | Z36: 3.772331045
A37: 14 | B37: 13 | C37: =BaseData!D36/10 -> 48.1 | D37: 52.32799 | E37: 39.13097798 | F37: 3.197331212 | G37: =BaseData!I36 -> 7 | H37: =BaseData!J36 -> 4 | I37: 0.0777084556 | J37: 0.7715398884 | K37: 0.6483456982 | L37: 0.5560712778 | M37: 0.4824612757 | N37: 0.4181203639 | O37: 0.3564442306 | P37: 0.2935505727 | Q37: 0.2282100881 | R37: 0.1617774681 | S37: 0.0981223903 | T37: 0.04535010492 | U37: 0.005383983093 | V37: =SUMIF(J$2:U$2,"<"&E37,VolumeData!$J37:$U37) -> 4.059993359 | W37: =SUMIF(SEDData!$H37:$S37,"<"&wasteCutoff*100,VolumeData!$J37:$U37) -> 0.005383983093 | X37: =IF(AND(G37>=sweepCutoff,H37>=malfCutoff),SUMIF(SEDData!$H37:$R37,"<"&pulpCutoff*100,VolumeData!$J37:$U37)-W37,0) -> 0.2998659803 | Y37: 0 | Z37: 3.754743395
A38: 20 | B38: 106 | C38: =BaseData!D37/10 -> 48.1 | D38: 52.32799 | E38: 39.13097798 | F38: 3.197331212 | G38: =BaseData!I37 -> 4 | H38: =BaseData!J37 -> 1 | I38: 0.0777084556 | J38: 0.7715398884 | K38: 0.6483456982 | L38: 0.5560712778 | M38: 0.4824612757 | N38: 0.4181203639 | O38: 0.3564442306 | P38: 0.2935505727 | Q38: 0.2282100881 | R38: 0.1617774681 | S38: 0.0981223903 | T38: 0.04535010492 | U38: 0.005383983093 | V38: =SUMIF(J$2:U$2,"<"&E38,VolumeData!$J38:$U38) -> 4.059993359 | W38: =SUMIF(SEDData!$H38:$S38,"<"&wasteCutoff*100,VolumeData!$J38:$U38) -> 0.005383983093 | X38: =IF(AND(G38>=sweepCutoff,H38>=malfCutoff),SUMIF(SEDData!$H38:$R38,"<"&pulpCutoff*100,VolumeData!$J38:$U38)-W38,0) -> 0 | Y38: 4.054609376 | Z38: 0
A39: 1 | B39: 22 | C39: =BaseData!D38/10 -> 48 | D39: 52.2192 | E39: 39.09701543 | F39: 3.181287014 | G39: =BaseData!I38 -> 6 | H39: =BaseData!J38 -> 4 | I39: 0.07738507369 | J39: 0.7682651287 | K39: 0.6455097885 | L39: 0.5535810446 | M39: 0.4802478465 | N39: 0.4161370423 | O39: 0.3546643579 | P39: 0.2919653779 | Q39: 0.2268265254 | R39: 0.1606160419 | S39: 0.09721496751 | T39: 0.04469828835 | U39: 0.005184323666 | V39: =SUMIF(J$2:U$2,"<"&E39,VolumeData!$J39:$U39) -> 4.039726409 | W39: =SUMIF(SEDData!$H39:$S39,"<"&wasteCutoff*100,VolumeData!$J39:$U39) -> 0.005184323666 | X39: =IF(AND(G39>=sweepCutoff,H39>=malfCutoff),SUMIF(SEDData!$H39:$R39,"<"&pulpCutoff*100,VolumeData!$J39:$U39)-W39,0) -> 0.2973449741 | Y39: 0 | Z39: 3.737197112
A40: 15 | B40: 81 | C40: =BaseData!D39/10 -> 48 | D40: 52.2192 | E40: 39.09701543 | F40: 3.181287014 | G40: =BaseData!I39 -> 8 | H40: =BaseData!J39 -> 9 | I40: 0.07738507369 | J40: 0.7682651287 | K40: 0.6455097885 | L40: 0.5535810446 | M40: 0.4802478465 | N40: 0.4161370423 | O40: 0.3546643579 | P40: 0.2919653779 | Q40: 0.2268265254 | R40: 0.1606160419 | S40: 0.09721496751 | T40: 0.04469828835 | U40: 0.005184323666 | V40: =SUMIF(J$2:U$2,"<"&E40,VolumeData!$J40:$U40) -> 4.039726409 | W40: =SUMIF(SEDData!$H40:$S40,"<"&wasteCutoff*100,VolumeData!$J40:$U40) -> 0.005184323666 | X40: =IF(AND(G40>=sweepCutoff,H40>=malfCutoff),SUMIF(SEDData!$H40:$R40,"<"&pulpCutoff*100,VolumeData!$J40:$U40)-W40,0) -> 0.2973449741 | Y40: 0 | Z40: 3.737197112
A41: 15 | B41: 77 | C41: =BaseData!D40/10 -> 48 | D41: 52.2192 | E41: 39.09701543 | F41: 3.181287014 | G41: =BaseData!I40 -> 8 | H41: =BaseData!J40 -> 9 | I41: 0.07738507369 | J41: 0.7682651287 | K41: 0.6455097885 | L41: 0.5535810446 | M41: 0.4802478465 | N41: 0.4161370423 | O41: 0.3546643579 | P41: 0.2919653779 | Q41: 0.2268265254 | R41: 0.1606160419 | S41: 0.09721496751 | T41: 0.04469828835 | U41: 0.005184323666 | V41: =SUMIF(J$2:U$2,"<"&E41,VolumeData!$J41:$U41) -> 4.039726409 | W41: =SUMIF(SEDData!$H41:$S41,"<"&wasteCutoff*100,VolumeData!$J41:$U41) -> 0.005184323666 | X41: =IF(AND(G41>=sweepCutoff,H41>=malfCutoff),SUMIF(SEDData!$H41:$R41,"<"&pulpCutoff*100,VolumeData!$J41:$U41)-W41,0) -> 0.2973449741 | Y41: 0 | Z41: 3.737197112
A42: 78 | B42: 32 | C42: =BaseData!D41/10 -> 47.9 | D42: 52.11041 | E42: 39.06298205 | F42: 3.165287722 | G42: =BaseData!I41 -> 4 | H42: =BaseData!J41 -> 2 | I42: 0.07706236627 | J42: 0.7649973681 | K42: 0.6426801856 | L42: 0.551096523 | M42: 0.4780396171 | N42: 0.4141584828 | O42: 0.3528888806 | P42: 0.2903842841 | Q42: 0.2254468474 | R42: 0.1594583727 | S42: 0.0963112775 | T42: 0.04405065951 | U42: 0.004989139412 | V42: =SUMIF(J$2:U$2,"<"&E42,VolumeData!$J42:$U42) -> 4.019512498 | W42: =SUMIF(SEDData!$H42:$S42,"<"&wasteCutoff*100,VolumeData!$J42:$U42) -> 0.004989139412 | X42: =IF(AND(G42>=sweepCutoff,H42>=malfCutoff),SUMIF(SEDData!$H42:$R42,"<"&pulpCutoff*100,VolumeData!$J42:$U42)-W42,0) -> 0.2948311703 | Y42: 0 | Z42: 3.719692189
A43: 1 | B43: 76 | C43: =BaseData!D42/10 -> 47.9 | D43: 52.11041 | E43: 39.06298205 | F43: 3.165287722 | G43: =BaseData!I42 -> 3 | H43: =BaseData!J42 -> 2 | I43: 0.07706236627 | J43: 0.7649973681 | K43: 0.6426801856 | L43: 0.551096523 | M43: 0.4780396171 | N43: 0.4141584828 | O43: 0.3528888806 | P43: 0.2903842841 | Q43: 0.2254468474 | R43: 0.1594583727 | S43: 0.0963112775 | T43: 0.04405065951 | U43: 0.004989139412 | V43: =SUMIF(J$2:U$2,"<"&E43,VolumeData!$J43:$U43) -> 4.019512498 | W43: =SUMIF(SEDData!$H43:$S43,"<"&wasteCutoff*100,VolumeData!$J43:$U43) -> 0.004989139412 | X43: =IF(AND(G43>=sweepCutoff,H43>=malfCutoff),SUMIF(SEDData!$H43:$R43,"<"&pulpCutoff*100,VolumeData!$J43:$U43)-W43,0) -> 0.2948311703 | Y43: 0 | Z43: 3.719692189
A44: 60 | B44: 121 | C44: =BaseData!D43/10 -> 47.9 | D44: 52.11041 | E44: 39.06298205 | F44: 3.165287722 | G44: =BaseData!I43 -> 4 | H44: =BaseData!J43 -> 2 | I44: 0.07706236627 | J44: 0.7649973681 | K44: 0.6426801856 | L44: 0.551096523 | M44: 0.4780396171 | N44: 0.4141584828 | O44: 0.3528888806 | P44: 0.2903842841 | Q44: 0.2254468474 | R44: 0.1594583727 | S44: 0.0963112775 | T44: 0.04405065951 | U44: 0.004989139412 | V44: =SUMIF(J$2:U$2,"<"&E44,VolumeData!$J44:$U44) -> 4.019512498 | W44: =SUMIF(SEDData!$H44:$S44,"<"&wasteCutoff*100,VolumeData!$J44:$U44) -> 0.004989139412 | X44: =IF(AND(G44>=sweepCutoff,H44>=malfCutoff),SUMIF(SEDData!$H44:$R44,"<"&pulpCutoff*100,VolumeData!$J44:$U44)-W44,0) -> 0.2948311703 | Y44: 0 | Z44: 3.719692189
A45: 53 | B45: 106 | C45: =BaseData!D44/10 -> 47.8 | D45: 52.00162 | E45: 39.02887754 | F45: 3.149333311 | G45: =BaseData!I44 -> 8 | H45: =BaseData!J44 -> 7 | I45: 0.07674033335 | J45: 0.7617366065 | K45: 0.6398568889 | L45: 0.5486177125 | M45: 0.4758365867 | N45: 0.4121846847 | O45: 0.3511177978 | P45: 0.2888072903 | Q45: 0.2240710538 | R45: 0.1583044615 | S45: 0.09541132289 | T45: 0.04340722427 | U45: 0.004798394719 | V45: =SUMIF(J$2:U$2,"<"&E45,VolumeData!$J45:$U45) -> 3.99935163 | W45: =SUMIF(SEDData!$H45:$S45,"<"&wasteCutoff*100,VolumeData!$J45:$U45) -> 0.004798394719 | X45: =IF(AND(G45>=sweepCutoff,H45>=malfCutoff),SUMIF(SEDData!$H45:$R45,"<"&pulpCutoff*100,VolumeData!$J45:$U45)-W45,0) -> 0.2923246139 | Y45: 0 | Z45: 3.702228621
A46: 13 | B46: 16 | C46: =BaseData!D45/10 -> 47.6 | D46: 51.78404 | E46: 38.96045396 | F46: 3.117559036 | G46: =BaseData!I45 -> 7 | H46: =BaseData!J45 -> 2 | I46: 0.07609829096 | J46: 0.7552360795 | K46: 0.6342292129 | L46: 0.5436772223 | M46: 0.4714461196 | N46: 0.4082513684 | O46: 0.3475888119 | P46: 0.2856656005 | Q46: 0.2213311194 | R46: 0.1560079166 | S46: 0.09362263044 | T46: 0.04213295844 | U46: 0.004430080638 | V46: =SUMIF(J$2:U$2,"<"&E46,VolumeData!$J46:$U46) -> 3.95918904 | W46: =SUMIF(SEDData!$H46:$S46,"<"&wasteCutoff*100,VolumeData!$J46:$U46) -> 0.004430080638 | X46: =IF(AND(G46>=sweepCutoff,H46>=malfCutoff),SUMIF(SEDData!$H46:$R46,"<"&pulpCutoff*100,VolumeData!$J46:$U46)-W46,0) -> 0.2873334248 | Y46: 0 | Z46: 3.667425534
A47: 69 | B47: 69 | C47: =BaseData!D46/10 -> 47 | D47: 51.1313 | E47: 38.75344484 | F47: 3.023310844 | G47: =BaseData!I46 -> 3 | H47: =BaseData!J46 -> 1 | I47: 0.07418835146 | J47: 0.7359024545 | K47: 0.6174974907 | L47: 0.5289927499 | M47: 0.4583994072 | N47: 0.3965655911 | O47: 0.3371072231 | P47: 0.2763388587 | Q47: 0.2132045267 | R47: 0.14920857 | S47: 0.08834648527 | T47: 0.03841144073 | U47: 0.003427925411 | V47: =SUMIF(J$2:U$2,"<"&E47,VolumeData!$J47:$U47) -> 3.839974798 | W47: =SUMIF(SEDData!$H47:$S47,"<"&wasteCutoff*100,VolumeData!$J47:$U47) -> 0.003427925411 | X47: =IF(AND(G47>=sweepCutoff,H47>=malfCutoff),SUMIF(SEDData!$H47:$R47,"<"&pulpCutoff*100,VolumeData!$J47:$U47)-W47,0) -> 0 | Y47: 3.836546872 | Z47: 0
A48: 39 | B48: 100 | C48: =BaseData!D47/10 -> 47 | D48: 51.1313 | E48: 38.75344484 | F48: 3.023310844 | G48: =BaseData!I47 -> 8 | H48: =BaseData!J47 -> 7 | I48: 0.07418835146 | J48: 0.7359024545 | K48: 0.6174974907 | L48: 0.5289927499 | M48: 0.4583994072 | N48: 0.3965655911 | O48: 0.3371072231 | P48: 0.2763388587 | Q48: 0.2132045267 | R48: 0.14920857 | S48: 0.08834648527 | T48: 0.03841144073 | U48: 0.003427925411 | V48: =SUMIF(J$2:U$2,"<"&E48,VolumeData!$J48:$U48) -> 3.839974798 | W48: =SUMIF(SEDData!$H48:$S48,"<"&wasteCutoff*100,VolumeData!$J48:$U48) -> 0.003427925411 | X48: =IF(AND(G48>=sweepCutoff,H48>=malfCutoff),SUMIF(SEDData!$H48:$R48,"<"&pulpCutoff*100,VolumeData!$J48:$U48)-W48,0) -> 0.2725385706 | Y48: 0 | Z48: 3.564008302
A49: 31 | B49: 110 | C49: =BaseData!D48/10 -> 47 | D49: 51.1313 | E49: 38.75344484 | F49: 3.023310844 | G49: =BaseData!I48 -> 6 | H49: =BaseData!J48 -> 2 | I49: 0.07418835146 | J49: 0.7359024545 | K49: 0.6174974907 | L49: 0.5289927499 | M49: 0.4583994072 | N49: 0.3965655911 | O49: 0.3371072231 | P49: 0.2763388587 | Q49: 0.2132045267 | R49: 0.14920857 | S49: 0.08834648527 | T49: 0.03841144073 | U49: 0.003427925411 | V49: =SUMIF(J$2:U$2,"<"&E49,VolumeData!$J49:$U49) -> 3.839974798 | W49: =SUMIF(SEDData!$H49:$S49,"<"&wasteCutoff*100,VolumeData!$J49:$U49) -> 0.003427925411 | X49: =IF(AND(G49>=sweepCutoff,H49>=malfCutoff),SUMIF(SEDData!$H49:$R49,"<"&pulpCutoff*100,VolumeData!$J49:$U49)-W49,0) -> 0.2725385706 | Y49: 0 | Z49: 3.564008302
A50: 56 | B50: 103 | C50: =BaseData!D49/10 -> 46.9 | D50: 51.02251 | E50: 38.71868658 | F50: 3.007759273 | G50: =BaseData!I49 -> 6 | H50: =BaseData!J49 -> 2 | I50: 0.0738723889 | J50: 0.7327046753 | K50: 0.6147309311 | L50: 0.5265653099 | M50: 0.4562431302 | N50: 0.3946346014 | O50: 0.3353756478 | P50: 0.2747987335 | Q50: 0.2118636864 | R50: 0.148088523 | S50: 0.08748027273 | T50: 0.03780602434 | U50: 0.003275502719 | V50: =SUMIF(J$2:U$2,"<"&E50,VolumeData!$J50:$U50) -> 3.820291536 | W50: =SUMIF(SEDData!$H50:$S50,"<"&wasteCutoff*100,VolumeData!$J50:$U50) -> 0.003275502719 | X50: =IF(AND(G50>=sweepCutoff,H50>=malfCutoff),SUMIF(SEDData!$H50:$R50,"<"&pulpCutoff*100,VolumeData!$J50:$U50)-W50,0) -> 0.2700993173 | Y50: 0 | Z50: 3.546916716
A51: 70 | B51: 89 | C51: =BaseData!D50/10 -> 46.9 | D51: 51.02251 | E51: 38.71868658 | F51: 3.007759273 | G51: =BaseData!I50 -> 7 | H51: =BaseData!J50 -> 4 | I51: 0.0738723889 | J51: 0.7327046753 | K51: 0.6147309311 | L51: 0.5265653099 | M51: 0.4562431302 | N51: 0.3946346014 | O51: 0.3353756478 | P51: 0.2747987335 | Q51: 0.2118636864 | R51: 0.148088523 | S51: 0.08748027273 | T51: 0.03780602434 | U51: 0.003275502719 | V51: =SUMIF(J$2:U$2,"<"&E51,VolumeData!$J51:$U51) -> 3.820291536 | W51: =SUMIF(SEDData!$H51:$S51,"<"&wasteCutoff*100,VolumeData!$J51:$U51) -> 0.003275502719 | X51: =IF(AND(G51>=sweepCutoff,H51>=malfCutoff),SUMIF(SEDData!$H51:$R51,"<"&pulpCutoff*100,VolumeData!$J51:$U51)-W51,0) -> 0.2700993173 | Y51: 0 | Z51: 3.546916716
A52: 25 | B52: 59 | C52: =BaseData!D51/10 -> 46.8 | D52: 50.91372 | E52: 38.68385412 | F52: 2.99225234 | G52: =BaseData!I51 -> 6 | H52: =BaseData!J51 -> 9 | I52: 0.07355710081 | J52: 0.7295138932 | K52: 0.6119706735 | L52: 0.5241435744 | M52: 0.4540920438 | N52: 0.3927083634 | O52: 0.3336484574 | P52: 0.2732627011 | Q52: 0.2105267291 | R52: 0.1469722437 | S52: 0.08661782377 | T52: 0.0372048644 | U52: 0.003127152834 | V52: =SUMIF(J$2:U$2,"<"&E52,VolumeData!$J52:$U52) -> 3.800661368 | W52: =SUMIF(SEDData!$H52:$S52,"<"&wasteCutoff*100,VolumeData!$J52:$U52) -> 0.003127152834 | X52: =IF(AND(G52>=sweepCutoff,H52>=malfCutoff),SUMIF(SEDData!$H52:$R52,"<"&pulpCutoff*100,VolumeData!$J52:$U52)-W52,0) -> 0.267667779 | Y52: 0 | Z52: 3.529866436
A53: 7 | B53: 124 | C53: =BaseData!D52/10 -> 46.8 | D53: 50.91372 | E53: 38.68385412 | F53: 2.99225234 | G53: =BaseData!I52 -> 8 | H53: =BaseData!J52 -> 9 | I53: 0.07355710081 | J53: 0.7295138932 | K53: 0.6119706735 | L53: 0.5241435744 | M53: 0.4540920438 | N53: 0.3927083634 | O53: 0.3336484574 | P53: 0.2732627011 | Q53: 0.2105267291 | R53: 0.1469722437 | S53: 0.08661782377 | T53: 0.0372048644 | U53: 0.003127152834 | V53: =SUMIF(J$2:U$2,"<"&E53,VolumeData!$J53:$U53) -> 3.800661368 | W53: =SUMIF(SEDData!$H53:$S53,"<"&wasteCutoff*100,VolumeData!$J53:$U53) -> 0.003127152834 | X53: =IF(AND(G53>=sweepCutoff,H53>=malfCutoff),SUMIF(SEDData!$H53:$R53,"<"&pulpCutoff*100,VolumeData!$J53:$U53)-W53,0) -> 0.267667779 | Y53: 0 | Z53: 3.529866436
A54: 56 | B54: 86 | C54: =BaseData!D53/10 -> 46.6 | D54: 50.69614 | E54: 38.61396536 | F54: 2.96137229 | G54: =BaseData!I53 -> 9 | H54: =BaseData!J53 -> 9 | I54: 0.07292854806 | J54: 0.7231533196 | K54: 0.6064690621 | L54: 0.5193172144 | M54: 0.4498054393 | N54: 0.3888701384 | O54: 0.3302072274 | P54: 0.2702029121 | Q54: 0.2078644633 | R54: 0.1447509928 | S54: 0.08490422876 | T54: 0.03601534088 | U54: 0.002842520102 | V54: =SUMIF(J$2:U$2,"<"&E54,VolumeData!$J54:$U54) -> 3.761560339 | W54: =SUMIF(SEDData!$H54:$S54,"<"&wasteCutoff*100,VolumeData!$J54:$U54) -> 0.002842520102 | X54: =IF(AND(G54>=sweepCutoff,H54>=malfCutoff),SUMIF(SEDData!$H54:$R54,"<"&pulpCutoff*100,VolumeData!$J54:$U54)-W54,0) -> 0.2628280423 | Y54: 0 | Z54: 3.495889777
A55: 87 | B55: 87 | C55: =BaseData!D54/10 -> 46.6 | D55: 50.69614 | E55: 38.61396536 | F55: 2.96137229 | G55: =BaseData!I54 -> 2 | H55: =BaseData!J54 -> 1 | I55: 0.07292854806 | J55: 0.7231533196 | K55: 0.6064690621 | L55: 0.5193172144 | M55: 0.4498054393 | N55: 0.3888701384 | O55: 0.3302072274 | P55: 0.2702029121 | Q55: 0.2078644633 | R55: 0.1447509928 | S55: 0.08490422876 | T55: 0.03601534088 | U55: 0.002842520102 | V55: =SUMIF(J$2:U$2,"<"&E55,VolumeData!$J55:$U55) -> 3.761560339 | W55: =SUMIF(SEDData!$H55:$S55,"<"&wasteCutoff*100,VolumeData!$J55:$U55) -> 0.002842520102 | X55: =IF(AND(G55>=sweepCutoff,H55>=malfCutoff),SUMIF(SEDData!$H55:$R55,"<"&pulpCutoff*100,VolumeData!$J55:$U55)-W55,0) -> 0 | Y55: 3.758717819 | Z55: 0
A56: 41 | B56: 75 | C56: =BaseData!D55/10 -> 46.5 | D56: 50.58735 | E56: 38.57890842 | F56: 2.945999124 | G56: =BaseData!I55 -> 8 | H56: =BaseData!J55 -> 9 | I56: 0.07261528339 | J56: 0.7199835278 | K56: 0.6037277074 | L56: 0.5169125885 | M56: 0.4476699195 | N56: 0.3869581494 | O56: 0.3284931858 | P56: 0.2686791539 | Q56: 0.2065391546 | R56: 0.1436460234 | S56: 0.08405308893 | T56: 0.03542699099 | U56: 0.002706161033 | V56: =SUMIF(J$2:U$2,"<"&E56,VolumeData!$J56:$U56) -> 3.74208949 | W56: =SUMIF(SEDData!$H56:$S56,"<"&wasteCutoff*100,VolumeData!$J56:$U56) -> 0.002706161033 | X56: =IF(AND(G56>=sweepCutoff,H56>=malfCutoff),SUMIF(SEDData!$H56:$R56,"<"&pulpCutoff*100,VolumeData!$J56:$U56)-W56,0) -> 0.2604199423 | Y56: 0 | Z56: 3.478963387
A57: 15 | B57: 109 | C57: =BaseData!D56/10 -> 46.5 | D57: 50.58735 | E57: 38.57890842 | F57: 2.945999124 | G57: =BaseData!I56 -> 8 | H57: =BaseData!J56 -> 9 | I57: 0.07261528339 | J57: 0.7199835278 | K57: 0.6037277074 | L57: 0.5169125885 | M57: 0.4476699195 | N57: 0.3869581494 | O57: 0.3284931858 | P57: 0.2686791539 | Q57: 0.2065391546 | R57: 0.1436460234 | S57: 0.08405308893 | T57: 0.03542699099 | U57: 0.002706161033 | V57: =SUMIF(J$2:U$2,"<"&E57,VolumeData!$J57:$U57) -> 3.74208949 | W57: =SUMIF(SEDData!$H57:$S57,"<"&wasteCutoff*100,VolumeData!$J57:$U57) -> 0.002706161033 | X57: =IF(AND(G57>=sweepCutoff,H57>=malfCutoff),SUMIF(SEDData!$H57:$R57,"<"&pulpCutoff*100,VolumeData!$J57:$U57)-W57,0) -> 0.2604199423 | Y57: 0 | Z57: 3.478963387
A58: 15 | B58: 122 | C58: =BaseData!D57/10 -> 46.5 | D58: 50.58735 | E58: 38.57890842 | F58: 2.945999124 | G58: =BaseData!I57 -> 8 | H58: =BaseData!J57 -> 9 | I58: 0.07261528339 | J58: 0.7199835278 | K58: 0.6037277074 | L58: 0.5169125885 | M58: 0.4476699195 | N58: 0.3869581494 | O58: 0.3284931858 | P58: 0.2686791539 | Q58: 0.2065391546 | R58: 0.1436460234 | S58: 0.08405308893 | T58: 0.03542699099 | U58: 0.002706161033 | V58: =SUMIF(J$2:U$2,"<"&E58,VolumeData!$J58:$U58) -> 3.74208949 | W58: =SUMIF(SEDData!$H58:$S58,"<"&wasteCutoff*100,VolumeData!$J58:$U58) -> 0.002706161033 | X58: =IF(AND(G58>=sweepCutoff,H58>=malfCutoff),SUMIF(SEDData!$H58:$R58,"<"&pulpCutoff*100,VolumeData!$J58:$U58)-W58,0) -> 0.2604199423 | Y58: 0 | Z58: 3.478963387
A59: 64 | B59: 70 | C59: =BaseData!D58/10 -> 46.3 | D59: 50.36977 | E59: 38.5085678 | F59: 2.915386384 | G59: =BaseData!I58 -> 6 | H59: =BaseData!J58 -> 9 | I59: 0.07199077747 | J59: 0.7136649329 | K59: 0.598263898 | L59: 0.5121204416 | M59: 0.4434144407 | N59: 0.3831484137 | O59: 0.3250782446 | P59: 0.2656439066 | Q59: 0.2039001852 | R59: 0.1414474025 | S59: 0.08236214048 | T59: 0.03426314989 | U59: 0.002445165304 | V59: =SUMIF(J$2:U$2,"<"&E59,VolumeData!$J59:$U59) -> 3.703307156 | W59: =SUMIF(SEDData!$H59:$S59,"<"&wasteCutoff*100,VolumeData!$J59:$U59) -> 0.002445165304 | X59: =IF(AND(G59>=sweepCutoff,H59>=malfCutoff),SUMIF(SEDData!$H59:$R59,"<"&pulpCutoff*100,VolumeData!$J59:$U59)-W59,0) -> 0.2556275275 | Y59: 0 | Z59: 3.445234463
A60: 69 | B60: 71 | C60: =BaseData!D59/10 -> 46.3 | D60: 50.36977 | E60: 38.5085678 | F60: 2.915386384 | G60: =BaseData!I59 -> 7 | H60: =BaseData!J59 -> 9 | I60: 0.07199077747 | J60: 0.7136649329 | K60: 0.598263898 | L60: 0.5121204416 | M60: 0.4434144407 | N60: 0.3831484137 | O60: 0.3250782446 | P60: 0.2656439066 | Q60: 0.2039001852 | R60: 0.1414474025 | S60: 0.08236214048 | T60: 0.03426314989 | U60: 0.002445165304 | V60: =SUMIF(J$2:U$2,"<"&E60,VolumeData!$J60:$U60) -> 3.703307156 | W60: =SUMIF(SEDData!$H60:$S60,"<"&wasteCutoff*100,VolumeData!$J60:$U60) -> 0.002445165304 | X60: =IF(AND(G60>=sweepCutoff,H60>=malfCutoff),SUMIF(SEDData!$H60:$R60,"<"&pulpCutoff*100,VolumeData!$J60:$U60)-W60,0) -> 0.2556275275 | Y60: 0 | Z60: 3.445234463
A61: 16 | B61: 93 | C61: =BaseData!D60/10 -> 46.3 | D61: 50.36977 | E61: 38.5085678 | F61: 2.915386384 | G61: =BaseData!I60 -> 6 | H61: =BaseData!J60 -> 2 | I61: 0.07199077747 | J61: 0.7136649329 | K61: 0.598263898 | L61: 0.5121204416 | M61: 0.4434144407 | N61: 0.3831484137 | O61: 0.3250782446 | P61: 0.2656439066 | Q61: 0.2039001852 | R61: 0.1414474025 | S61: 0.08236214048 | T61: 0.03426314989 | U61: 0.002445165304 | V61: =SUMIF(J$2:U$2,"<"&E61,VolumeData!$J61:$U61) -> 3.703307156 | W61: =SUMIF(SEDData!$H61:$S61,"<"&wasteCutoff*100,VolumeData!$J61:$U61) -> 0.002445165304 | X61: =IF(AND(G61>=sweepCutoff,H61>=malfCutoff),SUMIF(SEDData!$H61:$R61,"<"&pulpCutoff*100,VolumeData!$J61:$U61)-W61,0) -> 0.2556275275 | Y61: 0 | Z61: 3.445234463
A62: 52 | B62: 88 | C62: =BaseData!D61/10 -> 46.3 | D62: 50.36977 | E62: 38.5085678 | F62: 2.915386384 | G62: =BaseData!I61 -> 4 | H62: =BaseData!J61 -> 2 | I62: 0.07199077747 | J62: 0.7136649329 | K62: 0.598263898 | L62: 0.5121204416 | M62: 0.4434144407 | N62: 0.3831484137 | O62: 0.3250782446 | P62: 0.2656439066 | Q62: 0.2039001852 | R62: 0.1414474025 | S62: 0.08236214048 | T62: 0.03426314989 | U62: 0.002445165304 | V62: =SUMIF(J$2:U$2,"<"&E62,VolumeData!$J62:$U62) -> 3.703307156 | W62: =SUMIF(SEDData!$H62:$S62,"<"&wasteCutoff*100,VolumeData!$J62:$U62) -> 0.002445165304 | X62: =IF(AND(G62>=sweepCutoff,H62>=malfCutoff),SUMIF(SEDData!$H62:$R62,"<"&pulpCutoff*100,VolumeData!$J62:$U62)-W62,0) -> 0.2556275275 | Y62: 0 | Z62: 3.445234463
A63: 30 | B63: 45 | C63: =BaseData!D62/10 -> 46.2 | D63: 50.26098 | E63: 38.47328346 | F63: 2.90014676 | G63: =BaseData!I62 -> 4 | H63: =BaseData!J62 -> 2 | I63: 0.07167953621 | J63: 0.7105161295 | K63: 0.5955414423 | L63: 0.5097329193 | M63: 0.4412944799 | N63: 0.3812506649 | O63: 0.3233773431 | P63: 0.264132416 | Q63: 0.2025865243 | R63: 0.1403537533 | S63: 0.08152233834 | T63: 0.03368767289 | U63: 0.002320451106 | V63: =SUMIF(J$2:U$2,"<"&E63,VolumeData!$J63:$U63) -> 3.683995684 | W63: =SUMIF(SEDData!$H63:$S63,"<"&wasteCutoff*100,VolumeData!$J63:$U63) -> 0.002320451106 | X63: =IF(AND(G63>=sweepCutoff,H63>=malfCutoff),SUMIF(SEDData!$H63:$R63,"<"&pulpCutoff*100,VolumeData!$J63:$U63)-W63,0) -> 0.2532433134 | Y63: 0 | Z63: 3.428431919
A64: 48 | B64: 60 | C64: =BaseData!D63/10 -> 46.2 | D64: 50.26098 | E64: 38.47328346 | F64: 2.90014676 | G64: =BaseData!I63 -> 6 | H64: =BaseData!J63 -> 9 | I64: 0.07167953621 | J64: 0.7105161295 | K64: 0.5955414423 | L64: 0.5097329193 | M64: 0.4412944799 | N64: 0.3812506649 | O64: 0.3233773431 | P64: 0.264132416 | Q64: 0.2025865243 | R64: 0.1403537533 | S64: 0.08152233834 | T64: 0.03368767289 | U64: 0.002320451106 | V64: =SUMIF(J$2:U$2,"<"&E64,VolumeData!$J64:$U64) -> 3.683995684 | W64: =SUMIF(SEDData!$H64:$S64,"<"&wasteCutoff*100,VolumeData!$J64:$U64) -> 0.002320451106 | X64: =IF(AND(G64>=sweepCutoff,H64>=malfCutoff),SUMIF(SEDData!$H64:$R64,"<"&pulpCutoff*100,VolumeData!$J64:$U64)-W64,0) -> 0.2532433134 | Y64: 0 | Z64: 3.428431919
A65: 78 | B65: 70 | C65: =BaseData!D64/10 -> 46.1 | D65: 50.15219 | E65: 38.43792266 | F65: 2.884951601 | G65: =BaseData!I64 -> 7 | H65: =BaseData!J64 -> 9 | I65: 0.07136896942 | J65: 0.7073743219 | K65: 0.5928252853 | L65: 0.5073510968 | M65: 0.4391797036 | N65: 0.3793576609 | O65: 0.3216808195 | P65: 0.2626250132 | Q65: 0.2012767461 | R65: 0.13926388 | S65: 0.08068632198 | T65: 0.03311650124 | U65: 0.002199540622 | V65: =SUMIF(J$2:U$2,"<"&E65,VolumeData!$J65:$U65) -> 3.66473735 | W65: =SUMIF(SEDData!$H65:$S65,"<"&wasteCutoff*100,VolumeData!$J65:$U65) -> 0.002199540622 | X65: =IF(AND(G65>=sweepCutoff,H65>=malfCutoff),SUMIF(SEDData!$H65:$R65,"<"&pulpCutoff*100,VolumeData!$J65:$U65)-W65,0) -> 0.2508671626 | Y65: 0 | Z65: 3.411670647
A66: 54 | B66: 95 | C66: =BaseData!D65/10 -> 46.1 | D66: 50.15219 | E66: 38.43792266 | F66: 2.884951601 | G66: =BaseData!I65 -> 6 | H66: =BaseData!J65 -> 4 | I66: 0.07136896942 | J66: 0.7073743219 | K66: 0.5928252853 | L66: 0.5073510968 | M66: 0.4391797036 | N66: 0.3793576609 | O66: 0.3216808195 | P66: 0.2626250132 | Q66: 0.2012767461 | R66: 0.13926388 | S66: 0.08068632198 | T66: 0.03311650124 | U66: 0.002199540622 | V66: =SUMIF(J$2:U$2,"<"&E66,VolumeData!$J66:$U66) -> 3.66473735 | W66: =SUMIF(SEDData!$H66:$S66,"<"&wasteCutoff*100,VolumeData!$J66:$U66) -> 0.002199540622 | X66: =IF(AND(G66>=sweepCutoff,H66>=malfCutoff),SUMIF(SEDData!$H66:$R66,"<"&pulpCutoff*100,VolumeData!$J66:$U66)-W66,0) -> 0.2508671626 | Y66: 0 | Z66: 3.411670647
A67: 58 | B67: 100 | C67: =BaseData!D66/10 -> 46.1 | D67: =C67*(1+growthRate) -> 50.15219 | E67: =(Peterson_a+Peterson_b*LN(C67*10))/10 -> 38.43792266 | F67: =Vol_a*D67^2*E67/10000 -> 2.884951601 | G67: =BaseData!I66 -> 3 | H67: =BaseData!J66 -> 2 | I67: 0.07136896942 | J67: 0.7073743219 | K67: 0.5928252853 | L67: 0.5073510968 | M67: 0.4391797036 | N67: 0.3793576609 | O67: 0.3216808195 | P67: 0.2626250132 | Q67: 0.2012767461 | R67: 0.13926388 | S67: 0.08068632198 | T67: 0.03311650124 | U67: 0.002199540622 | V67: =SUMIF(J$2:U$2,"<"&E67,VolumeData!$J67:$U67) -> 3.66473735 | W67: =SUMIF(SEDData!$H67:$S67,"<"&wasteCutoff*100,VolumeData!$J67:$U67) -> 0.002199540622 | X67: =IF(AND(G67>=sweepCutoff,H67>=malfCutoff),SUMIF(SEDData!$H67:$R67,"<"&pulpCutoff*100,VolumeData!$J67:$U67)-W67,0) -> 0.2508671626 | Y67: =IF(OR(G67<sweepCutoff,H67<malfCutoff),V67-W67,0) -> 0 | Z67: 3.411670647
A68: 56 | B68: 50 | C68: =BaseData!D67/10 -> 46 | D68: 50.0434 | E68: 38.40248508 | F68: 2.869800882 | G68: =BaseData!I67 -> 7 | H68: =BaseData!J67 -> 2 | I68: 0.0710590771 | J68: 0.7042395099 | K68: 0.5901154266 | L68: 0.5049749735 | M68: 0.437070111 | N68: 0.3774694006 | O68: 0.3199886729 | P68: 0.2611216974 | Q68: 0.1999708502 | R68: 0.1381777837 | S68: 0.07985409476 | T68: 0.03254964227 | U68: 0.002082394516 | V68: =SUMIF(J$2:U$2,"<"&E68,VolumeData!$J68:$U68) -> 3.645532163 | W68: =SUMIF(SEDData!$H68:$S68,"<"&wasteCutoff*100,VolumeData!$J68:$U68) -> 0.002082394516 | X68: =IF(AND(G68>=sweepCutoff,H68>=malfCutoff),SUMIF(SEDData!$H68:$R68,"<"&pulpCutoff*100,VolumeData!$J68:$U68)-W68,0) -> 0.2484991263 | Y68: 0 | Z68: =V68-W68-X68-Y68 -> 3.394950642
A69: 13 | B69: 66 | C69: =BaseData!D68/10 -> 45.9 | D69: 49.93461 | E69: 38.36697038 | F69: 2.854694578 | G69: =BaseData!I68 -> 7 | H69: =BaseData!J68 -> 7 | I69: 0.07074985924 | J69: 0.7011116932 | K69: 0.5874118657 | L69: 0.5026045486 | M69: 0.4349657013 | N69: 0.375585883 | O69: 0.3183009024 | P69: 0.2596224679 | Q69: 0.1986688369 | R69: 0.1370954658 | S69: 0.07902566009 | T69: 0.0319871034 | U69: 0.001968973224 | V69: =SUMIF(J$2:U$2,"<"&E69,VolumeData!$J69:$U69) -> 3.626380128 | W69: =SUMIF(SEDData!$H69:$S69,"<"&wasteCutoff*100,VolumeData!$J69:$U69) -> 0.001968973224 | X69: =IF(AND(G69>=sweepCutoff,H69>=malfCutoff),SUMIF(SEDData!$H69:$R69,"<"&pulpCutoff*100,VolumeData!$J69:$U69)-W69,0) -> 0.2461392561 | Y69: 0 | Z69: 3.378271899
A70: 1 | B70: 63 | C70: =BaseData!D69/10 -> 45.7 | D70: 49.71703 | E70: 38.29570826 | F70: 2.824615113 | G70: =BaseData!I69 -> 6 | H70: =BaseData!J69 -> 2 | I70: 0.0701334469 | J70: 0.6948770454 | K70: 0.5820236355 | L70: 0.4978807915 | M70: 0.4307724267 | N70: 0.3718330718 | O70: 0.3149384854 | P70: 0.2566362649 | Q70: 0.1960764574 | R70: 0.1349421702 | S70: 0.07738018223 | T70: 0.03087501623 | U70: 0.001753145648 | V70: =SUMIF(J$2:U$2,"<"&E70,VolumeData!$J70:$U70) -> 3.588235547 | W70: =SUMIF(SEDData!$H70:$S70,"<"&wasteCutoff*100,VolumeData!$J70:$U70) -> 0.001753145648 | X70: =IF(AND(G70>=sweepCutoff,H70>=malfCutoff),SUMIF(SEDData!$H70:$R70,"<"&pulpCutoff*100,VolumeData!$J70:$U70)-W70,0) -> 0.241444223 | Y70: 0 | Z70: 3.345038179
A71: 45 | B71: 14 | C71: =BaseData!D70/10 -> 45.6 | D71: 49.60824 | E71: 38.25996016 | F71: 2.809641901 | G71: =BaseData!I70 -> 7 | H71: =BaseData!J70 -> 9 | I71: 0.06982625242 | J71: 0.6917702138 | K71: 0.5793389653 | L71: 0.4955274578 | M71: 0.4286835601 | N71: 0.3699637763 | O71: 0.313263837 | P71: 0.25514929 | Q71: 0.1947860912 | R71: 0.1338711952 | S71: 0.07656314609 | T71: 0.03032548325 | U71: 0.001650659052 | V71: =SUMIF(J$2:U$2,"<"&E71,VolumeData!$J71:$U71) -> 3.569243016 | W71: =SUMIF(SEDData!$H71:$S71,"<"&wasteCutoff*100,VolumeData!$J71:$U71) -> 0.001650659052 | X71: =IF(AND(G71>=sweepCutoff,H71>=malfCutoff),SUMIF(SEDData!$H71:$R71,"<"&pulpCutoff*100,VolumeData!$J71:$U71)-W71,0) -> 0.2391091655 | Y71: 0 | Z71: 3.328483192
A72: 75 | B72: 27 | C72: =BaseData!D71/10 -> 45.6 | D72: 49.60824 | E72: 38.25996016 | F72: 2.809641901 | G72: =BaseData!I71 -> 4 | H72: =BaseData!J71 -> 4 | I72: 0.06982625242 | J72: 0.6917702138 | K72: 0.5793389653 | L72: 0.4955274578 | M72: 0.4286835601 | N72: 0.3699637763 | O72: 0.313263837 | P72: 0.25514929 | Q72: 0.1947860912 | R72: 0.1338711952 | S72: 0.07656314609 | T72: 0.03032548325 | U72: 0.001650659052 | V72: =SUMIF(J$2:U$2,"<"&E72,VolumeData!$J72:$U72) -> 3.569243016 | W72: =SUMIF(SEDData!$H72:$S72,"<"&wasteCutoff*100,VolumeData!$J72:$U72) -> 0.001650659052 | X72: =IF(AND(G72>=sweepCutoff,H72>=malfCutoff),SUMIF(SEDData!$H72:$R72,"<"&pulpCutoff*100,VolumeData!$J72:$U72)-W72,0) -> 0.2391091655 | Y72: 0 | Z72: 3.328483192
A73: 11 | B73: 23 | C73: =BaseData!D72/10 -> 45.5 | D73: 49.49945 | E73: 38.22413358 | F73: 2.794713004 | G73: =BaseData!I72 -> 3 | H73: =BaseData!J72 -> 2 | I73: 0.06951973239 | J73: 0.6886703767 | K73: 0.576660591 | L73: 0.4931798199 | M73: 0.4265998728 | N73: 0.3680992194 | O73: 0.3115935606 | P73: 0.2536663986 | Q73: 0.1934996075 | R73: 0.1328040038 | S73: 0.0757499166 | T73: 0.02978030108 | U73: 0.001551736639 | V73: =SUMIF(J$2:U$2,"<"&E73,VolumeData!$J73:$U73) -> 3.550303668 | W73: =SUMIF(SEDData!$H73:$S73,"<"&wasteCutoff*100,VolumeData!$J73:$U73) -> 0.001551736639 | X73: =IF(AND(G73>=sweepCutoff,H73>=malfCutoff),SUMIF(SEDData!$H73:$R73,"<"&pulpCutoff*100,VolumeData!$J73:$U73)-W73,0) -> 0.2367824848 | Y73: 0 | Z73: 3.311969447
A74: 96 | B74: 44 | C74: =BaseData!D73/10 -> 45.5 | D74: 49.49945 | E74: 38.22413358 | F74: 2.794713004 | G74: =BaseData!I73 -> 7 | H74: =BaseData!J73 -> 2 | I74: 0.06951973239 | J74: 0.6886703767 | K74: 0.576660591 | L74: 0.4931798199 | M74: 0.4265998728 | N74: 0.3680992194 | O74: 0.3115935606 | P74: 0.2536663986 | Q74: 0.1934996075 | R74: 0.1328040038 | S74: 0.0757499166 | T74: 0.02978030108 | U74: 0.001551736639 | V74: =SUMIF(J$2:U$2,"<"&E74,VolumeData!$J74:$U74) -> 3.550303668 | W74: =SUMIF(SEDData!$H74:$S74,"<"&wasteCutoff*100,VolumeData!$J74:$U74) -> 0.001551736639 | X74: =IF(AND(G74>=sweepCutoff,H74>=malfCutoff),SUMIF(SEDData!$H74:$R74,"<"&pulpCutoff*100,VolumeData!$J74:$U74)-W74,0) -> 0.2367824848 | Y74: 0 | Z74: 3.311969447
A75: 38 | B75: 54 | C75: =BaseData!D74/10 -> 45.5 | D75: 49.49945 | E75: 38.22413358 | F75: 2.794713004 | G75: =BaseData!I74 -> 8 | H75: =BaseData!J74 -> 9 | I75: 0.06951973239 | J75: 0.6886703767 | K75: 0.576660591 | L75: 0.4931798199 | M75: 0.4265998728 | N75: 0.3680992194 | O75: 0.3115935606 | P75: 0.2536663986 | Q75: 0.1934996075 | R75: 0.1328040038 | S75: 0.0757499166 | T75: 0.02978030108 | U75: 0.001551736639 | V75: =SUMIF(J$2:U$2,"<"&E75,VolumeData!$J75:$U75) -> 3.550303668 | W75: =SUMIF(SEDData!$H75:$S75,"<"&wasteCutoff*100,VolumeData!$J75:$U75) -> 0.001551736639 | X75: =IF(AND(G75>=sweepCutoff,H75>=malfCutoff),SUMIF(SEDData!$H75:$R75,"<"&pulpCutoff*100,VolumeData!$J75:$U75)-W75,0) -> 0.2367824848 | Y75: 0 | Z75: 3.311969447
A76: 25 | B76: 77 | C76: =BaseData!D75/10 -> 45.5 | D76: 49.49945 | E76: 38.22413358 | F76: 2.794713004 | G76: =BaseData!I75 -> 8 | H76: =BaseData!J75 -> 9 | I76: 0.06951973239 | J76: 0.6886703767 | K76: 0.576660591 | L76: 0.4931798199 | M76: 0.4265998728 | N76: 0.3680992194 | O76: 0.3115935606 | P76: 0.2536663986 | Q76: 0.1934996075 | R76: 0.1328040038 | S76: 0.0757499166 | T76: 0.02978030108 | U76: 0.001551736639 | V76: =SUMIF(J$2:U$2,"<"&E76,VolumeData!$J76:$U76) -> 3.550303668 | W76: =SUMIF(SEDData!$H76:$S76,"<"&wasteCutoff*100,VolumeData!$J76:$U76) -> 0.001551736639 | X76: =IF(AND(G76>=sweepCutoff,H76>=malfCutoff),SUMIF(SEDData!$H76:$R76,"<"&pulpCutoff*100,VolumeData!$J76:$U76)-W76,0) -> 0.2367824848 | Y76: 0 | Z76: 3.311969447
A77: 25 | B77: 81 | C77: =BaseData!D76/10 -> 45.5 | D77: 49.49945 | E77: 38.22413358 | F77: 2.794713004 | G77: =BaseData!I76 -> 8 | H77: =BaseData!J76 -> 9 | I77: 0.06951973239 | J77: 0.6886703767 | K77: 0.576660591 | L77: 0.4931798199 | M77: 0.4265998728 | N77: 0.3680992194 | O77: 0.3115935606 | P77: 0.2536663986 | Q77: 0.1934996075 | R77: 0.1328040038 | S77: 0.0757499166 | T77: 0.02978030108 | U77: 0.001551736639 | V77: =SUMIF(J$2:U$2,"<"&E77,VolumeData!$J77:$U77) -> 3.550303668 | W77: =SUMIF(SEDData!$H77:$S77,"<"&wasteCutoff*100,VolumeData!$J77:$U77) -> 0.001551736639 | X77: =IF(AND(G77>=sweepCutoff,H77>=malfCutoff),SUMIF(SEDData!$H77:$R77,"<"&pulpCutoff*100,VolumeData!$J77:$U77)-W77,0) -> 0.2367824848 | Y77: 0 | Z77: 3.311969447
A78: 52 | B78: 74 | C78: =BaseData!D77/10 -> 45.5 | D78: 49.49945 | E78: 38.22413358 | F78: 2.794713004 | G78: =BaseData!I77 -> 9 | H78: =BaseData!J77 -> 9 | I78: 0.06951973239 | J78: 0.6886703767 | K78: 0.576660591 | L78: 0.4931798199 | M78: 0.4265998728 | N78: 0.3680992194 | O78: 0.3115935606 | P78: 0.2536663986 | Q78: 0.1934996075 | R78: 0.1328040038 | S78: 0.0757499166 | T78: 0.02978030108 | U78: 0.001551736639 | V78: =SUMIF(J$2:U$2,"<"&E78,VolumeData!$J78:$U78) -> 3.550303668 | W78: =SUMIF(SEDData!$H78:$S78,"<"&wasteCutoff*100,VolumeData!$J78:$U78) -> 0.001551736639 | X78: =IF(AND(G78>=sweepCutoff,H78>=malfCutoff),SUMIF(SEDData!$H78:$R78,"<"&pulpCutoff*100,VolumeData!$J78:$U78)-W78,0) -> 0.2367824848 | Y78: 0 | Z78: 3.311969447
A79: 85 | B79: 118 | C79: =BaseData!D78/10 -> 45.5 | D79: 49.49945 | E79: 38.22413358 | F79: 2.794713004 | G79: =BaseData!I78 -> 3 | H79: =BaseData!J78 -> 1 | I79: 0.06951973239 | J79: 0.6886703767 | K79: 0.576660591 | L79: 0.4931798199 | M79: 0.4265998728 | N79: 0.3680992194 | O79: 0.3115935606 | P79: 0.2536663986 | Q79: 0.1934996075 | R79: 0.1328040038 | S79: 0.0757499166 | T79: 0.02978030108 | U79: 0.001551736639 | V79: =SUMIF(J$2:U$2,"<"&E79,VolumeData!$J79:$U79) -> 3.550303668 | W79: =SUMIF(SEDData!$H79:$S79,"<"&wasteCutoff*100,VolumeData!$J79:$U79) -> 0.001551736639 | X79: =IF(AND(G79>=sweepCutoff,H79>=malfCutoff),SUMIF(SEDData!$H79:$R79,"<"&pulpCutoff*100,VolumeData!$J79:$U79)-W79,0) -> 0 | Y79: 3.548751931 | Z79: 0
A80: 41 | B80: 27 | C80: =BaseData!D79/10 -> 45.4 | D80: 49.39066 | E80: 38.18822817 | F80: 2.779828395 | G80: =BaseData!I79 -> 7 | H80: =BaseData!J79 -> 9 | I80: 0.06921388683 | J80: 0.6855775342 | K80: 0.5739885122 | L80: 0.490837877 | M80: 0.4245213639 | N80: 0.3662394001 | O80: 0.3099276552 | P80: 0.2521875898 | Q80: 0.1922170062 | R80: 0.1317405975 | S80: 0.07494049741 | T80: 0.02923947763 | U80: 0.001456337645 | V80: =SUMIF(J$2:U$2,"<"&E80,VolumeData!$J80:$U80) -> 3.531417511 | W80: =SUMIF(SEDData!$H80:$S80,"<"&wasteCutoff*100,VolumeData!$J80:$U80) -> 0.001456337645 | X80: =IF(AND(G80>=sweepCutoff,H80>=malfCutoff),SUMIF(SEDData!$H80:$R80,"<"&pulpCutoff*100,VolumeData!$J80:$U80)-W80,0) -> 0.2344642349 | Y80: 0 | Z80: 3.295496939
A81: 76 | B81: 73 | C81: =BaseData!D80/10 -> 45.4 | D81: 49.39066 | E81: 38.18822817 | F81: 2.779828395 | G81: =BaseData!I80 -> 7 | H81: =BaseData!J80 -> 1 | I81: 0.06921388683 | J81: 0.6855775342 | K81: 0.5739885122 | L81: 0.490837877 | M81: 0.4245213639 | N81: 0.3662394001 | O81: 0.3099276552 | P81: 0.2521875898 | Q81: 0.1922170062 | R81: 0.1317405975 | S81: 0.07494049741 | T81: 0.02923947763 | U81: 0.001456337645 | V81: =SUMIF(J$2:U$2,"<"&E81,VolumeData!$J81:$U81) -> 3.531417511 | W81: =SUMIF(SEDData!$H81:$S81,"<"&wasteCutoff*100,VolumeData!$J81:$U81) -> 0.001456337645 | X81: =IF(AND(G81>=sweepCutoff,H81>=malfCutoff),SUMIF(SEDData!$H81:$R81,"<"&pulpCutoff*100,VolumeData!$J81:$U81)-W81,0) -> 0 | Y81: 3.529961173 | Z81: 0
A82: 40 | B82: 41 | C82: =BaseData!D81/10 -> 45.3 | D82: 49.28187 | E82: 38.1522436 | F82: 2.76498805 | G82: =BaseData!I81 -> 8 | H82: =BaseData!J81 -> 9 | I82: 0.06890871571 | J82: 0.6824916858 | K82: 0.5713227285 | L82: 0.4885016285 | M82: 0.4224480324 | N82: 0.3643843175 | O82: 0.3082661197 | P82: 0.250712863 | Q82: 0.1909382873 | R82: 0.1306809776 | S82: 0.07413489222 | T82: 0.02870302092 | U82: 0.001364421056 | V82: =SUMIF(J$2:U$2,"<"&E82,VolumeData!$J82:$U82) -> 3.512584553 | W82: =SUMIF(SEDData!$H82:$S82,"<"&wasteCutoff*100,VolumeData!$J82:$U82) -> 0.001364421056 | X82: =IF(AND(G82>=sweepCutoff,H82>=malfCutoff),SUMIF(SEDData!$H82:$R82,"<"&pulpCutoff*100,VolumeData!$J82:$U82)-W82,0) -> 0.2321544697 | Y82: 0 | Z82: 3.279065663
A83: 4 | B83: 49 | C83: =BaseData!D82/10 -> 45.3 | D83: 49.28187 | E83: 38.1522436 | F83: 2.76498805 | G83: =BaseData!I82 -> 7 | H83: =BaseData!J82 -> 9 | I83: 0.06890871571 | J83: 0.6824916858 | K83: 0.5713227285 | L83: 0.4885016285 | M83: 0.4224480324 | N83: 0.3643843175 | O83: 0.3082661197 | P83: 0.250712863 | Q83: 0.1909382873 | R83: 0.1306809776 | S83: 0.07413489222 | T83: 0.02870302092 | U83: 0.001364421056 | V83: =SUMIF(J$2:U$2,"<"&E83,VolumeData!$J83:$U83) -> 3.512584553 | W83: =SUMIF(SEDData!$H83:$S83,"<"&wasteCutoff*100,VolumeData!$J83:$U83) -> 0.001364421056 | X83: =IF(AND(G83>=sweepCutoff,H83>=malfCutoff),SUMIF(SEDData!$H83:$R83,"<"&pulpCutoff*100,VolumeData!$J83:$U83)-W83,0) -> 0.2321544697 | Y83: 0 | Z83: 3.279065663
A84: 33 | B84: 10 | C84: =BaseData!D83/10 -> 45.1 | D84: 49.06429 | E84: 38.08003551 | F84: 2.735440047 | G84: =BaseData!I83 -> 4 | H84: =BaseData!J83 -> 9 | I84: 0.06830039685 | J84: 0.6763409709 | K84: 0.5660100442 | L84: 0.4838462115 | M84: 0.4183168984 | N84: 0.3606883578 | O84: 0.3049561548 | P84: 0.2477756526 | Q84: 0.1883924971 | R84: 0.1285731031 | S84: 0.07253513892 | T84: 0.02764324032 | U84: 0.001190869774 | V84: =SUMIF(J$2:U$2,"<"&E84,VolumeData!$J84:$U84) -> 3.47507827 | W84: =SUMIF(SEDData!$H84:$S84,"<"&wasteCutoff*100,VolumeData!$J84:$U84) -> 0.001190869774 | X84: =IF(AND(G84>=sweepCutoff,H84>=malfCutoff),SUMIF(SEDData!$H84:$R84,"<"&pulpCutoff*100,VolumeData!$J84:$U84)-W84,0) -> 0.2275606126 | Y84: 0 | Z84: 3.246326787
A85: 78 | B85: 51 | C85: =BaseData!D84/10 -> 45 | D85: 48.9555 | E85: 38.0438113 | F85: 2.720732339 | G85: =BaseData!I84 -> 6 | H85: =BaseData!J84 -> 4 | I85: 0.06799724909 | J85: 0.673276104 | K85: 0.5633631428 | L85: 0.4815270417 | M85: 0.416259094 | N85: 0.3588474787 | O85: 0.3033077233 | P85: 0.2463131675 | Q85: 0.1871254259 | R85: 0.1275248514 | S85: 0.07174099849 | T85: 0.027119933 | U85: 0.00110915178 | V85: =SUMIF(J$2:U$2,"<"&E85,VolumeData!$J85:$U85) -> 3.456404961 | W85: =SUMIF(SEDData!$H85:$S85,"<"&wasteCutoff*100,VolumeData!$J85:$U85) -> 0.00110915178 | X85: =IF(AND(G85>=sweepCutoff,H85>=malfCutoff),SUMIF(SEDData!$H85:$R85,"<"&pulpCutoff*100,VolumeData!$J85:$U85)-W85,0) -> 0.2252766311 | Y85: 0 | Z85: 3.230019178
A86: 36 | B86: 92 | C86: =BaseData!D85/10 -> 45 | D86: 48.9555 | E86: 38.0438113 | F86: 2.720732339 | G86: =BaseData!I85 -> 7 | H86: =BaseData!J85 -> 9 | I86: 0.06799724909 | J86: 0.673276104 | K86: 0.5633631428 | L86: 0.4815270417 | M86: 0.416259094 | N86: 0.3588474787 | O86: 0.3033077233 | P86: 0.2463131675 | Q86: 0.1871254259 | R86: 0.1275248514 | S86: 0.07174099849 | T86: 0.027119933 | U86: 0.00110915178 | V86: =SUMIF(J$2:U$2,"<"&E86,VolumeData!$J86:$U86) -> 3.456404961 | W86: =SUMIF(SEDData!$H86:$S86,"<"&wasteCutoff*100,VolumeData!$J86:$U86) -> 0.00110915178 | X86: =IF(AND(G86>=sweepCutoff,H86>=malfCutoff),SUMIF(SEDData!$H86:$R86,"<"&pulpCutoff*100,VolumeData!$J86:$U86)-W86,0) -> 0.2252766311 | Y86: 0 | Z86: 3.230019178
A87: 80 | B87: 50 | C87: =BaseData!D86/10 -> 44.9 | D87: 48.84671 | E87: 38.00750651 | F87: 2.706068792 | G87: =BaseData!I86 -> 7 | H87: =BaseData!J86 -> 9 | I87: 0.06769477577 | J87: 0.6702182305 | K87: 0.5607225345 | L87: 0.4792135634 | M87: 0.4142064635 | N87: 0.357011332 | O87: 0.3016636577 | P87: 0.2448547615 | Q87: 0.1858622373 | R87: 0.1264803921 | S87: 0.07095068741 | T87: 0.02660102553 | U87: 0.001030749583 | V87: =SUMIF(J$2:U$2,"<"&E87,VolumeData!$J87:$U87) -> 3.437784885 | W87: =SUMIF(SEDData!$H87:$S87,"<"&wasteCutoff*100,VolumeData!$J87:$U87) -> 0.001030749583 | X87: =IF(AND(G87>=sweepCutoff,H87>=malfCutoff),SUMIF(SEDData!$H87:$R87,"<"&pulpCutoff*100,VolumeData!$J87:$U87)-W87,0) -> 0.2230013555 | Y87: 0 | Z87: 3.21375278
A88: 3 | B88: 120 | C88: =BaseData!D87/10 -> 44.9 | D88: 48.84671 | E88: 38.00750651 | F88: 2.706068792 | G88: =BaseData!I87 -> 4 | H88: =BaseData!J87 -> 2 | I88: 0.06769477577 | J88: 0.6702182305 | K88: 0.5607225345 | L88: 0.4792135634 | M88: 0.4142064635 | N88: 0.357011332 | O88: 0.3016636577 | P88: 0.2448547615 | Q88: 0.1858622373 | R88: 0.1264803921 | S88: 0.07095068741 | T88: 0.02660102553 | U88: 0.001030749583 | V88: =SUMIF(J$2:U$2,"<"&E88,VolumeData!$J88:$U88) -> 3.437784885 | W88: =SUMIF(SEDData!$H88:$S88,"<"&wasteCutoff*100,VolumeData!$J88:$U88) -> 0.001030749583 | X88: =IF(AND(G88>=sweepCutoff,H88>=malfCutoff),SUMIF(SEDData!$H88:$R88,"<"&pulpCutoff*100,VolumeData!$J88:$U88)-W88,0) -> 0.2230013555 | Y88: 0 | Z88: 3.21375278
A89: 18 | B89: 42 | C89: =BaseData!D88/10 -> 44.8 | D89: 48.73792 | E89: 37.97112076 | F89: 2.691449381 | G89: =BaseData!I88 -> 6 | H89: =BaseData!J88 -> 9 | I89: 0.06739297691 | J89: 0.6671673503 | K89: 0.5580882188 | L89: 0.4769057759 | M89: 0.4121590059 | N89: 0.3551799167 | O89: 0.300023957 | P89: 0.243400434 | Q89: 0.1846029314 | R89: 0.1254397268 | S89: 0.07016420965 | T89: 0.02608652648 | U89: 0.0009556208752 | V89: =SUMIF(J$2:U$2,"<"&E89,VolumeData!$J89:$U89) -> 3.419218053 | W89: =SUMIF(SEDData!$H89:$S89,"<"&wasteCutoff*100,VolumeData!$J89:$U89) -> 0.0009556208752 | X89: =IF(AND(G89>=sweepCutoff,H89>=malfCutoff),SUMIF(SEDData!$H89:$R89,"<"&pulpCutoff*100,VolumeData!$J89:$U89)-W89,0) -> 0.2207348421 | Y89: 0 | Z89: 3.19752759
A90: 52 | B90: 37 | C90: =BaseData!D89/10 -> 44.8 | D90: 48.73792 | E90: 37.97112076 | F90: 2.691449381 | G90: =BaseData!I89 -> 6 | H90: =BaseData!J89 -> 2 | I90: 0.06739297691 | J90: 0.6671673503 | K90: 0.5580882188 | L90: 0.4769057759 | M90: 0.4121590059 | N90: 0.3551799167 | O90: 0.300023957 | P90: 0.243400434 | Q90: 0.1846029314 | R90: 0.1254397268 | S90: 0.07016420965 | T90: 0.02608652648 | U90: 0.0009556208752 | V90: =SUMIF(J$2:U$2,"<"&E90,VolumeData!$J90:$U90) -> 3.419218053 | W90: =SUMIF(SEDData!$H90:$S90,"<"&wasteCutoff*100,VolumeData!$J90:$U90) -> 0.0009556208752 | X90: =IF(AND(G90>=sweepCutoff,H90>=malfCutoff),SUMIF(SEDData!$H90:$R90,"<"&pulpCutoff*100,VolumeData!$J90:$U90)-W90,0) -> 0.2207348421 | Y90: 0 | Z90: 3.19752759
A91: 12 | B91: 54 | C91: =BaseData!D90/10 -> 44.8 | D91: 48.73792 | E91: 37.97112076 | F91: 2.691449381 | G91: =BaseData!I90 -> 7 | H91: =BaseData!J90 -> 9 | I91: 0.06739297691 | J91: 0.6671673503 | K91: 0.5580882188 | L91: 0.4769057759 | M91: 0.4121590059 | N91: 0.3551799167 | O91: 0.300023957 | P91: 0.243400434 | Q91: 0.1846029314 | R91: 0.1254397268 | S91: 0.07016420965 | T91: 0.02608652648 | U91: 0.0009556208752 | V91: =SUMIF(J$2:U$2,"<"&E91,VolumeData!$J91:$U91) -> 3.419218053 | W91: =SUMIF(SEDData!$H91:$S91,"<"&wasteCutoff*100,VolumeData!$J91:$U91) -> 0.0009556208752 | X91: =IF(AND(G91>=sweepCutoff,H91>=malfCutoff),SUMIF(SEDData!$H91:$R91,"<"&pulpCutoff*100,VolumeData!$J91:$U91)-W91,0) -> 0.2207348421 | Y91: 0 | Z91: 3.19752759
A92: 13 | B92: 107 | C92: =BaseData!D91/10 -> 44.8 | D92: 48.73792 | E92: 37.97112076 | F92: 2.691449381 | G92: =BaseData!I91 -> 8 | H92: =BaseData!J91 -> 4 | I92: 0.06739297691 | J92: 0.6671673503 | K92: 0.5580882188 | L92: 0.4769057759 | M92: 0.4121590059 | N92: 0.3551799167 | O92: 0.300023957 | P92: 0.243400434 | Q92: 0.1846029314 | R92: 0.1254397268 | S92: 0.07016420965 | T92: 0.02608652648 | U92: 0.0009556208752 | V92: =SUMIF(J$2:U$2,"<"&E92,VolumeData!$J92:$U92) -> 3.419218053 | W92: =SUMIF(SEDData!$H92:$S92,"<"&wasteCutoff*100,VolumeData!$J92:$U92) -> 0.0009556208752 | X92: =IF(AND(G92>=sweepCutoff,H92>=malfCutoff),SUMIF(SEDData!$H92:$R92,"<"&pulpCutoff*100,VolumeData!$J92:$U92)-W92,0) -> 0.2207348421 | Y92: 0 | Z92: 3.19752759
A93: 11 | B93: 108 | C93: =BaseData!D92/10 -> 44.8 | D93: 48.73792 | E93: 37.97112076 | F93: 2.691449381 | G93: =BaseData!I92 -> 6 | H93: =BaseData!J92 -> 4 | I93: 0.06739297691 | J93: 0.6671673503 | K93: 0.5580882188 | L93: 0.4769057759 | M93: 0.4121590059 | N93: 0.3551799167 | O93: 0.300023957 | P93: 0.243400434 | Q93: 0.1846029314 | R93: 0.1254397268 | S93: 0.07016420965 | T93: 0.02608652648 | U93: 0.0009556208752 | V93: =SUMIF(J$2:U$2,"<"&E93,VolumeData!$J93:$U93) -> 3.419218053 | W93: =SUMIF(SEDData!$H93:$S93,"<"&wasteCutoff*100,VolumeData!$J93:$U93) -> 0.0009556208752 | X93: =IF(AND(G93>=sweepCutoff,H93>=malfCutoff),SUMIF(SEDData!$H93:$R93,"<"&pulpCutoff*100,VolumeData!$J93:$U93)-W93,0) -> 0.2207348421 | Y93: 0 | Z93: 3.19752759
A94: 9 | B94: 95 | C94: =BaseData!D93/10 -> 44.7 | D94: 48.62913 | E94: 37.93465371 | F94: 2.67687408 | G94: =BaseData!I93 -> 7 | H94: =BaseData!J93 -> 2 | I94: 0.06709185249 | J94: 0.664123463 | K94: 0.5554601954 | L94: 0.4746036785 | M94: 0.4101167204 | N94: 0.3533532318 | O94: 0.2983886201 | P94: 0.2419501842 | Q94: 0.1833475084 | R94: 0.1244028571 | S94: 0.06938156925 | T94: 0.02557644451 | U94: 0.000883723082 | V94: =SUMIF(J$2:U$2,"<"&E94,VolumeData!$J94:$U94) -> 3.400704473 | W94: =SUMIF(SEDData!$H94:$S94,"<"&wasteCutoff*100,VolumeData!$J94:$U94) -> 0.000883723082 | X94: =IF(AND(G94>=sweepCutoff,H94>=malfCutoff),SUMIF(SEDData!$H94:$R94,"<"&pulpCutoff*100,VolumeData!$J94:$U94)-W94,0) -> 0.2184771478 | Y94: 0 | Z94: 3.181343602
A95: 59 | B95: 80 | C95: =BaseData!D94/10 -> 44.6 | D95: 48.52034 | E95: 37.89810498 | F95: 2.662342863 | G95: =BaseData!I94 -> 8 | H95: =BaseData!J94 -> 9 | I95: 0.06679140251 | J95: 0.6610865686 | K95: 0.5528384636 | L95: 0.4723072704 | M95: 0.408079606 | N95: 0.3515312762 | O95: 0.2967576461 | P95: 0.2405040114 | Q95: 0.1820959682 | R95: 0.1233697845 | S95: 0.0686027703 | T95: 0.02507078838 | U95: 0.0008150133558 | V95: =SUMIF(J$2:U$2,"<"&E95,VolumeData!$J95:$U95) -> 3.382244154 | W95: =SUMIF(SEDData!$H95:$S95,"<"&wasteCutoff*100,VolumeData!$J95:$U95) -> 0.0008150133558 | X95: =IF(AND(G95>=sweepCutoff,H95>=malfCutoff),SUMIF(SEDData!$H95:$R95,"<"&pulpCutoff*100,VolumeData!$J95:$U95)-W95,0) -> 0.2162283298 | Y95: 0 | Z95: 3.165200811
A96: 59 | B96: 84 | C96: =BaseData!D95/10 -> 44.6 | D96: 48.52034 | E96: 37.89810498 | F96: 2.662342863 | G96: =BaseData!I95 -> 8 | H96: =BaseData!J95 -> 9 | I96: 0.06679140251 | J96: 0.6610865686 | K96: 0.5528384636 | L96: 0.4723072704 | M96: 0.408079606 | N96: 0.3515312762 | O96: 0.2967576461 | P96: 0.2405040114 | Q96: 0.1820959682 | R96: 0.1233697845 | S96: 0.0686027703 | T96: 0.02507078838 | U96: 0.0008150133558 | V96: =SUMIF(J$2:U$2,"<"&E96,VolumeData!$J96:$U96) -> 3.382244154 | W96: =SUMIF(SEDData!$H96:$S96,"<"&wasteCutoff*100,VolumeData!$J96:$U96) -> 0.0008150133558 | X96: =IF(AND(G96>=sweepCutoff,H96>=malfCutoff),SUMIF(SEDData!$H96:$R96,"<"&pulpCutoff*100,VolumeData!$J96:$U96)-W96,0) -> 0.2162283298 | Y96: 0 | Z96: 3.165200811
A97: 71 | B97: 108 | C97: =BaseData!D96/10 -> 44.6 | D97: 48.52034 | E97: 37.89810498 | F97: 2.662342863 | G97: =BaseData!I96 -> 9 | H97: =BaseData!J96 -> 9 | I97: 0.06679140251 | J97: 0.6610865686 | K97: 0.5528384636 | L97: 0.4723072704 | M97: 0.408079606 | N97: 0.3515312762 | O97: 0.2967576461 | P97: 0.2405040114 | Q97: 0.1820959682 | R97: 0.1233697845 | S97: 0.0686027703 | T97: 0.02507078838 | U97: 0.0008150133558 | V97: =SUMIF(J$2:U$2,"<"&E97,VolumeData!$J97:$U97) -> 3.382244154 | W97: =SUMIF(SEDData!$H97:$S97,"<"&wasteCutoff*100,VolumeData!$J97:$U97) -> 0.0008150133558 | X97: =IF(AND(G97>=sweepCutoff,H97>=malfCutoff),SUMIF(SEDData!$H97:$R97,"<"&pulpCutoff*100,VolumeData!$J97:$U97)-W97,0) -> 0.2162283298 | Y97: 0 | Z97: 3.165200811
A98: 17 | B98: 122 | C98: =BaseData!D97/10 -> 44.6 | D98: 48.52034 | E98: 37.89810498 | F98: 2.662342863 | G98: =BaseData!I97 -> 2 | H98: =BaseData!J97 -> 1 | I98: 0.06679140251 | J98: 0.6610865686 | K98: 0.5528384636 | L98: 0.4723072704 | M98: 0.408079606 | N98: 0.3515312762 | O98: 0.2967576461 | P98: 0.2405040114 | Q98: 0.1820959682 | R98: 0.1233697845 | S98: 0.0686027703 | T98: 0.02507078838 | U98: 0.0008150133558 | V98: =SUMIF(J$2:U$2,"<"&E98,VolumeData!$J98:$U98) -> 3.382244154 | W98: =SUMIF(SEDData!$H98:$S98,"<"&wasteCutoff*100,VolumeData!$J98:$U98) -> 0.0008150133558 | X98: =IF(AND(G98>=sweepCutoff,H98>=malfCutoff),SUMIF(SEDData!$H98:$R98,"<"&pulpCutoff*100,VolumeData!$J98:$U98)-W98,0) -> 0 | Y98: 3.38142914 | Z98: 0
A99: 44 | B99: 11 | C99: =BaseData!D98/10 -> 44.5 | D99: 48.41155 | E99: 37.86147421 | F99: 2.647855704 | G99: =BaseData!I98 -> 9 | H99: =BaseData!J98 -> 9 | I99: 0.06649162698 | J99: 0.6580566669 | K99: 0.5502230231 | L99: 0.4700165511 | M99: 0.4060476618 | N99: 0.3497140487 | O99: 0.2951310339 | P99: 0.2390619149 | Q99: 0.1808483112 | R99: 0.1223405107 | S99: 0.06782781695 | T99: 0.02456956698 | U99: 0.0007494485734 | V99: =SUMIF(J$2:U$2,"<"&E99,VolumeData!$J99:$U99) -> 3.363837106 | W99: =SUMIF(SEDData!$H99:$S99,"<"&wasteCutoff*100,VolumeData!$J99:$U99) -> 0.0007494485734 | X99: =IF(AND(G99>=sweepCutoff,H99>=malfCutoff),SUMIF(SEDData!$H99:$R99,"<"&pulpCutoff*100,VolumeData!$J99:$U99)-W99,0) -> 0.2139884461 | Y99: 0 | Z99: 3.149099212
A100: 48 | B100: 37 | C100: =BaseData!D99/10 -> 44.5 | D100: 48.41155 | E100: 37.86147421 | F100: 2.647855704 | G100: =BaseData!I99 -> 8 | H100: =BaseData!J99 -> 9 | I100: 0.06649162698 | J100: 0.6580566669 | K100: 0.5502230231 | L100: 0.4700165511 | M100: 0.4060476618 | N100: 0.3497140487 | O100: 0.2951310339 | P100: 0.2390619149 | Q100: 0.1808483112 | R100: 0.1223405107 | S100: 0.06782781695 | T100: 0.02456956698 | U100: 0.0007494485734 | V100: =SUMIF(J$2:U$2,"<"&E100,VolumeData!$J100:$U100) -> 3.363837106 | W100: =SUMIF(SEDData!$H100:$S100,"<"&wasteCutoff*100,VolumeData!$J100:$U100) -> 0.0007494485734 | X100: =IF(AND(G100>=sweepCutoff,H100>=malfCutoff),SUMIF(SEDData!$H100:$R100,"<"&pulpCutoff*100,VolumeData!$J100:$U100)-W100,0) -> 0.2139884461 | Y100: 0 | Z100: 3.149099212
A101: 80 | B101: 41 | C101: =BaseData!D100/10 -> 44.5 | D101: 48.41155 | E101: 37.86147421 | F101: 2.647855704 | G101: =BaseData!I100 -> 6 | H101: =BaseData!J100 -> 2 | I101: 0.06649162698 | J101: 0.6580566669 | K101: 0.5502230231 | L101: 0.4700165511 | M101: 0.4060476618 | N101: 0.3497140487 | O101: 0.2951310339 | P101: 0.2390619149 | Q101: 0.1808483112 | R101: 0.1223405107 | S101: 0.06782781695 | T101: 0.02456956698 | U101: 0.0007494485734 | V101: =SUMIF(J$2:U$2,"<"&E101,VolumeData!$J101:$U101) -> 3.363837106 | W101: =SUMIF(SEDData!$H101:$S101,"<"&wasteCutoff*100,VolumeData!$J101:$U101) -> 0.0007494485734 | X101: =IF(AND(G101>=sweepCutoff,H101>=malfCutoff),SUMIF(SEDData!$H101:$R101,"<"&pulpCutoff*100,VolumeData!$J101:$U101)-W101,0) -> 0.2139884461 | Y101: 0 | Z101: 3.149099212
A102: 23 | B102: 48 | C102: =BaseData!D101/10 -> 44.5 | D102: 48.41155 | E102: 37.86147421 | F102: 2.647855704 | G102: =BaseData!I101 -> 7 | H102: =BaseData!J101 -> 2 | I102: 0.06649162698 | J102: 0.6580566669 | K102: 0.5502230231 | L102: 0.4700165511 | M102: 0.4060476618 | N102: 0.3497140487 | O102: 0.2951310339 | P102: 0.2390619149 | Q102: 0.1808483112 | R102: 0.1223405107 | S102: 0.06782781695 | T102: 0.02456956698 | U102: 0.0007494485734 | V102: =SUMIF(J$2:U$2,"<"&E102,VolumeData!$J102:$U102) -> 3.363837106 | W102: =SUMIF(SEDData!$H102:$S102,"<"&wasteCutoff*100,VolumeData!$J102:$U102) -> 0.0007494485734 | X102: =IF(AND(G102>=sweepCutoff,H102>=malfCutoff),SUMIF(SEDData!$H102:$R102,"<"&pulpCutoff*100,VolumeData!$J102:$U102)-W102,0) -> 0.2139884461 | Y102: 0 | Z102: 3.149099212
A103: 6 | B103: 93 | C103: =BaseData!D102/10 -> 44.5 | D103: 48.41155 | E103: 37.86147421 | F103: 2.647855704 | G103: =BaseData!I102 -> 6 | H103: =BaseData!J102 -> 4 | I103: 0.06649162698 | J103: 0.6580566669 | K103: 0.5502230231 | L103: 0.4700165511 | M103: 0.4060476618 | N103: 0.3497140487 | O103: 0.2951310339 | P103: 0.2390619149 | Q103: 0.1808483112 | R103: 0.1223405107 | S103: 0.06782781695 | T103: 0.02456956698 | U103: 0.0007494485734 | V103: =SUMIF(J$2:U$2,"<"&E103,VolumeData!$J103:$U103) -> 3.363837106 | W103: =SUMIF(SEDData!$H103:$S103,"<"&wasteCutoff*100,VolumeData!$J103:$U103) -> 0.0007494485734 | X103: =IF(AND(G103>=sweepCutoff,H103>=malfCutoff),SUMIF(SEDData!$H103:$R103,"<"&pulpCutoff*100,VolumeData!$J103:$U103)-W103,0) -> 0.2139884461 | Y103: 0 | Z103: 3.149099212
A104: 78 | B104: 93 | C104: =BaseData!D103/10 -> 44.5 | D104: 48.41155 | E104: 37.86147421 | F104: 2.647855704 | G104: =BaseData!I103 -> 7 | H104: =BaseData!J103 -> 9 | I104: 0.06649162698 | J104: 0.6580566669 | K104: 0.5502230231 | L104: 0.4700165511 | M104: 0.4060476618 | N104: 0.3497140487 | O104: 0.2951310339 | P104: 0.2390619149 | Q104: 0.1808483112 | R104: 0.1223405107 | S104: 0.06782781695 | T104: 0.02456956698 | U104: 0.0007494485734 | V104: =SUMIF(J$2:U$2,"<"&E104,VolumeData!$J104:$U104) -> 3.363837106 | W104: =SUMIF(SEDData!$H104:$S104,"<"&wasteCutoff*100,VolumeData!$J104:$U104) -> 0.0007494485734 | X104: =IF(AND(G104>=sweepCutoff,H104>=malfCutoff),SUMIF(SEDData!$H104:$R104,"<"&pulpCutoff*100,VolumeData!$J104:$U104)-W104,0) -> 0.2139884461 | Y104: 0 | Z104: 3.149099212
A105: 70 | B105: 105 | C105: =BaseData!D104/10 -> 44.5 | D105: 48.41155 | E105: 37.86147421 | F105: 2.647855704 | G105: =BaseData!I104 -> 6 | H105: =BaseData!J104 -> 2 | I105: 0.06649162698 | J105: 0.6580566669 | K105: 0.5502230231 | L105: 0.4700165511 | M105: 0.4060476618 | N105: 0.3497140487 | O105: 0.2951310339 | P105: 0.2390619149 | Q105: 0.1808483112 | R105: 0.1223405107 | S105: 0.06782781695 | T105: 0.02456956698 | U105: 0.0007494485734 | V105: =SUMIF(J$2:U$2,"<"&E105,VolumeData!$J105:$U105) -> 3.363837106 | W105: =SUMIF(SEDData!$H105:$S105,"<"&wasteCutoff*100,VolumeData!$J105:$U105) -> 0.0007494485734 | X105: =IF(AND(G105>=sweepCutoff,H105>=malfCutoff),SUMIF(SEDData!$H105:$R105,"<"&pulpCutoff*100,VolumeData!$J105:$U105)-W105,0) -> 0.2139884461 | Y105: 0 | Z105: 3.149099212
A106: 19 | B106: 21 | C106: =BaseData!D105/10 -> 44.4 | D106: 48.30276 | E106: 37.82476103 | F106: 2.633412578 | G106: =BaseData!I105 -> 8 | H106: =BaseData!J105 -> 9 | I106: 0.06619252588 | J106: 0.6550337575 | K106: 0.5476138734 | L106: 0.4677315196 | M106: 0.4040208869 | N106: 0.3479015485 | O106: 0.2935087825 | P106: 0.237623894 | Q106: 0.1796045372 | R106: 0.1213150375 | S106: 0.0670567134 | T106: 0.02407278932 | U106: 0.0006869853326 | V106: =SUMIF(J$2:U$2,"<"&E106,VolumeData!$J106:$U106) -> 3.34548334 | W106: =SUMIF(SEDData!$H106:$S106,"<"&wasteCutoff*100,VolumeData!$J106:$U106) -> 0.0006869853326 | X106: =IF(AND(G106>=sweepCutoff,H106>=malfCutoff),SUMIF(SEDData!$H106:$R106,"<"&pulpCutoff*100,VolumeData!$J106:$U106)-W106,0) -> 0.2117575548 | Y106: 0 | Z106: 3.1330388
A107: 29 | B107: 23 | C107: =BaseData!D106/10 -> 44.4 | D107: 48.30276 | E107: 37.82476103 | F107: 2.633412578 | G107: =BaseData!I106 -> 8 | H107: =BaseData!J106 -> 4 | I107: 0.06619252588 | J107: 0.6550337575 | K107: 0.5476138734 | L107: 0.4677315196 | M107: 0.4040208869 | N107: 0.3479015485 | O107: 0.2935087825 | P107: 0.237623894 | Q107: 0.1796045372 | R107: 0.1213150375 | S107: 0.0670567134 | T107: 0.02407278932 | U107: 0.0006869853326 | V107: =SUMIF(J$2:U$2,"<"&E107,VolumeData!$J107:$U107) -> 3.34548334 | W107: =SUMIF(SEDData!$H107:$S107,"<"&wasteCutoff*100,VolumeData!$J107:$U107) -> 0.0006869853326 | X107: =IF(AND(G107>=sweepCutoff,H107>=malfCutoff),SUMIF(SEDData!$H107:$R107,"<"&pulpCutoff*100,VolumeData!$J107:$U107)-W107,0) -> 0.2117575548 | Y107: 0 | Z107: 3.1330388
A108: 2 | B108: 37 | C108: =BaseData!D107/10 -> 44.4 | D108: 48.30276 | E108: 37.82476103 | F108: 2.633412578 | G108: =BaseData!I107 -> 7 | H108: =BaseData!J107 -> 9 | I108: 0.06619252588 | J108: 0.6550337575 | K108: 0.5476138734 | L108: 0.4677315196 | M108: 0.4040208869 | N108: 0.3479015485 | O108: 0.2935087825 | P108: 0.237623894 | Q108: 0.1796045372 | R108: 0.1213150375 | S108: 0.0670567134 | T108: 0.02407278932 | U108: 0.0006869853326 | V108: =SUMIF(J$2:U$2,"<"&E108,VolumeData!$J108:$U108) -> 3.34548334 | W108: =SUMIF(SEDData!$H108:$S108,"<"&wasteCutoff*100,VolumeData!$J108:$U108) -> 0.0006869853326 | X108: =IF(AND(G108>=sweepCutoff,H108>=malfCutoff),SUMIF(SEDData!$H108:$R108,"<"&pulpCutoff*100,VolumeData!$J108:$U108)-W108,0) -> 0.2117575548 | Y108: 0 | Z108: 3.1330388
A109: 69 | B109: 25 | C109: =BaseData!D108/10 -> 44.4 | D109: 48.30276 | E109: 37.82476103 | F109: 2.633412578 | G109: =BaseData!I108 -> 6 | H109: =BaseData!J108 -> 2 | I109: 0.06619252588 | J109: 0.6550337575 | K109: 0.5476138734 | L109: 0.4677315196 | M109: 0.4040208869 | N109: 0.3479015485 | O109: 0.2935087825 | P109: 0.237623894 | Q109: 0.1796045372 | R109: 0.1213150375 | S109: 0.0670567134 | T109: 0.02407278932 | U109: 0.0006869853326 | V109: =SUMIF(J$2:U$2,"<"&E109,VolumeData!$J109:$U109) -> 3.34548334 | W109: =SUMIF(SEDData!$H109:$S109,"<"&wasteCutoff*100,VolumeData!$J109:$U109) -> 0.0006869853326 | X109: =IF(AND(G109>=sweepCutoff,H109>=malfCutoff),SUMIF(SEDData!$H109:$R109,"<"&pulpCutoff*100,VolumeData!$J109:$U109)-W109,0) -> 0.2117575548 | Y109: 0 | Z109: 3.1330388
A110: 65 | B110: 72 | C110: =BaseData!D109/10 -> 44.4 | D110: 48.30276 | E110: 37.82476103 | F110: 2.633412578 | G110: =BaseData!I109 -> 9 | H110: =BaseData!J109 -> 9 | I110: 0.06619252588 | J110: 0.6550337575 | K110: 0.5476138734 | L110: 0.4677315196 | M110: 0.4040208869 | N110: 0.3479015485 | O110: 0.2935087825 | P110: 0.237623894 | Q110: 0.1796045372 | R110: 0.1213150375 | S110: 0.0670567134 | T110: 0.02407278932 | U110: 0.0006869853326 | V110: =SUMIF(J$2:U$2,"<"&E110,VolumeData!$J110:$U110) -> 3.34548334 | W110: =SUMIF(SEDData!$H110:$S110,"<"&wasteCutoff*100,VolumeData!$J110:$U110) -> 0.0006869853326 | X110: =IF(AND(G110>=sweepCutoff,H110>=malfCutoff),SUMIF(SEDData!$H110:$R110,"<"&pulpCutoff*100,VolumeData!$J110:$U110)-W110,0) -> 0.2117575548 | Y110: 0 | Z110: 3.1330388
A111: 39 | B111: 105 | C111: =BaseData!D110/10 -> 44.4 | D111: 48.30276 | E111: 37.82476103 | F111: 2.633412578 | G111: =BaseData!I110 -> 6 | H111: =BaseData!J110 -> 9 | I111: 0.06619252588 | J111: 0.6550337575 | K111: 0.5476138734 | L111: 0.4677315196 | M111: 0.4040208869 | N111: 0.3479015485 | O111: 0.2935087825 | P111: 0.237623894 | Q111: 0.1796045372 | R111: 0.1213150375 | S111: 0.0670567134 | T111: 0.02407278932 | U111: 0.0006869853326 | V111: =SUMIF(J$2:U$2,"<"&E111,VolumeData!$J111:$U111) -> 3.34548334 | W111: =SUMIF(SEDData!$H111:$S111,"<"&wasteCutoff*100,VolumeData!$J111:$U111) -> 0.0006869853326 | X111: =IF(AND(G111>=sweepCutoff,H111>=malfCutoff),SUMIF(SEDData!$H111:$R111,"<"&pulpCutoff*100,VolumeData!$J111:$U111)-W111,0) -> 0.2117575548 | Y111: 0 | Z111: 3.1330388
A112: 73 | B112: 53 | C112: =BaseData!D111/10 -> 44.3 | D112: 48.19397 | E112: 37.78796508 | F112: 2.619013458 | G112: =BaseData!I111 -> 7 | H112: =BaseData!J111 -> 2 | I112: 0.06589409923 | J112: 0.6520178404 | K112: 0.5450110139 | L112: 0.4654521754 | M112: 0.4019992803 | N112: 0.3460937743 | O112: 0.2918908908 | P112: 0.236189948 | Q112: 0.1783646466 | R112: 0.1202933663 | S112: 0.06628946392 | T112: 0.02358046452 | U112: 0.0006275799484 | V112: =SUMIF(J$2:U$2,"<"&E112,VolumeData!$J112:$U112) -> 3.327182865 | W112: =SUMIF(SEDData!$H112:$S112,"<"&wasteCutoff*100,VolumeData!$J112:$U112) -> 0.0006275799484 | X112: =IF(AND(G112>=sweepCutoff,H112>=malfCutoff),SUMIF(SEDData!$H112:$R112,"<"&pulpCutoff*100,VolumeData!$J112:$U112)-W112,0) -> 0.2095357148 | Y112: 0 | Z112: 3.11701957
A113: 42 | B113: 69 | C113: =BaseData!D112/10 -> 44.3 | D113: 48.19397 | E113: 37.78796508 | F113: 2.619013458 | G113: =BaseData!I112 -> 7 | H113: =BaseData!J112 -> 4 | I113: 0.06589409923 | J113: 0.6520178404 | K113: 0.5450110139 | L113: 0.4654521754 | M113: 0.4019992803 | N113: 0.3460937743 | O113: 0.2918908908 | P113: 0.236189948 | Q113: 0.1783646466 | R113: 0.1202933663 | S113: 0.06628946392 | T113: 0.02358046452 | U113: 0.0006275799484 | V113: =SUMIF(J$2:U$2,"<"&E113,VolumeData!$J113:$U113) -> 3.327182865 | W113: =SUMIF(SEDData!$H113:$S113,"<"&wasteCutoff*100,VolumeData!$J113:$U113) -> 0.0006275799484 | X113: =IF(AND(G113>=sweepCutoff,H113>=malfCutoff),SUMIF(SEDData!$H113:$R113,"<"&pulpCutoff*100,VolumeData!$J113:$U113)-W113,0) -> 0.2095357148 | Y113: 0 | Z113: 3.11701957
A114: 8 | B114: 101 | C114: =BaseData!D113/10 -> 44.2 | D114: 48.08518 | E114: 37.75108597 | F114: 2.604658319 | G114: =BaseData!I113 -> 4 | H114: =BaseData!J113 -> 2 | I114: 0.06559634701 | J114: 0.6490089152 | K114: 0.5424144442 | L114: 0.4631785178 | M114: 0.3999828412 | N114: 0.3442907252 | O114: 0.2902773578 | P114: 0.2347600763 | Q114: 0.1771286394 | R114: 0.1192754992 | S114: 0.06552607285 | T114: 0.0230926018 | U114: 0.0005711884492 | V114: =SUMIF(J$2:U$2,"<"&E114,VolumeData!$J114:$U114) -> 3.308935691 | W114: =SUMIF(SEDData!$H114:$S114,"<"&wasteCutoff*100,VolumeData!$J114:$U114) -> 0.0005711884492 | X114: =IF(AND(G114>=sweepCutoff,H114>=malfCutoff),SUMIF(SEDData!$H114:$R114,"<"&pulpCutoff*100,VolumeData!$J114:$U114)-W114,0) -> 0.2073229854 | Y114: 0 | Z114: 3.101041517
A115: 1 | B115: 103 | C115: =BaseData!D114/10 -> 44.2 | D115: 48.08518 | E115: 37.75108597 | F115: 2.604658319 | G115: =BaseData!I114 -> 6 | H115: =BaseData!J114 -> 9 | I115: 0.06559634701 | J115: 0.6490089152 | K115: 0.5424144442 | L115: 0.4631785178 | M115: 0.3999828412 | N115: 0.3442907252 | O115: 0.2902773578 | P115: 0.2347600763 | Q115: 0.1771286394 | R115: 0.1192754992 | S115: 0.06552607285 | T115: 0.0230926018 | U115: 0.0005711884492 | V115: =SUMIF(J$2:U$2,"<"&E115,VolumeData!$J115:$U115) -> 3.308935691 | W115: =SUMIF(SEDData!$H115:$S115,"<"&wasteCutoff*100,VolumeData!$J115:$U115) -> 0.0005711884492 | X115: =IF(AND(G115>=sweepCutoff,H115>=malfCutoff),SUMIF(SEDData!$H115:$R115,"<"&pulpCutoff*100,VolumeData!$J115:$U115)-W115,0) -> 0.2073229854 | Y115: 0 | Z115: 3.101041517
A116: 18 | B116: 102 | C116: =BaseData!D115/10 -> 44.2 | D116: 48.08518 | E116: 37.75108597 | F116: 2.604658319 | G116: =BaseData!I115 -> 2 | H116: =BaseData!J115 -> 7 | I116: 0.06559634701 | J116: 0.6490089152 | K116: 0.5424144442 | L116: 0.4631785178 | M116: 0.3999828412 | N116: 0.3442907252 | O116: 0.2902773578 | P116: 0.2347600763 | Q116: 0.1771286394 | R116: 0.1192754992 | S116: 0.06552607285 | T116: 0.0230926018 | U116: 0.0005711884492 | V116: =SUMIF(J$2:U$2,"<"&E116,VolumeData!$J116:$U116) -> 3.308935691 | W116: =SUMIF(SEDData!$H116:$S116,"<"&wasteCutoff*100,VolumeData!$J116:$U116) -> 0.0005711884492 | X116: =IF(AND(G116>=sweepCutoff,H116>=malfCutoff),SUMIF(SEDData!$H116:$R116,"<"&pulpCutoff*100,VolumeData!$J116:$U116)-W116,0) -> 0 | Y116: 3.308364502 | Z116: 0
A117: 42 | B117: 91 | C117: =BaseData!D116/10 -> 44.2 | D117: 48.08518 | E117: 37.75108597 | F117: 2.604658319 | G117: =BaseData!I116 -> 6 | H117: =BaseData!J116 -> 9 | I117: 0.06559634701 | J117: 0.6490089152 | K117: 0.5424144442 | L117: 0.4631785178 | M117: 0.3999828412 | N117: 0.3442907252 | O117: 0.2902773578 | P117: 0.2347600763 | Q117: 0.1771286394 | R117: 0.1192754992 | S117: 0.06552607285 | T117: 0.0230926018 | U117: 0.0005711884492 | V117: =SUMIF(J$2:U$2,"<"&E117,VolumeData!$J117:$U117) -> 3.308935691 | W117: =SUMIF(SEDData!$H117:$S117,"<"&wasteCutoff*100,VolumeData!$J117:$U117) -> 0.0005711884492 | X117: =IF(AND(G117>=sweepCutoff,H117>=malfCutoff),SUMIF(SEDData!$H117:$R117,"<"&pulpCutoff*100,VolumeData!$J117:$U117)-W117,0) -> 0.2073229854 | Y117: 0 | Z117: 3.101041517
A118: 10 | B118: 11 | C118: =BaseData!D117/10 -> 44.1 | D118: 47.97639 | E118: 37.71412332 | F118: 2.590347134 | G118: =BaseData!I117 -> 7 | H118: =BaseData!J117 -> 9 | I118: 0.06529926922 | J118: 0.6460069819 | K118: 0.5398241638 | L118: 0.4609105458 | M118: 0.3979715685 | N118: 0.3424924 | O118: 0.2886681824 | P118: 0.233334278 | Q118: 0.1758965158 | R118: 0.1182614377 | S118: 0.06476654457 | T118: 0.02260921054 | U118: 0.0005177665731 | V118: =SUMIF(J$2:U$2,"<"&E118,VolumeData!$J118:$U118) -> 3.290741829 | W118: =SUMIF(SEDData!$H118:$S118,"<"&wasteCutoff*100,VolumeData!$J118:$U118) -> 0.0005177665731 | X118: =IF(AND(G118>=sweepCutoff,H118>=malfCutoff),SUMIF(SEDData!$H118:$R118,"<"&pulpCutoff*100,VolumeData!$J118:$U118)-W118,0) -> 0.2051194262 | Y118: 0 | Z118: 3.085104636
A119: 13 | B119: 62 | C119: =BaseData!D118/10 -> 44 | D119: 47.8676 | E119: 37.67707677 | F119: 2.576079878 | G119: =BaseData!I118 -> 6 | H119: =BaseData!J118 -> 2 | I119: 0.06500286587 | J119: 0.6430120402 | K119: 0.5372401723 | L119: 0.458648259 | M119: 0.3959654614 | N119: 0.3406987976 | O119: 0.2870633636 | P119: 0.2319125526 | Q119: 0.174668276 | R119: 0.1172511836 | S119: 0.06401088354 | T119: 0.0221303002 | U119: 0.000467269764 | V119: =SUMIF(J$2:U$2,"<"&E119,VolumeData!$J119:$U119) -> 3.27260129 | W119: =SUMIF(SEDData!$H119:$S119,"<"&wasteCutoff*100,VolumeData!$J119:$U119) -> 0.000467269764 | X119: =IF(AND(G119>=sweepCutoff,H119>=malfCutoff),SUMIF(SEDData!$H119:$R119,"<"&pulpCutoff*100,VolumeData!$J119:$U119)-W119,0) -> 0.2029250976 | Y119: 0 | Z119: 3.069208923
A120: 46 | B120: 49 | C120: =BaseData!D119/10 -> 44 | D120: 47.8676 | E120: 37.67707677 | F120: 2.576079878 | G120: =BaseData!I119 -> 6 | H120: =BaseData!J119 -> 2 | I120: 0.06500286587 | J120: 0.6430120402 | K120: 0.5372401723 | L120: 0.458648259 | M120: 0.3959654614 | N120: 0.3406987976 | O120: 0.2870633636 | P120: 0.2319125526 | Q120: 0.174668276 | R120: 0.1172511836 | S120: 0.06401088354 | T120: 0.0221303002 | U120: 0.000467269764 | V120: =SUMIF(J$2:U$2,"<"&E120,VolumeData!$J120:$U120) -> 3.27260129 | W120: =SUMIF(SEDData!$H120:$S120,"<"&wasteCutoff*100,VolumeData!$J120:$U120) -> 0.000467269764 | X120: =IF(AND(G120>=sweepCutoff,H120>=malfCutoff),SUMIF(SEDData!$H120:$R120,"<"&pulpCutoff*100,VolumeData!$J120:$U120)-W120,0) -> 0.2029250976 | Y120: 0 | Z120: 3.069208923
A121: 9 | B121: 116 | C121: =BaseData!D120/10 -> 44 | D121: 47.8676 | E121: 37.67707677 | F121: 2.576079878 | G121: =BaseData!I120 -> 4 | H121: =BaseData!J120 -> 3 | I121: 0.06500286587 | J121: 0.6430120402 | K121: 0.5372401723 | L121: 0.458648259 | M121: 0.3959654614 | N121: 0.3406987976 | O121: 0.2870633636 | P121: 0.2319125526 | Q121: 0.174668276 | R121: 0.1172511836 | S121: 0.06401088354 | T121: 0.0221303002 | U121: 0.000467269764 | V121: =SUMIF(J$2:U$2,"<"&E121,VolumeData!$J121:$U121) -> 3.27260129 | W121: =SUMIF(SEDData!$H121:$S121,"<"&wasteCutoff*100,VolumeData!$J121:$U121) -> 0.000467269764 | X121: =IF(AND(G121>=sweepCutoff,H121>=malfCutoff),SUMIF(SEDData!$H121:$R121,"<"&pulpCutoff*100,VolumeData!$J121:$U121)-W121,0) -> 0.2029250976 | Y121: 0 | Z121: 3.069208923
A122: 72 | B122: 72 | C122: =BaseData!D121/10 -> 43.9 | D122: 47.75881 | E122: 37.63994592 | F122: 2.561856524 | G122: =BaseData!I121 -> 6 | H122: =BaseData!J121 -> 9 | I122: 0.06470713695 | J122: 0.6400240898 | K122: 0.5346624691 | L122: 0.4563916564 | M122: 0.3939645188 | N122: 0.3389099171 | O122: 0.2854629003 | P122: 0.2304948993 | Q122: 0.1734439202 | R122: 0.1162447389 | S122: 0.06325909428 | T122: 0.02165588041 | U122: 0.0004196531681 | V122: =SUMIF(J$2:U$2,"<"&E122,VolumeData!$J122:$U122) -> 3.254514085 | W122: =SUMIF(SEDData!$H122:$S122,"<"&wasteCutoff*100,VolumeData!$J122:$U122) -> 0.0004196531681 | X122: =IF(AND(G122>=sweepCutoff,H122>=malfCutoff),SUMIF(SEDData!$H122:$R122,"<"&pulpCutoff*100,VolumeData!$J122:$U122)-W122,0) -> 0.3741839806 | Y122: 0 | Z122: 2.879910451
A123: 10 | B123: 85 | C123: =BaseData!D122/10 -> 43.9 | D123: 47.75881 | E123: 37.63994592 | F123: 2.561856524 | G123: =BaseData!I122 -> 7 | H123: =BaseData!J122 -> 2 | I123: 0.06470713695 | J123: 0.6400240898 | K123: 0.5346624691 | L123: 0.4563916564 | M123: 0.3939645188 | N123: 0.3389099171 | O123: 0.2854629003 | P123: 0.2304948993 | Q123: 0.1734439202 | R123: 0.1162447389 | S123: 0.06325909428 | T123: 0.02165588041 | U123: 0.0004196531681 | V123: =SUMIF(J$2:U$2,"<"&E123,VolumeData!$J123:$U123) -> 3.254514085 | W123: =SUMIF(SEDData!$H123:$S123,"<"&wasteCutoff*100,VolumeData!$J123:$U123) -> 0.0004196531681 | X123: =IF(AND(G123>=sweepCutoff,H123>=malfCutoff),SUMIF(SEDData!$H123:$R123,"<"&pulpCutoff*100,VolumeData!$J123:$U123)-W123,0) -> 0.3741839806 | Y123: 0 | Z123: 2.879910451
A124: 63 | B124: 91 | C124: =BaseData!D123/10 -> 43.9 | D124: 47.75881 | E124: 37.63994592 | F124: 2.561856524 | G124: =BaseData!I123 -> 7 | H124: =BaseData!J123 -> 2 | I124: 0.06470713695 | J124: 0.6400240898 | K124: 0.5346624691 | L124: 0.4563916564 | M124: 0.3939645188 | N124: 0.3389099171 | O124: 0.2854629003 | P124: 0.2304948993 | Q124: 0.1734439202 | R124: 0.1162447389 | S124: 0.06325909428 | T124: 0.02165588041 | U124: 0.0004196531681 | V124: =SUMIF(J$2:U$2,"<"&E124,VolumeData!$J124:$U124) -> 3.254514085 | W124: =SUMIF(SEDData!$H124:$S124,"<"&wasteCutoff*100,VolumeData!$J124:$U124) -> 0.0004196531681 | X124: =IF(AND(G124>=sweepCutoff,H124>=malfCutoff),SUMIF(SEDData!$H124:$R124,"<"&pulpCutoff*100,VolumeData!$J124:$U124)-W124,0) -> 0.3741839806 | Y124: 0 | Z124: 2.879910451
A125: 71 | B125: 99 | C125: =BaseData!D124/10 -> 43.9 | D125: 47.75881 | E125: 37.63994592 | F125: 2.561856524 | G125: =BaseData!I124 -> 7 | H125: =BaseData!J124 -> 7 | I125: 0.06470713695 | J125: 0.6400240898 | K125: 0.5346624691 | L125: 0.4563916564 | M125: 0.3939645188 | N125: 0.3389099171 | O125: 0.2854629003 | P125: 0.2304948993 | Q125: 0.1734439202 | R125: 0.1162447389 | S125: 0.06325909428 | T125: 0.02165588041 | U125: 0.0004196531681 | V125: =SUMIF(J$2:U$2,"<"&E125,VolumeData!$J125:$U125) -> 3.254514085 | W125: =SUMIF(SEDData!$H125:$S125,"<"&wasteCutoff*100,VolumeData!$J125:$U125) -> 0.0004196531681 | X125: =IF(AND(G125>=sweepCutoff,H125>=malfCutoff),SUMIF(SEDData!$H125:$R125,"<"&pulpCutoff*100,VolumeData!$J125:$U125)-W125,0) -> 0.3741839806 | Y125: 0 | Z125: 2.879910451
A126: 48 | B126: 105 | C126: =BaseData!D125/10 -> 43.8 | D126: 47.65002 | E126: 37.6027304 | F126: 2.547677046 | G126: =BaseData!I125 -> 8 | H126: =BaseData!J125 -> 9 | I126: 0.06441208246 | J126: 0.6370431307 | K126: 0.5320910537 | L126: 0.4541407375 | M126: 0.3919687399 | N126: 0.3371257572 | O126: 0.2838667916 | P126: 0.2290813174 | Q126: 0.1722234485 | R126: 0.1152421054 | S126: 0.06251118137 | T126: 0.02118596089 | U126: 0.0003748716292 | V126: =SUMIF(J$2:U$2,"<"&E126,VolumeData!$J126:$U126) -> 3.236480224 | W126: =SUMIF(SEDData!$H126:$S126,"<"&wasteCutoff*100,VolumeData!$J126:$U126) -> 0.0003748716292 | X126: =IF(AND(G126>=sweepCutoff,H126>=malfCutoff),SUMIF(SEDData!$H126:$R126,"<"&pulpCutoff*100,VolumeData!$J126:$U126)-W126,0) -> 0.3707878246 | Y126: 0 | Z126: 2.865317528
A127: 48 | B127: 44 | C127: =BaseData!D126/10 -> 43.7 | D127: 47.54123 | E127: 37.56542981 | F127: 2.533541418 | G127: =BaseData!I126 -> 6 | H127: =BaseData!J126 -> 2 | I127: 0.0641177024 | J127: 0.6340691625 | K127: 0.5295259256 | L127: 0.4518955014 | M127: 0.3899781237 | N127: 0.335346317 | O127: 0.2822750362 | P127: 0.2276718062 | Q127: 0.1710068613 | R127: 0.1142432849 | S127: 0.06176714946 | T127: 0.0207205515 | U127: 0.0003328796854 | V127: =SUMIF(J$2:U$2,"<"&E127,VolumeData!$J127:$U127) -> 3.21849972 | W127: =SUMIF(SEDData!$H127:$S127,"<"&wasteCutoff*100,VolumeData!$J127:$U127) -> 0.0003328796854 | X127: =IF(AND(G127>=sweepCutoff,H127>=malfCutoff),SUMIF(SEDData!$H127:$R127,"<"&pulpCutoff*100,VolumeData!$J127:$U127)-W127,0) -> 0.3674049675 | Y127: 0 | Z127: 2.850761873
A128: 32 | B128: 16 | C128: =BaseData!D127/10 -> 43.6 | D128: 47.43244 | E128: 37.52804377 | F128: 2.519449613 | G128: =BaseData!I127 -> 4 | H128: =BaseData!J127 -> 9 | I128: 0.06382399677 | J128: 0.6311021852 | K128: 0.5269670845 | L128: 0.4496559474 | M128: 0.3879926692 | N128: 0.3335715953 | O128: 0.2806876333 | P128: 0.2262663651 | Q128: 0.1697941586 | R128: 0.1132482795 | S128: 0.06102700327 | T128: 0.02025966223 | U128: 0.0002936315643 | V128: =SUMIF(J$2:U$2,"<"&E128,VolumeData!$J128:$U128) -> 3.200572584 | W128: =SUMIF(SEDData!$H128:$S128,"<"&wasteCutoff*100,VolumeData!$J128:$U128) -> 0.0002936315643 | X128: =IF(AND(G128>=sweepCutoff,H128>=malfCutoff),SUMIF(SEDData!$H128:$R128,"<"&pulpCutoff*100,VolumeData!$J128:$U128)-W128,0) -> 0.364035472 | Y128: 0 | Z128: 2.83624348
A129: 62 | B129: 80 | C129: =BaseData!D128/10 -> 43.6 | D129: 47.43244 | E129: 37.52804377 | F129: 2.519449613 | G129: =BaseData!I128 -> 6 | H129: =BaseData!J128 -> 9 | I129: 0.06382399677 | J129: 0.6311021852 | K129: 0.5269670845 | L129: 0.4496559474 | M129: 0.3879926692 | N129: 0.3335715953 | O129: 0.2806876333 | P129: 0.2262663651 | Q129: 0.1697941586 | R129: 0.1132482795 | S129: 0.06102700327 | T129: 0.02025966223 | U129: 0.0002936315643 | V129: =SUMIF(J$2:U$2,"<"&E129,VolumeData!$J129:$U129) -> 3.200572584 | W129: =SUMIF(SEDData!$H129:$S129,"<"&wasteCutoff*100,VolumeData!$J129:$U129) -> 0.0002936315643 | X129: =IF(AND(G129>=sweepCutoff,H129>=malfCutoff),SUMIF(SEDData!$H129:$R129,"<"&pulpCutoff*100,VolumeData!$J129:$U129)-W129,0) -> 0.364035472 | Y129: 0 | Z129: 2.83624348
A130: 62 | B130: 84 | C130: =BaseData!D129/10 -> 43.6 | D130: 47.43244 | E130: 37.52804377 | F130: 2.519449613 | G130: =BaseData!I129 -> 6 | H130: =BaseData!J129 -> 9 | I130: 0.06382399677 | J130: 0.6311021852 | K130: 0.5269670845 | L130: 0.4496559474 | M130: 0.3879926692 | N130: 0.3335715953 | O130: 0.2806876333 | P130: 0.2262663651 | Q130: 0.1697941586 | R130: 0.1132482795 | S130: 0.06102700327 | T130: 0.02025966223 | U130: 0.0002936315643 | V130: =SUMIF(J$2:U$2,"<"&E130,VolumeData!$J130:$U130) -> 3.200572584 | W130: =SUMIF(SEDData!$H130:$S130,"<"&wasteCutoff*100,VolumeData!$J130:$U130) -> 0.0002936315643 | X130: =IF(AND(G130>=sweepCutoff,H130>=malfCutoff),SUMIF(SEDData!$H130:$R130,"<"&pulpCutoff*100,VolumeData!$J130:$U130)-W130,0) -> 0.364035472 | Y130: 0 | Z130: 2.83624348
A131: 58 | B131: 91 | C131: =BaseData!D130/10 -> 43.6 | D131: =C131*(1+growthRate) -> 47.43244 | E131: =(Peterson_a+Peterson_b*LN(C131*10))/10 -> 37.52804377 | F131: =Vol_a*D131^2*E131/10000 -> 2.519449613 | G131: =BaseData!I130 -> 4 | H131: =BaseData!J130 -> 4 | I131: 0.06382399677 | J131: 0.6311021852 | K131: 0.5269670845 | L131: 0.4496559474 | M131: 0.3879926692 | N131: 0.3335715953 | O131: 0.2806876333 | P131: 0.2262663651 | Q131: 0.1697941586 | R131: 0.1132482795 | S131: 0.06102700327 | T131: 0.02025966223 | U131: 0.0002936315643 | V131: =SUMIF(J$2:U$2,"<"&E131,VolumeData!$J131:$U131) -> 3.200572584 | W131: =SUMIF(SEDData!$H131:$S131,"<"&wasteCutoff*100,VolumeData!$J131:$U131) -> 0.0002936315643 | X131: =IF(AND(G131>=sweepCutoff,H131>=malfCutoff),SUMIF(SEDData!$H131:$R131,"<"&pulpCutoff*100,VolumeData!$J131:$U131)-W131,0) -> 0.364035472 | Y131: =IF(OR(G131<sweepCutoff,H131<malfCutoff),V131-W131,0) -> 0 | Z131: 2.83624348
A132: 62 | B132: 69 | C132: =BaseData!D131/10 -> 43.5 | D132: 47.32365 | E132: 37.49057188 | F132: 2.505401606 | G132: =BaseData!I131 -> 4 | H132: =BaseData!J131 -> 9 | I132: 0.06353096556 | J132: 0.6281421983 | K132: 0.5244145297 | L132: 0.4474220748 | M132: 0.3860123755 | N132: 0.3318015909 | O132: 0.2791045816 | P132: 0.2248649934 | Q132: 0.1685853408 | R132: 0.112257091 | S132: 0.06029074759 | T132: 0.01980330321 | U132: 0.0002570811795 | V132: =SUMIF(J$2:U$2,"<"&E132,VolumeData!$J132:$U132) -> 3.182698827 | W132: =SUMIF(SEDData!$H132:$S132,"<"&wasteCutoff*100,VolumeData!$J132:$U132) -> 0.0002570811795 | X132: =IF(AND(G132>=sweepCutoff,H132>=malfCutoff),SUMIF(SEDData!$H132:$R132,"<"&pulpCutoff*100,VolumeData!$J132:$U132)-W132,0) -> 0.3606794014 | Y132: 0 | Z132: =V132-W132-X132-Y132 -> 2.821762344
A133: 82 | B133: 90 | C133: =BaseData!D132/10 -> 43.5 | D133: 47.32365 | E133: 37.49057188 | F133: 2.505401606 | G133: =BaseData!I132 -> 7 | H133: =BaseData!J132 -> 2 | I133: 0.06353096556 | J133: 0.6281421983 | K133: 0.5244145297 | L133: 0.4474220748 | M133: 0.3860123755 | N133: 0.3318015909 | O133: 0.2791045816 | P133: 0.2248649934 | Q133: 0.1685853408 | R133: 0.112257091 | S133: 0.06029074759 | T133: 0.01980330321 | U133: 0.0002570811795 | V133: =SUMIF(J$2:U$2,"<"&E133,VolumeData!$J133:$U133) -> 3.182698827 | W133: =SUMIF(SEDData!$H133:$S133,"<"&wasteCutoff*100,VolumeData!$J133:$U133) -> 0.0002570811795 | X133: =IF(AND(G133>=sweepCutoff,H133>=malfCutoff),SUMIF(SEDData!$H133:$R133,"<"&pulpCutoff*100,VolumeData!$J133:$U133)-W133,0) -> 0.3606794014 | Y133: 0 | Z133: 2.821762344
A134: 5 | B134: 109 | C134: =BaseData!D133/10 -> 43.5 | D134: 47.32365 | E134: 37.49057188 | F134: 2.505401606 | G134: =BaseData!I133 -> 8 | H134: =BaseData!J133 -> 9 | I134: 0.06353096556 | J134: 0.6281421983 | K134: 0.5244145297 | L134: 0.4474220748 | M134: 0.3860123755 | N134: 0.3318015909 | O134: 0.2791045816 | P134: 0.2248649934 | Q134: 0.1685853408 | R134: 0.112257091 | S134: 0.06029074759 | T134: 0.01980330321 | U134: 0.0002570811795 | V134: =SUMIF(J$2:U$2,"<"&E134,VolumeData!$J134:$U134) -> 3.182698827 | W134: =SUMIF(SEDData!$H134:$S134,"<"&wasteCutoff*100,VolumeData!$J134:$U134) -> 0.0002570811795 | X134: =IF(AND(G134>=sweepCutoff,H134>=malfCutoff),SUMIF(SEDData!$H134:$R134,"<"&pulpCutoff*100,VolumeData!$J134:$U134)-W134,0) -> 0.3606794014 | Y134: 0 | Z134: 2.821762344
A135: 88 | B135: 111 | C135: =BaseData!D134/10 -> 43.5 | D135: 47.32365 | E135: 37.49057188 | F135: 2.505401606 | G135: =BaseData!I134 -> 2 | H135: =BaseData!J134 -> 2 | I135: 0.06353096556 | J135: 0.6281421983 | K135: 0.5244145297 | L135: 0.4474220748 | M135: 0.3860123755 | N135: 0.3318015909 | O135: 0.2791045816 | P135: 0.2248649934 | Q135: 0.1685853408 | R135: 0.112257091 | S135: 0.06029074759 | T135: 0.01980330321 | U135: 0.0002570811795 | V135: =SUMIF(J$2:U$2,"<"&E135,VolumeData!$J135:$U135) -> 3.182698827 | W135: =SUMIF(SEDData!$H135:$S135,"<"&wasteCutoff*100,VolumeData!$J135:$U135) -> 0.0002570811795 | X135: =IF(AND(G135>=sweepCutoff,H135>=malfCutoff),SUMIF(SEDData!$H135:$R135,"<"&pulpCutoff*100,VolumeData!$J135:$U135)-W135,0) -> 0 | Y135: 3.182441746 | Z135: 0
A136: 69 | B136: 124 | C136: =BaseData!D135/10 -> 43.5 | D136: 47.32365 | E136: 37.49057188 | F136: 2.505401606 | G136: =BaseData!I135 -> 9 | H136: =BaseData!J135 -> 9 | I136: 0.06353096556 | J136: 0.6281421983 | K136: 0.5244145297 | L136: 0.4474220748 | M136: 0.3860123755 | N136: 0.3318015909 | O136: 0.2791045816 | P136: 0.2248649934 | Q136: 0.1685853408 | R136: 0.112257091 | S136: 0.06029074759 | T136: 0.01980330321 | U136: 0.0002570811795 | V136: =SUMIF(J$2:U$2,"<"&E136,VolumeData!$J136:$U136) -> 3.182698827 | W136: =SUMIF(SEDData!$H136:$S136,"<"&wasteCutoff*100,VolumeData!$J136:$U136) -> 0.0002570811795 | X136: =IF(AND(G136>=sweepCutoff,H136>=malfCutoff),SUMIF(SEDData!$H136:$R136,"<"&pulpCutoff*100,VolumeData!$J136:$U136)-W136,0) -> 0.3606794014 | Y136: 0 | Z136: 2.821762344
A137: 57 | B137: 30 | C137: =BaseData!D136/10 -> 43.4 | D137: 47.21486 | E137: 37.45301375 | F137: 2.491397368 | G137: =BaseData!I136 -> 4 | H137: =BaseData!J136 -> 9 | I137: 0.06323860878 | J137: 0.6251892019 | K137: 0.5218682607 | L137: 0.4451938829 | M137: 0.3840372417 | N137: 0.3300363029 | O137: 0.2775258802 | P137: 0.2234676904 | Q137: 0.1673804081 | R137: 0.1112697215 | S137: 0.05955838727 | T137: 0.01935148469 | U137: 0.0002231821259 | V137: =SUMIF(J$2:U$2,"<"&E137,VolumeData!$J137:$U137) -> 3.164878462 | W137: =SUMIF(SEDData!$H137:$S137,"<"&wasteCutoff*100,VolumeData!$J137:$U137) -> 0.0002231821259 | X137: =IF(AND(G137>=sweepCutoff,H137>=malfCutoff),SUMIF(SEDData!$H137:$R137,"<"&pulpCutoff*100,VolumeData!$J137:$U137)-W137,0) -> 0.3573368194 | Y137: 0 | Z137: 2.807318461
A138: 66 | B138: 34 | C138: =BaseData!D137/10 -> 43.4 | D138: 47.21486 | E138: 37.45301375 | F138: 2.491397368 | G138: =BaseData!I137 -> 7 | H138: =BaseData!J137 -> 4 | I138: 0.06323860878 | J138: 0.6251892019 | K138: 0.5218682607 | L138: 0.4451938829 | M138: 0.3840372417 | N138: 0.3300363029 | O138: 0.2775258802 | P138: 0.2234676904 | Q138: 0.1673804081 | R138: 0.1112697215 | S138: 0.05955838727 | T138: 0.01935148469 | U138: 0.0002231821259 | V138: =SUMIF(J$2:U$2,"<"&E138,VolumeData!$J138:$U138) -> 3.164878462 | W138: =SUMIF(SEDData!$H138:$S138,"<"&wasteCutoff*100,VolumeData!$J138:$U138) -> 0.0002231821259 | X138: =IF(AND(G138>=sweepCutoff,H138>=malfCutoff),SUMIF(SEDData!$H138:$R138,"<"&pulpCutoff*100,VolumeData!$J138:$U138)-W138,0) -> 0.3573368194 | Y138: 0 | Z138: 2.807318461
A139: 43 | B139: 46 | C139: =BaseData!D138/10 -> 43.4 | D139: 47.21486 | E139: 37.45301375 | F139: 2.491397368 | G139: =BaseData!I138 -> 3 | H139: =BaseData!J138 -> 2 | I139: 0.06323860878 | J139: 0.6251892019 | K139: 0.5218682607 | L139: 0.4451938829 | M139: 0.3840372417 | N139: 0.3300363029 | O139: 0.2775258802 | P139: 0.2234676904 | Q139: 0.1673804081 | R139: 0.1112697215 | S139: 0.05955838727 | T139: 0.01935148469 | U139: 0.0002231821259 | V139: =SUMIF(J$2:U$2,"<"&E139,VolumeData!$J139:$U139) -> 3.164878462 | W139: =SUMIF(SEDData!$H139:$S139,"<"&wasteCutoff*100,VolumeData!$J139:$U139) -> 0.0002231821259 | X139: =IF(AND(G139>=sweepCutoff,H139>=malfCutoff),SUMIF(SEDData!$H139:$R139,"<"&pulpCutoff*100,VolumeData!$J139:$U139)-W139,0) -> 0.3573368194 | Y139: 0 | Z139: 2.807318461
A140: 49 | B140: 53 | C140: =BaseData!D139/10 -> 43.4 | D140: 47.21486 | E140: 37.45301375 | F140: 2.491397368 | G140: =BaseData!I139 -> 7 | H140: =BaseData!J139 -> 4 | I140: 0.06323860878 | J140: 0.6251892019 | K140: 0.5218682607 | L140: 0.4451938829 | M140: 0.3840372417 | N140: 0.3300363029 | O140: 0.2775258802 | P140: 0.2234676904 | Q140: 0.1673804081 | R140: 0.1112697215 | S140: 0.05955838727 | T140: 0.01935148469 | U140: 0.0002231821259 | V140: =SUMIF(J$2:U$2,"<"&E140,VolumeData!$J140:$U140) -> 3.164878462 | W140: =SUMIF(SEDData!$H140:$S140,"<"&wasteCutoff*100,VolumeData!$J140:$U140) -> 0.0002231821259 | X140: =IF(AND(G140>=sweepCutoff,H140>=malfCutoff),SUMIF(SEDData!$H140:$R140,"<"&pulpCutoff*100,VolumeData!$J140:$U140)-W140,0) -> 0.3573368194 | Y140: 0 | Z140: 2.807318461
A141: 57 | B141: 93 | C141: =BaseData!D140/10 -> 43.4 | D141: 47.21486 | E141: 37.45301375 | F141: 2.491397368 | G141: =BaseData!I140 -> 4 | H141: =BaseData!J140 -> 2 | I141: 0.06323860878 | J141: 0.6251892019 | K141: 0.5218682607 | L141: 0.4451938829 | M141: 0.3840372417 | N141: 0.3300363029 | O141: 0.2775258802 | P141: 0.2234676904 | Q141: 0.1673804081 | R141: 0.1112697215 | S141: 0.05955838727 | T141: 0.01935148469 | U141: 0.0002231821259 | V141: =SUMIF(J$2:U$2,"<"&E141,VolumeData!$J141:$U141) -> 3.164878462 | W141: =SUMIF(SEDData!$H141:$S141,"<"&wasteCutoff*100,VolumeData!$J141:$U141) -> 0.0002231821259 | X141: =IF(AND(G141>=sweepCutoff,H141>=malfCutoff),SUMIF(SEDData!$H141:$R141,"<"&pulpCutoff*100,VolumeData!$J141:$U141)-W141,0) -> 0.3573368194 | Y141: 0 | Z141: 2.807318461
A142: 11 | B142: 16 | C142: =BaseData!D141/10 -> 43.3 | D142: 47.10607 | E142: 37.41536898 | F142: 2.477436875 | G142: =BaseData!I141 -> 8 | H142: =BaseData!J141 -> 9 | I142: 0.06294692641 | J142: 0.6222431956 | K142: 0.5193282771 | L142: 0.4429713708 | M142: 0.3820672666 | N142: 0.32827573 | O142: 0.275951528 | P142: 0.2220744554 | Q142: 0.1661793607 | R142: 0.110286173 | S142: 0.05882992724 | T142: 0.01890421706 | U142: 0.0001918876756 | V142: =SUMIF(J$2:U$2,"<"&E142,VolumeData!$J142:$U142) -> 3.147111502 | W142: =SUMIF(SEDData!$H142:$S142,"<"&wasteCutoff*100,VolumeData!$J142:$U142) -> 0.0001918876756 | X142: =IF(AND(G142>=sweepCutoff,H142>=malfCutoff),SUMIF(SEDData!$H142:$R142,"<"&pulpCutoff*100,VolumeData!$J142:$U142)-W142,0) -> 0.3540077903 | Y142: 0 | Z142: 2.792911824
A143: 7 | B143: 21 | C143: =BaseData!D142/10 -> 43.3 | D143: 47.10607 | E143: 37.41536898 | F143: 2.477436875 | G143: =BaseData!I142 -> 8 | H143: =BaseData!J142 -> 9 | I143: 0.06294692641 | J143: 0.6222431956 | K143: 0.5193282771 | L143: 0.4429713708 | M143: 0.3820672666 | N143: 0.32827573 | O143: 0.275951528 | P143: 0.2220744554 | Q143: 0.1661793607 | R143: 0.110286173 | S143: 0.05882992724 | T143: 0.01890421706 | U143: 0.0001918876756 | V143: =SUMIF(J$2:U$2,"<"&E143,VolumeData!$J143:$U143) -> 3.147111502 | W143: =SUMIF(SEDData!$H143:$S143,"<"&wasteCutoff*100,VolumeData!$J143:$U143) -> 0.0001918876756 | X143: =IF(AND(G143>=sweepCutoff,H143>=malfCutoff),SUMIF(SEDData!$H143:$R143,"<"&pulpCutoff*100,VolumeData!$J143:$U143)-W143,0) -> 0.3540077903 | Y143: 0 | Z143: 2.792911824
A144: 57 | B144: 42 | C144: =BaseData!D143/10 -> 43.1 | D144: 46.88849 | E144: 37.33981792 | F144: 2.449647014 | G144: =BaseData!I143 -> 6 | H144: =BaseData!J143 -> 1 | I144: 0.06236558495 | J144: 0.6163721525 | K144: 0.5142671641 | L144: 0.4385433834 | M144: 0.3781427893 | N144: 0.3247687255 | O144: 0.2728158669 | P144: 0.2193001867 | Q144: 0.1637889233 | R144: 0.1083305473 | S144: 0.05738472809 | T144: 0.01802337678 | U144: 0.0001369240315 | V144: =SUMIF(J$2:U$2,"<"&E144,VolumeData!$J144:$U144) -> 3.111737844 | W144: =SUMIF(SEDData!$H144:$S144,"<"&wasteCutoff*100,VolumeData!$J144:$U144) -> 0.0001369240315 | X144: =IF(AND(G144>=sweepCutoff,H144>=malfCutoff),SUMIF(SEDData!$H144:$R144,"<"&pulpCutoff*100,VolumeData!$J144:$U144)-W144,0) -> 0 | Y144: 3.11160092 | Z144: 0
A145: 12 | B145: 102 | C145: =BaseData!D144/10 -> 43.1 | D145: 46.88849 | E145: 37.33981792 | F145: 2.449647014 | G145: =BaseData!I144 -> 3 | H145: =BaseData!J144 -> 2 | I145: 0.06236558495 | J145: 0.6163721525 | K145: 0.5142671641 | L145: 0.4385433834 | M145: 0.3781427893 | N145: 0.3247687255 | O145: 0.2728158669 | P145: 0.2193001867 | Q145: 0.1637889233 | R145: 0.1083305473 | S145: 0.05738472809 | T145: 0.01802337678 | U145: 0.0001369240315 | V145: =SUMIF(J$2:U$2,"<"&E145,VolumeData!$J145:$U145) -> 3.111737844 | W145: =SUMIF(SEDData!$H145:$S145,"<"&wasteCutoff*100,VolumeData!$J145:$U145) -> 0.0001369240315 | X145: =IF(AND(G145>=sweepCutoff,H145>=malfCutoff),SUMIF(SEDData!$H145:$R145,"<"&pulpCutoff*100,VolumeData!$J145:$U145)-W145,0) -> 0.3473906515 | Y145: 0 | Z145: 2.764210268
A146: 46 | B146: 111 | C146: =BaseData!D145/10 -> 43.1 | D146: 46.88849 | E146: 37.33981792 | F146: 2.449647014 | G146: =BaseData!I145 -> 9 | H146: =BaseData!J145 -> 9 | I146: 0.06236558495 | J146: 0.6163721525 | K146: 0.5142671641 | L146: 0.4385433834 | M146: 0.3781427893 | N146: 0.3247687255 | O146: 0.2728158669 | P146: 0.2193001867 | Q146: 0.1637889233 | R146: 0.1083305473 | S146: 0.05738472809 | T146: 0.01802337678 | U146: 0.0001369240315 | V146: =SUMIF(J$2:U$2,"<"&E146,VolumeData!$J146:$U146) -> 3.111737844 | W146: =SUMIF(SEDData!$H146:$S146,"<"&wasteCutoff*100,VolumeData!$J146:$U146) -> 0.0001369240315 | X146: =IF(AND(G146>=sweepCutoff,H146>=malfCutoff),SUMIF(SEDData!$H146:$R146,"<"&pulpCutoff*100,VolumeData!$J146:$U146)-W146,0) -> 0.3473906515 | Y146: 0 | Z146: 2.764210268
A147: 80 | B147: 39 | C147: =BaseData!D146/10 -> 43 | D147: 46.7797 | E147: 37.30191082 | F147: 2.435817593 | G147: =BaseData!I146 -> 6 | H147: =BaseData!J146 -> 2 | I147: 0.06207592584 | J147: 0.6134471154 | K147: 0.5117460336 | L147: 0.4363379065 | M147: 0.376188285 | N147: 0.3230222915 | O147: 0.2712545558 | P147: 0.2179191516 | Q147: 0.1625995339 | R147: 0.1073584745 | S147: 0.05666799919 | T147: 0.0175898256 | U147: 0.0001131597272 | V147: =SUMIF(J$2:U$2,"<"&E147,VolumeData!$J147:$U147) -> 3.094131173 | W147: =SUMIF(SEDData!$H147:$S147,"<"&wasteCutoff*100,VolumeData!$J147:$U147) -> 0.0001131597272 | X147: =IF(AND(G147>=sweepCutoff,H147>=malfCutoff),SUMIF(SEDData!$H147:$R147,"<"&pulpCutoff*100,VolumeData!$J147:$U147)-W147,0) -> 0.3441026734 | Y147: 0 | Z147: 2.74991534
A148: 85 | B148: 37 | C148: =BaseData!D147/10 -> 43 | D148: 46.7797 | E148: 37.30191082 | F148: 2.435817593 | G148: =BaseData!I147 -> 4 | H148: =BaseData!J147 -> 3 | I148: 0.06207592584 | J148: 0.6134471154 | K148: 0.5117460336 | L148: 0.4363379065 | M148: 0.376188285 | N148: 0.3230222915 | O148: 0.2712545558 | P148: 0.2179191516 | Q148: 0.1625995339 | R148: 0.1073584745 | S148: 0.05666799919 | T148: 0.0175898256 | U148: 0.0001131597272 | V148: =SUMIF(J$2:U$2,"<"&E148,VolumeData!$J148:$U148) -> 3.094131173 | W148: =SUMIF(SEDData!$H148:$S148,"<"&wasteCutoff*100,VolumeData!$J148:$U148) -> 0.0001131597272 | X148: =IF(AND(G148>=sweepCutoff,H148>=malfCutoff),SUMIF(SEDData!$H148:$R148,"<"&pulpCutoff*100,VolumeData!$J148:$U148)-W148,0) -> 0.3441026734 | Y148: 0 | Z148: 2.74991534
A149: 40 | B149: 76 | C149: =BaseData!D148/10 -> 43 | D149: 46.7797 | E149: 37.30191082 | F149: 2.435817593 | G149: =BaseData!I148 -> 7 | H149: =BaseData!J148 -> 9 | I149: 0.06207592584 | J149: 0.6134471154 | K149: 0.5117460336 | L149: 0.4363379065 | M149: 0.376188285 | N149: 0.3230222915 | O149: 0.2712545558 | P149: 0.2179191516 | Q149: 0.1625995339 | R149: 0.1073584745 | S149: 0.05666799919 | T149: 0.0175898256 | U149: 0.0001131597272 | V149: =SUMIF(J$2:U$2,"<"&E149,VolumeData!$J149:$U149) -> 3.094131173 | W149: =SUMIF(SEDData!$H149:$S149,"<"&wasteCutoff*100,VolumeData!$J149:$U149) -> 0.0001131597272 | X149: =IF(AND(G149>=sweepCutoff,H149>=malfCutoff),SUMIF(SEDData!$H149:$R149,"<"&pulpCutoff*100,VolumeData!$J149:$U149)-W149,0) -> 0.3441026734 | Y149: 0 | Z149: 2.74991534
A150: 15 | B150: 100 | C150: =BaseData!D149/10 -> 43 | D150: 46.7797 | E150: 37.30191082 | F150: 2.435817593 | G150: =BaseData!I149 -> 2 | H150: =BaseData!J149 -> 2 | I150: 0.06207592584 | J150: 0.6134471154 | K150: 0.5117460336 | L150: 0.4363379065 | M150: 0.376188285 | N150: 0.3230222915 | O150: 0.2712545558 | P150: 0.2179191516 | Q150: 0.1625995339 | R150: 0.1073584745 | S150: 0.05666799919 | T150: 0.0175898256 | U150: 0.0001131597272 | V150: =SUMIF(J$2:U$2,"<"&E150,VolumeData!$J150:$U150) -> 3.094131173 | W150: =SUMIF(SEDData!$H150:$S150,"<"&wasteCutoff*100,VolumeData!$J150:$U150) -> 0.0001131597272 | X150: =IF(AND(G150>=sweepCutoff,H150>=malfCutoff),SUMIF(SEDData!$H150:$R150,"<"&pulpCutoff*100,VolumeData!$J150:$U150)-W150,0) -> 0 | Y150: 3.094018013 | Z150: 0
A151: 4 | B151: 99 | C151: =BaseData!D150/10 -> 43 | D151: 46.7797 | E151: 37.30191082 | F151: 2.435817593 | G151: =BaseData!I150 -> 6 | H151: =BaseData!J150 -> 4 | I151: 0.06207592584 | J151: 0.6134471154 | K151: 0.5117460336 | L151: 0.4363379065 | M151: 0.376188285 | N151: 0.3230222915 | O151: 0.2712545558 | P151: 0.2179191516 | Q151: 0.1625995339 | R151: 0.1073584745 | S151: 0.05666799919 | T151: 0.0175898256 | U151: 0.0001131597272 | V151: =SUMIF(J$2:U$2,"<"&E151,VolumeData!$J151:$U151) -> 3.094131173 | W151: =SUMIF(SEDData!$H151:$S151,"<"&wasteCutoff*100,VolumeData!$J151:$U151) -> 0.0001131597272 | X151: =IF(AND(G151>=sweepCutoff,H151>=malfCutoff),SUMIF(SEDData!$H151:$R151,"<"&pulpCutoff*100,VolumeData!$J151:$U151)-W151,0) -> 0.3441026734 | Y151: 0 | Z151: 2.74991534
A152: 39 | B152: 90 | C152: =BaseData!D151/10 -> 43 | D152: 46.7797 | E152: 37.30191082 | F152: 2.435817593 | G152: =BaseData!I151 -> 8 | H152: =BaseData!J151 -> 9 | I152: 0.06207592584 | J152: 0.6134471154 | K152: 0.5117460336 | L152: 0.4363379065 | M152: 0.376188285 | N152: 0.3230222915 | O152: 0.2712545558 | P152: 0.2179191516 | Q152: 0.1625995339 | R152: 0.1073584745 | S152: 0.05666799919 | T152: 0.0175898256 | U152: 0.0001131597272 | V152: =SUMIF(J$2:U$2,"<"&E152,VolumeData!$J152:$U152) -> 3.094131173 | W152: =SUMIF(SEDData!$H152:$S152,"<"&wasteCutoff*100,VolumeData!$J152:$U152) -> 0.0001131597272 | X152: =IF(AND(G152>=sweepCutoff,H152>=malfCutoff),SUMIF(SEDData!$H152:$R152,"<"&pulpCutoff*100,VolumeData!$J152:$U152)-W152,0) -> 0.3441026734 | Y152: 0 | Z152: 2.74991534
A153: 16 | B153: 40 | C153: =BaseData!D152/10 -> 42.9 | D153: 46.67091 | E153: 37.26391546 | F153: 2.422031809 | G153: =BaseData!I152 -> 6 | H153: =BaseData!J152 -> 1 | I153: 0.06178694115 | J153: 0.6105290676 | K153: 0.5092311865 | L153: 0.4341381065 | M153: 0.3742389357 | N153: 0.3212805683 | O153: 0.2696975895 | P153: 0.216542182 | Q153: 0.1614140311 | R153: 0.1063902311 | S153: 0.055955191 | T153: 0.0171608683 | U153: 9.180979606e-05 | V153: =SUMIF(J$2:U$2,"<"&E153,VolumeData!$J153:$U153) -> 3.076577958 | W153: =SUMIF(SEDData!$H153:$S153,"<"&wasteCutoff*100,VolumeData!$J153:$U153) -> 9.180979606e-05 | X153: =IF(AND(G153>=sweepCutoff,H153>=malfCutoff),SUMIF(SEDData!$H153:$R153,"<"&pulpCutoff*100,VolumeData!$J153:$U153)-W153,0) -> 0 | Y153: 3.076486148 | Z153: 0
A154: 84 | B154: 45 | C154: =BaseData!D153/10 -> 42.9 | D154: 46.67091 | E154: 37.26391546 | F154: 2.422031809 | G154: =BaseData!I153 -> 4 | H154: =BaseData!J153 -> 2 | I154: 0.06178694115 | J154: 0.6105290676 | K154: 0.5092311865 | L154: 0.4341381065 | M154: 0.3742389357 | N154: 0.3212805683 | O154: 0.2696975895 | P154: 0.216542182 | Q154: 0.1614140311 | R154: 0.1063902311 | S154: 0.055955191 | T154: 0.0171608683 | U154: 9.180979606e-05 | V154: =SUMIF(J$2:U$2,"<"&E154,VolumeData!$J154:$U154) -> 3.076577958 | W154: =SUMIF(SEDData!$H154:$S154,"<"&wasteCutoff*100,VolumeData!$J154:$U154) -> 9.180979606e-05 | X154: =IF(AND(G154>=sweepCutoff,H154>=malfCutoff),SUMIF(SEDData!$H154:$R154,"<"&pulpCutoff*100,VolumeData!$J154:$U154)-W154,0) -> 0.3408285117 | Y154: 0 | Z154: 2.735657636
A155: 2 | B155: 72 | C155: =BaseData!D154/10 -> 42.9 | D155: 46.67091 | E155: 37.26391546 | F155: 2.422031809 | G155: =BaseData!I154 -> 7 | H155: =BaseData!J154 -> 9 | I155: 0.06178694115 | J155: 0.6105290676 | K155: 0.5092311865 | L155: 0.4341381065 | M155: 0.3742389357 | N155: 0.3212805683 | O155: 0.2696975895 | P155: 0.216542182 | Q155: 0.1614140311 | R155: 0.1063902311 | S155: 0.055955191 | T155: 0.0171608683 | U155: 9.180979606e-05 | V155: =SUMIF(J$2:U$2,"<"&E155,VolumeData!$J155:$U155) -> 3.076577958 | W155: =SUMIF(SEDData!$H155:$S155,"<"&wasteCutoff*100,VolumeData!$J155:$U155) -> 9.180979606e-05 | X155: =IF(AND(G155>=sweepCutoff,H155>=malfCutoff),SUMIF(SEDData!$H155:$R155,"<"&pulpCutoff*100,VolumeData!$J155:$U155)-W155,0) -> 0.3408285117 | Y155: 0 | Z155: 2.735657636
A156: 88 | B156: 117 | C156: =BaseData!D155/10 -> 42.9 | D156: 46.67091 | E156: 37.26391546 | F156: 2.422031809 | G156: =BaseData!I155 -> 4 | H156: =BaseData!J155 -> 9 | I156: 0.06178694115 | J156: 0.6105290676 | K156: 0.5092311865 | L156: 0.4341381065 | M156: 0.3742389357 | N156: 0.3212805683 | O156: 0.2696975895 | P156: 0.216542182 | Q156: 0.1614140311 | R156: 0.1063902311 | S156: 0.055955191 | T156: 0.0171608683 | U156: 9.180979606e-05 | V156: =SUMIF(J$2:U$2,"<"&E156,VolumeData!$J156:$U156) -> 3.076577958 | W156: =SUMIF(SEDData!$H156:$S156,"<"&wasteCutoff*100,VolumeData!$J156:$U156) -> 9.180979606e-05 | X156: =IF(AND(G156>=sweepCutoff,H156>=malfCutoff),SUMIF(SEDData!$H156:$R156,"<"&pulpCutoff*100,VolumeData!$J156:$U156)-W156,0) -> 0.3408285117 | Y156: 0 | Z156: 2.735657636
A157: 16 | B157: 15 | C157: =BaseData!D156/10 -> 42.8 | D157: 46.56212 | E157: 37.22583143 | F157: 2.408289636 | G157: =BaseData!I156 -> 3 | H157: =BaseData!J156 -> 9 | I157: 0.06149863087 | J157: 0.6076180088 | K157: 0.5067226223 | L157: 0.4319439826 | M157: 0.3722947404 | N157: 0.3195435547 | O157: 0.2681449671 | P157: 0.2151692769 | Q157: 0.1602324152 | R157: 0.1054258195 | S157: 0.05524630882 | T157: 0.01673651599 | U157: 7.282582777e-05 | V157: =SUMIF(J$2:U$2,"<"&E157,VolumeData!$J157:$U157) -> 3.059078212 | W157: =SUMIF(SEDData!$H157:$S157,"<"&wasteCutoff*100,VolumeData!$J157:$U157) -> 7.282582777e-05 | X157: =IF(AND(G157>=sweepCutoff,H157>=malfCutoff),SUMIF(SEDData!$H157:$R157,"<"&pulpCutoff*100,VolumeData!$J157:$U157)-W157,0) -> 0.3375682337 | Y157: 0 | Z157: 2.721437153
A158: 44 | B158: 32 | C158: =BaseData!D157/10 -> 42.8 | D158: 46.56212 | E158: 37.22583143 | F158: 2.408289636 | G158: =BaseData!I157 -> 6 | H158: =BaseData!J157 -> 1 | I158: 0.06149863087 | J158: 0.6076180088 | K158: 0.5067226223 | L158: 0.4319439826 | M158: 0.3722947404 | N158: 0.3195435547 | O158: 0.2681449671 | P158: 0.2151692769 | Q158: 0.1602324152 | R158: 0.1054258195 | S158: 0.05524630882 | T158: 0.01673651599 | U158: 7.282582777e-05 | V158: =SUMIF(J$2:U$2,"<"&E158,VolumeData!$J158:$U158) -> 3.059078212 | W158: =SUMIF(SEDData!$H158:$S158,"<"&wasteCutoff*100,VolumeData!$J158:$U158) -> 7.282582777e-05 | X158: =IF(AND(G158>=sweepCutoff,H158>=malfCutoff),SUMIF(SEDData!$H158:$R158,"<"&pulpCutoff*100,VolumeData!$J158:$U158)-W158,0) -> 0 | Y158: 3.059005386 | Z158: 0
A159: 69 | B159: 32 | C159: =BaseData!D158/10 -> 42.8 | D159: 46.56212 | E159: 37.22583143 | F159: 2.408289636 | G159: =BaseData!I158 -> 4 | H159: =BaseData!J158 -> 9 | I159: 0.06149863087 | J159: 0.6076180088 | K159: 0.5067226223 | L159: 0.4319439826 | M159: 0.3722947404 | N159: 0.3195435547 | O159: 0.2681449671 | P159: 0.2151692769 | Q159: 0.1602324152 | R159: 0.1054258195 | S159: 0.05524630882 | T159: 0.01673651599 | U159: 7.282582777e-05 | V159: =SUMIF(J$2:U$2,"<"&E159,VolumeData!$J159:$U159) -> 3.059078212 | W159: =SUMIF(SEDData!$H159:$S159,"<"&wasteCutoff*100,VolumeData!$J159:$U159) -> 7.282582777e-05 | X159: =IF(AND(G159>=sweepCutoff,H159>=malfCutoff),SUMIF(SEDData!$H159:$R159,"<"&pulpCutoff*100,VolumeData!$J159:$U159)-W159,0) -> 0.3375682337 | Y159: 0 | Z159: 2.721437153
A160: 18 | B160: 115 | C160: =BaseData!D159/10 -> 42.8 | D160: 46.56212 | E160: 37.22583143 | F160: 2.408289636 | G160: =BaseData!I159 -> 7 | H160: =BaseData!J159 -> 9 | I160: 0.06149863087 | J160: 0.6076180088 | K160: 0.5067226223 | L160: 0.4319439826 | M160: 0.3722947404 | N160: 0.3195435547 | O160: 0.2681449671 | P160: 0.2151692769 | Q160: 0.1602324152 | R160: 0.1054258195 | S160: 0.05524630882 | T160: 0.01673651599 | U160: 7.282582777e-05 | V160: =SUMIF(J$2:U$2,"<"&E160,VolumeData!$J160:$U160) -> 3.059078212 | W160: =SUMIF(SEDData!$H160:$S160,"<"&wasteCutoff*100,VolumeData!$J160:$U160) -> 7.282582777e-05 | X160: =IF(AND(G160>=sweepCutoff,H160>=malfCutoff),SUMIF(SEDData!$H160:$R160,"<"&pulpCutoff*100,VolumeData!$J160:$U160)-W160,0) -> 0.3375682337 | Y160: 0 | Z160: 2.721437153
A161: 43 | B161: 15 | C161: =BaseData!D160/10 -> 42.7 | D161: 46.45333 | E161: 37.18765831 | F161: 2.394591046 | G161: =BaseData!I160 -> 4 | H161: =BaseData!J160 -> 4 | I161: 0.061210995 | J161: 0.6047139389 | K161: 0.5042203404 | L161: 0.4297555341 | M161: 0.370355698 | N161: 0.3178112494 | O161: 0.2665966874 | P161: 0.2138004359 | Q161: 0.1590546866 | R161: 0.104465242 | S161: 0.05454135803 | T161: 0.01631677991 | U161: 5.615906175e-05 | V161: =SUMIF(J$2:U$2,"<"&E161,VolumeData!$J161:$U161) -> 3.041631951 | W161: =SUMIF(SEDData!$H161:$S161,"<"&wasteCutoff*100,VolumeData!$J161:$U161) -> 5.615906175e-05 | X161: =IF(AND(G161>=sweepCutoff,H161>=malfCutoff),SUMIF(SEDData!$H161:$R161,"<"&pulpCutoff*100,VolumeData!$J161:$U161)-W161,0) -> 0.3343219074 | Y161: 0 | Z161: 2.707253884
A162: 61 | B162: 30 | C162: =BaseData!D161/10 -> 42.7 | D162: 46.45333 | E162: 37.18765831 | F162: 2.394591046 | G162: =BaseData!I161 -> 4 | H162: =BaseData!J161 -> 2 | I162: 0.061210995 | J162: 0.6047139389 | K162: 0.5042203404 | L162: 0.4297555341 | M162: 0.370355698 | N162: 0.3178112494 | O162: 0.2665966874 | P162: 0.2138004359 | Q162: 0.1590546866 | R162: 0.104465242 | S162: 0.05454135803 | T162: 0.01631677991 | U162: 5.615906175e-05 | V162: =SUMIF(J$2:U$2,"<"&E162,VolumeData!$J162:$U162) -> 3.041631951 | W162: =SUMIF(SEDData!$H162:$S162,"<"&wasteCutoff*100,VolumeData!$J162:$U162) -> 5.615906175e-05 | X162: =IF(AND(G162>=sweepCutoff,H162>=malfCutoff),SUMIF(SEDData!$H162:$R162,"<"&pulpCutoff*100,VolumeData!$J162:$U162)-W162,0) -> 0.3343219074 | Y162: 0 | Z162: 2.707253884
A163: 43 | B163: 58 | C163: =BaseData!D162/10 -> 42.7 | D163: 46.45333 | E163: 37.18765831 | F163: 2.394591046 | G163: =BaseData!I162 -> 7 | H163: =BaseData!J162 -> 9 | I163: 0.061210995 | J163: 0.6047139389 | K163: 0.5042203404 | L163: 0.4297555341 | M163: 0.370355698 | N163: 0.3178112494 | O163: 0.2665966874 | P163: 0.2138004359 | Q163: 0.1590546866 | R163: 0.104465242 | S163: 0.05454135803 | T163: 0.01631677991 | U163: 5.615906175e-05 | V163: =SUMIF(J$2:U$2,"<"&E163,VolumeData!$J163:$U163) -> 3.041631951 | W163: =SUMIF(SEDData!$H163:$S163,"<"&wasteCutoff*100,VolumeData!$J163:$U163) -> 5.615906175e-05 | X163: =IF(AND(G163>=sweepCutoff,H163>=malfCutoff),SUMIF(SEDData!$H163:$R163,"<"&pulpCutoff*100,VolumeData!$J163:$U163)-W163,0) -> 0.3343219074 | Y163: 0 | Z163: 2.707253884
A164: 4 | B164: 91 | C164: =BaseData!D163/10 -> 42.7 | D164: 46.45333 | E164: 37.18765831 | F164: 2.394591046 | G164: =BaseData!I163 -> 6 | H164: =BaseData!J163 -> 4 | I164: 0.061210995 | J164: 0.6047139389 | K164: 0.5042203404 | L164: 0.4297555341 | M164: 0.370355698 | N164: 0.3178112494 | O164: 0.2665966874 | P164: 0.2138004359 | Q164: 0.1590546866 | R164: 0.104465242 | S164: 0.05454135803 | T164: 0.01631677991 | U164: 5.615906175e-05 | V164: =SUMIF(J$2:U$2,"<"&E164,VolumeData!$J164:$U164) -> 3.041631951 | W164: =SUMIF(SEDData!$H164:$S164,"<"&wasteCutoff*100,VolumeData!$J164:$U164) -> 5.615906175e-05 | X164: =IF(AND(G164>=sweepCutoff,H164>=malfCutoff),SUMIF(SEDData!$H164:$R164,"<"&pulpCutoff*100,VolumeData!$J164:$U164)-W164,0) -> 0.3343219074 | Y164: 0 | Z164: 2.707253884
A165: 1 | B165: 10 | C165: =BaseData!D164/10 -> 42.6 | D165: 46.34454 | E165: 37.14939569 | F165: 2.380936013 | G165: =BaseData!I164 -> 7 | H165: =BaseData!J164 -> 9 | I165: 0.06092403355 | J165: 0.6018168577 | K165: 0.5017243404 | L165: 0.4275727602 | M165: 0.3684218077 | N165: 0.3160836516 | O165: 0.2650527493 | P165: 0.2124356582 | Q165: 0.1578808457 | R165: 0.1035085007 | S165: 0.05384034406 | T165: 0.01590167148 | U165: 4.176038196e-05 | V165: =SUMIF(J$2:U$2,"<"&E165,VolumeData!$J165:$U165) -> 3.024239187 | W165: =SUMIF(SEDData!$H165:$S165,"<"&wasteCutoff*100,VolumeData!$J165:$U165) -> 4.176038196e-05 | X165: =IF(AND(G165>=sweepCutoff,H165>=malfCutoff),SUMIF(SEDData!$H165:$R165,"<"&pulpCutoff*100,VolumeData!$J165:$U165)-W165,0) -> 0.3310896016 | Y165: 0 | Z165: 2.693107825
A166: 23 | B166: 36 | C166: =BaseData!D165/10 -> 42.6 | D166: 46.34454 | E166: 37.14939569 | F166: 2.380936013 | G166: =BaseData!I165 -> 3 | H166: =BaseData!J165 -> 9 | I166: 0.06092403355 | J166: 0.6018168577 | K166: 0.5017243404 | L166: 0.4275727602 | M166: 0.3684218077 | N166: 0.3160836516 | O166: 0.2650527493 | P166: 0.2124356582 | Q166: 0.1578808457 | R166: 0.1035085007 | S166: 0.05384034406 | T166: 0.01590167148 | U166: 4.176038196e-05 | V166: =SUMIF(J$2:U$2,"<"&E166,VolumeData!$J166:$U166) -> 3.024239187 | W166: =SUMIF(SEDData!$H166:$S166,"<"&wasteCutoff*100,VolumeData!$J166:$U166) -> 4.176038196e-05 | X166: =IF(AND(G166>=sweepCutoff,H166>=malfCutoff),SUMIF(SEDData!$H166:$R166,"<"&pulpCutoff*100,VolumeData!$J166:$U166)-W166,0) -> 0.3310896016 | Y166: 0 | Z166: 2.693107825
A167: 25 | B167: 74 | C167: =BaseData!D166/10 -> 42.6 | D167: 46.34454 | E167: 37.14939569 | F167: 2.380936013 | G167: =BaseData!I166 -> 7 | H167: =BaseData!J166 -> 2 | I167: 0.06092403355 | J167: 0.6018168577 | K167: 0.5017243404 | L167: 0.4275727602 | M167: 0.3684218077 | N167: 0.3160836516 | O167: 0.2650527493 | P167: 0.2124356582 | Q167: 0.1578808457 | R167: 0.1035085007 | S167: 0.05384034406 | T167: 0.01590167148 | U167: 4.176038196e-05 | V167: =SUMIF(J$2:U$2,"<"&E167,VolumeData!$J167:$U167) -> 3.024239187 | W167: =SUMIF(SEDData!$H167:$S167,"<"&wasteCutoff*100,VolumeData!$J167:$U167) -> 4.176038196e-05 | X167: =IF(AND(G167>=sweepCutoff,H167>=malfCutoff),SUMIF(SEDData!$H167:$R167,"<"&pulpCutoff*100,VolumeData!$J167:$U167)-W167,0) -> 0.3310896016 | Y167: 0 | Z167: 2.693107825
A168: 27 | B168: 121 | C168: =BaseData!D167/10 -> 42.6 | D168: 46.34454 | E168: 37.14939569 | F168: 2.380936013 | G168: =BaseData!I167 -> 6 | H168: =BaseData!J167 -> 4 | I168: 0.06092403355 | J168: 0.6018168577 | K168: 0.5017243404 | L168: 0.4275727602 | M168: 0.3684218077 | N168: 0.3160836516 | O168: 0.2650527493 | P168: 0.2124356582 | Q168: 0.1578808457 | R168: 0.1035085007 | S168: 0.05384034406 | T168: 0.01590167148 | U168: 4.176038196e-05 | V168: =SUMIF(J$2:U$2,"<"&E168,VolumeData!$J168:$U168) -> 3.024239187 | W168: =SUMIF(SEDData!$H168:$S168,"<"&wasteCutoff*100,VolumeData!$J168:$U168) -> 4.176038196e-05 | X168: =IF(AND(G168>=sweepCutoff,H168>=malfCutoff),SUMIF(SEDData!$H168:$R168,"<"&pulpCutoff*100,VolumeData!$J168:$U168)-W168,0) -> 0.3310896016 | Y168: 0 | Z168: 2.693107825
A169: 22 | B169: 114 | C169: =BaseData!D168/10 -> 42.6 | D169: 46.34454 | E169: 37.14939569 | F169: 2.380936013 | G169: =BaseData!I168 -> 6 | H169: =BaseData!J168 -> 2 | I169: 0.06092403355 | J169: 0.6018168577 | K169: 0.5017243404 | L169: 0.4275727602 | M169: 0.3684218077 | N169: 0.3160836516 | O169: 0.2650527493 | P169: 0.2124356582 | Q169: 0.1578808457 | R169: 0.1035085007 | S169: 0.05384034406 | T169: 0.01590167148 | U169: 4.176038196e-05 | V169: =SUMIF(J$2:U$2,"<"&E169,VolumeData!$J169:$U169) -> 3.024239187 | W169: =SUMIF(SEDData!$H169:$S169,"<"&wasteCutoff*100,VolumeData!$J169:$U169) -> 4.176038196e-05 | X169: =IF(AND(G169>=sweepCutoff,H169>=malfCutoff),SUMIF(SEDData!$H169:$R169,"<"&pulpCutoff*100,VolumeData!$J169:$U169)-W169,0) -> 0.3310896016 | Y169: 0 | Z169: 2.693107825
A170: 47 | B170: 20 | C170: =BaseData!D169/10 -> 42.5 | D170: 46.23575 | E170: 37.11104315 | F170: 2.367324509 | G170: =BaseData!I169 -> 4 | H170: =BaseData!J169 -> 9 | I170: 0.0606377465 | J170: 0.5989267649 | K170: 0.4992346217 | L170: 0.4253956601 | M170: 0.3664930683 | N170: 0.3143607598 | O170: 0.2635131518 | P170: 0.2110749432 | Q170: 0.1567108929 | R170: 0.1025555982 | S170: 0.05314327246 | T170: 0.01549120227 | U170: 2.958031196e-05 | V170: =SUMIF(J$2:U$2,"<"&E170,VolumeData!$J170:$U170) -> 3.006899936 | W170: =SUMIF(SEDData!$H170:$S170,"<"&wasteCutoff*100,VolumeData!$J170:$U170) -> 2.958031196e-05 | X170: =IF(AND(G170>=sweepCutoff,H170>=malfCutoff),SUMIF(SEDData!$H170:$R170,"<"&pulpCutoff*100,VolumeData!$J170:$U170)-W170,0) -> 0.3278713855 | Y170: 0 | Z170: 2.67899897
A171: 4 | B171: 29 | C171: =BaseData!D170/10 -> 42.5 | D171: 46.23575 | E171: 37.11104315 | F171: 2.367324509 | G171: =BaseData!I170 -> 8 | H171: =BaseData!J170 -> 9 | I171: 0.0606377465 | J171: 0.5989267649 | K171: 0.4992346217 | L171: 0.4253956601 | M171: 0.3664930683 | N171: 0.3143607598 | O171: 0.2635131518 | P171: 0.2110749432 | Q171: 0.1567108929 | R171: 0.1025555982 | S171: 0.05314327246 | T171: 0.01549120227 | U171: 2.958031196e-05 | V171: =SUMIF(J$2:U$2,"<"&E171,VolumeData!$J171:$U171) -> 3.006899936 | W171: =SUMIF(SEDData!$H171:$S171,"<"&wasteCutoff*100,VolumeData!$J171:$U171) -> 2.958031196e-05 | X171: =IF(AND(G171>=sweepCutoff,H171>=malfCutoff),SUMIF(SEDData!$H171:$R171,"<"&pulpCutoff*100,VolumeData!$J171:$U171)-W171,0) -> 0.3278713855 | Y171: 0 | Z171: 2.67899897
A172: 24 | B172: 31 | C172: =BaseData!D171/10 -> 42.5 | D172: 46.23575 | E172: 37.11104315 | F172: 2.367324509 | G172: =BaseData!I171 -> 8 | H172: =BaseData!J171 -> 9 | I172: 0.0606377465 | J172: 0.5989267649 | K172: 0.4992346217 | L172: 0.4253956601 | M172: 0.3664930683 | N172: 0.3143607598 | O172: 0.2635131518 | P172: 0.2110749432 | Q172: 0.1567108929 | R172: 0.1025555982 | S172: 0.05314327246 | T172: 0.01549120227 | U172: 2.958031196e-05 | V172: =SUMIF(J$2:U$2,"<"&E172,VolumeData!$J172:$U172) -> 3.006899936 | W172: =SUMIF(SEDData!$H172:$S172,"<"&wasteCutoff*100,VolumeData!$J172:$U172) -> 2.958031196e-05 | X172: =IF(AND(G172>=sweepCutoff,H172>=malfCutoff),SUMIF(SEDData!$H172:$R172,"<"&pulpCutoff*100,VolumeData!$J172:$U172)-W172,0) -> 0.3278713855 | Y172: 0 | Z172: 2.67899897
A173: 77 | B173: 32 | C173: =BaseData!D172/10 -> 42.5 | D173: 46.23575 | E173: 37.11104315 | F173: 2.367324509 | G173: =BaseData!I172 -> 6 | H173: =BaseData!J172 -> 7 | I173: 0.0606377465 | J173: 0.5989267649 | K173: 0.4992346217 | L173: 0.4253956601 | M173: 0.3664930683 | N173: 0.3143607598 | O173: 0.2635131518 | P173: 0.2110749432 | Q173: 0.1567108929 | R173: 0.1025555982 | S173: 0.05314327246 | T173: 0.01549120227 | U173: 2.958031196e-05 | V173: =SUMIF(J$2:U$2,"<"&E173,VolumeData!$J173:$U173) -> 3.006899936 | W173: =SUMIF(SEDData!$H173:$S173,"<"&wasteCutoff*100,VolumeData!$J173:$U173) -> 2.958031196e-05 | X173: =IF(AND(G173>=sweepCutoff,H173>=malfCutoff),SUMIF(SEDData!$H173:$R173,"<"&pulpCutoff*100,VolumeData!$J173:$U173)-W173,0) -> 0.3278713855 | Y173: 0 | Z173: 2.67899897
A174: 87 | B174: 43 | C174: =BaseData!D173/10 -> 42.5 | D174: 46.23575 | E174: 37.11104315 | F174: 2.367324509 | G174: =BaseData!I173 -> 6 | H174: =BaseData!J173 -> 9 | I174: 0.0606377465 | J174: 0.5989267649 | K174: 0.4992346217 | L174: 0.4253956601 | M174: 0.3664930683 | N174: 0.3143607598 | O174: 0.2635131518 | P174: 0.2110749432 | Q174: 0.1567108929 | R174: 0.1025555982 | S174: 0.05314327246 | T174: 0.01549120227 | U174: 2.958031196e-05 | V174: =SUMIF(J$2:U$2,"<"&E174,VolumeData!$J174:$U174) -> 3.006899936 | W174: =SUMIF(SEDData!$H174:$S174,"<"&wasteCutoff*100,VolumeData!$J174:$U174) -> 2.958031196e-05 | X174: =IF(AND(G174>=sweepCutoff,H174>=malfCutoff),SUMIF(SEDData!$H174:$R174,"<"&pulpCutoff*100,VolumeData!$J174:$U174)-W174,0) -> 0.3278713855 | Y174: 0 | Z174: 2.67899897
A175: 8 | B175: 74 | C175: =BaseData!D174/10 -> 42.5 | D175: 46.23575 | E175: 37.11104315 | F175: 2.367324509 | G175: =BaseData!I174 -> 7 | H175: =BaseData!J174 -> 9 | I175: 0.0606377465 | J175: 0.5989267649 | K175: 0.4992346217 | L175: 0.4253956601 | M175: 0.3664930683 | N175: 0.3143607598 | O175: 0.2635131518 | P175: 0.2110749432 | Q175: 0.1567108929 | R175: 0.1025555982 | S175: 0.05314327246 | T175: 0.01549120227 | U175: 2.958031196e-05 | V175: =SUMIF(J$2:U$2,"<"&E175,VolumeData!$J175:$U175) -> 3.006899936 | W175: =SUMIF(SEDData!$H175:$S175,"<"&wasteCutoff*100,VolumeData!$J175:$U175) -> 2.958031196e-05 | X175: =IF(AND(G175>=sweepCutoff,H175>=malfCutoff),SUMIF(SEDData!$H175:$R175,"<"&pulpCutoff*100,VolumeData!$J175:$U175)-W175,0) -> 0.3278713855 | Y175: 0 | Z175: 2.67899897
A176: 37 | B176: 68 | C176: =BaseData!D175/10 -> 42.5 | D176: 46.23575 | E176: 37.11104315 | F176: 2.367324509 | G176: =BaseData!I175 -> 8 | H176: =BaseData!J175 -> 9 | I176: 0.0606377465 | J176: 0.5989267649 | K176: 0.4992346217 | L176: 0.4253956601 | M176: 0.3664930683 | N176: 0.3143607598 | O176: 0.2635131518 | P176: 0.2110749432 | Q176: 0.1567108929 | R176: 0.1025555982 | S176: 0.05314327246 | T176: 0.01549120227 | U176: 2.958031196e-05 | V176: =SUMIF(J$2:U$2,"<"&E176,VolumeData!$J176:$U176) -> 3.006899936 | W176: =SUMIF(SEDData!$H176:$S176,"<"&wasteCutoff*100,VolumeData!$J176:$U176) -> 2.958031196e-05 | X176: =IF(AND(G176>=sweepCutoff,H176>=malfCutoff),SUMIF(SEDData!$H176:$R176,"<"&pulpCutoff*100,VolumeData!$J176:$U176)-W176,0) -> 0.3278713855 | Y176: 0 | Z176: 2.67899897
A177: 67 | B177: 90 | C177: =BaseData!D176/10 -> 42.5 | D177: 46.23575 | E177: 37.11104315 | F177: 2.367324509 | G177: =BaseData!I176 -> 7 | H177: =BaseData!J176 -> 9 | I177: 0.0606377465 | J177: 0.5989267649 | K177: 0.4992346217 | L177: 0.4253956601 | M177: 0.3664930683 | N177: 0.3143607598 | O177: 0.2635131518 | P177: 0.2110749432 | Q177: 0.1567108929 | R177: 0.1025555982 | S177: 0.05314327246 | T177: 0.01549120227 | U177: 2.958031196e-05 | V177: =SUMIF(J$2:U$2,"<"&E177,VolumeData!$J177:$U177) -> 3.006899936 | W177: =SUMIF(SEDData!$H177:$S177,"<"&wasteCutoff*100,VolumeData!$J177:$U177) -> 2.958031196e-05 | X177: =IF(AND(G177>=sweepCutoff,H177>=malfCutoff),SUMIF(SEDData!$H177:$R177,"<"&pulpCutoff*100,VolumeData!$J177:$U177)-W177,0) -> 0.3278713855 | Y177: 0 | Z177: 2.67899897
A178: 65 | B178: 40 | C178: =BaseData!D177/10 -> 42.4 | D178: 46.12696 | E178: 37.07260026 | F178: 2.353756508 | G178: =BaseData!I177 -> 8 | H178: =BaseData!J177 -> 9 | I178: 0.06035213386 | J178: 0.5960436604 | K178: 0.4967511838 | L178: 0.4232242331 | M178: 0.3645694789 | N178: 0.3126425731 | O178: 0.2619778937 | P178: 0.2097182902 | Q178: 0.1555448286 | R178: 0.1016065367 | S178: 0.05245014883 | T178: 0.01508538398 | U178: 1.956900984e-05 | V178: =SUMIF(J$2:U$2,"<"&E178,VolumeData!$J178:$U178) -> 2.989614211 | W178: =SUMIF(SEDData!$H178:$S178,"<"&wasteCutoff*100,VolumeData!$J178:$U178) -> 1.956900984e-05 | X178: =IF(AND(G178>=sweepCutoff,H178>=malfCutoff),SUMIF(SEDData!$H178:$R178,"<"&pulpCutoff*100,VolumeData!$J178:$U178)-W178,0) -> 0.3246673291 | Y178: 0 | Z178: 2.664927313
A179: 49 | B179: 51 | C179: =BaseData!D178/10 -> 42.4 | D179: 46.12696 | E179: 37.07260026 | F179: 2.353756508 | G179: =BaseData!I178 -> 6 | H179: =BaseData!J178 -> 2 | I179: 0.06035213386 | J179: 0.5960436604 | K179: 0.4967511838 | L179: 0.4232242331 | M179: 0.3645694789 | N179: 0.3126425731 | O179: 0.2619778937 | P179: 0.2097182902 | Q179: 0.1555448286 | R179: 0.1016065367 | S179: 0.05245014883 | T179: 0.01508538398 | U179: 1.956900984e-05 | V179: =SUMIF(J$2:U$2,"<"&E179,VolumeData!$J179:$U179) -> 2.989614211 | W179: =SUMIF(SEDData!$H179:$S179,"<"&wasteCutoff*100,VolumeData!$J179:$U179) -> 1.956900984e-05 | X179: =IF(AND(G179>=sweepCutoff,H179>=malfCutoff),SUMIF(SEDData!$H179:$R179,"<"&pulpCutoff*100,VolumeData!$J179:$U179)-W179,0) -> 0.3246673291 | Y179: 0 | Z179: 2.664927313
A180: 39 | B180: 47 | C180: =BaseData!D179/10 -> 42.3 | D180: 46.01817 | E180: 37.03406659 | F180: 2.340231982 | G180: =BaseData!I179 -> 8 | H180: =BaseData!J179 -> 9 | I180: 0.06006719562 | J180: 0.5931675439 | K180: 0.4942740262 | L180: 0.4210584784 | M180: 0.3626510385 | N180: 0.3109290903 | O180: 0.260446974 | P180: 0.2083656987 | Q180: 0.1543826533 | R180: 0.1006613186 | S180: 0.05176097887 | T180: 0.01468422849 | U180: 1.167626304e-05 | V180: =SUMIF(J$2:U$2,"<"&E180,VolumeData!$J180:$U180) -> 2.972382029 | W180: =SUMIF(SEDData!$H180:$S180,"<"&wasteCutoff*100,VolumeData!$J180:$U180) -> 1.167626304e-05 | X180: =IF(AND(G180>=sweepCutoff,H180>=malfCutoff),SUMIF(SEDData!$H180:$R180,"<"&pulpCutoff*100,VolumeData!$J180:$U180)-W180,0) -> 0.321477503 | Y180: 0 | Z180: 2.65089285
A181: 72 | B181: 57 | C181: =BaseData!D180/10 -> 42.3 | D181: 46.01817 | E181: 37.03406659 | F181: 2.340231982 | G181: =BaseData!I180 -> 8 | H181: =BaseData!J180 -> 9 | I181: 0.06006719562 | J181: 0.5931675439 | K181: 0.4942740262 | L181: 0.4210584784 | M181: 0.3626510385 | N181: 0.3109290903 | O181: 0.260446974 | P181: 0.2083656987 | Q181: 0.1543826533 | R181: 0.1006613186 | S181: 0.05176097887 | T181: 0.01468422849 | U181: 1.167626304e-05 | V181: =SUMIF(J$2:U$2,"<"&E181,VolumeData!$J181:$U181) -> 2.972382029 | W181: =SUMIF(SEDData!$H181:$S181,"<"&wasteCutoff*100,VolumeData!$J181:$U181) -> 1.167626304e-05 | X181: =IF(AND(G181>=sweepCutoff,H181>=malfCutoff),SUMIF(SEDData!$H181:$R181,"<"&pulpCutoff*100,VolumeData!$J181:$U181)-W181,0) -> 0.321477503 | Y181: 0 | Z181: 2.65089285
A182: 79 | B182: 46 | C182: =BaseData!D181/10 -> 42.3 | D182: 46.01817 | E182: 37.03406659 | F182: 2.340231982 | G182: =BaseData!I181 -> 7 | H182: =BaseData!J181 -> 9 | I182: 0.06006719562 | J182: 0.5931675439 | K182: 0.4942740262 | L182: 0.4210584784 | M182: 0.3626510385 | N182: 0.3109290903 | O182: 0.260446974 | P182: 0.2083656987 | Q182: 0.1543826533 | R182: 0.1006613186 | S182: 0.05176097887 | T182: 0.01468422849 | U182: 1.167626304e-05 | V182: =SUMIF(J$2:U$2,"<"&E182,VolumeData!$J182:$U182) -> 2.972382029 | W182: =SUMIF(SEDData!$H182:$S182,"<"&wasteCutoff*100,VolumeData!$J182:$U182) -> 1.167626304e-05 | X182: =IF(AND(G182>=sweepCutoff,H182>=malfCutoff),SUMIF(SEDData!$H182:$R182,"<"&pulpCutoff*100,VolumeData!$J182:$U182)-W182,0) -> 0.321477503 | Y182: 0 | Z182: 2.65089285
A183: 80 | B183: 35 | C183: =BaseData!D182/10 -> 42.2 | D183: 45.90938 | E183: 36.99544172 | F183: 2.326750904 | G183: =BaseData!I182 -> 6 | H183: =BaseData!J182 -> 2 | I183: 0.05978293179 | J183: 0.5902984151 | K183: 0.4918031484 | L183: 0.4188983952 | M183: 0.3607377462 | N183: 0.3092203102 | O183: 0.2589203915 | P183: 0.2070171678 | Q183: 0.1532243673 | R183: 0.09971994661 | S183: 0.05107576835 | T183: 0.01428774786 | U183: 5.851483118e-06 | V183: =SUMIF(J$2:U$2,"<"&E183,VolumeData!$J183:$U183) -> 2.955203404 | W183: =SUMIF(SEDData!$H183:$S183,"<"&wasteCutoff*100,VolumeData!$J183:$U183) -> 5.851483118e-06 | X183: =IF(AND(G183>=sweepCutoff,H183>=malfCutoff),SUMIF(SEDData!$H183:$R183,"<"&pulpCutoff*100,VolumeData!$J183:$U183)-W183,0) -> 0.3183019786 | Y183: 0 | Z183: 2.636895574
A184: 25 | B184: 94 | C184: =BaseData!D183/10 -> 42.2 | D184: 45.90938 | E184: 36.99544172 | F184: 2.326750904 | G184: =BaseData!I183 -> 8 | H184: =BaseData!J183 -> 9 | I184: 0.05978293179 | J184: 0.5902984151 | K184: 0.4918031484 | L184: 0.4188983952 | M184: 0.3607377462 | N184: 0.3092203102 | O184: 0.2589203915 | P184: 0.2070171678 | Q184: 0.1532243673 | R184: 0.09971994661 | S184: 0.05107576835 | T184: 0.01428774786 | U184: 5.851483118e-06 | V184: =SUMIF(J$2:U$2,"<"&E184,VolumeData!$J184:$U184) -> 2.955203404 | W184: =SUMIF(SEDData!$H184:$S184,"<"&wasteCutoff*100,VolumeData!$J184:$U184) -> 5.851483118e-06 | X184: =IF(AND(G184>=sweepCutoff,H184>=malfCutoff),SUMIF(SEDData!$H184:$R184,"<"&pulpCutoff*100,VolumeData!$J184:$U184)-W184,0) -> 0.3183019786 | Y184: 0 | Z184: 2.636895574
A185: 50 | B185: 85 | C185: =BaseData!D184/10 -> 42.2 | D185: 45.90938 | E185: 36.99544172 | F185: 2.326750904 | G185: =BaseData!I184 -> 7 | H185: =BaseData!J184 -> 9 | I185: 0.05978293179 | J185: 0.5902984151 | K185: 0.4918031484 | L185: 0.4188983952 | M185: 0.3607377462 | N185: 0.3092203102 | O185: 0.2589203915 | P185: 0.2070171678 | Q185: 0.1532243673 | R185: 0.09971994661 | S185: 0.05107576835 | T185: 0.01428774786 | U185: 5.851483118e-06 | V185: =SUMIF(J$2:U$2,"<"&E185,VolumeData!$J185:$U185) -> 2.955203404 | W185: =SUMIF(SEDData!$H185:$S185,"<"&wasteCutoff*100,VolumeData!$J185:$U185) -> 5.851483118e-06 | X185: =IF(AND(G185>=sweepCutoff,H185>=malfCutoff),SUMIF(SEDData!$H185:$R185,"<"&pulpCutoff*100,VolumeData!$J185:$U185)-W185,0) -> 0.3183019786 | Y185: 0 | Z185: 2.636895574
A186: 34 | B186: 32 | C186: =BaseData!D185/10 -> 42.1 | D186: 45.80059 | E186: 36.95672521 | F186: 2.313313247 | G186: =BaseData!I185 -> 7 | H186: =BaseData!J185 -> 9 | I186: 0.05949934236 | J186: 0.5874362739 | K186: 0.4893385499 | L186: 0.4167439827 | M186: 0.3588296007 | N186: 0.3075162316 | O186: 0.2573981452 | P186: 0.2056726971 | Q186: 0.1520699712 | R186: 0.09878242305 | S186: 0.05039452314 | T186: 0.01389595427 | U186: 2.043700377e-06 | V186: =SUMIF(J$2:U$2,"<"&E186,VolumeData!$J186:$U186) -> 2.938078353 | W186: =SUMIF(SEDData!$H186:$S186,"<"&wasteCutoff*100,VolumeData!$J186:$U186) -> 2.043700377e-06 | X186: =IF(AND(G186>=sweepCutoff,H186>=malfCutoff),SUMIF(SEDData!$H186:$R186,"<"&pulpCutoff*100,VolumeData!$J186:$U186)-W186,0) -> 0.3151408279 | Y186: 0 | Z186: 2.622935481
A187: 37 | B187: 51 | C187: =BaseData!D186/10 -> 42.1 | D187: 45.80059 | E187: 36.95672521 | F187: 2.313313247 | G187: =BaseData!I186 -> 4 | H187: =BaseData!J186 -> 3 | I187: 0.05949934236 | J187: 0.5874362739 | K187: 0.4893385499 | L187: 0.4167439827 | M187: 0.3588296007 | N187: 0.3075162316 | O187: 0.2573981452 | P187: 0.2056726971 | Q187: 0.1520699712 | R187: 0.09878242305 | S187: 0.05039452314 | T187: 0.01389595427 | U187: 2.043700377e-06 | V187: =SUMIF(J$2:U$2,"<"&E187,VolumeData!$J187:$U187) -> 2.938078353 | W187: =SUMIF(SEDData!$H187:$S187,"<"&wasteCutoff*100,VolumeData!$J187:$U187) -> 2.043700377e-06 | X187: =IF(AND(G187>=sweepCutoff,H187>=malfCutoff),SUMIF(SEDData!$H187:$R187,"<"&pulpCutoff*100,VolumeData!$J187:$U187)-W187,0) -> 0.3151408279 | Y187: 0 | Z187: 2.622935481
A188: 25 | B188: 67 | C188: =BaseData!D187/10 -> 42.1 | D188: 45.80059 | E188: 36.95672521 | F188: 2.313313247 | G188: =BaseData!I187 -> 8 | H188: =BaseData!J187 -> 9 | I188: 0.05949934236 | J188: 0.5874362739 | K188: 0.4893385499 | L188: 0.4167439827 | M188: 0.3588296007 | N188: 0.3075162316 | O188: 0.2573981452 | P188: 0.2056726971 | Q188: 0.1520699712 | R188: 0.09878242305 | S188: 0.05039452314 | T188: 0.01389595427 | U188: 2.043700377e-06 | V188: =SUMIF(J$2:U$2,"<"&E188,VolumeData!$J188:$U188) -> 2.938078353 | W188: =SUMIF(SEDData!$H188:$S188,"<"&wasteCutoff*100,VolumeData!$J188:$U188) -> 2.043700377e-06 | X188: =IF(AND(G188>=sweepCutoff,H188>=malfCutoff),SUMIF(SEDData!$H188:$R188,"<"&pulpCutoff*100,VolumeData!$J188:$U188)-W188,0) -> 0.3151408279 | Y188: 0 | Z188: 2.622935481
A189: 4 | B189: 12 | C189: =BaseData!D188/10 -> 42 | D189: 45.6918 | E189: 36.91791663 | F189: 2.299918983 | G189: =BaseData!I188 -> 3 | H189: =BaseData!J188 -> 2 | I189: 0.05921642732 | J189: 0.5845811201 | K189: 0.4868802301 | L189: 0.4145952402 | M189: 0.3569266013 | N189: 0.3058168534 | O189: 0.255880234 | P189: 0.2043322858 | Q189: 0.1509194654 | R189: 0.09784875054 | S189: 0.04971724918 | T189: 0.0135088601 | U189: 2.01558415e-07 | V189: =SUMIF(J$2:U$2,"<"&E189,VolumeData!$J189:$U189) -> 2.92100689 | W189: =SUMIF(SEDData!$H189:$S189,"<"&wasteCutoff*100,VolumeData!$J189:$U189) -> 2.01558415e-07 | X189: =IF(AND(G189>=sweepCutoff,H189>=malfCutoff),SUMIF(SEDData!$H189:$R189,"<"&pulpCutoff*100,VolumeData!$J189:$U189)-W189,0) -> 0.3119941236 | Y189: 0 | Z189: 2.609012565
A190: 33 | B190: 15 | C190: =BaseData!D189/10 -> 42 | D190: 45.6918 | E190: 36.91791663 | F190: 2.299918983 | G190: =BaseData!I189 -> 8 | H190: =BaseData!J189 -> 2 | I190: 0.05921642732 | J190: 0.5845811201 | K190: 0.4868802301 | L190: 0.4145952402 | M190: 0.3569266013 | N190: 0.3058168534 | O190: 0.255880234 | P190: 0.2043322858 | Q190: 0.1509194654 | R190: 0.09784875054 | S190: 0.04971724918 | T190: 0.0135088601 | U190: 2.01558415e-07 | V190: =SUMIF(J$2:U$2,"<"&E190,VolumeData!$J190:$U190) -> 2.92100689 | W190: =SUMIF(SEDData!$H190:$S190,"<"&wasteCutoff*100,VolumeData!$J190:$U190) -> 2.01558415e-07 | X190: =IF(AND(G190>=sweepCutoff,H190>=malfCutoff),SUMIF(SEDData!$H190:$R190,"<"&pulpCutoff*100,VolumeData!$J190:$U190)-W190,0) -> 0.3119941236 | Y190: 0 | Z190: 2.609012565
A191: 93 | B191: 33 | C191: =BaseData!D190/10 -> 42 | D191: 45.6918 | E191: 36.91791663 | F191: 2.299918983 | G191: =BaseData!I190 -> 6 | H191: =BaseData!J190 -> 9 | I191: 0.05921642732 | J191: 0.5845811201 | K191: 0.4868802301 | L191: 0.4145952402 | M191: 0.3569266013 | N191: 0.3058168534 | O191: 0.255880234 | P191: 0.2043322858 | Q191: 0.1509194654 | R191: 0.09784875054 | S191: 0.04971724918 | T191: 0.0135088601 | U191: 2.01558415e-07 | V191: =SUMIF(J$2:U$2,"<"&E191,VolumeData!$J191:$U191) -> 2.92100689 | W191: =SUMIF(SEDData!$H191:$S191,"<"&wasteCutoff*100,VolumeData!$J191:$U191) -> 2.01558415e-07 | X191: =IF(AND(G191>=sweepCutoff,H191>=malfCutoff),SUMIF(SEDData!$H191:$R191,"<"&pulpCutoff*100,VolumeData!$J191:$U191)-W191,0) -> 0.3119941236 | Y191: 0 | Z191: 2.609012565
A192: 57 | B192: 45 | C192: =BaseData!D191/10 -> 42 | D192: 45.6918 | E192: 36.91791663 | F192: 2.299918983 | G192: =BaseData!I191 -> 6 | H192: =BaseData!J191 -> 4 | I192: 0.05921642732 | J192: 0.5845811201 | K192: 0.4868802301 | L192: 0.4145952402 | M192: 0.3569266013 | N192: 0.3058168534 | O192: 0.255880234 | P192: 0.2043322858 | Q192: 0.1509194654 | R192: 0.09784875054 | S192: 0.04971724918 | T192: 0.0135088601 | U192: 2.01558415e-07 | V192: =SUMIF(J$2:U$2,"<"&E192,VolumeData!$J192:$U192) -> 2.92100689 | W192: =SUMIF(SEDData!$H192:$S192,"<"&wasteCutoff*100,VolumeData!$J192:$U192) -> 2.01558415e-07 | X192: =IF(AND(G192>=sweepCutoff,H192>=malfCutoff),SUMIF(SEDData!$H192:$R192,"<"&pulpCutoff*100,VolumeData!$J192:$U192)-W192,0) -> 0.3119941236 | Y192: 0 | Z192: 2.609012565
A193: 50 | B193: 113 | C193: =BaseData!D192/10 -> 42 | D193: 45.6918 | E193: 36.91791663 | F193: 2.299918983 | G193: =BaseData!I192 -> 7 | H193: =BaseData!J192 -> 4 | I193: 0.05921642732 | J193: 0.5845811201 | K193: 0.4868802301 | L193: 0.4145952402 | M193: 0.3569266013 | N193: 0.3058168534 | O193: 0.255880234 | P193: 0.2043322858 | Q193: 0.1509194654 | R193: 0.09784875054 | S193: 0.04971724918 | T193: 0.0135088601 | U193: 2.01558415e-07 | V193: =SUMIF(J$2:U$2,"<"&E193,VolumeData!$J193:$U193) -> 2.92100689 | W193: =SUMIF(SEDData!$H193:$S193,"<"&wasteCutoff*100,VolumeData!$J193:$U193) -> 2.01558415e-07 | X193: =IF(AND(G193>=sweepCutoff,H193>=malfCutoff),SUMIF(SEDData!$H193:$R193,"<"&pulpCutoff*100,VolumeData!$J193:$U193)-W193,0) -> 0.3119941236 | Y193: 0 | Z193: 2.609012565
A194: 4 | B194: 14 | C194: =BaseData!D193/10 -> 41.9 | D194: 45.58301 | E194: 36.87901554 | F194: 2.286568086 | G194: =BaseData!I193 -> 8 | H194: =BaseData!J193 -> 9 | I194: 0.05893418669 | J194: 0.5817329534 | K194: 0.4844281886 | L194: 0.4124521669 | M194: 0.3550287467 | N194: 0.3041221744 | O194: 0.2543666566 | P194: 0.2029959334 | Q194: 0.1497728504 | R194: 0.09691893168 | S194: 0.04904395252 | T194: 0.01312647788 | U194: 2.73308568e-07 | V194: =SUMIF(J$2:U$2,"<"&E194,VolumeData!$J194:$U194) -> 2.890862555 | W194: =SUMIF(SEDData!$H194:$S194,"<"&wasteCutoff*100,VolumeData!$J194:$U194) -> 2.73308568e-07 | X194: =IF(AND(G194>=sweepCutoff,H194>=malfCutoff),SUMIF(SEDData!$H194:$R194,"<"&pulpCutoff*100,VolumeData!$J194:$U194)-W194,0) -> 0.3088619392 | Y194: 0 | Z194: 2.582000342
A195: 23 | B195: 79 | C195: =BaseData!D194/10 -> 41.9 | D195: =C195*(1+growthRate) -> 45.58301 | E195: =(Peterson_a+Peterson_b*LN(C195*10))/10 -> 36.87901554 | F195: =Vol_a*D195^2*E195/10000 -> 2.286568086 | G195: =BaseData!I194 -> 7 | H195: =BaseData!J194 -> 9 | I195: 0.05893418669 | J195: 0.5817329534 | K195: 0.4844281886 | L195: 0.4124521669 | M195: 0.3550287467 | N195: 0.3041221744 | O195: 0.2543666566 | P195: 0.2029959334 | Q195: 0.1497728504 | R195: 0.09691893168 | S195: 0.04904395252 | T195: 0.01312647788 | U195: 2.73308568e-07 | V195: =SUMIF(J$2:U$2,"<"&E195,VolumeData!$J195:$U195) -> 2.890862555 | W195: =SUMIF(SEDData!$H195:$S195,"<"&wasteCutoff*100,VolumeData!$J195:$U195) -> 2.73308568e-07 | X195: =IF(AND(G195>=sweepCutoff,H195>=malfCutoff),SUMIF(SEDData!$H195:$R195,"<"&pulpCutoff*100,VolumeData!$J195:$U195)-W195,0) -> 0.3088619392 | Y195: =IF(OR(G195<sweepCutoff,H195<malfCutoff),V195-W195,0) -> 0 | Z195: 2.582000342
A196: 23 | B196: 83 | C196: =BaseData!D195/10 -> 41.9 | D196: 45.58301 | E196: 36.87901554 | F196: 2.286568086 | G196: =BaseData!I195 -> 7 | H196: =BaseData!J195 -> 9 | I196: 0.05893418669 | J196: 0.5817329534 | K196: 0.4844281886 | L196: 0.4124521669 | M196: 0.3550287467 | N196: 0.3041221744 | O196: 0.2543666566 | P196: 0.2029959334 | Q196: 0.1497728504 | R196: 0.09691893168 | S196: 0.04904395252 | T196: 0.01312647788 | U196: 2.73308568e-07 | V196: =SUMIF(J$2:U$2,"<"&E196,VolumeData!$J196:$U196) -> 2.890862555 | W196: =SUMIF(SEDData!$H196:$S196,"<"&wasteCutoff*100,VolumeData!$J196:$U196) -> 2.73308568e-07 | X196: =IF(AND(G196>=sweepCutoff,H196>=malfCutoff),SUMIF(SEDData!$H196:$R196,"<"&pulpCutoff*100,VolumeData!$J196:$U196)-W196,0) -> 0.3088619392 | Y196: 0 | Z196: =V196-W196-X196-Y196 -> 2.582000342
A197: 10 | B197: 15 | C197: =BaseData!D196/10 -> 41.8 | D197: 45.47422 | E197: 36.8400215 | F197: 2.273260527 | G197: =BaseData!I196 -> 7 | H197: =BaseData!J196 -> 9 | I197: 0.05865262045 | J197: 0.5788917737 | K197: 0.4819824248 | L197: 0.410314762 | M197: 0.3531360361 | N197: 0.3024321934 | O197: 0.2528574121 | P197: 0.2016636392 | Q197: 0.1486301268 | R197: 0.09599296913 | S197: 0.04837463928 | T197: 0.01274882034 | U197: 2.206804258e-06 | V197: =SUMIF(J$2:U$2,"<"&E197,VolumeData!$J197:$U197) -> 2.874275976 | W197: =SUMIF(SEDData!$H197:$S197,"<"&wasteCutoff*100,VolumeData!$J197:$U197) -> 2.206804258e-06 | X197: =IF(AND(G197>=sweepCutoff,H197>=malfCutoff),SUMIF(SEDData!$H197:$R197,"<"&pulpCutoff*100,VolumeData!$J197:$U197)-W197,0) -> 0.3057443487 | Y197: 0 | Z197: 2.568529421
A198: 47 | B198: 42 | C198: =BaseData!D197/10 -> 41.8 | D198: 45.47422 | E198: 36.8400215 | F198: 2.273260527 | G198: =BaseData!I197 -> 7 | H198: =BaseData!J197 -> 2 | I198: 0.05865262045 | J198: 0.5788917737 | K198: 0.4819824248 | L198: 0.410314762 | M198: 0.3531360361 | N198: 0.3024321934 | O198: 0.2528574121 | P198: 0.2016636392 | Q198: 0.1486301268 | R198: 0.09599296913 | S198: 0.04837463928 | T198: 0.01274882034 | U198: 2.206804258e-06 | V198: =SUMIF(J$2:U$2,"<"&E198,VolumeData!$J198:$U198) -> 2.874275976 | W198: =SUMIF(SEDData!$H198:$S198,"<"&wasteCutoff*100,VolumeData!$J198:$U198) -> 2.206804258e-06 | X198: =IF(AND(G198>=sweepCutoff,H198>=malfCutoff),SUMIF(SEDData!$H198:$R198,"<"&pulpCutoff*100,VolumeData!$J198:$U198)-W198,0) -> 0.3057443487 | Y198: 0 | Z198: 2.568529421
A199: 81 | B199: 88 | C199: =BaseData!D198/10 -> 41.8 | D199: 45.47422 | E199: 36.8400215 | F199: 2.273260527 | G199: =BaseData!I198 -> 8 | H199: =BaseData!J198 -> 9 | I199: 0.05865262045 | J199: 0.5788917737 | K199: 0.4819824248 | L199: 0.410314762 | M199: 0.3531360361 | N199: 0.3024321934 | O199: 0.2528574121 | P199: 0.2016636392 | Q199: 0.1486301268 | R199: 0.09599296913 | S199: 0.04837463928 | T199: 0.01274882034 | U199: 2.206804258e-06 | V199: =SUMIF(J$2:U$2,"<"&E199,VolumeData!$J199:$U199) -> 2.874275976 | W199: =SUMIF(SEDData!$H199:$S199,"<"&wasteCutoff*100,VolumeData!$J199:$U199) -> 2.206804258e-06 | X199: =IF(AND(G199>=sweepCutoff,H199>=malfCutoff),SUMIF(SEDData!$H199:$R199,"<"&pulpCutoff*100,VolumeData!$J199:$U199)-W199,0) -> 0.3057443487 | Y199: 0 | Z199: 2.568529421
A200: 19 | B200: 118 | C200: =BaseData!D199/10 -> 41.8 | D200: 45.47422 | E200: 36.8400215 | F200: 2.273260527 | G200: =BaseData!I199 -> 7 | H200: =BaseData!J199 -> 4 | I200: 0.05865262045 | J200: 0.5788917737 | K200: 0.4819824248 | L200: 0.410314762 | M200: 0.3531360361 | N200: 0.3024321934 | O200: 0.2528574121 | P200: 0.2016636392 | Q200: 0.1486301268 | R200: 0.09599296913 | S200: 0.04837463928 | T200: 0.01274882034 | U200: 2.206804258e-06 | V200: =SUMIF(J$2:U$2,"<"&E200,VolumeData!$J200:$U200) -> 2.874275976 | W200: =SUMIF(SEDData!$H200:$S200,"<"&wasteCutoff*100,VolumeData!$J200:$U200) -> 2.206804258e-06 | X200: =IF(AND(G200>=sweepCutoff,H200>=malfCutoff),SUMIF(SEDData!$H200:$R200,"<"&pulpCutoff*100,VolumeData!$J200:$U200)-W200,0) -> 0.3057443487 | Y200: 0 | Z200: 2.568529421
... 4300 more rows

Sheet ValueData (hidden)
T1: $/tree
A2: ROW | B2: COL | C2: DBH16 (cm) | D2: DBH18 (cm) | E2: HT18 (m) | F2: VOL18 (m3) | G2: 0.3-3.6 | H2: 3.6-6.9 | I2: 6.9-10.2 | J2: 10.2-13.5 | K2: 13.5-16.8 | L2: 16.8-20.1 | M2: 20.1-23.4 | N2: 23.4-26.7 | O2: 26.7-30.0 | P2: 30.0-33.3 | Q2: 33.3-36.9 | R2: 36.9-40.2 | S2: 40.2- | T2: Sawlogs
A3: 7 | B3: 10 | C3: 62.2 | D3: =C3*(1+growthRate) -> 67.66738 | E3: =(Peterson_a+Peterson_b*LN(D3*10))/10 -> 44.7010126 | F3: =Vol_a*D3^2*E3/10000 -> 6.107660704 | G3: =IF(OR(ISBLANK(SEDData!G3),SEDData!G3<pulpCutoff*100,VolumeData!$G3<sweepCutoff,VolumeData!$H3<malfCutoff),"",IF(SEDData!G3<regCutoff*100,(int+SED*(SEDData!G3/100))*VolumeData!J3,int+SED*regCutoff*VolumeData!J3)) -> 419.0980079 | H3: =IF(OR(ISBLANK(SEDData!H3),SEDData!H3<pulpCutoff*100,VolumeData!$G3<sweepCutoff,VolumeData!$H3<malfCutoff),"",IF(SEDData!H3<regCutoff*100,(int+SED*(SEDData!H3/100))*VolumeData!K3,int+SED*regCutoff*VolumeData!K3)) -> 351.8221881 | I3: =IF(OR(ISBLANK(SEDData!I3),SEDData!I3<pulpCutoff*100,VolumeData!$G3<sweepCutoff,VolumeData!$H3<malfCutoff),"",IF(SEDData!I3<regCutoff*100,(int+SED*(SEDData!I3/100))*VolumeData!L3,int+SED*regCutoff*VolumeData!L3)) -> 299.9857087 | J3: =IF(OR(ISBLANK(SEDData!J3),SEDData!J3<pulpCutoff*100,VolumeData!$G3<sweepCutoff,VolumeData!$H3<malfCutoff),"",IF(SEDData!J3<regCutoff*100,(int+SED*(SEDData!J3/100))*VolumeData!M3,int+SED*regCutoff*VolumeData!M3)) -> 258.3570748 | K3: =IF(OR(ISBLANK(SEDData!K3),SEDData!K3<pulpCutoff*100,VolumeData!$G3<sweepCutoff,VolumeData!$H3<malfCutoff),"",IF(SEDData!K3<regCutoff*100,(int+SED*(SEDData!K3/100))*VolumeData!N3,int+SED*regCutoff*VolumeData!N3)) -> 222.71945 | L3: =IF(OR(ISBLANK(SEDData!L3),SEDData!L3<pulpCutoff*100,VolumeData!$G3<sweepCutoff,VolumeData!$H3<malfCutoff),"",IF(SEDData!L3<regCutoff*100,(int+SED*(SEDData!L3/100))*VolumeData!O3,int+SED*regCutoff*VolumeData!O3)) -> 189.8493902 | M3: =IF(OR(ISBLANK(SEDData!M3),SEDData!M3<pulpCutoff*100,VolumeData!$G3<sweepCutoff,VolumeData!$H3<malfCutoff),"",IF(SEDData!M3<regCutoff*100,(int+SED*(SEDData!M3/100))*VolumeData!P3,int+SED*regCutoff*VolumeData!P3)) -> 157.4955782 | N3: =IF(OR(ISBLANK(SEDData!N3),SEDData!N3<pulpCutoff*100,VolumeData!$G3<sweepCutoff,VolumeData!$H3<malfCutoff),"",IF(SEDData!N3<regCutoff*100,(int+SED*(SEDData!N3/100))*VolumeData!Q3,int+SED*regCutoff*VolumeData!Q3)) -> 124.3575581 | O3: =IF(OR(ISBLANK(SEDData!O3),SEDData!O3<pulpCutoff*100,VolumeData!$G3<sweepCutoff,VolumeData!$H3<malfCutoff),"",IF(SEDData!O3<regCutoff*100,(int+SED*(SEDData!O3/100))*VolumeData!R3,int+SED*regCutoff*VolumeData!R3)) -> 114.1426484 | P3: =IF(OR(ISBLANK(SEDData!P3),SEDData!P3<pulpCutoff*100,VolumeData!$G3<sweepCutoff,VolumeData!$H3<malfCutoff),"",IF(SEDData!P3<regCutoff*100,(int+SED*(SEDData!P3/100))*VolumeData!S3,int+SED*regCutoff*VolumeData!S3)) -> 73.82366039 | Q3: =IF(OR(ISBLANK(SEDData!Q3),SEDData!Q3<pulpCutoff*100,VolumeData!$G3<sweepCutoff,VolumeData!$H3<malfCutoff),"",IF(SEDData!Q3<regCutoff*100,(int+SED*(SEDData!Q3/100))*VolumeData!T3,int+SED*regCutoff*VolumeData!T3)) -> 43.35089284 | R3: =IF(OR(ISBLANK(SEDData!R3),SEDData!R3<pulpCutoff*100,VolumeData!$G3<sweepCutoff,VolumeData!$H3<malfCutoff),"",IF(SEDData!R3<regCutoff*100,(int+SED*(SEDData!R3/100))*VolumeData!U3,int+SED*regCutoff*VolumeData!U3)) ->  | S3: =IF(OR(ISBLANK(SEDData!S3),SEDData!S3<pulpCutoff*100,VolumeData!$G3<sweepCutoff,VolumeData!$H3<malfCutoff),"",IF(SEDData!S3<regCutoff*100,(int+SED*(SEDData!S3/100))*VolumeData!V3,int+SED*regCutoff*VolumeData!V3)) ->  | T3: =SUM(G3:Q3) -> 2255.002158
A4: 45 | B4: 38 | C4: 60 | D4: 65.274 | E4: =(Peterson_a+Peterson_b*LN(C4*10))/10 -> 42.73849504 | F4: 5.43373555 | G4: =IF(OR(ISBLANK(SEDData!G4),SEDData!G4<pulpCutoff*100,VolumeData!$G4<sweepCutoff,VolumeData!$H4<malfCutoff),"",IF(SEDData!G4<regCutoff*100,(int+SED*(SEDData!G4/100))*VolumeData!J4,int+SED*regCutoff*VolumeData!J4)) ->  | H4: =IF(OR(ISBLANK(SEDData!H4),SEDData!H4<pulpCutoff*100,VolumeData!$G4<sweepCutoff,VolumeData!$H4<malfCutoff),"",IF(SEDData!H4<regCutoff*100,(int+SED*(SEDData!H4/100))*VolumeData!K4,int+SED*regCutoff*VolumeData!K4)) ->  | I4: =IF(OR(ISBLANK(SEDData!I4),SEDData!I4<pulpCutoff*100,VolumeData!$G4<sweepCutoff,VolumeData!$H4<malfCutoff),"",IF(SEDData!I4<regCutoff*100,(int+SED*(SEDData!I4/100))*VolumeData!L4,int+SED*regCutoff*VolumeData!L4)) ->  | J4: =IF(OR(ISBLANK(SEDData!J4),SEDData!J4<pulpCutoff*100,VolumeData!$G4<sweepCutoff,VolumeData!$H4<malfCutoff),"",IF(SEDData!J4<regCutoff*100,(int+SED*(SEDData!J4/100))*VolumeData!M4,int+SED*regCutoff*VolumeData!M4)) ->  | K4: =IF(OR(ISBLANK(SEDData!K4),SEDData!K4<pulpCutoff*100,VolumeData!$G4<sweepCutoff,VolumeData!$H4<malfCutoff),"",IF(SEDData!K4<regCutoff*100,(int+SED*(SEDData!K4/100))*VolumeData!N4,int+SED*regCutoff*VolumeData!N4)) ->  | L4: =IF(OR(ISBLANK(SEDData!L4),SEDData!L4<pulpCutoff*100,VolumeData!$G4<sweepCutoff,VolumeData!$H4<malfCutoff),"",IF(SEDData!L4<regCutoff*100,(int+SED*(SEDData!L4/100))*VolumeData!O4,int+SED*regCutoff*VolumeData!O4)) ->  | M4: =IF(OR(ISBLANK(SEDData!M4),SEDData!M4<pulpCutoff*100,VolumeData!$G4<sweepCutoff,VolumeData!$H4<malfCutoff),"",IF(SEDData!M4<regCutoff*100,(int+SED*(SEDData!M4/100))*VolumeData!P4,int+SED*regCutoff*VolumeData!P4)) ->  | N4: =IF(OR(ISBLANK(SEDData!N4),SEDData!N4<pulpCutoff*100,VolumeData!$G4<sweepCutoff,VolumeData!$H4<malfCutoff),"",IF(SEDData!N4<regCutoff*100,(int+SED*(SEDData!N4/100))*VolumeData!Q4,int+SED*regCutoff*VolumeData!Q4)) ->  | O4: =IF(OR(ISBLANK(SEDData!O4),SEDData!O4<pulpCutoff*100,VolumeData!$G4<sweepCutoff,VolumeData!$H4<malfCutoff),"",IF(SEDData!O4<regCutoff*100,(int+SED*(SEDData!O4/100))*VolumeData!R4,int+SED*regCutoff*VolumeData!R4)) ->  | P4: =IF(OR(ISBLANK(SEDData!P4),SEDData!P4<pulpCutoff*100,VolumeData!$G4<sweepCutoff,VolumeData!$H4<malfCutoff),"",IF(SEDData!P4<regCutoff*100,(int+SED*(SEDData!P4/100))*VolumeData!S4,int+SED*regCutoff*VolumeData!S4)) ->  | Q4: =IF(OR(ISBLANK(SEDData!Q4),SEDData!Q4<pulpCutoff*100,VolumeData!$G4<sweepCutoff,VolumeData!$H4<malfCutoff),"",IF(SEDData!Q4<regCutoff*100,(int+SED*(SEDData!Q4/100))*VolumeData!T4,int+SED*regCutoff*VolumeData!T4)) ->  | R4: =IF(OR(ISBLANK(SEDData!R4),SEDData!R4<pulpCutoff*100,VolumeData!$G4<sweepCutoff,VolumeData!$H4<malfCutoff),"",IF(SEDData!R4<regCutoff*100,(int+SED*(SEDData!R4/100))*VolumeData!U4,int+SED*regCutoff*VolumeData!U4)) ->  | S4: =IF(OR(ISBLANK(SEDData!S4),SEDData!S4<pulpCutoff*100,VolumeData!$G4<sweepCutoff,VolumeData!$H4<malfCutoff),"",IF(SEDData!S4<regCutoff*100,(int+SED*(SEDData!S4/100))*VolumeData!V4,int+SED*regCutoff*VolumeData!V4)) ->  | T4: =SUM(G4:Q4) -> 0
A5: 34 | B5: 124 | C5: 60 | D5: 65.274 | E5: 42.73849504 | F5: 5.43373555 | G5: =IF(OR(ISBLANK(SEDData!G5),SEDData!G5<pulpCutoff*100,VolumeData!$G5<sweepCutoff,VolumeData!$H5<malfCutoff),"",IF(SEDData!G5<regCutoff*100,(int+SED*(SEDData!G5/100))*VolumeData!J5,int+SED*regCutoff*VolumeData!J5)) -> 384.6736975 | H5: =IF(OR(ISBLANK(SEDData!H5),SEDData!H5<pulpCutoff*100,VolumeData!$G5<sweepCutoff,VolumeData!$H5<malfCutoff),"",IF(SEDData!H5<regCutoff*100,(int+SED*(SEDData!H5/100))*VolumeData!K5,int+SED*regCutoff*VolumeData!K5)) -> 320.0402132 | I5: =IF(OR(ISBLANK(SEDData!I5),SEDData!I5<pulpCutoff*100,VolumeData!$G5<sweepCutoff,VolumeData!$H5<malfCutoff),"",IF(SEDData!I5<regCutoff*100,(int+SED*(SEDData!I5/100))*VolumeData!L5,int+SED*regCutoff*VolumeData!L5)) -> 270.7107932 | J5: =IF(OR(ISBLANK(SEDData!J5),SEDData!J5<pulpCutoff*100,VolumeData!$G5<sweepCutoff,VolumeData!$H5<malfCutoff),"",IF(SEDData!J5<regCutoff*100,(int+SED*(SEDData!J5/100))*VolumeData!M5,int+SED*regCutoff*VolumeData!M5)) -> 231.219956 | K5: =IF(OR(ISBLANK(SEDData!K5),SEDData!K5<pulpCutoff*100,VolumeData!$G5<sweepCutoff,VolumeData!$H5<malfCutoff),"",IF(SEDData!K5<regCutoff*100,(int+SED*(SEDData!K5/100))*VolumeData!N5,int+SED*regCutoff*VolumeData!N5)) -> 197.2292877 | L5: =IF(OR(ISBLANK(SEDData!L5),SEDData!L5<pulpCutoff*100,VolumeData!$G5<sweepCutoff,VolumeData!$H5<malfCutoff),"",IF(SEDData!L5<regCutoff*100,(int+SED*(SEDData!L5/100))*VolumeData!O5,int+SED*regCutoff*VolumeData!O5)) -> 165.5026732 | M5: =IF(OR(ISBLANK(SEDData!M5),SEDData!M5<pulpCutoff*100,VolumeData!$G5<sweepCutoff,VolumeData!$H5<malfCutoff),"",IF(SEDData!M5<regCutoff*100,(int+SED*(SEDData!M5/100))*VolumeData!P5,int+SED*regCutoff*VolumeData!P5)) -> 133.8815289 | N5: =IF(OR(ISBLANK(SEDData!N5),SEDData!N5<pulpCutoff*100,VolumeData!$G5<sweepCutoff,VolumeData!$H5<malfCutoff),"",IF(SEDData!N5<regCutoff*100,(int+SED*(SEDData!N5/100))*VolumeData!Q5,int+SED*regCutoff*VolumeData!Q5)) -> 101.2600337 | O5: =IF(OR(ISBLANK(SEDData!O5),SEDData!O5<pulpCutoff*100,VolumeData!$G5<sweepCutoff,VolumeData!$H5<malfCutoff),"",IF(SEDData!O5<regCutoff*100,(int+SED*(SEDData!O5/100))*VolumeData!R5,int+SED*regCutoff*VolumeData!R5)) -> 90.5023235 | P5: =IF(OR(ISBLANK(SEDData!P5),SEDData!P5<pulpCutoff*100,VolumeData!$G5<sweepCutoff,VolumeData!$H5<malfCutoff),"",IF(SEDData!P5<regCutoff*100,(int+SED*(SEDData!P5/100))*VolumeData!S5,int+SED*regCutoff*VolumeData!S5)) -> 55.03303688 | Q5: =IF(OR(ISBLANK(SEDData!Q5),SEDData!Q5<pulpCutoff*100,VolumeData!$G5<sweepCutoff,VolumeData!$H5<malfCutoff),"",IF(SEDData!Q5<regCutoff*100,(int+SED*(SEDData!Q5/100))*VolumeData!T5,int+SED*regCutoff*VolumeData!T5)) -> 28.87503338 | R5: =IF(OR(ISBLANK(SEDData!R5),SEDData!R5<pulpCutoff*100,VolumeData!$G5<sweepCutoff,VolumeData!$H5<malfCutoff),"",IF(SEDData!R5<regCutoff*100,(int+SED*(SEDData!R5/100))*VolumeData!U5,int+SED*regCutoff*VolumeData!U5)) ->  | S5: =IF(OR(ISBLANK(SEDData!S5),SEDData!S5<pulpCutoff*100,VolumeData!$G5<sweepCutoff,VolumeData!$H5<malfCutoff),"",IF(SEDData!S5<regCutoff*100,(int+SED*(SEDData!S5/100))*VolumeData!V5,int+SED*regCutoff*VolumeData!V5)) ->  | T5: 1978.928577
A6: 12 | B6: 10 | C6: 58 | D6: 63.0982 | E6: 42.18525562 | F6: 5.011796685 | G6: =IF(OR(ISBLANK(SEDData!G6),SEDData!G6<pulpCutoff*100,VolumeData!$G6<sweepCutoff,VolumeData!$H6<malfCutoff),"",IF(SEDData!G6<regCutoff*100,(int+SED*(SEDData!G6/100))*VolumeData!J6,int+SED*regCutoff*VolumeData!J6)) -> 355.6921862 | H6: =IF(OR(ISBLANK(SEDData!H6),SEDData!H6<pulpCutoff*100,VolumeData!$G6<sweepCutoff,VolumeData!$H6<malfCutoff),"",IF(SEDData!H6<regCutoff*100,(int+SED*(SEDData!H6/100))*VolumeData!K6,int+SED*regCutoff*VolumeData!K6)) -> 294.738799 | I6: =IF(OR(ISBLANK(SEDData!I6),SEDData!I6<pulpCutoff*100,VolumeData!$G6<sweepCutoff,VolumeData!$H6<malfCutoff),"",IF(SEDData!I6<regCutoff*100,(int+SED*(SEDData!I6/100))*VolumeData!L6,int+SED*regCutoff*VolumeData!L6)) -> 248.3468382 | J6: =IF(OR(ISBLANK(SEDData!J6),SEDData!J6<pulpCutoff*100,VolumeData!$G6<sweepCutoff,VolumeData!$H6<malfCutoff),"",IF(SEDData!J6<regCutoff*100,(int+SED*(SEDData!J6/100))*VolumeData!M6,int+SED*regCutoff*VolumeData!M6)) -> 211.2357793 | K6: =IF(OR(ISBLANK(SEDData!K6),SEDData!K6<pulpCutoff*100,VolumeData!$G6<sweepCutoff,VolumeData!$H6<malfCutoff),"",IF(SEDData!K6<regCutoff*100,(int+SED*(SEDData!K6/100))*VolumeData!N6,int+SED*regCutoff*VolumeData!N6)) -> 179.2337954 | L6: =IF(OR(ISBLANK(SEDData!L6),SEDData!L6<pulpCutoff*100,VolumeData!$G6<sweepCutoff,VolumeData!$H6<malfCutoff),"",IF(SEDData!L6<regCutoff*100,(int+SED*(SEDData!L6/100))*VolumeData!O6,int+SED*regCutoff*VolumeData!O6)) -> 149.2530544 | M6: =IF(OR(ISBLANK(SEDData!M6),SEDData!M6<pulpCutoff*100,VolumeData!$G6<sweepCutoff,VolumeData!$H6<malfCutoff),"",IF(SEDData!M6<regCutoff*100,(int+SED*(SEDData!M6/100))*VolumeData!P6,int+SED*regCutoff*VolumeData!P6)) -> 119.2650172 | N6: =IF(OR(ISBLANK(SEDData!N6),SEDData!N6<pulpCutoff*100,VolumeData!$G6<sweepCutoff,VolumeData!$H6<malfCutoff),"",IF(SEDData!N6<regCutoff*100,(int+SED*(SEDData!N6/100))*VolumeData!Q6,int+SED*regCutoff*VolumeData!Q6)) -> 114.1350079 | O6: =IF(OR(ISBLANK(SEDData!O6),SEDData!O6<pulpCutoff*100,VolumeData!$G6<sweepCutoff,VolumeData!$H6<malfCutoff),"",IF(SEDData!O6<regCutoff*100,(int+SED*(SEDData!O6/100))*VolumeData!R6,int+SED*regCutoff*VolumeData!R6)) -> 77.48739447 | P6: =IF(OR(ISBLANK(SEDData!P6),SEDData!P6<pulpCutoff*100,VolumeData!$G6<sweepCutoff,VolumeData!$H6<malfCutoff),"",IF(SEDData!P6<regCutoff*100,(int+SED*(SEDData!P6/100))*VolumeData!S6,int+SED*regCutoff*VolumeData!S6)) -> 45.87324912 | Q6: =IF(OR(ISBLANK(SEDData!Q6),SEDData!Q6<pulpCutoff*100,VolumeData!$G6<sweepCutoff,VolumeData!$H6<malfCutoff),"",IF(SEDData!Q6<regCutoff*100,(int+SED*(SEDData!Q6/100))*VolumeData!T6,int+SED*regCutoff*VolumeData!T6)) -> 22.88467825 | R6: =IF(OR(ISBLANK(SEDData!R6),SEDData!R6<pulpCutoff*100,VolumeData!$G6<sweepCutoff,VolumeData!$H6<malfCutoff),"",IF(SEDData!R6<regCutoff*100,(int+SED*(SEDData!R6/100))*VolumeData!U6,int+SED*regCutoff*VolumeData!U6)) ->  | S6: =IF(OR(ISBLANK(SEDData!S6),SEDData!S6<pulpCutoff*100,VolumeData!$G6<sweepCutoff,VolumeData!$H6<malfCutoff),"",IF(SEDData!S6<regCutoff*100,(int+SED*(SEDData!S6/100))*VolumeData!V6,int+SED*regCutoff*VolumeData!V6)) ->  | T6: 1818.145799
A7: 24 | B7: 91 | C7: 57.1 | D7: 62.11909 | E7: 41.93004451 | F7: 4.828078384 | G7: =IF(OR(ISBLANK(SEDData!G7),SEDData!G7<pulpCutoff*100,VolumeData!$G7<sweepCutoff,VolumeData!$H7<malfCutoff),"",IF(SEDData!G7<regCutoff*100,(int+SED*(SEDData!G7/100))*VolumeData!J7,int+SED*regCutoff*VolumeData!J7)) -> 342.9787196 | H7: =IF(OR(ISBLANK(SEDData!H7),SEDData!H7<pulpCutoff*100,VolumeData!$G7<sweepCutoff,VolumeData!$H7<malfCutoff),"",IF(SEDData!H7<regCutoff*100,(int+SED*(SEDData!H7/100))*VolumeData!K7,int+SED*regCutoff*VolumeData!K7)) -> 283.6500541 | I7: =IF(OR(ISBLANK(SEDData!I7),SEDData!I7<pulpCutoff*100,VolumeData!$G7<sweepCutoff,VolumeData!$H7<malfCutoff),"",IF(SEDData!I7<regCutoff*100,(int+SED*(SEDData!I7/100))*VolumeData!L7,int+SED*regCutoff*VolumeData!L7)) -> 238.5529798 | J7: =IF(OR(ISBLANK(SEDData!J7),SEDData!J7<pulpCutoff*100,VolumeData!$G7<sweepCutoff,VolumeData!$H7<malfCutoff),"",IF(SEDData!J7<regCutoff*100,(int+SED*(SEDData!J7/100))*VolumeData!M7,int+SED*regCutoff*VolumeData!M7)) -> 202.489587 | K7: =IF(OR(ISBLANK(SEDData!K7),SEDData!K7<pulpCutoff*100,VolumeData!$G7<sweepCutoff,VolumeData!$H7<malfCutoff),"",IF(SEDData!K7<regCutoff*100,(int+SED*(SEDData!K7/100))*VolumeData!N7,int+SED*regCutoff*VolumeData!N7)) -> 171.3625375 | L7: =IF(OR(ISBLANK(SEDData!L7),SEDData!L7<pulpCutoff*100,VolumeData!$G7<sweepCutoff,VolumeData!$H7<malfCutoff),"",IF(SEDData!L7<regCutoff*100,(int+SED*(SEDData!L7/100))*VolumeData!O7,int+SED*regCutoff*VolumeData!O7)) -> 142.1503849 | M7: =IF(OR(ISBLANK(SEDData!M7),SEDData!M7<pulpCutoff*100,VolumeData!$G7<sweepCutoff,VolumeData!$H7<malfCutoff),"",IF(SEDData!M7<regCutoff*100,(int+SED*(SEDData!M7/100))*VolumeData!P7,int+SED*regCutoff*VolumeData!P7)) -> 112.8828952 | N7: =IF(OR(ISBLANK(SEDData!N7),SEDData!N7<pulpCutoff*100,VolumeData!$G7<sweepCutoff,VolumeData!$H7<malfCutoff),"",IF(SEDData!N7<regCutoff*100,(int+SED*(SEDData!N7/100))*VolumeData!Q7,int+SED*regCutoff*VolumeData!Q7)) -> 106.9781571 | O7: =IF(OR(ISBLANK(SEDData!O7),SEDData!O7<pulpCutoff*100,VolumeData!$G7<sweepCutoff,VolumeData!$H7<malfCutoff),"",IF(SEDData!O7<regCutoff*100,(int+SED*(SEDData!O7/100))*VolumeData!R7,int+SED*regCutoff*VolumeData!R7)) -> 72.05227041 | P7: =IF(OR(ISBLANK(SEDData!P7),SEDData!P7<pulpCutoff*100,VolumeData!$G7<sweepCutoff,VolumeData!$H7<malfCutoff),"",IF(SEDData!P7<regCutoff*100,(int+SED*(SEDData!P7/100))*VolumeData!S7,int+SED*regCutoff*VolumeData!S7)) -> 42.09540211 | Q7: =IF(OR(ISBLANK(SEDData!Q7),SEDData!Q7<pulpCutoff*100,VolumeData!$G7<sweepCutoff,VolumeData!$H7<malfCutoff),"",IF(SEDData!Q7<regCutoff*100,(int+SED*(SEDData!Q7/100))*VolumeData!T7,int+SED*regCutoff*VolumeData!T7)) -> 20.4735719 | R7: =IF(OR(ISBLANK(SEDData!R7),SEDData!R7<pulpCutoff*100,VolumeData!$G7<sweepCutoff,VolumeData!$H7<malfCutoff),"",IF(SEDData!R7<regCutoff*100,(int+SED*(SEDData!R7/100))*VolumeData!U7,int+SED*regCutoff*VolumeData!U7)) ->  | S7: =IF(OR(ISBLANK(SEDData!S7),SEDData!S7<pulpCutoff*100,VolumeData!$G7<sweepCutoff,VolumeData!$H7<malfCutoff),"",IF(SEDData!S7<regCutoff*100,(int+SED*(SEDData!S7/100))*VolumeData!V7,int+SED*regCutoff*VolumeData!V7)) ->  | T7: 1735.66656
A8: 85 | B8: 38 | C8: 57 | D8: 62.0103 | E8: 41.90143977 | F8: 4.807900039 | G8: =IF(OR(ISBLANK(SEDData!G8),SEDData!G8<pulpCutoff*100,VolumeData!$G8<sweepCutoff,VolumeData!$H8<malfCutoff),"",IF(SEDData!G8<regCutoff*100,(int+SED*(SEDData!G8/100))*VolumeData!J8,int+SED*regCutoff*VolumeData!J8)) -> 341.5786849 | H8: =IF(OR(ISBLANK(SEDData!H8),SEDData!H8<pulpCutoff*100,VolumeData!$G8<sweepCutoff,VolumeData!$H8<malfCutoff),"",IF(SEDData!H8<regCutoff*100,(int+SED*(SEDData!H8/100))*VolumeData!K8,int+SED*regCutoff*VolumeData!K8)) -> 282.4293405 | I8: =IF(OR(ISBLANK(SEDData!I8),SEDData!I8<pulpCutoff*100,VolumeData!$G8<sweepCutoff,VolumeData!$H8<malfCutoff),"",IF(SEDData!I8<regCutoff*100,(int+SED*(SEDData!I8/100))*VolumeData!L8,int+SED*regCutoff*VolumeData!L8)) -> 237.4751062 | J8: =IF(OR(ISBLANK(SEDData!J8),SEDData!J8<pulpCutoff*100,VolumeData!$G8<sweepCutoff,VolumeData!$H8<malfCutoff),"",IF(SEDData!J8<regCutoff*100,(int+SED*(SEDData!J8/100))*VolumeData!M8,int+SED*regCutoff*VolumeData!M8)) -> 201.5272284 | K8: =IF(OR(ISBLANK(SEDData!K8),SEDData!K8<pulpCutoff*100,VolumeData!$G8<sweepCutoff,VolumeData!$H8<malfCutoff),"",IF(SEDData!K8<regCutoff*100,(int+SED*(SEDData!K8/100))*VolumeData!N8,int+SED*regCutoff*VolumeData!N8)) -> 170.496627 | L8: =IF(OR(ISBLANK(SEDData!L8),SEDData!L8<pulpCutoff*100,VolumeData!$G8<sweepCutoff,VolumeData!$H8<malfCutoff),"",IF(SEDData!L8<regCutoff*100,(int+SED*(SEDData!L8/100))*VolumeData!O8,int+SED*regCutoff*VolumeData!O8)) -> 141.3692191 | M8: =IF(OR(ISBLANK(SEDData!M8),SEDData!M8<pulpCutoff*100,VolumeData!$G8<sweepCutoff,VolumeData!$H8<malfCutoff),"",IF(SEDData!M8<regCutoff*100,(int+SED*(SEDData!M8/100))*VolumeData!P8,int+SED*regCutoff*VolumeData!P8)) -> 112.1812415 | N8: =IF(OR(ISBLANK(SEDData!N8),SEDData!N8<pulpCutoff*100,VolumeData!$G8<sweepCutoff,VolumeData!$H8<malfCutoff),"",IF(SEDData!N8<regCutoff*100,(int+SED*(SEDData!N8/100))*VolumeData!Q8,int+SED*regCutoff*VolumeData!Q8)) -> 106.2016312 | O8: =IF(OR(ISBLANK(SEDData!O8),SEDData!O8<pulpCutoff*100,VolumeData!$G8<sweepCutoff,VolumeData!$H8<malfCutoff),"",IF(SEDData!O8<regCutoff*100,(int+SED*(SEDData!O8/100))*VolumeData!R8,int+SED*regCutoff*VolumeData!R8)) -> 71.46411626 | P8: =IF(OR(ISBLANK(SEDData!P8),SEDData!P8<pulpCutoff*100,VolumeData!$G8<sweepCutoff,VolumeData!$H8<malfCutoff),"",IF(SEDData!P8<regCutoff*100,(int+SED*(SEDData!P8/100))*VolumeData!S8,int+SED*regCutoff*VolumeData!S8)) -> 41.68845315 | Q8: =IF(OR(ISBLANK(SEDData!Q8),SEDData!Q8<pulpCutoff*100,VolumeData!$G8<sweepCutoff,VolumeData!$H8<malfCutoff),"",IF(SEDData!Q8<regCutoff*100,(int+SED*(SEDData!Q8/100))*VolumeData!T8,int+SED*regCutoff*VolumeData!T8)) -> 20.21619601 | R8: =IF(OR(ISBLANK(SEDData!R8),SEDData!R8<pulpCutoff*100,VolumeData!$G8<sweepCutoff,VolumeData!$H8<malfCutoff),"",IF(SEDData!R8<regCutoff*100,(int+SED*(SEDData!R8/100))*VolumeData!U8,int+SED*regCutoff*VolumeData!U8)) ->  | S8: =IF(OR(ISBLANK(SEDData!S8),SEDData!S8<pulpCutoff*100,VolumeData!$G8<sweepCutoff,VolumeData!$H8<malfCutoff),"",IF(SEDData!S8<regCutoff*100,(int+SED*(SEDData!S8/100))*VolumeData!V8,int+SED*regCutoff*VolumeData!V8)) ->  | T8: 1726.627844
A9: 47 | B9: 97 | C9: 56.1 | D9: 61.03119 | E9: 41.64171546 | F9: 4.628402368 | G9: =IF(OR(ISBLANK(SEDData!G9),SEDData!G9<pulpCutoff*100,VolumeData!$G9<sweepCutoff,VolumeData!$H9<malfCutoff),"",IF(SEDData!G9<regCutoff*100,(int+SED*(SEDData!G9/100))*VolumeData!J9,int+SED*regCutoff*VolumeData!J9)) -> 329.0915121 | H9: =IF(OR(ISBLANK(SEDData!H9),SEDData!H9<pulpCutoff*100,VolumeData!$G9<sweepCutoff,VolumeData!$H9<malfCutoff),"",IF(SEDData!H9<regCutoff*100,(int+SED*(SEDData!H9/100))*VolumeData!K9,int+SED*regCutoff*VolumeData!K9)) -> 271.5452045 | I9: =IF(OR(ISBLANK(SEDData!I9),SEDData!I9<pulpCutoff*100,VolumeData!$G9<sweepCutoff,VolumeData!$H9<malfCutoff),"",IF(SEDData!I9<regCutoff*100,(int+SED*(SEDData!I9/100))*VolumeData!L9,int+SED*regCutoff*VolumeData!L9)) -> 227.86719 | J9: =IF(OR(ISBLANK(SEDData!J9),SEDData!J9<pulpCutoff*100,VolumeData!$G9<sweepCutoff,VolumeData!$H9<malfCutoff),"",IF(SEDData!J9<regCutoff*100,(int+SED*(SEDData!J9/100))*VolumeData!M9,int+SED*regCutoff*VolumeData!M9)) -> 192.9509014 | K9: =IF(OR(ISBLANK(SEDData!K9),SEDData!K9<pulpCutoff*100,VolumeData!$G9<sweepCutoff,VolumeData!$H9<malfCutoff),"",IF(SEDData!K9<regCutoff*100,(int+SED*(SEDData!K9/100))*VolumeData!N9,int+SED*regCutoff*VolumeData!N9)) -> 162.781422 | L9: =IF(OR(ISBLANK(SEDData!L9),SEDData!L9<pulpCutoff*100,VolumeData!$G9<sweepCutoff,VolumeData!$H9<malfCutoff),"",IF(SEDData!L9<regCutoff*100,(int+SED*(SEDData!L9/100))*VolumeData!O9,int+SED*regCutoff*VolumeData!O9)) -> 134.4108274 | M9: =IF(OR(ISBLANK(SEDData!M9),SEDData!M9<pulpCutoff*100,VolumeData!$G9<sweepCutoff,VolumeData!$H9<malfCutoff),"",IF(SEDData!M9<regCutoff*100,(int+SED*(SEDData!M9/100))*VolumeData!P9,int+SED*regCutoff*VolumeData!P9)) -> 105.9335267 | N9: =IF(OR(ISBLANK(SEDData!N9),SEDData!N9<pulpCutoff*100,VolumeData!$G9<sweepCutoff,VolumeData!$H9<malfCutoff),"",IF(SEDData!N9<regCutoff*100,(int+SED*(SEDData!N9/100))*VolumeData!Q9,int+SED*regCutoff*VolumeData!Q9)) -> 99.37847998 | O9: =IF(OR(ISBLANK(SEDData!O9),SEDData!O9<pulpCutoff*100,VolumeData!$G9<sweepCutoff,VolumeData!$H9<malfCutoff),"",IF(SEDData!O9<regCutoff*100,(int+SED*(SEDData!O9/100))*VolumeData!R9,int+SED*regCutoff*VolumeData!R9)) -> 66.31016636 | P9: =IF(OR(ISBLANK(SEDData!P9),SEDData!P9<pulpCutoff*100,VolumeData!$G9<sweepCutoff,VolumeData!$H9<malfCutoff),"",IF(SEDData!P9<regCutoff*100,(int+SED*(SEDData!P9/100))*VolumeData!S9,int+SED*regCutoff*VolumeData!S9)) -> 38.13911047 | Q9: =IF(OR(ISBLANK(SEDData!Q9),SEDData!Q9<pulpCutoff*100,VolumeData!$G9<sweepCutoff,VolumeData!$H9<malfCutoff),"",IF(SEDData!Q9<regCutoff*100,(int+SED*(SEDData!Q9/100))*VolumeData!T9,int+SED*regCutoff*VolumeData!T9)) -> 17.99237943 | R9: =IF(OR(ISBLANK(SEDData!R9),SEDData!R9<pulpCutoff*100,VolumeData!$G9<sweepCutoff,VolumeData!$H9<malfCutoff),"",IF(SEDData!R9<regCutoff*100,(int+SED*(SEDData!R9/100))*VolumeData!U9,int+SED*regCutoff*VolumeData!U9)) ->  | S9: =IF(OR(ISBLANK(SEDData!S9),SEDData!S9<pulpCutoff*100,VolumeData!$G9<sweepCutoff,VolumeData!$H9<malfCutoff),"",IF(SEDData!S9<regCutoff*100,(int+SED*(SEDData!S9/100))*VolumeData!V9,int+SED*regCutoff*VolumeData!V9)) ->  | T9: 1646.40072
A10: 61 | B10: 106 | C10: 55.6 | D10: 60.48724 | E10: 41.49561779 | F10: 4.530316982 | G10: =IF(OR(ISBLANK(SEDData!G10),SEDData!G10<pulpCutoff*100,VolumeData!$G10<sweepCutoff,VolumeData!$H10<malfCutoff),"",IF(SEDData!G10<regCutoff*100,(int+SED*(SEDData!G10/100))*VolumeData!J10,int+SED*regCutoff*VolumeData!J10)) -> 322.2421822 | H10: =IF(OR(ISBLANK(SEDData!H10),SEDData!H10<pulpCutoff*100,VolumeData!$G10<sweepCutoff,VolumeData!$H10<malfCutoff),"",IF(SEDData!H10<regCutoff*100,(int+SED*(SEDData!H10/100))*VolumeData!K10,int+SED*regCutoff*VolumeData!K10)) -> 265.5779967 | I10: =IF(OR(ISBLANK(SEDData!I10),SEDData!I10<pulpCutoff*100,VolumeData!$G10<sweepCutoff,VolumeData!$H10<malfCutoff),"",IF(SEDData!I10<regCutoff*100,(int+SED*(SEDData!I10/100))*VolumeData!L10,int+SED*regCutoff*VolumeData!L10)) -> 222.6017175 | J10: =IF(OR(ISBLANK(SEDData!J10),SEDData!J10<pulpCutoff*100,VolumeData!$G10<sweepCutoff,VolumeData!$H10<malfCutoff),"",IF(SEDData!J10<regCutoff*100,(int+SED*(SEDData!J10/100))*VolumeData!M10,int+SED*regCutoff*VolumeData!M10)) -> 188.2522685 | K10: =IF(OR(ISBLANK(SEDData!K10),SEDData!K10<pulpCutoff*100,VolumeData!$G10<sweepCutoff,VolumeData!$H10<malfCutoff),"",IF(SEDData!K10<regCutoff*100,(int+SED*(SEDData!K10/100))*VolumeData!N10,int+SED*regCutoff*VolumeData!N10)) -> 158.5558093 | L10: =IF(OR(ISBLANK(SEDData!L10),SEDData!L10<pulpCutoff*100,VolumeData!$G10<sweepCutoff,VolumeData!$H10<malfCutoff),"",IF(SEDData!L10<regCutoff*100,(int+SED*(SEDData!L10/100))*VolumeData!O10,int+SED*regCutoff*VolumeData!O10)) -> 130.6010844 | M10: =IF(OR(ISBLANK(SEDData!M10),SEDData!M10<pulpCutoff*100,VolumeData!$G10<sweepCutoff,VolumeData!$H10<malfCutoff),"",IF(SEDData!M10<regCutoff*100,(int+SED*(SEDData!M10/100))*VolumeData!P10,int+SED*regCutoff*VolumeData!P10)) -> 130.9999348 | N10: =IF(OR(ISBLANK(SEDData!N10),SEDData!N10<pulpCutoff*100,VolumeData!$G10<sweepCutoff,VolumeData!$H10<malfCutoff),"",IF(SEDData!N10<regCutoff*100,(int+SED*(SEDData!N10/100))*VolumeData!Q10,int+SED*regCutoff*VolumeData!Q10)) -> 95.71507142 | O10: =IF(OR(ISBLANK(SEDData!O10),SEDData!O10<pulpCutoff*100,VolumeData!$G10<sweepCutoff,VolumeData!$H10<malfCutoff),"",IF(SEDData!O10<regCutoff*100,(int+SED*(SEDData!O10/100))*VolumeData!R10,int+SED*regCutoff*VolumeData!R10)) -> 63.55390258 | P10: =IF(OR(ISBLANK(SEDData!P10),SEDData!P10<pulpCutoff*100,VolumeData!$G10<sweepCutoff,VolumeData!$H10<malfCutoff),"",IF(SEDData!P10<regCutoff*100,(int+SED*(SEDData!P10/100))*VolumeData!S10,int+SED*regCutoff*VolumeData!S10)) -> 36.25400284 | Q10: =IF(OR(ISBLANK(SEDData!Q10),SEDData!Q10<pulpCutoff*100,VolumeData!$G10<sweepCutoff,VolumeData!$H10<malfCutoff),"",IF(SEDData!Q10<regCutoff*100,(int+SED*(SEDData!Q10/100))*VolumeData!T10,int+SED*regCutoff*VolumeData!T10)) -> 16.82759549 | R10: =IF(OR(ISBLANK(SEDData!R10),SEDData!R10<pulpCutoff*100,VolumeData!$G10<sweepCutoff,VolumeData!$H10<malfCutoff),"",IF(SEDData!R10<regCutoff*100,(int+SED*(SEDData!R10/100))*VolumeData!U10,int+SED*regCutoff*VolumeData!U10)) ->  | S10: =IF(OR(ISBLANK(SEDData!S10),SEDData!S10<pulpCutoff*100,VolumeData!$G10<sweepCutoff,VolumeData!$H10<malfCutoff),"",IF(SEDData!S10<regCutoff*100,(int+SED*(SEDData!S10/100))*VolumeData!V10,int+SED*regCutoff*VolumeData!V10)) ->  | T10: 1631.181566
A11: 78 | B11: 27 | C11: 55.5 | D11: 60.37845 | E11: 41.46624065 | F11: 4.510839786 | G11: =IF(OR(ISBLANK(SEDData!G11),SEDData!G11<pulpCutoff*100,VolumeData!$G11<sweepCutoff,VolumeData!$H11<malfCutoff),"",IF(SEDData!G11<regCutoff*100,(int+SED*(SEDData!G11/100))*VolumeData!J11,int+SED*regCutoff*VolumeData!J11)) ->  | H11: =IF(OR(ISBLANK(SEDData!H11),SEDData!H11<pulpCutoff*100,VolumeData!$G11<sweepCutoff,VolumeData!$H11<malfCutoff),"",IF(SEDData!H11<regCutoff*100,(int+SED*(SEDData!H11/100))*VolumeData!K11,int+SED*regCutoff*VolumeData!K11)) ->  | I11: =IF(OR(ISBLANK(SEDData!I11),SEDData!I11<pulpCutoff*100,VolumeData!$G11<sweepCutoff,VolumeData!$H11<malfCutoff),"",IF(SEDData!I11<regCutoff*100,(int+SED*(SEDData!I11/100))*VolumeData!L11,int+SED*regCutoff*VolumeData!L11)) ->  | J11: =IF(OR(ISBLANK(SEDData!J11),SEDData!J11<pulpCutoff*100,VolumeData!$G11<sweepCutoff,VolumeData!$H11<malfCutoff),"",IF(SEDData!J11<regCutoff*100,(int+SED*(SEDData!J11/100))*VolumeData!M11,int+SED*regCutoff*VolumeData!M11)) ->  | K11: =IF(OR(ISBLANK(SEDData!K11),SEDData!K11<pulpCutoff*100,VolumeData!$G11<sweepCutoff,VolumeData!$H11<malfCutoff),"",IF(SEDData!K11<regCutoff*100,(int+SED*(SEDData!K11/100))*VolumeData!N11,int+SED*regCutoff*VolumeData!N11)) ->  | L11: =IF(OR(ISBLANK(SEDData!L11),SEDData!L11<pulpCutoff*100,VolumeData!$G11<sweepCutoff,VolumeData!$H11<malfCutoff),"",IF(SEDData!L11<regCutoff*100,(int+SED*(SEDData!L11/100))*VolumeData!O11,int+SED*regCutoff*VolumeData!O11)) ->  | M11: =IF(OR(ISBLANK(SEDData!M11),SEDData!M11<pulpCutoff*100,VolumeData!$G11<sweepCutoff,VolumeData!$H11<malfCutoff),"",IF(SEDData!M11<regCutoff*100,(int+SED*(SEDData!M11/100))*VolumeData!P11,int+SED*regCutoff*VolumeData!P11)) ->  | N11: =IF(OR(ISBLANK(SEDData!N11),SEDData!N11<pulpCutoff*100,VolumeData!$G11<sweepCutoff,VolumeData!$H11<malfCutoff),"",IF(SEDData!N11<regCutoff*100,(int+SED*(SEDData!N11/100))*VolumeData!Q11,int+SED*regCutoff*VolumeData!Q11)) ->  | O11: =IF(OR(ISBLANK(SEDData!O11),SEDData!O11<pulpCutoff*100,VolumeData!$G11<sweepCutoff,VolumeData!$H11<malfCutoff),"",IF(SEDData!O11<regCutoff*100,(int+SED*(SEDData!O11/100))*VolumeData!R11,int+SED*regCutoff*VolumeData!R11)) ->  | P11: =IF(OR(ISBLANK(SEDData!P11),SEDData!P11<pulpCutoff*100,VolumeData!$G11<sweepCutoff,VolumeData!$H11<malfCutoff),"",IF(SEDData!P11<regCutoff*100,(int+SED*(SEDData!P11/100))*VolumeData!S11,int+SED*regCutoff*VolumeData!S11)) ->  | Q11: =IF(OR(ISBLANK(SEDData!Q11),SEDData!Q11<pulpCutoff*100,VolumeData!$G11<sweepCutoff,VolumeData!$H11<malfCutoff),"",IF(SEDData!Q11<regCutoff*100,(int+SED*(SEDData!Q11/100))*VolumeData!T11,int+SED*regCutoff*VolumeData!T11)) ->  | R11: =IF(OR(ISBLANK(SEDData!R11),SEDData!R11<pulpCutoff*100,VolumeData!$G11<sweepCutoff,VolumeData!$H11<malfCutoff),"",IF(SEDData!R11<regCutoff*100,(int+SED*(SEDData!R11/100))*VolumeData!U11,int+SED*regCutoff*VolumeData!U11)) ->  | S11: =IF(OR(ISBLANK(SEDData!S11),SEDData!S11<pulpCutoff*100,VolumeData!$G11<sweepCutoff,VolumeData!$H11<malfCutoff),"",IF(SEDData!S11<regCutoff*100,(int+SED*(SEDData!S11/100))*VolumeData!V11,int+SED*regCutoff*VolumeData!V11)) ->  | T11: 0
A12: 4 | B12: 86 | C12: 55 | D12: 59.8345 | E12: 41.31855638 | F12: 4.414152069 | G12: =IF(OR(ISBLANK(SEDData!G12),SEDData!G12<pulpCutoff*100,VolumeData!$G12<sweepCutoff,VolumeData!$H12<malfCutoff),"",IF(SEDData!G12<regCutoff*100,(int+SED*(SEDData!G12/100))*VolumeData!J12,int+SED*regCutoff*VolumeData!J12)) -> 314.105935 | H12: =IF(OR(ISBLANK(SEDData!H12),SEDData!H12<pulpCutoff*100,VolumeData!$G12<sweepCutoff,VolumeData!$H12<malfCutoff),"",IF(SEDData!H12<regCutoff*100,(int+SED*(SEDData!H12/100))*VolumeData!K12,int+SED*regCutoff*VolumeData!K12)) -> 258.4923092 | I12: =IF(OR(ISBLANK(SEDData!I12),SEDData!I12<pulpCutoff*100,VolumeData!$G12<sweepCutoff,VolumeData!$H12<malfCutoff),"",IF(SEDData!I12<regCutoff*100,(int+SED*(SEDData!I12/100))*VolumeData!L12,int+SED*regCutoff*VolumeData!L12)) -> 216.3512392 | J12: =IF(OR(ISBLANK(SEDData!J12),SEDData!J12<pulpCutoff*100,VolumeData!$G12<sweepCutoff,VolumeData!$H12<malfCutoff),"",IF(SEDData!J12<regCutoff*100,(int+SED*(SEDData!J12/100))*VolumeData!M12,int+SED*regCutoff*VolumeData!M12)) -> 182.6760798 | K12: =IF(OR(ISBLANK(SEDData!K12),SEDData!K12<pulpCutoff*100,VolumeData!$G12<sweepCutoff,VolumeData!$H12<malfCutoff),"",IF(SEDData!K12<regCutoff*100,(int+SED*(SEDData!K12/100))*VolumeData!N12,int+SED*regCutoff*VolumeData!N12)) -> 153.542164 | L12: =IF(OR(ISBLANK(SEDData!L12),SEDData!L12<pulpCutoff*100,VolumeData!$G12<sweepCutoff,VolumeData!$H12<malfCutoff),"",IF(SEDData!L12<regCutoff*100,(int+SED*(SEDData!L12/100))*VolumeData!O12,int+SED*regCutoff*VolumeData!O12)) -> 126.0821603 | M12: =IF(OR(ISBLANK(SEDData!M12),SEDData!M12<pulpCutoff*100,VolumeData!$G12<sweepCutoff,VolumeData!$H12<malfCutoff),"",IF(SEDData!M12<regCutoff*100,(int+SED*(SEDData!M12/100))*VolumeData!P12,int+SED*regCutoff*VolumeData!P12)) -> 125.6204463 | N12: =IF(OR(ISBLANK(SEDData!N12),SEDData!N12<pulpCutoff*100,VolumeData!$G12<sweepCutoff,VolumeData!$H12<malfCutoff),"",IF(SEDData!N12<regCutoff*100,(int+SED*(SEDData!N12/100))*VolumeData!Q12,int+SED*regCutoff*VolumeData!Q12)) -> 91.43699042 | O12: =IF(OR(ISBLANK(SEDData!O12),SEDData!O12<pulpCutoff*100,VolumeData!$G12<sweepCutoff,VolumeData!$H12<malfCutoff),"",IF(SEDData!O12<regCutoff*100,(int+SED*(SEDData!O12/100))*VolumeData!R12,int+SED*regCutoff*VolumeData!R12)) -> 60.34554169 | P12: =IF(OR(ISBLANK(SEDData!P12),SEDData!P12<pulpCutoff*100,VolumeData!$G12<sweepCutoff,VolumeData!$H12<malfCutoff),"",IF(SEDData!P12<regCutoff*100,(int+SED*(SEDData!P12/100))*VolumeData!S12,int+SED*regCutoff*VolumeData!S12)) -> 34.07204109 | Q12: =IF(OR(ISBLANK(SEDData!Q12),SEDData!Q12<pulpCutoff*100,VolumeData!$G12<sweepCutoff,VolumeData!$H12<malfCutoff),"",IF(SEDData!Q12<regCutoff*100,(int+SED*(SEDData!Q12/100))*VolumeData!T12,int+SED*regCutoff*VolumeData!T12)) ->  | R12: =IF(OR(ISBLANK(SEDData!R12),SEDData!R12<pulpCutoff*100,VolumeData!$G12<sweepCutoff,VolumeData!$H12<malfCutoff),"",IF(SEDData!R12<regCutoff*100,(int+SED*(SEDData!R12/100))*VolumeData!U12,int+SED*regCutoff*VolumeData!U12)) ->  | S12: =IF(OR(ISBLANK(SEDData!S12),SEDData!S12<pulpCutoff*100,VolumeData!$G12<sweepCutoff,VolumeData!$H12<malfCutoff),"",IF(SEDData!S12<regCutoff*100,(int+SED*(SEDData!S12/100))*VolumeData!V12,int+SED*regCutoff*VolumeData!V12)) ->  | T12: 1562.724907
A13: 11 | B13: 14 | C13: 54.5 | D13: 59.29055 | E13: 41.16952338 | F13: 4.318626209 | G13: =IF(OR(ISBLANK(SEDData!G13),SEDData!G13<pulpCutoff*100,VolumeData!$G13<sweepCutoff,VolumeData!$H13<malfCutoff),"",IF(SEDData!G13<regCutoff*100,(int+SED*(SEDData!G13/100))*VolumeData!J13,int+SED*regCutoff*VolumeData!J13)) -> 307.3948449 | H13: =IF(OR(ISBLANK(SEDData!H13),SEDData!H13<pulpCutoff*100,VolumeData!$G13<sweepCutoff,VolumeData!$H13<malfCutoff),"",IF(SEDData!H13<regCutoff*100,(int+SED*(SEDData!H13/100))*VolumeData!K13,int+SED*regCutoff*VolumeData!K13)) -> 252.6500189 | I13: =IF(OR(ISBLANK(SEDData!I13),SEDData!I13<pulpCutoff*100,VolumeData!$G13<sweepCutoff,VolumeData!$H13<malfCutoff),"",IF(SEDData!I13<regCutoff*100,(int+SED*(SEDData!I13/100))*VolumeData!L13,int+SED*regCutoff*VolumeData!L13)) -> 211.1992203 | J13: =IF(OR(ISBLANK(SEDData!J13),SEDData!J13<pulpCutoff*100,VolumeData!$G13<sweepCutoff,VolumeData!$H13<malfCutoff),"",IF(SEDData!J13<regCutoff*100,(int+SED*(SEDData!J13/100))*VolumeData!M13,int+SED*regCutoff*VolumeData!M13)) -> 178.0810302 | K13: =IF(OR(ISBLANK(SEDData!K13),SEDData!K13<pulpCutoff*100,VolumeData!$G13<sweepCutoff,VolumeData!$H13<malfCutoff),"",IF(SEDData!K13<regCutoff*100,(int+SED*(SEDData!K13/100))*VolumeData!N13,int+SED*regCutoff*VolumeData!N13)) -> 149.4116615 | L13: =IF(OR(ISBLANK(SEDData!L13),SEDData!L13<pulpCutoff*100,VolumeData!$G13<sweepCutoff,VolumeData!$H13<malfCutoff),"",IF(SEDData!L13<regCutoff*100,(int+SED*(SEDData!L13/100))*VolumeData!O13,int+SED*regCutoff*VolumeData!O13)) -> 122.3603218 | M13: =IF(OR(ISBLANK(SEDData!M13),SEDData!M13<pulpCutoff*100,VolumeData!$G13<sweepCutoff,VolumeData!$H13<malfCutoff),"",IF(SEDData!M13<regCutoff*100,(int+SED*(SEDData!M13/100))*VolumeData!P13,int+SED*regCutoff*VolumeData!P13)) -> 121.250816 | N13: =IF(OR(ISBLANK(SEDData!N13),SEDData!N13<pulpCutoff*100,VolumeData!$G13<sweepCutoff,VolumeData!$H13<malfCutoff),"",IF(SEDData!N13<regCutoff*100,(int+SED*(SEDData!N13/100))*VolumeData!Q13,int+SED*regCutoff*VolumeData!Q13)) -> 87.96896552 | O13: =IF(OR(ISBLANK(SEDData!O13),SEDData!O13<pulpCutoff*100,VolumeData!$G13<sweepCutoff,VolumeData!$H13<malfCutoff),"",IF(SEDData!O13<regCutoff*100,(int+SED*(SEDData!O13/100))*VolumeData!R13,int+SED*regCutoff*VolumeData!R13)) -> 57.75335976 | P13: =IF(OR(ISBLANK(SEDData!P13),SEDData!P13<pulpCutoff*100,VolumeData!$G13<sweepCutoff,VolumeData!$H13<malfCutoff),"",IF(SEDData!P13<regCutoff*100,(int+SED*(SEDData!P13/100))*VolumeData!S13,int+SED*regCutoff*VolumeData!S13)) -> 32.31946334 | Q13: =IF(OR(ISBLANK(SEDData!Q13),SEDData!Q13<pulpCutoff*100,VolumeData!$G13<sweepCutoff,VolumeData!$H13<malfCutoff),"",IF(SEDData!Q13<regCutoff*100,(int+SED*(SEDData!Q13/100))*VolumeData!T13,int+SED*regCutoff*VolumeData!T13)) ->  | R13: =IF(OR(ISBLANK(SEDData!R13),SEDData!R13<pulpCutoff*100,VolumeData!$G13<sweepCutoff,VolumeData!$H13<malfCutoff),"",IF(SEDData!R13<regCutoff*100,(int+SED*(SEDData!R13/100))*VolumeData!U13,int+SED*regCutoff*VolumeData!U13)) ->  | S13: =IF(OR(ISBLANK(SEDData!S13),SEDData!S13<pulpCutoff*100,VolumeData!$G13<sweepCutoff,VolumeData!$H13<malfCutoff),"",IF(SEDData!S13<regCutoff*100,(int+SED*(SEDData!S13/100))*VolumeData!V13,int+SED*regCutoff*VolumeData!V13)) ->  | T13: 1520.389702
A14: 29 | B14: 107 | C14: 54.1 | D14: 58.85539 | E14: 41.04930921 | F14: 4.24304029 | G14: =IF(OR(ISBLANK(SEDData!G14),SEDData!G14<pulpCutoff*100,VolumeData!$G14<sweepCutoff,VolumeData!$H14<malfCutoff),"",IF(SEDData!G14<regCutoff*100,(int+SED*(SEDData!G14/100))*VolumeData!J14,int+SED*regCutoff*VolumeData!J14)) -> 302.0712076 | H14: =IF(OR(ISBLANK(SEDData!H14),SEDData!H14<pulpCutoff*100,VolumeData!$G14<sweepCutoff,VolumeData!$H14<malfCutoff),"",IF(SEDData!H14<regCutoff*100,(int+SED*(SEDData!H14/100))*VolumeData!K14,int+SED*regCutoff*VolumeData!K14)) -> 248.0170508 | I14: =IF(OR(ISBLANK(SEDData!I14),SEDData!I14<pulpCutoff*100,VolumeData!$G14<sweepCutoff,VolumeData!$H14<malfCutoff),"",IF(SEDData!I14<regCutoff*100,(int+SED*(SEDData!I14/100))*VolumeData!L14,int+SED*regCutoff*VolumeData!L14)) -> 207.1147092 | J14: =IF(OR(ISBLANK(SEDData!J14),SEDData!J14<pulpCutoff*100,VolumeData!$G14<sweepCutoff,VolumeData!$H14<malfCutoff),"",IF(SEDData!J14<regCutoff*100,(int+SED*(SEDData!J14/100))*VolumeData!M14,int+SED*regCutoff*VolumeData!M14)) -> 174.4388574 | K14: =IF(OR(ISBLANK(SEDData!K14),SEDData!K14<pulpCutoff*100,VolumeData!$G14<sweepCutoff,VolumeData!$H14<malfCutoff),"",IF(SEDData!K14<regCutoff*100,(int+SED*(SEDData!K14/100))*VolumeData!N14,int+SED*regCutoff*VolumeData!N14)) -> 146.1383487 | L14: =IF(OR(ISBLANK(SEDData!L14),SEDData!L14<pulpCutoff*100,VolumeData!$G14<sweepCutoff,VolumeData!$H14<malfCutoff),"",IF(SEDData!L14<regCutoff*100,(int+SED*(SEDData!L14/100))*VolumeData!O14,int+SED*regCutoff*VolumeData!O14)) -> 119.4115805 | M14: =IF(OR(ISBLANK(SEDData!M14),SEDData!M14<pulpCutoff*100,VolumeData!$G14<sweepCutoff,VolumeData!$H14<malfCutoff),"",IF(SEDData!M14<regCutoff*100,(int+SED*(SEDData!M14/100))*VolumeData!P14,int+SED*regCutoff*VolumeData!P14)) -> 117.8283731 | N14: =IF(OR(ISBLANK(SEDData!N14),SEDData!N14<pulpCutoff*100,VolumeData!$G14<sweepCutoff,VolumeData!$H14<malfCutoff),"",IF(SEDData!N14<regCutoff*100,(int+SED*(SEDData!N14/100))*VolumeData!Q14,int+SED*regCutoff*VolumeData!Q14)) -> 85.25726882 | O14: =IF(OR(ISBLANK(SEDData!O14),SEDData!O14<pulpCutoff*100,VolumeData!$G14<sweepCutoff,VolumeData!$H14<malfCutoff),"",IF(SEDData!O14<regCutoff*100,(int+SED*(SEDData!O14/100))*VolumeData!R14,int+SED*regCutoff*VolumeData!R14)) -> 55.73220677 | P14: =IF(OR(ISBLANK(SEDData!P14),SEDData!P14<pulpCutoff*100,VolumeData!$G14<sweepCutoff,VolumeData!$H14<malfCutoff),"",IF(SEDData!P14<regCutoff*100,(int+SED*(SEDData!P14/100))*VolumeData!S14,int+SED*regCutoff*VolumeData!S14)) -> 30.95975644 | Q14: =IF(OR(ISBLANK(SEDData!Q14),SEDData!Q14<pulpCutoff*100,VolumeData!$G14<sweepCutoff,VolumeData!$H14<malfCutoff),"",IF(SEDData!Q14<regCutoff*100,(int+SED*(SEDData!Q14/100))*VolumeData!T14,int+SED*regCutoff*VolumeData!T14)) ->  | R14: =IF(OR(ISBLANK(SEDData!R14),SEDData!R14<pulpCutoff*100,VolumeData!$G14<sweepCutoff,VolumeData!$H14<malfCutoff),"",IF(SEDData!R14<regCutoff*100,(int+SED*(SEDData!R14/100))*VolumeData!U14,int+SED*regCutoff*VolumeData!U14)) ->  | S14: =IF(OR(ISBLANK(SEDData!S14),SEDData!S14<pulpCutoff*100,VolumeData!$G14<sweepCutoff,VolumeData!$H14<malfCutoff),"",IF(SEDData!S14<regCutoff*100,(int+SED*(SEDData!S14/100))*VolumeData!V14,int+SED*regCutoff*VolumeData!V14)) ->  | T14: 1486.969359
A15: 56 | B15: 120 | C15: 53.5 | D15: 58.20265 | E15: 40.86731104 | F15: 4.131049507 | G15: =IF(OR(ISBLANK(SEDData!G15),SEDData!G15<pulpCutoff*100,VolumeData!$G15<sweepCutoff,VolumeData!$H15<malfCutoff),"",IF(SEDData!G15<regCutoff*100,(int+SED*(SEDData!G15/100))*VolumeData!J15,int+SED*regCutoff*VolumeData!J15)) -> 294.1611343 | H15: =IF(OR(ISBLANK(SEDData!H15),SEDData!H15<pulpCutoff*100,VolumeData!$G15<sweepCutoff,VolumeData!$H15<malfCutoff),"",IF(SEDData!H15<regCutoff*100,(int+SED*(SEDData!H15/100))*VolumeData!K15,int+SED*regCutoff*VolumeData!K15)) -> 241.1356857 | I15: =IF(OR(ISBLANK(SEDData!I15),SEDData!I15<pulpCutoff*100,VolumeData!$G15<sweepCutoff,VolumeData!$H15<malfCutoff),"",IF(SEDData!I15<regCutoff*100,(int+SED*(SEDData!I15/100))*VolumeData!L15,int+SED*regCutoff*VolumeData!L15)) -> 201.0497535 | J15: =IF(OR(ISBLANK(SEDData!J15),SEDData!J15<pulpCutoff*100,VolumeData!$G15<sweepCutoff,VolumeData!$H15<malfCutoff),"",IF(SEDData!J15<regCutoff*100,(int+SED*(SEDData!J15/100))*VolumeData!M15,int+SED*regCutoff*VolumeData!M15)) -> 169.0320064 | K15: =IF(OR(ISBLANK(SEDData!K15),SEDData!K15<pulpCutoff*100,VolumeData!$G15<sweepCutoff,VolumeData!$H15<malfCutoff),"",IF(SEDData!K15<regCutoff*100,(int+SED*(SEDData!K15/100))*VolumeData!N15,int+SED*regCutoff*VolumeData!N15)) -> 141.2801528 | L15: =IF(OR(ISBLANK(SEDData!L15),SEDData!L15<pulpCutoff*100,VolumeData!$G15<sweepCutoff,VolumeData!$H15<malfCutoff),"",IF(SEDData!L15<regCutoff*100,(int+SED*(SEDData!L15/100))*VolumeData!O15,int+SED*regCutoff*VolumeData!O15)) -> 115.036308 | M15: =IF(OR(ISBLANK(SEDData!M15),SEDData!M15<pulpCutoff*100,VolumeData!$G15<sweepCutoff,VolumeData!$H15<malfCutoff),"",IF(SEDData!M15<regCutoff*100,(int+SED*(SEDData!M15/100))*VolumeData!P15,int+SED*regCutoff*VolumeData!P15)) -> 112.8153406 | N15: =IF(OR(ISBLANK(SEDData!N15),SEDData!N15<pulpCutoff*100,VolumeData!$G15<sweepCutoff,VolumeData!$H15<malfCutoff),"",IF(SEDData!N15<regCutoff*100,(int+SED*(SEDData!N15/100))*VolumeData!Q15,int+SED*regCutoff*VolumeData!Q15)) -> 81.2929387 | O15: =IF(OR(ISBLANK(SEDData!O15),SEDData!O15<pulpCutoff*100,VolumeData!$G15<sweepCutoff,VolumeData!$H15<malfCutoff),"",IF(SEDData!O15<regCutoff*100,(int+SED*(SEDData!O15/100))*VolumeData!R15,int+SED*regCutoff*VolumeData!R15)) -> 52.78693071 | P15: =IF(OR(ISBLANK(SEDData!P15),SEDData!P15<pulpCutoff*100,VolumeData!$G15<sweepCutoff,VolumeData!$H15<malfCutoff),"",IF(SEDData!P15<regCutoff*100,(int+SED*(SEDData!P15/100))*VolumeData!S15,int+SED*regCutoff*VolumeData!S15)) -> 28.98968238 | Q15: =IF(OR(ISBLANK(SEDData!Q15),SEDData!Q15<pulpCutoff*100,VolumeData!$G15<sweepCutoff,VolumeData!$H15<malfCutoff),"",IF(SEDData!Q15<regCutoff*100,(int+SED*(SEDData!Q15/100))*VolumeData!T15,int+SED*regCutoff*VolumeData!T15)) ->  | R15: =IF(OR(ISBLANK(SEDData!R15),SEDData!R15<pulpCutoff*100,VolumeData!$G15<sweepCutoff,VolumeData!$H15<malfCutoff),"",IF(SEDData!R15<regCutoff*100,(int+SED*(SEDData!R15/100))*VolumeData!U15,int+SED*regCutoff*VolumeData!U15)) ->  | S15: =IF(OR(ISBLANK(SEDData!S15),SEDData!S15<pulpCutoff*100,VolumeData!$G15<sweepCutoff,VolumeData!$H15<malfCutoff),"",IF(SEDData!S15<regCutoff*100,(int+SED*(SEDData!S15/100))*VolumeData!V15,int+SED*regCutoff*VolumeData!V15)) ->  | T15: 1437.579933
A16: 16 | B16: 47 | C16: 51.5 | D16: 56.02685 | E16: 40.24555965 | F16: 3.769720935 | G16: =IF(OR(ISBLANK(SEDData!G16),SEDData!G16<pulpCutoff*100,VolumeData!$G16<sweepCutoff,VolumeData!$H16<malfCutoff),"",IF(SEDData!G16<regCutoff*100,(int+SED*(SEDData!G16/100))*VolumeData!J16,int+SED*regCutoff*VolumeData!J16)) -> 268.4473939 | H16: =IF(OR(ISBLANK(SEDData!H16),SEDData!H16<pulpCutoff*100,VolumeData!$G16<sweepCutoff,VolumeData!$H16<malfCutoff),"",IF(SEDData!H16<regCutoff*100,(int+SED*(SEDData!H16/100))*VolumeData!K16,int+SED*regCutoff*VolumeData!K16)) -> 218.7875397 | I16: =IF(OR(ISBLANK(SEDData!I16),SEDData!I16<pulpCutoff*100,VolumeData!$G16<sweepCutoff,VolumeData!$H16<malfCutoff),"",IF(SEDData!I16<regCutoff*100,(int+SED*(SEDData!I16/100))*VolumeData!L16,int+SED*regCutoff*VolumeData!L16)) -> 181.3684149 | J16: =IF(OR(ISBLANK(SEDData!J16),SEDData!J16<pulpCutoff*100,VolumeData!$G16<sweepCutoff,VolumeData!$H16<malfCutoff),"",IF(SEDData!J16<regCutoff*100,(int+SED*(SEDData!J16/100))*VolumeData!M16,int+SED*regCutoff*VolumeData!M16)) -> 151.4973915 | K16: =IF(OR(ISBLANK(SEDData!K16),SEDData!K16<pulpCutoff*100,VolumeData!$G16<sweepCutoff,VolumeData!$H16<malfCutoff),"",IF(SEDData!K16<regCutoff*100,(int+SED*(SEDData!K16/100))*VolumeData!N16,int+SED*regCutoff*VolumeData!N16)) -> 125.5341244 | L16: =IF(OR(ISBLANK(SEDData!L16),SEDData!L16<pulpCutoff*100,VolumeData!$G16<sweepCutoff,VolumeData!$H16<malfCutoff),"",IF(SEDData!L16<regCutoff*100,(int+SED*(SEDData!L16/100))*VolumeData!O16,int+SED*regCutoff*VolumeData!O16)) -> 127.4356097 | M16: =IF(OR(ISBLANK(SEDData!M16),SEDData!M16<pulpCutoff*100,VolumeData!$G16<sweepCutoff,VolumeData!$H16<malfCutoff),"",IF(SEDData!M16<regCutoff*100,(int+SED*(SEDData!M16/100))*VolumeData!P16,int+SED*regCutoff*VolumeData!P16)) -> 97.12528907 | N16: =IF(OR(ISBLANK(SEDData!N16),SEDData!N16<pulpCutoff*100,VolumeData!$G16<sweepCutoff,VolumeData!$H16<malfCutoff),"",IF(SEDData!N16<regCutoff*100,(int+SED*(SEDData!N16/100))*VolumeData!Q16,int+SED*regCutoff*VolumeData!Q16)) -> 68.95015253 | O16: =IF(OR(ISBLANK(SEDData!O16),SEDData!O16<pulpCutoff*100,VolumeData!$G16<sweepCutoff,VolumeData!$H16<malfCutoff),"",IF(SEDData!O16<regCutoff*100,(int+SED*(SEDData!O16/100))*VolumeData!R16,int+SED*regCutoff*VolumeData!R16)) -> 43.69784308 | P16: =IF(OR(ISBLANK(SEDData!P16),SEDData!P16<pulpCutoff*100,VolumeData!$G16<sweepCutoff,VolumeData!$H16<malfCutoff),"",IF(SEDData!P16<regCutoff*100,(int+SED*(SEDData!P16/100))*VolumeData!S16,int+SED*regCutoff*VolumeData!S16)) -> 23.00582661 | Q16: =IF(OR(ISBLANK(SEDData!Q16),SEDData!Q16<pulpCutoff*100,VolumeData!$G16<sweepCutoff,VolumeData!$H16<malfCutoff),"",IF(SEDData!Q16<regCutoff*100,(int+SED*(SEDData!Q16/100))*VolumeData!T16,int+SED*regCutoff*VolumeData!T16)) ->  | R16: =IF(OR(ISBLANK(SEDData!R16),SEDData!R16<pulpCutoff*100,VolumeData!$G16<sweepCutoff,VolumeData!$H16<malfCutoff),"",IF(SEDData!R16<regCutoff*100,(int+SED*(SEDData!R16/100))*VolumeData!U16,int+SED*regCutoff*VolumeData!U16)) ->  | S16: =IF(OR(ISBLANK(SEDData!S16),SEDData!S16<pulpCutoff*100,VolumeData!$G16<sweepCutoff,VolumeData!$H16<malfCutoff),"",IF(SEDData!S16<regCutoff*100,(int+SED*(SEDData!S16/100))*VolumeData!V16,int+SED*regCutoff*VolumeData!V16)) ->  | T16: 1305.849585
A17: 20 | B17: 88 | C17: 51.5 | D17: 56.02685 | E17: 40.24555965 | F17: 3.769720935 | G17: =IF(OR(ISBLANK(SEDData!G17),SEDData!G17<pulpCutoff*100,VolumeData!$G17<sweepCutoff,VolumeData!$H17<malfCutoff),"",IF(SEDData!G17<regCutoff*100,(int+SED*(SEDData!G17/100))*VolumeData!J17,int+SED*regCutoff*VolumeData!J17)) -> 268.4473939 | H17: =IF(OR(ISBLANK(SEDData!H17),SEDData!H17<pulpCutoff*100,VolumeData!$G17<sweepCutoff,VolumeData!$H17<malfCutoff),"",IF(SEDData!H17<regCutoff*100,(int+SED*(SEDData!H17/100))*VolumeData!K17,int+SED*regCutoff*VolumeData!K17)) -> 218.7875397 | I17: =IF(OR(ISBLANK(SEDData!I17),SEDData!I17<pulpCutoff*100,VolumeData!$G17<sweepCutoff,VolumeData!$H17<malfCutoff),"",IF(SEDData!I17<regCutoff*100,(int+SED*(SEDData!I17/100))*VolumeData!L17,int+SED*regCutoff*VolumeData!L17)) -> 181.3684149 | J17: =IF(OR(ISBLANK(SEDData!J17),SEDData!J17<pulpCutoff*100,VolumeData!$G17<sweepCutoff,VolumeData!$H17<malfCutoff),"",IF(SEDData!J17<regCutoff*100,(int+SED*(SEDData!J17/100))*VolumeData!M17,int+SED*regCutoff*VolumeData!M17)) -> 151.4973915 | K17: =IF(OR(ISBLANK(SEDData!K17),SEDData!K17<pulpCutoff*100,VolumeData!$G17<sweepCutoff,VolumeData!$H17<malfCutoff),"",IF(SEDData!K17<regCutoff*100,(int+SED*(SEDData!K17/100))*VolumeData!N17,int+SED*regCutoff*VolumeData!N17)) -> 125.5341244 | L17: =IF(OR(ISBLANK(SEDData!L17),SEDData!L17<pulpCutoff*100,VolumeData!$G17<sweepCutoff,VolumeData!$H17<malfCutoff),"",IF(SEDData!L17<regCutoff*100,(int+SED*(SEDData!L17/100))*VolumeData!O17,int+SED*regCutoff*VolumeData!O17)) -> 127.4356097 | M17: =IF(OR(ISBLANK(SEDData!M17),SEDData!M17<pulpCutoff*100,VolumeData!$G17<sweepCutoff,VolumeData!$H17<malfCutoff),"",IF(SEDData!M17<regCutoff*100,(int+SED*(SEDData!M17/100))*VolumeData!P17,int+SED*regCutoff*VolumeData!P17)) -> 97.12528907 | N17: =IF(OR(ISBLANK(SEDData!N17),SEDData!N17<pulpCutoff*100,VolumeData!$G17<sweepCutoff,VolumeData!$H17<malfCutoff),"",IF(SEDData!N17<regCutoff*100,(int+SED*(SEDData!N17/100))*VolumeData!Q17,int+SED*regCutoff*VolumeData!Q17)) -> 68.95015253 | O17: =IF(OR(ISBLANK(SEDData!O17),SEDData!O17<pulpCutoff*100,VolumeData!$G17<sweepCutoff,VolumeData!$H17<malfCutoff),"",IF(SEDData!O17<regCutoff*100,(int+SED*(SEDData!O17/100))*VolumeData!R17,int+SED*regCutoff*VolumeData!R17)) -> 43.69784308 | P17: =IF(OR(ISBLANK(SEDData!P17),SEDData!P17<pulpCutoff*100,VolumeData!$G17<sweepCutoff,VolumeData!$H17<malfCutoff),"",IF(SEDData!P17<regCutoff*100,(int+SED*(SEDData!P17/100))*VolumeData!S17,int+SED*regCutoff*VolumeData!S17)) -> 23.00582661 | Q17: =IF(OR(ISBLANK(SEDData!Q17),SEDData!Q17<pulpCutoff*100,VolumeData!$G17<sweepCutoff,VolumeData!$H17<malfCutoff),"",IF(SEDData!Q17<regCutoff*100,(int+SED*(SEDData!Q17/100))*VolumeData!T17,int+SED*regCutoff*VolumeData!T17)) ->  | R17: =IF(OR(ISBLANK(SEDData!R17),SEDData!R17<pulpCutoff*100,VolumeData!$G17<sweepCutoff,VolumeData!$H17<malfCutoff),"",IF(SEDData!R17<regCutoff*100,(int+SED*(SEDData!R17/100))*VolumeData!U17,int+SED*regCutoff*VolumeData!U17)) ->  | S17: =IF(OR(ISBLANK(SEDData!S17),SEDData!S17<pulpCutoff*100,VolumeData!$G17<sweepCutoff,VolumeData!$H17<malfCutoff),"",IF(SEDData!S17<regCutoff*100,(int+SED*(SEDData!S17/100))*VolumeData!V17,int+SED*regCutoff*VolumeData!V17)) ->  | T17: 1305.849585
